Workbook

Sheet AER Changes
A2: Issues | B2: Location | C2: Comment
B5: Final Decision
A6: 1 | B6: DNSP Inputs General'!N9 | C6: Actual 2019 capex data inputs amended to reconile to Table "8.2.3 - CAPEX OTHER" in file "[Ausnet (D) 2019 - Annual - RIN Response - 28 May 2020 - PUBLIC (#11009434.2)_0.xlsx]8.2 Capex"
A8: =A6+1 -> 2 | B8: DNSP Inputs General'!B26:F26 | C8: Update for AER Draft Decision Real Pre Tax WACC
A10: =A8+1 -> 3 | B10: DNSP Inputs General'!D31:D35 | C10: Update for AER Final Decision CPI Forecast
A12: =A10+1 -> 4 | B12: DNSP Inputs General'!C31 | C12: CPI to escalate prices in 2021-22 is Forecast CPI
B13: WACC!C14
A16: =A12+1 -> 5 | B16: DNSP Inputs General'!M42:U130 | C16: Updated Quantities
A18: =A16+1 -> 6 | B18: DNSP Inputs General'!Q134:U134 | C18: AER Final Decision Real Labour Escalator
A21: =A18+1 -> 7 | B21: DNSP Inputs O & M'!D384:H386 | C21: Update for AER Final Decision - Number of Repairs in 1 day
B22: DNSP Inputs O & M'!D430:H432
B23: DNSP Inputs O & M'!D476:H478
B26: Revised Proposal Model
B27: [ASD - EDPR 2022-26 Revised proposal - Public Lighting Model - 20210303 - PUBLIC.xlsm]Report|Charges Summary'!$B$25:$K$25
B28: Formula should refer to Opening RAB of current year not average RAB of previous year. Note average RAB of previous year includes half year depreciation which already has been recovered by the business

Sheet Instructions
A1: ='DNSP Inputs O&M'!$A$3 -> AusNet
A3: Instructions
A5: This model is to be used for the setting of Public Lighting Tariffs for the Regulatory Period 2021-22 to 2025-26 based on forecast inflation rates, Real Pre Tax WACC and Nominal vanilla WACC.
A7: Distributor data input fields are shaded | C7: and located in tabs "DNSP Inputs General" , "DNSP Inputs O&M" and "DNSP Inputs Capex"
A10: This model will also to be used for the annual Public Lighting Tariff Approvals in the Regulatory Period 2021-22 to 2025-26 based on actual inflation rates and Real Pre Tax WACC.
B16: 2027-06-30
B18: $Real Jun 2026
B20: 2027-31

Sheet DNSP Inputs General
B2: ='DNSP Inputs O&M'!$A$3 -> AusNet
D4: 2009 | E4: 2010 | F4: 2011 | G4: 2012 | H4: 2013 | I4: 2014 | J4: 2015 | K4: 2016 | L4: 2017 | M4: 2018 | N4: 2019 | O4: 2020 | P4: HY2021 | Q4: 2022-06-30 | R4: 2023-06-30 | S4: 2024-06-30 | T4: 2025-06-30 | U4: 2026-06-30 | V4: =Instructions!$B$16 -> 2027-06-30 | W4: =EOMONTH(V4,12) -> 2028-06-30 | X4: =EOMONTH(W4,12) -> 2029-06-30 | Y4: =EOMONTH(X4,12) -> 2030-06-30 | Z4: =EOMONTH(Y4,12) -> 2031-06-30
B5: Capital Expenditure | D5: Actual | E5: Actual | F5: Actual | G5: Actual | H5: Actual | I5: Actual | J5: Actual | K5: Actual | L5: Actual | M5: Actual | N5: Actual | O5: Actual | P5: Actual | Q5: Actual | R5: Actual | S5: Actual | T5: Decision | U5: Decision | V5: Forecast | W5: Forecast | X5: Forecast | Y5: Forecast | Z5: Forecast
B6: (Net of customer contributions) | D6: $Nominal | E6: $Nominal | F6: $Nominal | G6: $Nominal | H6: $Nominal | I6: $Nominal | J6: $Nominal | K6: $Nominal | L6: $Nominal | M6: $Nominal | N6: $Nominal | O6: $Nominal | P6: $Nominal | Q6: $Nominal | R6: $Nominal | S6: $Nominal | T6: $Jun 2021 | U6: $Jun 2021 | V6: $Jun 2026 | W6: $Jun 2026 | X6: $Jun 2026 | Y6: $Jun 2026 | Z6: $Jun 2026
B8: Poles and Brackets | D8: 945891.2356 | E8: 957809.4651 | F8: 880178.8893 | G8: 925158.8499 | H8: 998447.2314 | I8: 775787.6177 | J8: 1086336.971 | K8: 1960186 | L8: 3550606.606 | M8: 4528111 | N8: 1787545 | O8: 1080672.882 | P8: 196088.4634 | Q8: -16180.29993 | R8: 1401986.86 | S8: 570238.27 | T8: 2330741.437 | U8: 2338792.171 | V8: 2313667.698 | W8: 2320653.209 | X8: 2329211.041 | Y8: 2339457.004 | Z8: 2348140.958
B10: Existing Lights | D10: 448491.4405 | E10: 418018.4138 | F10: -892269.5328 | G10: 258757.3149 | H10: 398955.5693 | I10: 829176.3823 | J10: 1161608.129 | K10: 3323078 | L10: 3418777 | M10: 1644455 | N10: 1417144.999 | O10: 2379799.629 | P10: 1248759.006 | Q10: 2363009.707 | R10: 2187317.843 | S10: 0 | T10: 0 | U10: 0 | V10: 0 | W10: 0 | X10: 0 | Y10: 0 | Z10: 0
B12: Energy Efficient Lights | D12: 0 | E12: 1941138.457 | F12: 0 | G12: 0 | H12: 0 | I12: 0 | J12: 0 | K12: 0 | L12: 0 | M12: 483844 | N12: 638979 | O12: 752471 | P12: 298306.047 | Q12: 607105.3912 | R12: 551282.2371 | S12: 5370070.35 | T12: 2878251.352 | U12: 1181793.24 | V12: 3534948.375 | W12: 3573449.323 | X12: 3614025.98 | Y12: 3656817.208 | Z12: 3699713.233
B14: Total Net Capex | D14: =SUM(D8,D10,D12) -> 1394382.676 | E14: 3316966.336 | F14: -12090.64345 | G14: 1183916.165 | H14: 1397402.801 | I14: 1604964 | J14: 2247945.101 | K14: 5283264 | L14: 6969383.606 | M14: 6656410 | N14: 3843668.999 | O14: 4212943.511 | P14: 1743153.516 | Q14: 2953934.798 | R14: 4140586.94 | S14: 5940308.62 | T14: 5208992.79 | U14: 3520585.411 | V14: 5848616.072 | W14: 5894102.532 | X14: 5943237.021 | Y14: 5996274.212 | Z14: 6047854.191
B17: O&M | F17: 2011 | G17: 2012 | H17: 2013 | I17: 2014 | J17: =J$4 -> 2015 | K17: =K$4 -> 2016 | L17: 2017 | M17: 2018 | N17: 2019 | O17: 2020 | P17: HY2021 | Q17: 2022-06-30 | R17: 2023-06-30 | S17: 2024-06-30 | T17: 2025-06-30 | U17: 2026-06-30 | V17: =Instructions!$B$16 -> 2027-06-30 | W17: =EOMONTH(V17,12) -> 2028-06-30 | X17: =EOMONTH(W17,12) -> 2029-06-30 | Y17: =EOMONTH(X17,12) -> 2030-06-30 | Z17: =EOMONTH(Y17,12) -> 2031-06-30
F18: =F5 -> Actual | G18: =G5 -> Actual | H18: Actual | I18: Actual | J18: Actual | K18: Actual | L18: Actual | M18: Actual | N18: Actual | O18: Actual | P18: Actual | Q18: Actual | R18: =R5 -> Actual | S18: =S5 -> Actual | T18: Decision | U18: Decision | V18: Forecast | W18: Forecast | X18: Forecast | Y18: Forecast | Z18: Forecast
F19: =F6 -> $Nominal | G19: =G6 -> $Nominal | H19: $Nominal | I19: $Nominal | J19: $Nominal | K19: $Nominal | L19: $Nominal | M19: $Nominal | N19: $Nominal | O19: $Nominal | P19: $Nominal | Q19: $Nominal | R19: $Nominal | S19: =S6 -> $Nominal | T19: $Jun 2021 | U19: $Jun 2021 | V19: $Jun 2026 | W19: $Jun 2026 | X19: $Jun 2026 | Y19: $Jun 2026 | Z19: $Jun 2026
B21: Total O & M | F21: 2283204.04 | G21: 2209782.26 | H21: 2391738.64 | I21: 1580678 | J21: 1063000 | K21: 1946538.303 | L21: 2338331 | M21: 2966870.86 | N21: 2955471.78 | O21: 8512383.079 | P21: 3926225.471 | Q21: 3076896 | R21: 2813502 | S21: 2758131 | T21: ='[1]DNSP Inputs General'!T20 -> 5410627.117 | U21: ='[1]DNSP Inputs General'!U20 -> 5493856.139 | V21: ='Cashflow Summary'!K13 -> 4502232.018 | W21: ='Cashflow Summary'!L13 -> 4416027.904 | X21: ='Cashflow Summary'!M13 -> 4368617.906 | Y21: ='Cashflow Summary'!N13 -> 4359641.506 | Z21: ='Cashflow Summary'!O13 -> 4114210.532
B25: WACC
B26: Regulatory Period | Q26: =Q4 -> 2022-06-30 | R26: 2023-06-30 | S26: 2024-06-30 | T26: 2025-06-30 | U26: 2026-06-30 | V26: 2027-06-30 | W26: 2028-06-30 | X26: 2029-06-30 | Y26: 2030-06-30 | Z26: 2031-06-30
B27: Real Pre Tax WACC | Q27: 0.02989238903 | R27: 0.02989238903 | S27: 0.02989238903 | T27: 0.02989238903 | U27: 0.02989238903 | V27: =WACC!J7 -> 0.03674107418 | W27: =WACC!K7 -> 0.03763617037 | X27: =WACC!L7 -> 0.03868984967 | Y27: =WACC!M7 -> 0.04005923473 | Z27: =WACC!N7 -> 0.04202604004
B30: CPI Index | J30: =J$4 -> 2015 | K30: =K$4 -> 2016 | L30: 2017 | M30: 2018 | N30: 2019 | O30: 2020 | P30: HY2021 | Q30: 2022-06-30 | R30: 2023-06-30 | S30: 2024-06-30 | T30: 2025-06-30 | U30: 2026-06-30 | V30: =Instructions!$B$16 -> 2027-06-30 | W30: =EOMONTH(V30,12) -> 2028-06-30 | X30: =EOMONTH(W30,12) -> 2029-06-30 | Y30: =EOMONTH(X30,12) -> 2030-06-30 | Z30: =EOMONTH(Y30,12) -> 2031-06-30
J31: Actual CPI | K31: =CPI!D7 -> 0.01510859301 | L31: =CPI!E7 -> 0.01023255814 | M31: =CPI!F7 -> 0.01933701657 | N31: =CPI!G7 -> 0.02077687444 | O31: =CPI!H7 -> 0.01592920354 | P31: =CPI!I7 -> 0.01219512195 | Q31: =CPI!J7 -> 0.008605851979 | R31: =CPI!K7 -> 0.03498293515 | S31: =CPI!L7 -> 0.07831821929 | T31: =CPI!M7 -> 0.04051987768 | U31: =CPI!N7 -> 0.03 | V31: =CPI!O7 -> 0.025 | W31: =CPI!P7 -> 0.025 | X31: =CPI!Q7 -> 0.025 | Y31: =CPI!R7 -> 0.025 | Z31: =CPI!S7 -> 0.025
J32: 1 | K32: =J32*(1+K31) -> 1.015108593 | L32: =K32*(1+L31) -> 1.025495751 | M32: =L32*(1+M31) -> 1.045325779 | N32: =M32*(1+N31) -> 1.067044381 | O32: =N32*(1+O31) -> 1.084041549 | P32: 1 | Q32: =P32*(1+Q31) -> 1.008605852 | R32: =Q32*(1+R31) -> 1.043889845 | S32: =R32*(1+S31) -> 1.125645439 | T32: =S32*(1+T31) -> 1.171256454 | U32: =T32*(1+U31) -> 1.206394148
B40: Number Of Lights
B42: Central | E42: 2026-06-01 | F42: =F$4 -> 2011 | G42: =G$4 -> 2012 | H42: =H$4 -> 2013 | I42: =I$4 -> 2014 | J42: =J$4 -> 2015 | K42: =K$4 -> 2016 | L42: 2017 | M42: 2018 | N42: 2019 | O42: 2020 | P42: HY2021 | Q42: 2022-06-30 | R42: 2023-06-30 | S42: 2024-06-30 | T42: 2025-06-30 | U42: 2026-06-30 | V42: =Instructions!$B$16 -> 2027-06-30 | W42: =EOMONTH(V42,12) -> 2028-06-30 | X42: =EOMONTH(W42,12) -> 2029-06-30 | Y42: =EOMONTH(X42,12) -> 2030-06-30 | Z42: =EOMONTH(Y42,12) -> 2031-06-30
E43: Actual Prices | F43: Actual Volumes | J43: =J5 -> Actual | K43: =K5 -> Actual | L43: Actual | M43: Actual | N43: Actual | O43: Actual | P43: Actual | Q43: Actual | R43: Actual | S43: Actual | T43: Decision | U43: Decision | V43: Forecast | W43: Forecast | X43: Forecast | Y43: Forecast | Z43: Forecast
B44: Existing Lights | C44: Reference Light | D44: Price Factor
B45: Mercury Vapour 80W | C45: =B$45 -> Mercury Vapour 80W | D45: 1 | E45: 71.68462513 | F45: 59322.5 | G45: 58866.85 | H45: 58715.36667 | I45: 56826.28333 | J45: 48843.3699 | K45: 33071 | L45: 19501 | M45: 20899 | N45: 20183 | O45: 19640 | P45: 19640 | Q45: 14785.8132 | R45: 16742 | S45: 11161.33333 | T45: 5580.666667 | U45: 3348.4 | V45: 3348.4 | W45: 3348.4 | X45: 3348.4 | Y45: 3348.4 | Z45: 3348.4
B46: HP Sodium 150W | C46: =B$46 -> HP Sodium 150W | D46: 1 | E46: 128.2482859 | F46: 12679.83333 | G46: 13325.13333 | H46: 13781.75 | I46: 14149.8 | J46: 14308.29031 | K46: 15306 | L46: 14457 | M46: 16891 | N46: 15334 | O46: 14783 | P46: 14783 | Q46: 14443.46329 | R46: 14552 | S46: 13339.33333 | T46: 12126.66667 | U46: 10914 | V46: 10004.5 | W46: 9170.791667 | X46: 8406.559028 | Y46: 7706.012442 | Z46: 5583.845775
B47: HP Sodium 250W | C47: =B$47 -> HP Sodium 250W | D47: 1 | E47: 131.5919745 | F47: 6080.266667 | G47: 6156.533333 | H47: 6248.633333 | I47: 6374.183333 | J47: 6445.579842 | K47: 6810 | L47: 7048 | M47: 7381 | N47: 6784 | O47: 6880 | P47: 6880 | Q47: 6758.215629 | R47: 6391 | S47: 5858.416667 | T47: 5325.833333 | U47: 4793.25 | V47: 4305.048611 | W47: 3861.229167 | X47: 3461.791667 | Y47: 3103.037616 | Z47: 2082.252894
B48: Mercury Vapour 50W | C48: =B$45 -> Mercury Vapour 80W | D48: 1.53 | E48: 109.6774764 | F48: 324 | G48: 322.3333333 | H48: 319.5833333 | I48: 270.1666667 | J48: 273.192773 | K48: 75 | L48: 71 | M48: 71 | N48: 25 | O48: 71 | P48: 70.37165 | Q48: 54.814856 | R48: 8 | S48: 5.333333333 | T48: 2.666666667 | U48: 0 | V48: 0 | W48: 0 | X48: 0 | Y48: 0 | Z48: 0
B49: Mercury Vapour 125W | C49: =B$45 -> Mercury Vapour 80W | D49: 1.47 | E49: 105.3763989 | F49: 855.25 | G49: 848.0833333 | H49: 839.5 | I49: 803.65 | J49: 812.651593 | K49: 425 | L49: 332 | M49: 289 | N49: 297 | O49: 284 | P49: 281.4866 | Q49: 211.11495 | R49: 178 | S49: 118.6666667 | T49: 59.33333333 | U49: 0 | V49: 0 | W49: 0 | X49: 0 | Y49: 0 | Z49: 0
B50: Mercury Vapour 250W | C50: =B$47 -> HP Sodium 250W | D50: 1.05 | E50: 138.1715732 | F50: 875.8666667 | G50: 850.0833333 | H50: 817.7833333 | I50: 791.6 | J50: 800.4666223 | K50: 702 | L50: 668 | M50: 655 | N50: 1036 | O50: 611 | P50: 605.59265 | Q50: 460.8580933 | R50: 324 | S50: 216 | T50: 108 | U50: 0 | V50: 0 | W50: 0 | X50: 0 | Y50: 0 | Z50: 0
B51: Mercury Vapour 400W | C51: =B$47 -> HP Sodium 250W | D51: 1.09 | E51: 143.4352522 | F51: 151.1666667 | G51: 146.8666667 | H51: 148 | I51: 147.9166667 | J51: 149.5734646 | K51: 143 | L51: 141 | M51: 146 | N51: 206 | O51: 116 | P51: 114.9734 | Q51: 87 | R51: 55 | S51: 36.66666667 | T51: 18.33333333 | U51: 0 | V51: 0 | W51: 0 | X51: 0 | Y51: 0 | Z51: 0
B52: HP Sodium 100W | C52: =B$46 -> HP Sodium 150W | D52: 1.07 | E52: 137.2256659 | F52: 2304.166667 | G52: 2478.2 | H52: 2612.416667 | I52: 2729.483333 | J52: 2760.055968 | K52: 2851 | L52: 2465 | M52: 3109 | N52: 2948 | O52: 2497 | P52: 2481.458941 | Q52: 2465.677637 | R52: 2583 | S52: 2367.75 | T52: 2152.5 | U52: 1937.25 | V52: 1722 | W52: 1506.75 | X52: 1291.5 | Y52: 1076.25 | Z52: 861
B53: HP Sodium 400W | C53: =B$47 -> HP Sodium 250W | D53: 1.42 | E53: 186.8606038 | F53: 289.5 | G53: 283.55 | H53: 275.25 | I53: 267.9166667 | J53: 270.917571 | K53: 282 | L53: 281 | M53: 297 | N53: 443 | O53: 212 | P53: 212 | Q53: 215.7035154 | R53: 176 | S53: 161.3333333 | T53: 146.6666667 | U53: 132 | V53: 117.3333333 | W53: 102.6666667 | X53: 88 | Y53: 73.33333333 | Z53: 58.66666667
B54: Metal Halide 70W | C54: =B$45 -> Mercury Vapour 80W | D54: 4.365105678 | E54: 312.9109641 | F54: 31 | G54: 31 | H54: 31 | I54: 31 | J54: 31.3472275 | K54: 31 | L54: 31 | M54: 31 | N54: 31 | O54: 31 | P54: 27.125 | Q54: 19.375 | R54: 65 | S54: 43.33333333 | T54: 21.66666667 | U54: 0 | V54: 0 | W54: 0 | X54: 0 | Y54: 0 | Z54: 0
B55: Metal Halide 100W | C55: HP Sodium 150W | D55: 2.387689088 | E55: 306.2170326 | F55: 34 | G55: 34 | H55: 34 | I55: 34 | J55: 34.38083016 | K55: 34 | L55: 34 | M55: 34 | N55: 34 | O55: 34 | P55: 29.75 | Q55: 21.25 | R55: 0 | S55: 0 | T55: 0 | U55: 0 | V55: 0 | W55: 0 | X55: 0 | Y55: 0 | Z55: 0
B56: Metal Halide 150W | C56: HP Sodium 150W | D56: 2.712586814 | E56: 347.8846091 | F56: 32 | G56: 32 | H56: 32 | I56: 32.16666667 | J56: 32.52696187 | K56: 33 | L56: 33 | M56: 33 | N56: 33 | O56: 33 | P56: 28.875 | Q56: 20.625 | R56: 31 | S56: 20.66666667 | T56: 10.33333333 | U56: 0 | V56: 0 | W56: 0 | X56: 0 | Y56: 0 | Z56: 0
B57: HP Sodium 50W | C57: =B$46 -> HP Sodium 150W | D57: 0.4433450671 | E57: 56.85824489 | F57: 94 | G57: 95 | H57: 95 | I57: 95 | J57: 96.06408428 | K57: 0 | L57: 0 | M57: 0 | N57: 0 | O57: 0 | P57: 0 | Q57: 0 | R57: 0 | S57: 0 | T57: 0 | U57: 0 | V57: 0 | W57: 0 | X57: 0 | Y57: 0 | Z57: 0
B59: Total Existing Lights | F59: =SUM(F45:F58) -> 83073.55 | G59: 83469.63333 | H59: 83950.28333 | I59: 82553.16667 | J59: 74858.41715 | K59: 59763 | L59: 45062 | M59: 49836 | N59: 47354 | O59: 45192 | P59: 45154.63324 | Q59: 39543.91117 | R59: 41105 | S59: 33328.83333 | T59: 25552.66667 | U59: 21124.9 | V59: 19497.28194 | W59: 17989.8375 | X59: 16596.25069 | Y59: 15307.03339 | Z59: 11934.16534
B61: Energy Efficient Lights | C61: Reference Light | D61: Price Factor
B62: T5 2X14W | C62: =B$62 -> T5 2X14W | D62: 1 | E62: 61.71523463 | F62: 3208.75 | G62: 5202.25 | H62: 6045.833333 | I62: 8439.583333 | J62: 11516.80288 | K62: 21929 | L62: 21271 | M62: 22991 | N62: 22499 | O62: 22518 | P62: 22518 | Q62: 22528.43237 | R62: 23515 | S62: 20144 | T62: 16773 | U62: 13402 | V62: 10722 | W62: 8042 | X62: 5362 | Y62: 2680 | Z62: 1
B63: T5 2X24W | C63: =B$63 -> T5 2X24W | D63: 1 | E63: 65.69333383 | F63: 105.1666667 | G63: 277 | H63: 352.4166667 | I63: 542.9166667 | J63: 932.7493248 | K63: 1690 | L63: 1584 | M63: 2040 | N63: 1780 | O63: 1649 | P63: 1781 | Q63: 1781 | R63: 1772 | S63: 1223 | T63: 674 | U63: 125 | V63: 100 | W63: 75 | X63: 50 | Y63: 25 | Z63: 0
B64: LED 18W | C64: =B$64 -> LED 18W | D64: 1 | E64: 36.27870205 | F64: 0 | G64: 0 | H64: 0 | I64: 0 | J64: 2982.688731 | K64: 12368 | L64: 23946 | M64: 30035 | N64: 30436 | O64: 30959 | P64: 32106.50385 | Q64: 38758.36993 | R64: 28810 | S64: 40596.86933 | T64: 48525.40967 | U64: 56517.34781 | V64: 62830.12555 | W64: 68707.61535 | X64: 74628.97887 | Y64: 80503.12415 | Z64: 90252.03367
B65: LED 14W | C65: =B65 -> LED 14W | D65: 1 | E65: 38.2784794 | F65: 0 | G65: 0 | H65: 0 | I65: 0 | J65: 0 | K65: 0 | L65: 0 | M65: 307 | N65: 1726 | O65: 2673 | P65: 2673 | Q65: 2732.116782 | R65: 6228 | S65: 6402.384 | T65: 6581.650752 | U65: 6765.936973 | V65: 6955.383208 | W65: 7150.133938 | X65: 7350.337688 | Y65: 7556.147144 | Z65: 7767.719264
B66: LED 70W-125W (L1) | C66: =B66 -> LED 70W-125W (L1) | D66: 1 | E66: 57.02846585 | F66: 0 | G66: 0 | H66: 0 | I66: 0 | J66: 0 | K66: 0 | L66: 0 | M66: 417 | N66: 1259 | O66: 1833.421779 | P66: 2118.198557 | Q66: 2465.3301 | R66: 7031 | S66: 7636.192 | T66: 8483.912709 | U66: 9349.053265 | V66: 10232.10142 | W66: 11130.11415 | X66: 12043.6069 | Y66: 12973.10956 | Z66: 13932.94463
B67: LED 155W-250W (L2) | C67: =B67 -> LED 155W-250W (L2) | D67: 1 | E67: 58.16650898 | F67: 0 | G67: 0 | H67: 0 | I67: 0 | J67: 0 | K67: 0 | L67: 0 | M67: 273 | N67: 901 | O67: 1227 | P67: 1434.175143 | Q67: 2465.205716 | R67: 2615 | S67: 2876.24 | T67: 4650.496109 | U67: 6432.27175 | V67: 8221.77747 | W67: 9983.229711 | X67: 11716.85098 | Y67: 13422.87 | Z67: 15245.52191
B68: LED 275W-400W (L4) | C68: =B68 -> LED 275W-400W (L4) | D68: 1 | E68: 68.3579129 | F68: 0 | G68: 0 | H68: 0 | I68: 0 | J68: 0 | K68: 0 | L68: 0 | M68: 0 | N68: 50 | O68: 68 | P68: 77.83661336 | Q68: 119.3902363 | R68: 46 | S68: 52.468 | T68: 92.117104 | U68: 131.9523829 | V68: 171.9790496 | W68: 206.0913519 | X68: 234.2947987 | Y68: 256.595053 | Z68: 297.4423812
B69: Compact Fluorescent 32W | C69: =B$62 -> T5 2X14W | D69: 0.8796098925 | E69: 54.2853309 | F69: 1978.933333 | G69: 2125.083333 | H69: 2279.5 | I69: 2420.833333 | J69: 4159.074119 | K69: 2908 | L69: 2707 | M69: 2827 | N69: 3108 | O69: 3107 | P69: 3107 | Q69: 3111.172949 | R69: 3011 | S69: 3011 | T69: 2580.857143 | U69: 2150.714286 | V69: 1720.571429 | W69: 1290.428571 | X69: 921.7346939 | Y69: 614.4897959 | Z69: 614.4897959
B70: Compact Fluorescent 42W | C70: =B$62 -> T5 2X14W | D70: 0.8796098925 | E70: 54.2853309 | F70: 245.5 | G70: 366.3333333 | H70: 572.1666667 | I70: 791.0833333 | J70: 1359.108111 | K70: 1570 | L70: 1336 | M70: 2089 | N70: 1921 | O70: 1924 | P70: 1924 | Q70: 1992.158172 | R70: 1978 | S70: 1978 | T70: 1582 | U70: 1186 | V70: 790 | W70: 0.0001 | X70: 0.0001 | Y70: 0.0001 | Z70: 0.0001
B71: Smart lighting L1 | C71: =B71 -> Smart lighting L1 | D71: 1 | E71: 72.94980159 | F71: 0 | G71: 0 | H71: 0 | I71: 0 | J71: 0 | K71: 0 | L71: 0 | M71: 0 | N71: 0 | O71: 0 | P71: 1 | Q71: 1 | R71: 1 | S71: 1 | T71: 0 | U71: 0 | V71: 0
B72: Smart lighting L2 | C72: =B72 -> Smart lighting L2 | D72: 1 | E72: 74.08784473 | F72: 0 | G72: 0 | H72: 0 | I72: 0 | J72: 0 | K72: 0 | L72: 0 | M72: 0 | N72: 0 | O72: 0 | P72: 3 | Q72: 3 | R72: 3 | S72: 3 | T72: 0 | U72: 0 | V72: 0
B73: Smart lighting L4 | C73: =B73 -> Smart lighting L4 | D73: 1 | E73: 84.27924864 | F73: 0 | G73: 0 | H73: 0 | I73: 0 | J73: 0 | K73: 0 | L73: 0 | M73: 0 | N73: 0 | O73: 0 | P73: 1 | Q73: 1 | R73: 1 | S73: 1 | T73: 0 | U73: 0 | V73: 0
B75: Total Energy Efficient Lights | F75: =SUM(F62:F70) -> 5538.35 | G75: 7970.666667 | H75: 9249.916667 | I75: 12194.41667 | J75: 20950.42317 | K75: 40465 | L75: 50844 | M75: 60979 | N75: 63680 | O75: 65958.42178 | P75: =SUM(P62:P73) -> 67744.71416 | Q75: 75958.17626 | R75: 75011 | S75: 83925.15333 | T75: 89943.44349 | U75: =SUM(U62:U73) -> 96060.27647 | V75: 101743.9381 | W75: 106584.6132 | X75: 112307.804 | Y75: 118031.3358 | Z75: 128111.1518
B77: Total Number of Lights | F77: =SUM(F59,F75) -> 88611.9 | G77: 91440.3 | H77: 93200.2 | I77: 94747.58333 | J77: 95808.84032 | K77: 100228 | L77: 95906 | M77: 110815 | N77: 111034 | O77: 111150.4218 | P77: 112899.3474 | Q77: 115502.0874 | R77: 116116 | S77: 117253.9867 | T77: 115496.1102 | U77: 117185.1765 | V77: 121241.2201 | W77: 124574.4507 | X77: 128904.0547 | Y77: 133338.3692 | Z77: 140045.3171
B82: North & East | E82: 2026-06-01 | F82: =F$4 -> 2011 | G82: =G$4 -> 2012 | H82: =H$4 -> 2013 | I82: =I$4 -> 2014 | J82: =J$4 -> 2015 | K82: =K$4 -> 2016 | L82: 2017 | M82: 2018 | N82: 2019 | O82: 2020 | P82: HY2021 | Q82: 2022-06-30 | R82: 2023-06-30 | S82: 2024-06-30 | T82: 2025-06-30 | U82: 2026-06-30 | V82: =Instructions!$B$16 -> 2027-06-30 | W82: =EOMONTH(V82,12) -> 2028-06-30 | X82: =EOMONTH(W82,12) -> 2029-06-30 | Y82: =EOMONTH(X82,12) -> 2030-06-30 | Z82: =EOMONTH(Y82,12) -> 2031-06-30
E83: Actual Prices | F83: Actual Volumes | P83: Forecast Volumes | V83: Forecast Volumes
B84: Existing Lights | C84: Reference Light | D84: Price Factor
B85: Mercury Vapour 80W | C85: =B$85 -> Mercury Vapour 80W | D85: 1 | E85: 75.82213185 | F85: 28734.83333 | G85: 28906.48333 | H85: 28889.05 | I85: 26233.91667 | J85: 22548.59584 | K85: 6984 | L85: 8177 | M85: 4522 | N85: 4620 | O85: 4664 | P85: 4664 | Q85: 3522.436803 | R85: 3227 | S85: 2151.333333 | T85: 1075.666667 | U85: 645.4 | V85: 645.4 | W85: 645.4 | X85: 645.4 | Y85: 645.4 | Z85: 645.4
B86: HP Sodium 150W | C86: =B$86 -> HP Sodium 150W | D86: 1 | E86: 147.3436549 | F86: 4571.583333 | G86: 4712.166667 | H86: 4750.25 | I86: 4824.416667 | J86: 4878.454413 | K86: 5333 | L86: 7159 | M86: 5274 | N86: 5404 | O86: 5446 | P86: 5446 | Q86: 5238.877714 | R86: 3661 | S86: 3355.916667 | T86: 3050.833333 | U86: 2745.75 | V86: 2516.9375 | W86: 2288.125 | X86: 2059.3125 | Y86: 1830.5 | Z86: 1601.6875
B87: HP Sodium 250W | C87: =B$87 -> HP Sodium 250W | D87: 1 | E87: 147.7123472 | F87: 4504.7 | G87: 4586.866667 | H87: 4654.616667 | I87: 4713.483333 | J87: 4766.278528 | K87: 5034 | L87: 5363 | M87: 5257 | N87: 5214 | O87: 5137 | P87: 5137 | Q87: 5005.044881 | R87: 3528 | S87: 3234 | T87: 2940 | U87: 2646 | V87: 2425.5 | W87: 2205 | X87: 1984.5 | Y87: 1764 | Z87: 1543.5
B88: Mercury Vapour 50W | C88: =B$85 -> Mercury Vapour 80W | D88: 1.48 | E88: 112.2167551 | F88: 376.75 | G88: 367.75 | H88: 363.1666667 | I88: 289.4166667 | J88: 292.6583901 | K88: 146 | L88: 128 | M88: 128 | N88: 128 | O88: 125 | P88: 125 | Q88: 94.435144 | R88: 52 | S88: 34.66666667 | T88: 17.33333333 | U88: 0 | V88: 0.0001 | W88: 0.0001 | X88: 0.0001 | Y88: 0.0001 | Z88: 0.0001
B89: Mercury Vapour 125W | C89: =B$85 -> Mercury Vapour 80W | D89: 1.48 | E89: 112.2167551 | F89: 62 | G89: 62.08333333 | H89: 60.33333333 | I89: 54.58333333 | J89: 55.19471509 | K89: 26 | L89: 21 | M89: 13 | N89: 17 | O89: 17 | P89: 17 | Q89: 12.75 | R89: 11 | S89: 7.333333333 | T89: 3.666666667 | U89: 0 | V89: 0.0001 | W89: 0.0001 | X89: 0.0001 | Y89: 0.0001 | Z89: 0.0001
B90: Mercury Vapour 250W | C90: =B$87 -> HP Sodium 250W | D90: 1.04 | E90: 153.6208411 | F90: 433.85 | G90: 433.2833333 | H90: 427.8 | I90: 417.6833333 | J90: 422.3617572 | K90: 277 | L90: 275 | M90: 274 | N90: 272 | O90: 260 | P90: 260 | Q90: 196.1419067 | R90: 107 | S90: 71.33333333 | T90: 35.66666667 | U90: 0 | V90: 0.0001 | W90: 0.0001 | X90: 0.0001 | Y90: 0.0001 | Z90: 0.0001
B91: Mercury Vapour 400W | C91: =B$87 -> HP Sodium 250W | D91: 1.07 | E91: 158.0522116 | F91: 132 | G91: 131.3333333 | H91: 127.6666667 | I91: 123.1666667 | J91: 124.5462426 | K91: 92 | L91: 91 | M91: 85 | N91: 91 | O91: 91 | P91: 91 | Q91: 68.25 | R91: 89 | S91: 59.33333333 | T91: 29.66666667 | U91: 0 | V91: 0.0001 | W91: 0.0001 | X91: 0.0001 | Y91: 0.0001 | Z91: 0.0001
B92: HP Sodium 100W | C92: =B$86 -> HP Sodium 150W | D92: 1.07 | E92: 157.6577107 | F92: 143.9166667 | G92: 196.8333333 | H92: 222.9166667 | I92: 248.5 | J92: 251.2834205 | K92: 244 | L92: 729 | M92: 152 | N92: 329 | O92: 315 | P92: 315 | Q92: 316.8680959 | R92: 256 | S92: 229.5943253 | T92: 203.1886507 | U92: 176.782976 | V92: 162.0510614 | W92: 148.5468062 | X92: 136.1679057 | Y92: 124.8205802 | Z92: 73.62058024
B93: HP Sodium 400W | C93: =B$87 -> HP Sodium 250W | D93: 1.42 | E93: 209.7515331 | F93: 299.0833333 | G93: 310.4166667 | H93: 321.5 | I93: 330.0833333 | J93: 333.7805595 | K93: 349 | L93: 361 | M93: 354 | N93: 367 | O93: 354 | P93: 354 | Q93: 351.6158596 | R93: 300 | S93: 270.6986784 | T93: 241.3973567 | U93: 212.0960351 | V93: 187.0960351 | W93: 164.5378119 | X93: 144.4213655 | Y93: 126.7466959 | Z93: 66.74669591
B94: Metal Halide 70W | C94: =B$85 -> Mercury Vapour 80W | D94: 3.804442037 | E94: 288.4609057 | F94: 0 | G94: 0 | H94: 0 | I94: 0 | J94: 0 | K94: 0 | L94: 0 | M94: 0 | N94: 0 | O94: 0 | P94: 0 | Q94: 0 | R94: 0 | S94: 0 | T94: 0 | U94: 0 | V94: 0.0001 | W94: 0.0001 | X94: 0.0001 | Y94: 0.0001 | Z94: 0.0001
B95: Metal Halide 100W | C95: =B$86 -> HP Sodium 150W | D95: 2.11804911 | E95: 312.081097 | F95: 0 | G95: 0 | H95: 0 | I95: 0 | J95: 0 | K95: 0 | L95: 0 | M95: 0 | N95: 0 | O95: 0 | P95: 0 | Q95: 0 | R95: 0 | S95: 0 | T95: 0 | U95: 0 | V95: 0.0001 | W95: 0.0001 | X95: 0.0001 | Y95: 0.0001 | Z95: 0.0001
B96: Metal Halide 150W | C96: =B$86 -> HP Sodium 150W | D96: 2.406294827 | E96: 354.5522746 | F96: 0 | G96: 0 | H96: 0 | I96: 0 | J96: 0 | K96: 0 | L96: 0 | M96: 0 | N96: 0 | O96: 0 | P96: 0 | Q96: 0 | R96: 0 | S96: 0 | T96: 0 | U96: 0 | V96: 0.0001 | W96: 0.0001 | X96: 0.0001 | Y96: 0.0001 | Z96: 0.0001
B97: =B57 -> HP Sodium 50W | C97: =B$86 -> HP Sodium 150W | D97: 0.4547295587 | E97: 67.00151515 | F97: 0 | G97: 0 | H97: 0 | I97: 0 | J97: 0 | K97: 0 | L97: 0 | M97: 0 | N97: 0 | O97: 0 | P97: 0 | Q97: 0 | R97: 0 | S97: 0 | T97: 0 | U97: 0 | V97: 0.0001 | W97: 0.0001 | X97: 0.0001 | Y97: 0.0001 | Z97: 0.0001
B99: Total Existing Lights | F99: =SUM(F85:F98) -> 39258.71667 | G99: 39707.21667 | H99: 39817.3 | I99: 37235.25 | J99: 33673.15386 | K99: 18485 | L99: 22304 | M99: 16059 | N99: 16442 | O99: 16409 | P99: 16409 | Q99: 14806.4204 | R99: 11231 | S99: 9414.20967 | T99: 7597.419341 | U99: =SUM(U85:U97) -> 6426.029011 | V99: 5936.985396 | W99: 5451.610418 | X99: 4969.802571 | Y99: 4491.468076 | Z99: 3930.955576
B101: Energy Efficient Lights | C101: Reference Light | D101: Price Factor
B102: T5 2X14W | C102: =B$102 -> T5 2X14W | D102: 1 | E102: 68.12573648 | F102: 64.75 | G102: 140 | H102: 249.5833333 | I102: 3014.583333 | J102: 5220.598408 | K102: 7036 | L102: 8015 | M102: 6506 | N102: 7097 | O102: 7099 | P102: 7099 | Q102: 7103.567627 | R102: 5515 | S102: 4583 | T102: 3651 | U102: 2719 | V102: 2175 | W102: 1631 | X102: 1087 | Y102: 543 | Z102: 1
B103: T5 2X24W | C103: =B$103 -> T5 2X24W | D103: 1 | E103: 72.71786539 | F103: 36.5 | G103: 44.33333333 | H103: 64.41666667 | I103: 93.5 | J103: 128.2344074 | K103: 1002 | L103: 1159 | M103: 761 | N103: 1015 | O103: 1020 | P103: 1020 | Q103: 1020 | R103: 979 | S103: 949 | T103: 919 | U103: 889 | V103: 711 | W103: 533 | X103: 355 | Y103: 177 | Z103: 0
B104: LED 18W | C104: =B$104 -> LED 18W | D104: 1 | E104: 38.57955664 | F104: 0 | G104: 0 | H104: 0 | I104: 0 | J104: 33.68712443 | K104: 14920 | L104: 19876 | M104: 18786 | N104: 19360 | O104: 18962 | P104: 19356.52962 | Q104: 21167.16157 | R104: 18575 | S104: 21643.964 | T104: 24376.98566 | U104: 26898.14564 | V104: 28961.68972 | W104: 31056.07703 | X104: 33182.17118 | Y104: 35340.85998 | Z104: 38495.05606
B105: LED 14W | C105: =B105 -> LED 14W | D105: 1 | E105: 40.50090798 | F105: 0 | G105: 0 | H105: 0 | I105: 0 | J105: 0 | K105: 0 | L105: 0 | M105: 47 | N105: 324 | O105: 937 | P105: 937 | Q105: 962.8832179 | R105: 5297 | S105: 5445.316 | T105: 5597.784848 | U105: 5754.522824 | V105: 5915.649463 | W105: 6081.287648 | X105: 6251.563702 | Y105: 6426.607486 | Z105: 6606.552495
B106: LED 70W-125W (L1) | C106: =B106 -> LED 70W-125W (L1) | D106: 1 | E106: 63.48432879 | F106: 0 | G106: 0 | H106: 0 | I106: 0 | J106: 0 | K106: 0 | L106: 0 | M106: 33 | N106: 181 | O106: 497.2095361 | P106: 583.3925412 | Q106: 681.5988342 | R106: 2657 | S106: 2833.904 | T106: 3015.761312 | U106: 3202.710629 | V106: 3394.894526 | W106: 3592.459573 | X106: 3795.556441 | Y106: 4004.340021 | Z106: 4218.969542
B107: LED 155W-250W (L2) | C107: =B107 -> LED 155W-250W (L2) | D107: 1 | E107: 64.62237193 | F107: 0 | G107: 0 | H107: 0 | I107: 0 | J107: 0 | K107: 0 | L107: 0 | M107: 117 | N107: 180 | O107: 278 | P107: 359.1076347 | Q107: 1013.705102 | R107: 1206 | S107: 1377.214667 | T107: 1542.780233 | U107: 1699.136302 | V107: 1846.392118 | W107: 1997.771097 | X107: 2153.388688 | Y107: 2313.363571 | Z107: 2477.817751
B108: LED 275W-400W (L4) | C108: =B108 -> LED 275W-400W (L4) | D108: 1 | E108: 74.81377584 | F108: 0 | G108: 0 | H108: 0 | I108: 0 | J108: 0 | K108: 0 | L108: 0 | M108: 9 | N108: 9 | O108: 68 | P108: 73.94211492 | Q108: 107.8035148 | R108: 64 | S108: 104.5586667 | T108: 135.5334204 | U108: 156.9328007 | V108: 168.7655857 | W108: 180.9296888 | X108: 193.4343868 | Y108: 206.2892163 | Z108: 219.503981
B109: Compact Fluorescent 32W | C109: =B$102 -> T5 2X14W | D109: 0.8796098925 | E109: 59.92407174 | F109: 180.5833333 | G109: 291.75 | H109: 405.75 | I109: 536.5833333 | J109: 929.2448693 | K109: 640 | L109: 718 | M109: 689 | N109: 651 | O109: 680 | P109: 680 | Q109: 681.8270507 | R109: 575 | S109: 575 | T109: 575 | U109: 575 | V109: 575 | W109: 575 | X109: 575 | Y109: 575 | Z109: 575
B110: Compact Fluorescent 42W | C110: =B$102 -> T5 2X14W | D110: 0.8796098925 | E110: 59.92407174 | F110: 709.1666667 | G110: 1220.083333 | H110: 1602.333333 | I110: 1877.5 | J110: 3251.418995 | K110: 2614 | L110: 3222 | M110: 2634 | N110: 2761 | O110: 2715 | P110: 2715 | Q110: 2744.841828 | R110: 1982 | S110: 1982 | T110: 1982 | U110: 1982 | V110: 1982 | W110: 1982 | X110: 1982 | Y110: 1982 | Z110: 1982
B111: Smart lighting L1 | C111: =B111 -> Smart lighting L1 | D111: 1 | E111: 81.57221374 | F111: 0 | G111: 0 | H111: 0 | I111: 0 | J111: 0 | K111: 0 | L111: 0 | M111: 0 | N111: 0 | O111: 0 | P111: 0 | Q111: 0 | R111: 0
B112: Smart lighting L2 | C112: =B112 -> Smart lighting L2 | D112: 1 | E112: 82.71025688 | F112: 0 | G112: 0 | H112: 0 | I112: 0 | J112: 0 | K112: 0 | L112: 0 | M112: 0 | N112: 0 | O112: 0 | P112: 0 | Q112: 0 | R112: 0
B113: Smart lighting L4 | C113: =B113 -> Smart lighting L4 | D113: 1 | E113: 92.90166079 | M113: 0 | N113: 0 | O113: 0 | P113: 0 | Q113: 0 | R113: 0
B115: Total Energy Efficient Lights | F115: =SUM(F102:F110) -> 991 | G115: 1696.166667 | H115: 2322.083333 | I115: 5522.166667 | J115: 9563.183804 | K115: 26212 | L115: 32990 | M115: 29582 | N115: 31578 | O115: 32256.20954 | P115: =SUM(P102:P113) -> 32823.97191 | Q115: 35483.38875 | R115: 36850 | S115: 39493.95733 | T115: 41795.84547 | U115: 43876.44819 | V115: 45730.39141 | W115: 47629.52504 | X115: 49575.1144 | Y115: 51568.46027 | Z115: 54575.89983
B117: Total Number of Lights | F117: =SUM(F99,F115) -> 40249.71667 | G117: 41403.38333 | H117: 42139.38333 | I117: 42757.41667 | J117: 43236.33767 | K117: 44697 | L117: 55294 | M117: 45641 | N117: 48020 | O117: 48665.20954 | P117: 49232.97191 | Q117: 50289.80915 | R117: 48081 | S117: 48908.167 | T117: 49393.26481 | U117: 50302.4772 | V117: 51667.37681 | W117: 53081.13545 | X117: 54544.91697 | Y117: 56059.92835 | Z117: 58506.8554
Q120: =Q4 -> 2022-06-30 | R120: =R4 -> 2023-06-30 | S120: =S4 -> 2024-06-30 | T120: =T4 -> 2025-06-30 | U120: =U4 -> 2026-06-30 | V120: =Instructions!$B$16 -> 2027-06-30 | W120: =EOMONTH(V120,12) -> 2028-06-30 | X120: =EOMONTH(W120,12) -> 2029-06-30 | Y120: =EOMONTH(X120,12) -> 2030-06-30 | Z120: =EOMONTH(Y120,12) -> 2031-06-30
P121: Real Labour Escalation | Q121: 0.0100352624 | R121: 0.006626862471 | S121: 0.006091269693 | T121: 0.007327727922 | U121: 0.009509468237 | V121: =[2]Sheet1!E$4 -> 0.009313524394 | W121: =[2]Sheet1!F$4 -> 0.008358355629 | X121: =[2]Sheet1!G$4 -> 0.01025499053 | Y121: =[2]Sheet1!H$4 -> 0.01224018808 | Z121: =[2]Sheet1!I$4 -> 0.01018235304

Sheet DNSP Inputs Capex
A1: Public Lighting Cost Build-up Model
A3: ='DNSP Inputs O&M'!$A$3 -> AusNet | C3: Capex Data Inputs
C5: =Instructions!$B$18 -> $Real Jun 2026
A7: Input parameters | C7: =EOMONTH(D7,-12) -> 2026-06-30 | D7: =Instructions!$B$16 -> 2027-06-30 | E7: =EOMONTH(D7,12) -> 2028-06-30 | F7: =EOMONTH(E7,12) -> 2029-06-30 | G7: =EOMONTH(F7,12) -> 2030-06-30 | H7: =EOMONTH(G7,12) -> 2031-06-30
A9: Inputs - all lamps
A11: Material premium for rural areas | C11: ='DNSP Inputs O&M'!C11 -> 0.05 | D11: ='DNSP Inputs O&M'!D11 -> 0.05 | E11: ='DNSP Inputs O&M'!E11 -> 0.05 | F11: ='DNSP Inputs O&M'!F11 -> 0.05 | G11: ='DNSP Inputs O&M'!G11 -> 0.05 | H11: ='DNSP Inputs O&M'!H11 -> 0.05
A12: Labour rate (per hour) | C12: ='DNSP Inputs O&M'!C12 -> 105.1461393 | D12: ='DNSP Inputs O&M'!D12 -> 111.3622324 | E12: ='DNSP Inputs O&M'!E12 -> 112.2930375 | F12: ='DNSP Inputs O&M'!F12 -> 113.4446015 | G12: ='DNSP Inputs O&M'!G12 -> 114.8331848 | H12: ='DNSP Inputs O&M'!H12 -> 116.0024568
A13: Elevated platform vehicle (per hour) - urban MV,urban T5 | C13: ='DNSP Inputs O&M'!C14 -> 49.79045722 | D13: ='DNSP Inputs O&M'!D14 -> 50.18 | E13: ='DNSP Inputs O&M'!E14 -> 50.18 | F13: ='DNSP Inputs O&M'!F14 -> 50.18 | G13: ='DNSP Inputs O&M'!G14 -> 50.18 | H13: ='DNSP Inputs O&M'!H14 -> 50.18
A14: Elevated platform vehicle (per hour) - rural MV, rural T5, S-HP | C14: ='DNSP Inputs O&M'!C15 -> 89.9713562 | D14: ='DNSP Inputs O&M'!D15 -> 63.64 | E14: ='DNSP Inputs O&M'!E15 -> 63.64 | F14: ='DNSP Inputs O&M'!F15 -> 63.64 | G14: ='DNSP Inputs O&M'!G15 -> 63.64 | H14: ='DNSP Inputs O&M'!H15 -> 63.64
A15: Number of hours in a day | C15: ='DNSP Inputs O&M'!C17 -> 8 | D15: ='DNSP Inputs O&M'!D17 -> 7.5 | E15: ='DNSP Inputs O&M'!E17 -> 7.5 | F15: ='DNSP Inputs O&M'!F17 -> 7.5 | G15: ='DNSP Inputs O&M'!G17 -> 7.5 | H15: ='DNSP Inputs O&M'!H17 -> 7.5
A19: Inputs - MV80
A21: Unit cost - luminaire | C21: ='DNSP Inputs O&M'!C30 -> 212.0348253 | D21: ='DNSP Inputs O&M'!D30 -> 237.4684858 | E21: ='DNSP Inputs O&M'!E30 -> 237.4684858 | F21: ='DNSP Inputs O&M'!F30 -> 237.4684858 | G21: ='DNSP Inputs O&M'!G30 -> 237.4684858 | H21: ='DNSP Inputs O&M'!H30 -> 237.4684858
A22: Unit cost - miscellaneous materials (bulk lamp) | C22: ='DNSP Inputs O&M'!C31 -> 1.3373337 | D22: ='DNSP Inputs O&M'!D31 -> 1.347645671 | E22: ='DNSP Inputs O&M'!E31 -> 1.347645671 | F22: ='DNSP Inputs O&M'!F31 -> 1.347645671 | G22: ='DNSP Inputs O&M'!G31 -> 1.347645671 | H22: ='DNSP Inputs O&M'!H31 -> 1.347645671
A23: Number of men in crew | C23: ='DNSP Inputs O&M'!C33 -> 2 | D23: ='DNSP Inputs O&M'!D33 -> 2 | E23: ='DNSP Inputs O&M'!E33 -> 2 | F23: ='DNSP Inputs O&M'!F33 -> 2 | G23: ='DNSP Inputs O&M'!G33 -> 2 | H23: ='DNSP Inputs O&M'!H33 -> 2
A24: Number of luminaires replaced per day - urban | C24: 16 | D24: 16 | E24: 16 | F24: 16 | G24: 16 | H24: 16
A25: Number of luminaires replaced per day - rural | C25: 13 | D25: 13 | E25: 13 | F25: 13 | G25: 13 | H25: 13
A26: Number of luminaires replaced per day - remote | C26: 10 | D26: 10 | E26: 10 | F26: 10 | G26: 10 | H26: 10
A28: Other Capex unit costs Describe :……………………… | C28: 0 | D28: 0 | E28: 0 | F28: 0 | G28: 0 | H28: 0
A30: Forecast Quantities to be replaced
A31: Number of luminaires replaced per year - urban | C31: 749.9114407 | D31: 0 | E31: 0 | F31: 0 | G31: 0 | H31: 0
A32: Number of luminaires replaced per year - rural | C32: 189.4001079 | D32: 0 | E32: 0 | F32: 0 | G32: 0 | H32: 0
A33: Number of luminaires replaced per year - remote | C33: 36.82157946 | D33: 0 | E33: 0 | F33: 0 | G33: 0 | H33: 0
A35: MV80 Lights replaced with T5 Energy Efficient Lights
A36: Number of Lights MV80 replaced with T5 per year
A37: SP AusNet - Central | C37: 1500 | D37: 0 | E37: 0 | F37: 0 | G37: 0 | H37: 0
A38: SP AusNet - North/East | C38: 500 | D38: 0 | E38: 0 | F38: 0 | G38: 0 | H38: 0
A42: Inputs - S-HP150
A44: Unit cost - luminaire | C44: 264.8350519 | D44: 234.07 | E44: 234.07 | F44: 234.07 | G44: 234.07 | H44: 234.07
A45: Unit cost - miscellaneous materials | C45: ='DNSP Inputs O&M'!C78 -> 2.6746674 | D45: ='DNSP Inputs O&M'!D78 -> 2.695291341 | E45: ='DNSP Inputs O&M'!E78 -> 2.695291341 | F45: ='DNSP Inputs O&M'!F78 -> 2.695291341 | G45: ='DNSP Inputs O&M'!G78 -> 2.695291341 | H45: ='DNSP Inputs O&M'!H78 -> 2.695291341
A46: Number of men in crew | C46: ='DNSP Inputs O&M'!C80 -> 2 | D46: ='DNSP Inputs O&M'!D80 -> 2 | E46: ='DNSP Inputs O&M'!E80 -> 2 | F46: ='DNSP Inputs O&M'!F80 -> 2 | G46: ='DNSP Inputs O&M'!G80 -> 2 | H46: ='DNSP Inputs O&M'!H80 -> 2
A47: Number of luminaires replaced per day - urban | C47: 16 | D47: 16 | E47: 16 | F47: 16 | G47: 16 | H47: 16
A48: Number of luminaires replaced per day - rural | C48: 13 | D48: 13 | E48: 13 | F48: 13 | G48: 13 | H48: 13
A49: Number of luminaires replaced per day - remote | C49: 10 | D49: 10 | E49: 10 | F49: 10 | G49: 10 | H49: 10
A51: Other Capex unit costs Describe :……………………… | C51: 0 | D51: 0 | E51: 0 | F51: 0 | G51: 0 | H51: 0
A53: Forecast Quantities to be replaced
A54: Number of luminaires replaced per year - urban | C54: 335.2045732 | D54: 0 | E54: 0 | F54: 0 | G54: 0 | H54: 0
A55: Number of luminaires replaced per year - rural | C55: 94.52251231 | D55: 0 | E55: 0 | F55: 0 | G55: 0 | H55: 0
A56: Number of luminaires replaced per day - remote | C56: 8.379871303 | D56: 0 | E56: 0 | F56: 0 | G56: 0 | H56: 0
A60: Inputs - S-HP250
A62: Unit cost - luminaire | C62: 271.769745 | D62: 240.18 | E62: 240.18 | F62: 240.18 | G62: 240.18 | H62: 240.18
A63: Unit cost - miscellaneous materials | C63: ='DNSP Inputs O&M'!C121 -> 2.6746674 | D63: ='DNSP Inputs O&M'!D121 -> 2.548069545 | E63: ='DNSP Inputs O&M'!E121 -> 2.548069545 | F63: ='DNSP Inputs O&M'!F121 -> 2.548069545 | G63: ='DNSP Inputs O&M'!G121 -> 2.548069545 | H63: ='DNSP Inputs O&M'!H121 -> 2.548069545
A64: Number of men in crew | C64: ='DNSP Inputs O&M'!C123 -> 2 | D64: ='DNSP Inputs O&M'!D123 -> 2 | E64: ='DNSP Inputs O&M'!E123 -> 2 | F64: ='DNSP Inputs O&M'!F123 -> 2 | G64: ='DNSP Inputs O&M'!G123 -> 2 | H64: ='DNSP Inputs O&M'!H123 -> 2
A65: Number of luminaires replaced per day - urban | C65: 16 | D65: 16 | E65: 16 | F65: 16 | G65: 16 | H65: 16
A66: Number of luminaires replaced per day - rural | C66: 13 | D66: 13 | E66: 13 | F66: 13 | G66: 13 | H66: 13
A67: Number of luminaires replaced per day - remote | C67: 10 | D67: 10 | E67: 10 | F67: 10 | G67: 10 | H67: 10
A69: Other Capex unit costs Describe :……………………… | C69: 0 | D69: 0 | E69: 0 | F69: 0 | G69: 0 | H69: 0
A71: Forecast Quantities to be replaced
A72: Number of luminaires replaced per year - urban | C72: 212.0461387 | D72: 0 | E72: 0 | F72: 0 | G72: 0 | H72: 0
A73: Number of luminaires replaced per year - rural | C73: 61.66473706 | D73: 0 | E73: 0 | F73: 0 | G73: 0 | H73: 0
A74: Number of luminaires replaced per day - remote | C74: 5.232576094 | D74: 0 | E74: 0 | F74: 0 | G74: 0 | H74: 0
A78: Dedicated street lighting poles
A80: Cost of pole & bracket | C80: 945.4664023 | D80: 1223.627538 | E80: 1223.627538 | F80: 1223.627538 | G80: 1223.627538 | H80: 1223.627538
A81: Number of men in crew | D81: 4 | E81: 4 | F81: 4 | G81: 4 | H81: 4
A82: Number of poles & brackets replaced per day | C82: 4 | D82: 4 | E82: 4 | F82: 4 | G82: 4 | H82: 4
A83: Cost of bracket on non-dedicated poles | C83: 47.99422096 | D83: 48.36429688 | E83: 48.36429688 | F83: 48.36429688 | G83: 48.36429688 | H83: 48.36429688
A84: Number of brackets replaced per day | C84: 20 | D84: 20 | E84: 20 | F84: 20 | G84: 20 | H84: 20
A85: Plant costs (including truck mounted crane & auger, and tipper truck) | D85: 387.05858 | E85: 387.05858 | F85: 387.05858 | G85: 387.05858 | H85: 387.05858
A86: Other poles & brackets Capex unit costs Describe :………………… | C86: 22.04901374 | D86: 20.53017169 | E86: 20.96576029 | F86: 21.4013489 | G86: 21.8369375 | H86: 22.2725261
A89: Forecast Quantities to be replaced
A90: Number of poles & brackets replaced per year - urban | C90: 598.7331124 | D90: 598.7331124 | E90: 598.7331124 | F90: 598.7331124 | G90: 598.7331124 | H90: 598.7331124
A91: Number of poles & brackets replaced per year - rural | C91: 203.0623874 | D91: 203.0623874 | E91: 203.0623874 | F91: 203.0623874 | G91: 203.0623874 | H91: 203.0623874
A92: Number of poles & brackets replaced per year - remote | C92: 15.48943329 | D92: 15.48943329 | E92: 15.48943329 | F92: 15.48943329 | G92: 15.48943329 | H92: 15.48943329
A94: Brackets on non-dedicated poles :
A95: Number of brackets replaced per year - urban | C95: 970.796428 | D95: 970.796428 | E95: 970.796428 | F95: 970.796428 | G95: 970.796428 | H95: 970.796428
A96: Number of brackets replaced per year - rural | C96: 327.8522232 | D96: 327.8522232 | E96: 327.8522232 | F96: 327.8522232 | G96: 327.8522232 | H96: 327.8522232
A97: Number of brackets replaced per year - remote | C97: 24.95638968 | D97: 24.95638968 | E97: 24.95638968 | F97: 24.95638968 | G97: 24.95638968 | H97: 24.95638968
A101: Luminaire Replacements - Other Light types (excluding T5s)
A102: Number of luminaires replaced per year | C102: 129.5406343 | D102: 0 | E102: 0 | F102: 0 | G102: 0 | H102: 0
A103: Forecast Capex | C103: 41924.26816 | D103: 0 | E103: 0 | F103: 0 | G103: 0 | H103: 0
A107: Inputs - T5 (2 X 14W)
A109: Unit cost - luminaire | C109: ='DNSP Inputs O&M'!C189 -> 258.1088385 | D109: ='DNSP Inputs O&M'!D189 -> 244.0921311 | E109: ='DNSP Inputs O&M'!E189 -> 244.0921311 | F109: ='DNSP Inputs O&M'!F189 -> 244.0921311 | G109: ='DNSP Inputs O&M'!G189 -> 244.0921311 | H109: ='DNSP Inputs O&M'!H189 -> 244.0921311
A110: Unit cost - miscellaneous materials (bulk lamp) | C110: ='DNSP Inputs O&M'!C190 -> 1.3373337 | D110: ='DNSP Inputs O&M'!D190 -> 1.347645671 | E110: ='DNSP Inputs O&M'!E190 -> 1.347645671 | F110: ='DNSP Inputs O&M'!F190 -> 1.347645671 | G110: ='DNSP Inputs O&M'!G190 -> 1.347645671 | H110: ='DNSP Inputs O&M'!H190 -> 1.347645671
A111: Number of men in crew | C111: ='DNSP Inputs O&M'!C192 -> 2 | D111: ='DNSP Inputs O&M'!D192 -> 2 | E111: ='DNSP Inputs O&M'!E192 -> 2 | F111: ='DNSP Inputs O&M'!F192 -> 2 | G111: ='DNSP Inputs O&M'!G192 -> 2 | H111: ='DNSP Inputs O&M'!H192 -> 2
A112: Number of luminaires replaced per day - urban | C112: 0 | D112: 16 | E112: 16 | F112: 16 | G112: 16 | H112: 16
A113: Number of luminaires replaced per day - rural | C113: 0 | D113: 13 | E113: 13 | F113: 13 | G113: 13 | H113: 13
A114: Number of luminaires replaced per day - remote | C114: 0 | D114: 10 | E114: 10 | F114: 10 | G114: 10 | H114: 10
A116: Other Capex unit costs Describe :……………………… | C116: 0 | D116: 0 | E116: 0 | F116: 0 | G116: 0 | H116: 0
A118: Forecast Quantities to be replaced
A119: Number of luminaires replaced per year - urban | C119: 0 | D119: 0 | E119: 0 | F119: 0 | G119: 0 | H119: 0
A120: Number of luminaires replaced per year - rural | C120: 0 | D120: 0 | E120: 0 | F120: 0 | G120: 0 | H120: 0
A121: Number of luminaires replaced per year - remote | C121: 0 | D121: 0 | E121: 0 | F121: 0 | G121: 0 | H121: 0
A125: Inputs - T5 (2x24W)
A127: Unit cost - luminaire | C127: ='DNSP Inputs O&M'!C238 -> 286.187762 | D127: ='DNSP Inputs O&M'!D238 -> 267.33 | E127: ='DNSP Inputs O&M'!E238 -> 267.33 | F127: ='DNSP Inputs O&M'!F238 -> 267.33 | G127: ='DNSP Inputs O&M'!G238 -> 267.33 | H127: ='DNSP Inputs O&M'!H238 -> 267.33
A128: Unit cost - miscellaneous materials (bulk lamp) | C128: ='DNSP Inputs O&M'!C239 -> 1.3373337 | D128: ='DNSP Inputs O&M'!D239 -> 1.347645671 | E128: ='DNSP Inputs O&M'!E239 -> 1.347645671 | F128: ='DNSP Inputs O&M'!F239 -> 1.347645671 | G128: ='DNSP Inputs O&M'!G239 -> 1.347645671 | H128: ='DNSP Inputs O&M'!H239 -> 1.347645671
A129: Number of men in crew | C129: ='DNSP Inputs O&M'!C241 -> 2 | D129: ='DNSP Inputs O&M'!D241 -> 2 | E129: ='DNSP Inputs O&M'!E241 -> 2 | F129: ='DNSP Inputs O&M'!F241 -> 2 | G129: ='DNSP Inputs O&M'!G241 -> 2 | H129: ='DNSP Inputs O&M'!H241 -> 2
A130: Number of luminaires replaced per day - urban | C130: 0 | D130: 16 | E130: 16 | F130: 16 | G130: 16 | H130: 16
A131: Number of luminaires replaced per day - rural | C131: 0 | D131: 13 | E131: 13 | F131: 13 | G131: 13 | H131: 13
A132: Number of luminaires replaced per day - remote | C132: 0 | D132: 10 | E132: 10 | F132: 10 | G132: 10 | H132: 10
A134: Other Capex unit costs Describe :……………………… | C134: 0 | D134: 0 | E134: 0 | F134: 0 | G134: 0 | H134: 0
A136: Forecast Quantities to be replaced
A137: Number of luminaires replaced per year - urban | C137: 0 | D137: 0 | E137: 0 | F137: 0 | G137: 0 | H137: 0
A138: Number of luminaires replaced per year - rural | C138: 0 | D138: 0 | E138: 0 | F138: 0 | G138: 0 | H138: 0
A139: Number of luminaires replaced per year - remote | C139: 0 | D139: 0 | E139: 0 | F139: 0 | G139: 0 | H139: 0
A143: Inputs - LED 18W
A145: Unit cost - luminaire | C145: ='DNSP Inputs O&M'!C286 -> 391.1415906 | D145: 527.1139221 | E145: 527.1139221 | F145: 527.1139221 | G145: 527.1139221 | H145: 527.1139221
A146: Number of men in crew | C146: ='DNSP Inputs O&M'!C288 -> 2 | D146: ='DNSP Inputs O&M'!D288 -> 2 | E146: ='DNSP Inputs O&M'!E288 -> 2 | F146: ='DNSP Inputs O&M'!F288 -> 2 | G146: ='DNSP Inputs O&M'!G288 -> 2 | H146: ='DNSP Inputs O&M'!H288 -> 2
A147: Number of luminaires replaced per day - urban | C147: 0 | D147: 16 | E147: 16 | F147: 16 | G147: 16 | H147: 16
A148: Number of luminaires replaced per day - rural | C148: 0 | D148: 13 | E148: 13 | F148: 13 | G148: 13 | H148: 13
A149: Number of luminaires replaced per day - remote | C149: 0 | D149: 10 | E149: 10 | F149: 10 | G149: 10 | H149: 10
A151: Other Capex unit costs Describe :……………………… | C151: 0 | D151: 0 | E151: 0 | F151: 0 | G151: 0 | H151: 0
A153: Forecast Quantities to be replaced
A154: Number of luminaires replaced per year - urban | C154: 0 | D154: 2550.724161 | E154: 2574.419217 | F154: 2598.777736 | G154: 2623.818293 | H154: 2649.559986
A155: Number of luminaires replaced per year - rural | C155: 0 | D155: 644.4203299 | E155: 650.4066991 | F155: 656.5606866 | G155: 662.8869857 | H155: 669.3904212
A156: Number of luminaires replaced per year - remote | C156: 0 | D156: 125.066254 | E156: 126.2280621 | F156: 127.4224009 | G156: 128.6501811 | H156: 129.9123391
A159: NEW
A160: Inputs - LED 14W
A162: Unit cost - luminaire | D162: ='DNSP Inputs O&M'!D332 -> 515.0085127 | E162: ='DNSP Inputs O&M'!E332 -> 515.0085127 | F162: ='DNSP Inputs O&M'!F332 -> 515.0085127 | G162: ='DNSP Inputs O&M'!G332 -> 515.0085127 | H162: ='DNSP Inputs O&M'!H332 -> 515.0085127
A163: Number of men in crew | D163: ='DNSP Inputs O&M'!D334 -> 2 | E163: ='DNSP Inputs O&M'!E334 -> 2 | F163: ='DNSP Inputs O&M'!F334 -> 2 | G163: ='DNSP Inputs O&M'!G334 -> 2 | H163: ='DNSP Inputs O&M'!H334 -> 2
A164: Number of luminaires replaced per day - urban | D164: 16 | E164: 16 | F164: 16 | G164: 16 | H164: 16
A165: Number of luminaires replaced per day - rural | D165: 13 | E165: 13 | F165: 13 | G165: 13 | H165: 13
A166: Number of luminaires replaced per day - remote | D166: 10 | E166: 10 | F166: 10 | G166: 10 | H166: 10
A168: Other Capex unit costs Describe :……………………… | D168: 0 | E168: 0 | F168: 0 | G168: 0 | H168: 0
A170: Forecast Quantities to be replaced
A171: Number of luminaires replaced per year - urban | D171: 123.7841941 | E171: 127.2501515 | F171: 130.8131558 | G171: 134.4759241 | H171: 138.24125
A172: Number of luminaires replaced per year - rural | D172: 31.27309978 | E172: 32.14874658 | F172: 33.04891148 | G172: 33.974281 | H172: 34.92556087
A173: Number of luminaires replaced per year - remote | D173: 6.069345208 | E173: 6.239286874 | F173: 6.413986906 | G173: 6.59357854 | H173: 6.778198739
A176: NEW
A177: Inputs - LED 70W (L1)
A179: Unit cost - luminaire | D179: ='DNSP Inputs O&M'!D378 -> 890.7532833 | E179: ='DNSP Inputs O&M'!E378 -> 890.7532833 | F179: ='DNSP Inputs O&M'!F378 -> 890.7532833 | G179: ='DNSP Inputs O&M'!G378 -> 890.7532833 | H179: ='DNSP Inputs O&M'!H378 -> 890.7532833
A180: Number of men in crew | D180: ='DNSP Inputs O&M'!D380 -> 2 | E180: ='DNSP Inputs O&M'!E380 -> 2 | F180: ='DNSP Inputs O&M'!F380 -> 2 | G180: ='DNSP Inputs O&M'!G380 -> 2 | H180: ='DNSP Inputs O&M'!H380 -> 2
A181: Number of luminaires replaced per day - urban | D181: 16 | E181: 16 | F181: 16 | G181: 16 | H181: 16
A182: Number of luminaires replaced per day - rural | D182: 13 | E182: 13 | F182: 13 | G182: 13 | H182: 13
A183: Number of luminaires replaced per day - remote | D183: 10 | E183: 10 | F183: 10 | G183: 10 | H183: 10
A185: Other Capex unit costs Describe :……………………… | D185: 0 | E185: 0 | F185: 0 | G185: 0 | H185: 0
A187: Forecast Quantities to be replaced
A188: Number of luminaires replaced per year - urban | D188: 403.3284606 | E188: 407.4624834 | F188: 411.7122589 | G188: 416.0810281 | H188: 420.5721229
A189: Number of luminaires replaced per year - rural | D189: 101.8977527 | E189: 102.9421809 | F189: 104.0158532 | G189: 105.1195882 | H189: 106.2542279
A190: Number of luminaires replaced per year - remote | D190: 19.7758662 | E190: 19.97856422 | F190: 20.18693779 | G190: 20.40114582 | H190: 20.62135168
A193: NEW
A194: Inputs - LED 155W (L2)
A196: Unit cost - luminaire | D196: ='DNSP Inputs O&M'!D424 -> 890.7532833 | E196: ='DNSP Inputs O&M'!E424 -> 890.7532833 | F196: ='DNSP Inputs O&M'!F424 -> 890.7532833 | G196: ='DNSP Inputs O&M'!G424 -> 890.7532833 | H196: ='DNSP Inputs O&M'!H424 -> 890.7532833
A197: Number of men in crew | D197: ='DNSP Inputs O&M'!D426 -> 2 | E197: ='DNSP Inputs O&M'!E426 -> 2 | F197: ='DNSP Inputs O&M'!F426 -> 2 | G197: ='DNSP Inputs O&M'!G426 -> 2 | H197: ='DNSP Inputs O&M'!H426 -> 2
A198: Number of luminaires replaced per day - urban | D198: 16 | E198: 16 | F198: 16 | G198: 16 | H198: 16
A199: Number of luminaires replaced per day - rural | D199: 13 | E199: 13 | F199: 13 | G199: 13 | H199: 13
A200: Number of luminaires replaced per day - remote | D200: 10 | E200: 10 | F200: 10 | G200: 10 | H200: 10
A202: Other Capex unit costs Describe :……………………… | D202: 0 | E202: 0 | F202: 0 | G202: 0 | H202: 0
A204: Forecast Quantities to be replaced
A205: Number of luminaires replaced per year - urban | D205: 386.9247164 | E205: 390.0923018 | F205: 393.3485796 | G205: 396.6960332 | H205: 400.1372155
A206: Number of luminaires replaced per year - rural | D206: 97.75347615 | E206: 98.55374161 | F206: 99.3764145 | G206: 100.2221222 | H206: 101.0915098
A207: Number of luminaires replaced per year - remote | D207: 18.9715633 | E207: 19.12687529 | F207: 19.28653601 | G207: 19.45066724 | H207: 19.61939413
A210: NEW
A211: Inputs - LED 275W (L4)
A213: Unit cost - luminaire | D213: ='DNSP Inputs O&M'!D470 -> 1722.807988 | E213: ='DNSP Inputs O&M'!E470 -> 1722.807988 | F213: ='DNSP Inputs O&M'!F470 -> 1722.807988 | G213: ='DNSP Inputs O&M'!G470 -> 1722.807988 | H213: ='DNSP Inputs O&M'!H470 -> 1722.807988
A214: Number of men in crew | D214: ='DNSP Inputs O&M'!D472 -> 2 | E214: ='DNSP Inputs O&M'!E472 -> 2 | F214: ='DNSP Inputs O&M'!F472 -> 2 | G214: ='DNSP Inputs O&M'!G472 -> 2 | H214: ='DNSP Inputs O&M'!H472 -> 2
A215: Number of luminaires replaced per day - urban | D215: 16 | E215: 16 | F215: 16 | G215: 16 | H215: 16
A216: Number of luminaires replaced per day - rural | D216: 13 | E216: 13 | F216: 13 | G216: 13 | H216: 13
A217: Number of luminaires replaced per day - remote | D217: 10 | E217: 10 | F217: 10 | G217: 10 | H217: 10
A219: Other Capex unit costs Describe :……………………… | D219: 0 | E219: 0 | F219: 0 | G219: 0 | H219: 0
A221: Forecast Quantities to be replaced
A222: Number of luminaires replaced per year - urban | D222: 52.83365187 | E222: 53.08818414 | F222: 53.34984332 | G222: 53.61882895 | H222: 53.89534618
A223: Number of luminaires replaced per year - rural | D223: 13.3480052 | E223: 13.41231077 | F223: 13.4784169 | G223: 13.546374 | H223: 13.61623389
A224: Number of luminaires replaced per year - remote | D224: 2.59052195 | E224: 2.603002091 | F224: 2.615831676 | G224: 2.62902049 | H224: 2.64257859
A226: Placeholder for smart lighting only - does not drive outputs
A227: Inputs - Smart lighting L1
A229: Unit cost - luminaire | D229: ='DNSP Inputs O&M'!D517 -> 890.7532833 | E229: ='DNSP Inputs O&M'!E517 -> 890.7532833 | F229: ='DNSP Inputs O&M'!F517 -> 890.7532833 | G229: ='DNSP Inputs O&M'!G517 -> 890.7532833 | H229: ='DNSP Inputs O&M'!H517 -> 890.7532833
A230: Number of men in crew | D230: ='DNSP Inputs O&M'!D519 -> 2 | E230: ='DNSP Inputs O&M'!E519 -> 2 | F230: ='DNSP Inputs O&M'!F519 -> 2 | G230: ='DNSP Inputs O&M'!G519 -> 2 | H230: ='DNSP Inputs O&M'!H519 -> 2
A231: Number of luminaires replaced per day - urban | D231: 16 | E231: 16 | F231: 16 | G231: 16 | H231: 16
A232: Number of luminaires replaced per day - rural | D232: 13 | E232: 13 | F232: 13 | G232: 13 | H232: 13
A233: Number of luminaires replaced per day - remote | D233: 10 | E233: 10 | F233: 10 | G233: 10 | H233: 10
A235: Other Capex unit costs Describe :……………………… | D235: 0 | E235: 0 | F235: 0 | G235: 0 | H235: 0
A237: Forecast Quantities to be replaced
A238: Number of luminaires replaced per year - urban | D238: 0 | E238: 0 | F238: 0 | G238: 0 | H238: 0
A239: Number of luminaires replaced per year - rural | D239: 0 | E239: 0 | F239: 0 | G239: 0 | H239: 0
A240: Number of luminaires replaced per year - remote | D240: 0 | E240: 0 | F240: 0 | G240: 0 | H240: 0
A242: Inputs - Smart lighting L2
A244: Unit cost - luminaire | D244: ='DNSP Inputs O&M'!D561 -> 890.7532833 | E244: ='DNSP Inputs O&M'!E561 -> 890.7532833 | F244: ='DNSP Inputs O&M'!F561 -> 890.7532833 | G244: ='DNSP Inputs O&M'!G561 -> 890.7532833 | H244: ='DNSP Inputs O&M'!H561 -> 890.7532833
A245: Number of men in crew | D245: ='DNSP Inputs O&M'!D563 -> 2 | E245: ='DNSP Inputs O&M'!E563 -> 2 | F245: ='DNSP Inputs O&M'!F563 -> 2 | G245: ='DNSP Inputs O&M'!G563 -> 2 | H245: ='DNSP Inputs O&M'!H563 -> 2
A246: Number of luminaires replaced per day - urban | D246: 16 | E246: 16 | F246: 16 | G246: 16 | H246: 16
A247: Number of luminaires replaced per day - rural | D247: 13 | E247: 13 | F247: 13 | G247: 13 | H247: 13
A248: Number of luminaires replaced per day - remote | D248: 10 | E248: 10 | F248: 10 | G248: 10 | H248: 10
A250: Other Capex unit costs Describe :……………………… | D250: 0 | E250: 0 | F250: 0 | G250: 0 | H250: 0
A252: Forecast Quantities to be replaced
A253: Number of luminaires replaced per year - urban | D253: 0 | E253: 0 | F253: 0 | G253: 0 | H253: 0
A254: Number of luminaires replaced per year - rural | D254: 0 | E254: 0 | F254: 0 | G254: 0 | H254: 0
A255: Number of luminaires replaced per year - remote | D255: 0 | E255: 0 | F255: 0 | G255: 0 | H255: 0
A257: Inputs - Smart lighting L4
A259: Unit cost - luminaire | D259: ='DNSP Inputs O&M'!D605 -> 1722.807988 | E259: ='DNSP Inputs O&M'!E605 -> 1722.807988 | F259: ='DNSP Inputs O&M'!F605 -> 1722.807988 | G259: ='DNSP Inputs O&M'!G605 -> 1722.807988 | H259: ='DNSP Inputs O&M'!H605 -> 1722.807988
A260: Number of men in crew | D260: ='DNSP Inputs O&M'!D607 -> 2 | E260: ='DNSP Inputs O&M'!E607 -> 2 | F260: ='DNSP Inputs O&M'!F607 -> 2 | G260: ='DNSP Inputs O&M'!G607 -> 2 | H260: ='DNSP Inputs O&M'!H607 -> 2
A261: Number of luminaires replaced per day - urban | D261: 16 | E261: 16 | F261: 16 | G261: 16 | H261: 16
A262: Number of luminaires replaced per day - rural | D262: 13 | E262: 13 | F262: 13 | G262: 13 | H262: 13
A263: Number of luminaires replaced per day - remote | D263: 10 | E263: 10 | F263: 10 | G263: 10 | H263: 10
A265: Other Capex unit costs Describe :……………………… | D265: 0 | E265: 0 | F265: 0 | G265: 0 | H265: 0
A267: Forecast Quantities to be replaced
A268: Number of luminaires replaced per year - urban | D268: 0 | E268: 0 | F268: 0 | G268: 0 | H268: 0
A269: Number of luminaires replaced per year - rural | D269: 0 | E269: 0 | F269: 0 | G269: 0 | H269: 0
A270: Number of luminaires replaced per year - remote | D270: 0 | E270: 0 | F270: 0 | G270: 0 | H270: 0

Sheet DNSP Inputs O&M
A1: Public Lighting Cost Build-up Model
A3: AusNet | C3: O & M Data Inputs
C5: =Instructions!$B$18 -> $Real Jun 2026
A7: Input parameters | C7: =EOMONTH(D7,-12) -> 2026-06-30 | D7: =Instructions!$B$16 -> 2027-06-30 | E7: =EOMONTH(D7,12) -> 2028-06-30 | F7: =EOMONTH(E7,12) -> 2029-06-30 | G7: =EOMONTH(F7,12) -> 2030-06-30 | H7: =EOMONTH(G7,12) -> 2031-06-30
A9: Inputs - all lamps
A11: Material premium for rural areas | C11: 0.05 | D11: 0.05 | E11: 0.05 | F11: 0.05 | G11: 0.05 | H11: 0.05
A12: Labour rate (per hour) | C12: 105.1461393 | D12: 111.3622324 | E12: =D12*(1+'DNSP Inputs General'!W$121) -> 112.2930375 | F12: =E12*(1+'DNSP Inputs General'!X$121) -> 113.4446015 | G12: =F12*(1+'DNSP Inputs General'!Y$121) -> 114.8331848 | H12: =G12*(1+'DNSP Inputs General'!Z$121) -> 116.0024568
A13: Labour rate for night patrols (per hour) | C13: 131.4292303 | D13: 143.4781359 | E13: =D13*(1+'DNSP Inputs General'!W$121) -> 144.6773772 | F13: =E13*(1+'DNSP Inputs General'!X$121) -> 146.1610423 | G13: =F13*(1+'DNSP Inputs General'!Y$121) -> 147.9500809 | H13: =G13*(1+'DNSP Inputs General'!Z$121) -> 149.4565609
A14: Elevated platform vehicle (per hour) - urban MV,urban T5 | C14: 49.79045722 | D14: 50.18 | E14: 50.18 | F14: 50.18 | G14: 50.18 | H14: 50.18
A15: Elevated platform vehicle (per hour) - rural MV, rural T5, S-HP | C15: 89.9713562 | D15: 63.64 | E15: 63.64 | F15: 63.64 | G15: 63.64 | H15: 63.64
A16: Patrol vehicle (per hour) | C16: 34.1064632 | D16: 34.37 | E16: 34.37 | F16: 34.37 | G16: 34.37 | H16: 34.37
A17: Number of hours in a day | C17: 8 | D17: 7.5 | E17: 7.5 | F17: 7.5 | G17: 7.5 | H17: 7.5
A18: Indirect overheads | C18: 0.25 | D18: 0.25 | E18: 0.25 | F18: 0.25 | G18: 0.25 | H18: 0.25
A22: ='DNSP Inputs General'!B45 -> Mercury Vapour 80W
A24: Depreciation period | B24: years | C24: 20 | D24: =C24 -> 20 | E24: =D24 -> 20 | F24: =E24 -> 20 | G24: =F24 -> 20 | H24: =G24 -> 20
A25: Lamps - bulk change | B25: years | C25: 4 | D25: 4 | E25: 4 | F25: 4 | G25: 4 | H25: 4
A26: PE cells - bulk change | B26: years | C26: 8 | D26: 8 | E26: 8 | F26: 8 | G26: 8 | H26: 8
A27: Proportion of lamps that fail between bulk change | C27: 0.107 | D27: 0.1941685018 | E27: 0.1941685018 | F27: 0.1941685018 | G27: 0.1941685018 | H27: 0.1941685018
A28: Unit cost - lamp (LED "corncob" on replacement of MV) | C28: 6.111746931 | D28: 75 | E28: 75 | F28: 75 | G28: 75 | H28: 75
A29: Unit cost - PE cell | C29: 24.67380676 | D29: 25.041365 | E29: 25.041365 | F29: 25.041365 | G29: 25.041365 | H29: 25.041365
A30: Unit cost - luminaire | C30: 212.0348253 | D30: 237.4684858 | E30: 237.4684858 | F30: 237.4684858 | G30: 237.4684858 | H30: 237.4684858
A31: Unit cost - miscellaneous materials (bulk lamp) | C31: 1.3373337 | D31: 1.347645671 | E31: 1.347645671 | F31: 1.347645671 | G31: 1.347645671 | H31: 1.347645671
A32: Unit cost - miscellaneous materials (repair) | C32: 13.373337 | D32: 13.47645671 | E32: 13.47645671 | F32: 13.47645671 | G32: 13.47645671 | H32: 13.47645671
A33: Number of men in crew | C33: 2 | D33: 2 | E33: 2 | F33: 2 | G33: 2 | H33: 2
A34: Number of bulk lamp changes in 1 day - urban | C34: 85 | D34: 86 | E34: 86 | F34: 86 | G34: 86 | H34: 86
A35: Number of bulk lamp changes in 1 day - rural | C35: 70 | D35: 72 | E35: 72 | F35: 72 | G35: 72 | H35: 72
A36: Number of bulk lamp changes in 1 day - remote | C36: 50 | D36: 60 | E36: 60 | F36: 60 | G36: 60 | H36: 60
A37: Number of repairs in 1 day - urban | C37: 20 | D37: 28.8 | E37: 28.8 | F37: 28.8 | G37: 28.8 | H37: 28.8
A38: Number of repairs in 1 day - rural | C38: 15 | D38: 24 | E38: 24 | F38: 24 | G38: 24 | H38: 24
A39: Number of repairs in 1 day - remote | C39: 10 | D39: 19.2 | E39: 19.2 | F39: 19.2 | G39: 19.2 | H39: 19.2
A40: % of repairs - lamps | C40: 0.6 | D40: 0.6 | E40: 0.6 | F40: 0.6 | G40: 0.6 | H40: 0.6
A41: % of repairs - PE cells | C41: 0.5 | D41: 0.5 | E41: 0.5 | F41: 0.5 | G41: 0.5 | H41: 0.5
A42: % of repairs - luminaires | C42: 0.15 | D42: 0.15 | E42: 0.15 | F42: 0.15 | G42: 0.15 | H42: 0.15
A43: % of repairs - other | C43: 0.1 | D43: 0.1 | E43: 0.1 | F43: 0.1 | G43: 0.1 | H43: 0.1
A45: Other Maintenance and Repair costs
A46: Traffic control costs | C46: 6771.147526 | D46: =D49*D50-D47 -> 787.9171561 | E46: =E49*E50-E47 -> 787.9171561 | F46: =F49*F50-F47 -> 787.9171561 | G46: =G49*G50-G47 -> 787.9171561 | H46: =H49*H50-H47 -> 787.9171561
A47: Other costs : Describe……………………………………. | C47: 0 | D47: 0 | E47: 0 | F47: 0 | G47: 0 | H47: 0
C48: =SUM(C46:C47) -> 6771.147526 | D48: 787.9171561 | E48: 787.9171561 | F48: 787.9171561 | G48: 787.9171561 | H48: 787.9171561
A49: Number of Lights | C49: =C48/C50 -> 34321.64001 | D49: =SUMPRODUCT(('DNSP Inputs General'!$B$45:$B$58=$A22)*('DNSP Inputs General'!$F$82:$Z$82=D$7)*('DNSP Inputs General'!$F$45:$Z$58)) +SUMPRODUCT(('DNSP Inputs General'!$B$85:$B$98=$A22)*('DNSP Inputs General'!$F$82:$Z$82=D$7)*('DNSP Inputs General'!$F$85:$Z$98)) -> 3993.8 | E49: =SUMPRODUCT(('DNSP Inputs General'!$B$45:$B$58=$A22)*('DNSP Inputs General'!$F$82:$Z$82=E$7)*('DNSP Inputs General'!$F$45:$Z$58)) +SUMPRODUCT(('DNSP Inputs General'!$B$85:$B$98=$A22)*('DNSP Inputs General'!$F$82:$Z$82=E$7)*('DNSP Inputs General'!$F$85:$Z$98)) -> 3993.8 | F49: =SUMPRODUCT(('DNSP Inputs General'!$B$45:$B$58=$A22)*('DNSP Inputs General'!$F$82:$Z$82=F$7)*('DNSP Inputs General'!$F$45:$Z$58)) +SUMPRODUCT(('DNSP Inputs General'!$B$85:$B$98=$A22)*('DNSP Inputs General'!$F$82:$Z$82=F$7)*('DNSP Inputs General'!$F$85:$Z$98)) -> 3993.8 | G49: =SUMPRODUCT(('DNSP Inputs General'!$B$45:$B$58=$A22)*('DNSP Inputs General'!$F$82:$Z$82=G$7)*('DNSP Inputs General'!$F$45:$Z$58)) +SUMPRODUCT(('DNSP Inputs General'!$B$85:$B$98=$A22)*('DNSP Inputs General'!$F$82:$Z$82=G$7)*('DNSP Inputs General'!$F$85:$Z$98)) -> 3993.8 | H49: =SUMPRODUCT(('DNSP Inputs General'!$B$45:$B$58=$A22)*('DNSP Inputs General'!$F$82:$Z$82=H$7)*('DNSP Inputs General'!$F$45:$Z$58)) +SUMPRODUCT(('DNSP Inputs General'!$B$85:$B$98=$A22)*('DNSP Inputs General'!$F$82:$Z$82=H$7)*('DNSP Inputs General'!$F$85:$Z$98)) -> 3993.8
A50: Unit Cost | C50: 0.1972850809 | D50: =$C$50 -> 0.1972850809 | E50: =$C$50 -> 0.1972850809 | F50: 0.1972850809 | G50: 0.1972850809 | H50: 0.1972850809
A52: Other O & M costs specific to North/East zone
A53: Other N\E O & M costs : Describe……………………………………. | C53: 2873.472555 | D53: =D54*D55 -> 171.0794402 | E53: =E54*E55 -> 171.0794402 | F53: =F54*F55 -> 171.0794402 | G53: =G54*G55 -> 171.0794402 | H53: =H54*H55 -> 171.0794402
A54: Number of Lights | C54: =C53/C55 -> 10840.22244 | D54: =SUMPRODUCT(('DNSP Inputs General'!$B$85:$B$98=$A22)*('DNSP Inputs General'!$F$82:$Z$82=D$7)*('DNSP Inputs General'!$F$85:$Z$98)) -> 645.4 | E54: =SUMPRODUCT(('DNSP Inputs General'!$B$85:$B$98=$A22)*('DNSP Inputs General'!$F$82:$Z$82=E$7)*('DNSP Inputs General'!$F$85:$Z$98)) -> 645.4 | F54: =SUMPRODUCT(('DNSP Inputs General'!$B$85:$B$98=$A22)*('DNSP Inputs General'!$F$82:$Z$82=F$7)*('DNSP Inputs General'!$F$85:$Z$98)) -> 645.4 | G54: =SUMPRODUCT(('DNSP Inputs General'!$B$85:$B$98=$A22)*('DNSP Inputs General'!$F$82:$Z$82=G$7)*('DNSP Inputs General'!$F$85:$Z$98)) -> 645.4 | H54: =SUMPRODUCT(('DNSP Inputs General'!$B$85:$B$98=$A22)*('DNSP Inputs General'!$F$82:$Z$82=H$7)*('DNSP Inputs General'!$F$85:$Z$98)) -> 645.4
A55: Unit Cost | C55: 0.2650750546 | D55: =$C55 -> 0.2650750546 | E55: =$C55 -> 0.2650750546 | F55: 0.2650750546 | G55: 0.2650750546 | H55: 0.2650750546
A57: Location of selected public lighting assets within distributors' areas (%)
A58: SP AusNet - Central
A59: Urban | C59: 0.96 | D59: 0.96 | E59: 0.96 | F59: 0.96 | G59: 0.96 | H59: 0.96
A60: Rural | C60: 0.04 | D60: 0.04 | E60: 0.04 | F60: 0.04 | G60: 0.04 | H60: 0.04
A61: Remote | C61: 0 | D61: 0 | E61: 0 | F61: 0 | G61: 0 | H61: 0
A63: SP AusNet - North/East
A64: Urban | C64: 0.35 | D64: 0.35 | E64: 0.35 | F64: 0.35 | G64: 0.35 | H64: 0.35
A65: Rural | C65: 0.53 | D65: 0.53 | E65: 0.53 | F65: 0.53 | G65: 0.53 | H65: 0.53
A66: Remote | C66: 0.12 | D66: 0.12 | E66: 0.12 | F66: 0.12 | G66: 0.12 | H66: 0.12
A70: ='DNSP Inputs General'!B46 -> HP Sodium 150W
A72: Depreciation period | B72: years | C72: 20 | D72: =C72 -> 20 | E72: =D72 -> 20 | F72: =E72 -> 20 | G72: =F72 -> 20 | H72: =G72 -> 20
A73: Number of patrols per year | C73: 3 | D73: =C73 -> 3 | E73: 3 | F73: 3 | G73: 3 | H73: 3
A74: Lamps - frequency of replacement | B74: years | C74: 5 | D74: 5 | E74: 5 | F74: 5 | G74: 5 | H74: 5
A75: PE cells - frequency of replacement | B75: years | C75: 10 | D75: 10 | E75: 10 | F75: 10 | G75: 10 | H75: 10
A76: Unit cost - lamp | C76: 44.19769594 | D76: 19.33 | E76: 19.33 | F76: 19.33 | G76: 19.33 | H76: 19.33
A77: Unit cost - PE cell | C77: 24.00513991 | D77: 25.041365 | E77: 25.041365 | F77: 25.041365 | G77: 25.041365 | H77: 25.041365
A78: Unit cost - miscellaneous materials | C78: 2.6746674 | D78: 2.695291341 | E78: 2.695291341 | F78: 2.695291341 | G78: 2.695291341 | H78: 2.695291341
A79: Number of men in crew - road patrols | C79: 2 | D79: 2 | E79: 2 | F79: 2 | G79: 2 | H79: 2
A80: Number of men in crew - repairs | C80: 2 | D80: 2 | E80: 2 | F80: 2 | G80: 2 | H80: 2
A81: Number of lamps patrolled in 1 day - urban | C81: 3000 | D81: 3000 | E81: 3000 | F81: 3000 | G81: 3000 | H81: 3000
A82: Number of lamps patrolled in 1 day - rural | C82: 2000 | D82: 2000 | E82: 2000 | F82: 2000 | G82: 2000 | H82: 2000
A83: Number of lamps patrolled in 1 day - remote | C83: 1000 | D83: 1000 | E83: 1000 | F83: 1000 | G83: 1000 | H83: 1000
A84: Number of repairs in 1 day - urban | C84: 15 | D84: 15 | E84: 15 | F84: 15 | G84: 15 | H84: 15
A85: Number of repairs in 1 day - rural | C85: 12 | D85: 11 | E85: 11 | F85: 11 | G85: 11 | H85: 11
A86: Number of repairs in 1 day - remote | C86: 9 | D86: 9 | E86: 9 | F86: 9 | G86: 9 | H86: 9
A88: Other Maintenance and Repair costs
A89: Traffic control costs | C89: 4101.281743 | D89: =C89 -> 4101.281743 | E89: =D89 -> 4101.281743 | F89: =E89 -> 4101.281743 | G89: =F89 -> 4101.281743 | H89: =G89 -> 4101.281743
A90: Other costs : Describe……………………………………. | C90: 995.8091444 | D90: 0 | E90: 0 | F90: 0 | G90: 0 | H90: 0
C91: =SUM(C89:C90) -> 5097.090887 | D91: 4101.281743 | E91: =SUM(E89:E90) -> 4101.281743 | F91: 4101.281743 | G91: 4101.281743 | H91: 4101.281743
A92: Number of Lights | C92: =C91/C93 -> 20788.60563 | D92: =SUMPRODUCT(('DNSP Inputs General'!$B$45:$B$58=$A70)*('DNSP Inputs General'!$F$82:$Z$82=D$7)*('DNSP Inputs General'!$F$45:$Z$58)) +SUMPRODUCT(('DNSP Inputs General'!$B$85:$B$98=$A70)*('DNSP Inputs General'!$F$82:$Z$82=D$7)*('DNSP Inputs General'!$F$85:$Z$98)) -> 12521.4375 | E92: =SUMPRODUCT(('DNSP Inputs General'!$B$45:$B$58=$A70)*('DNSP Inputs General'!$F$82:$Z$82=E$7)*('DNSP Inputs General'!$F$45:$Z$58)) +SUMPRODUCT(('DNSP Inputs General'!$B$85:$B$98=$A70)*('DNSP Inputs General'!$F$82:$Z$82=E$7)*('DNSP Inputs General'!$F$85:$Z$98)) -> 11458.91667 | F92: =SUMPRODUCT(('DNSP Inputs General'!$B$45:$B$58=$A70)*('DNSP Inputs General'!$F$82:$Z$82=F$7)*('DNSP Inputs General'!$F$45:$Z$58)) +SUMPRODUCT(('DNSP Inputs General'!$B$85:$B$98=$A70)*('DNSP Inputs General'!$F$82:$Z$82=F$7)*('DNSP Inputs General'!$F$85:$Z$98)) -> 10465.87153 | G92: =SUMPRODUCT(('DNSP Inputs General'!$B$45:$B$58=$A70)*('DNSP Inputs General'!$F$82:$Z$82=G$7)*('DNSP Inputs General'!$F$45:$Z$58)) +SUMPRODUCT(('DNSP Inputs General'!$B$85:$B$98=$A70)*('DNSP Inputs General'!$F$82:$Z$82=G$7)*('DNSP Inputs General'!$F$85:$Z$98)) -> 9536.512442 | H92: =SUMPRODUCT(('DNSP Inputs General'!$B$45:$B$58=$A70)*('DNSP Inputs General'!$F$82:$Z$82=H$7)*('DNSP Inputs General'!$F$45:$Z$58)) +SUMPRODUCT(('DNSP Inputs General'!$B$85:$B$98=$A70)*('DNSP Inputs General'!$F$82:$Z$82=H$7)*('DNSP Inputs General'!$F$85:$Z$98)) -> 7185.533275
A93: Unit Cost | C93: 0.2451867614 | D93: =IF(D92>0,D91/D92,0) -> 0.327540807 | E93: =IF(E92>0,E91/E92,0) -> 0.3579118221 | F93: =IF(F92>0,F91/F92,0) -> 0.3918719748 | G93: =IF(G92>0,G91/G92,0) -> 0.4300609649 | H93: =IF(H92>0,H91/H92,0) -> 0.5707692924
A95: Other O & M costs specific to North/East zone
A96: Other N\E O & M costs : Describe……………………………………. | C96: 1401.119488 | D96: 8769.04886 | E96: 8434.92777 | F96: 8108.810232 | G96: 7790.550498 | H96: 7476.183726
A97: Number of Lights | C97: =C96/C98 -> 5285.746296 | D97: =SUMPRODUCT(('DNSP Inputs General'!$B$85:$B$98=$A70)*('DNSP Inputs General'!$F$82:$Z$82=D$7)*('DNSP Inputs General'!$F$85:$Z$98)) -> 2516.9375 | E97: =SUMPRODUCT(('DNSP Inputs General'!$B$85:$B$98=$A70)*('DNSP Inputs General'!$F$82:$Z$82=E$7)*('DNSP Inputs General'!$F$85:$Z$98)) -> 2288.125 | F97: =SUMPRODUCT(('DNSP Inputs General'!$B$85:$B$98=$A70)*('DNSP Inputs General'!$F$82:$Z$82=F$7)*('DNSP Inputs General'!$F$85:$Z$98)) -> 2059.3125 | G97: =SUMPRODUCT(('DNSP Inputs General'!$B$85:$B$98=$A70)*('DNSP Inputs General'!$F$82:$Z$82=G$7)*('DNSP Inputs General'!$F$85:$Z$98)) -> 1830.5 | H97: =SUMPRODUCT(('DNSP Inputs General'!$B$85:$B$98=$A70)*('DNSP Inputs General'!$F$82:$Z$82=H$7)*('DNSP Inputs General'!$F$85:$Z$98)) -> 1601.6875
A98: Unit Cost | C98: 0.2650750546 | D98: =IF(D97>0,D96/D97,0) -> 3.48401534 | E98: =IF(E97>0,E96/E97,0) -> 3.686392907 | F98: =IF(F97>0,F96/F97,0) -> 3.937629783 | G98: =IF(G97>0,G96/G97,0) -> 4.255968587 | H98: =IF(H97>0,H96/H97,0) -> 4.667691873
A100: Location of selected public lighting assets within distributors' areas (%)
A101: SP AusNet - Central
A102: Urban | C102: 0.94 | D102: 0.94 | E102: 0.94 | F102: 0.94 | G102: 0.94 | H102: 0.94
A103: Rural | C103: 0.06 | D103: 0.06 | E103: 0.06 | F103: 0.06 | G103: 0.06 | H103: 0.06
A104: Remote | C104: 0 | D104: 0 | E104: 0 | F104: 0 | G104: 0 | H104: 0
A106: SP AusNet - North/East
A107: Urban | C107: 0.3 | D107: 0.3 | E107: 0.3 | F107: 0.3 | G107: 0.3 | H107: 0.3
A108: Rural | C108: 0.63 | D108: 0.63 | E108: 0.63 | F108: 0.63 | G108: 0.63 | H108: 0.63
A109: Remote | C109: 0.07 | D109: 0.07 | E109: 0.07 | F109: 0.07 | G109: 0.07 | H109: 0.07
A113: ='DNSP Inputs General'!B47 -> HP Sodium 250W
A115: Depreciation period | B115: years | C115: =C72 -> 20 | D115: 20 | E115: 20 | F115: 20 | G115: 20 | H115: 20
A116: Number of patrols per year | C116: =C73 -> 3 | D116: 3 | E116: 3 | F116: 3 | G116: 3 | H116: 3
A117: Lamps - frequency of replacement | B117: years | C117: =C74 -> 5 | D117: 5 | E117: 5 | F117: 5 | G117: 5 | H117: 5
A118: PE cells - frequency of replacement | B118: years | C118: =C75 -> 10 | D118: 10 | E118: 10 | F118: 10 | G118: 10 | H118: 10
A119: Unit cost - lamp | C119: 44.41714825 | D119: 21.28 | E119: 21.28 | F119: 21.28 | G119: 21.28 | H119: 21.28
A120: Unit cost - PE cell | C120: 24.00513991 | D120: 25.041365 | E120: 25.041365 | F120: 25.041365 | G120: 25.041365 | H120: 25.041365
A121: Unit cost - miscellaneous materials | C121: 2.6746674 | D121: 2.548069545 | E121: 2.548069545 | F121: 2.548069545 | G121: 2.548069545 | H121: 2.548069545
A122: Number of men in crew - road patrols | C122: =C79 -> 2 | D122: 2 | E122: 2 | F122: 2 | G122: 2 | H122: 2
A123: Number of men in crew - repairs | C123: =C80 -> 2 | D123: 2 | E123: 2 | F123: 2 | G123: 2 | H123: 2
A124: Number of lamps patrolled in 1 day - urban | C124: =C81 -> 3000 | D124: 3000 | E124: 3000 | F124: 3000 | G124: 3000 | H124: 3000
A125: Number of lamps patrolled in 1 day - rural | C125: =C82 -> 2000 | D125: 2000 | E125: 2000 | F125: 2000 | G125: 2000 | H125: 2000
A126: Number of lamps patrolled in 1 day - remote | C126: =C83 -> 1000 | D126: 1000 | E126: 1000 | F126: 1000 | G126: 1000 | H126: 1000
A127: Number of repairs in 1 day - urban | C127: =C84 -> 15 | D127: 15 | E127: 15 | F127: 15 | G127: 15 | H127: 15
A128: Number of repairs in 1 day - rural | C128: =C85 -> 12 | D128: 11 | E128: 11 | F128: 11 | G128: 11 | H128: 11
A129: Number of repairs in 1 day - remote | C129: =C86 -> 9 | D129: 9 | E129: 9 | F129: 9 | G129: 9 | H129: 9
A131: Other Maintenance and Repair costs
A132: Traffic control costs | C132: 2396.601961 | D132: =C132 -> 2396.601961 | E132: =D132 -> 2396.601961 | F132: =E132 -> 2396.601961 | G132: =F132 -> 2396.601961 | H132: =G132 -> 2396.601961
A133: Other costs : Describe……………………………………. | C133: 995.8091444 | D133: 0 | E133: 0 | F133: 0 | G133: 0 | H133: 0
C134: =SUM(C132:C133) -> 3392.411105 | D134: 2396.601961 | E134: 2396.601961 | F134: 2396.601961 | G134: 2396.601961 | H134: 2396.601961
A135: Number of Lights | C135: =C134/C136 -> 12147.91281 | D135: =SUMPRODUCT(('DNSP Inputs General'!$B$45:$B$58=$A113)*('DNSP Inputs General'!$F$82:$Z$82=D$7)*('DNSP Inputs General'!$F$45:$Z$58)) +SUMPRODUCT(('DNSP Inputs General'!$B$85:$B$98=$A113)*('DNSP Inputs General'!$F$82:$Z$82=D$7)*('DNSP Inputs General'!$F$85:$Z$98)) -> 6730.548611 | E135: =SUMPRODUCT(('DNSP Inputs General'!$B$45:$B$58=$A113)*('DNSP Inputs General'!$F$82:$Z$82=E$7)*('DNSP Inputs General'!$F$45:$Z$58)) +SUMPRODUCT(('DNSP Inputs General'!$B$85:$B$98=$A113)*('DNSP Inputs General'!$F$82:$Z$82=E$7)*('DNSP Inputs General'!$F$85:$Z$98)) -> 6066.229167 | F135: =SUMPRODUCT(('DNSP Inputs General'!$B$45:$B$58=$A113)*('DNSP Inputs General'!$F$82:$Z$82=F$7)*('DNSP Inputs General'!$F$45:$Z$58)) +SUMPRODUCT(('DNSP Inputs General'!$B$85:$B$98=$A113)*('DNSP Inputs General'!$F$82:$Z$82=F$7)*('DNSP Inputs General'!$F$85:$Z$98)) -> 5446.291667 | G135: =SUMPRODUCT(('DNSP Inputs General'!$B$45:$B$58=$A113)*('DNSP Inputs General'!$F$82:$Z$82=G$7)*('DNSP Inputs General'!$F$45:$Z$58)) +SUMPRODUCT(('DNSP Inputs General'!$B$85:$B$98=$A113)*('DNSP Inputs General'!$F$82:$Z$82=G$7)*('DNSP Inputs General'!$F$85:$Z$98)) -> 4867.037616 | H135: =SUMPRODUCT(('DNSP Inputs General'!$B$45:$B$58=$A113)*('DNSP Inputs General'!$F$82:$Z$82=H$7)*('DNSP Inputs General'!$F$45:$Z$58)) +SUMPRODUCT(('DNSP Inputs General'!$B$85:$B$98=$A113)*('DNSP Inputs General'!$F$82:$Z$82=H$7)*('DNSP Inputs General'!$F$85:$Z$98)) -> 3625.752894
A136: Unit Cost | C136: 0.2792587631 | D136: =IF(D135>0,D134/D135,0) -> 0.3560782485 | E136: =IF(E135>0,E134/E135,0) -> 0.3950727701 | F136: =IF(F135>0,F134/F135,0) -> 0.4400428967 | G136: =IF(G135>0,G134/G135,0) -> 0.4924149247 | H136: =IF(H135>0,H134/H135,0) -> 0.6609942904
A138: Other O & M costs specific to North/East zone
A139: Other N\E O & M costs : Describe……………………………………. | C139: 1368.901944 | D139: 7817.865259 | E139: 7554.229292 | F139: 7296.29069 | G139: 7043.926498 | H139: 6794.318126
A140: Number of Lights | C140: =C139/C141 -> 5164.205083 | D140: =SUMPRODUCT(('DNSP Inputs General'!$B$85:$B$98=$A113)*('DNSP Inputs General'!$F$82:$Z$82=D$7)*('DNSP Inputs General'!$F$85:$Z$98)) -> 2425.5 | E140: =SUMPRODUCT(('DNSP Inputs General'!$B$85:$B$98=$A113)*('DNSP Inputs General'!$F$82:$Z$82=E$7)*('DNSP Inputs General'!$F$85:$Z$98)) -> 2205 | F140: =SUMPRODUCT(('DNSP Inputs General'!$B$85:$B$98=$A113)*('DNSP Inputs General'!$F$82:$Z$82=F$7)*('DNSP Inputs General'!$F$85:$Z$98)) -> 1984.5 | G140: =SUMPRODUCT(('DNSP Inputs General'!$B$85:$B$98=$A113)*('DNSP Inputs General'!$F$82:$Z$82=G$7)*('DNSP Inputs General'!$F$85:$Z$98)) -> 1764 | H140: =SUMPRODUCT(('DNSP Inputs General'!$B$85:$B$98=$A113)*('DNSP Inputs General'!$F$82:$Z$82=H$7)*('DNSP Inputs General'!$F$85:$Z$98)) -> 1543.5
A141: Unit Cost | C141: 0.2650750546 | D141: =IF(D140>0,D139/D140,0) -> 3.223197386 | E141: =IF(E140>0,E139/E140,0) -> 3.425954327 | F141: =IF(F140>0,F139/F140,0) -> 3.6766393 | G141: =IF(G140>0,G139/G140,0) -> 3.993155611 | H141: =IF(H140>0,H139/H140,0) -> 4.40189059
A143: Location of selected public lighting assets within distributors' areas (%)
A144: SP AusNet - Central
A145: Urban | C145: 0.9 | D145: 0.9 | E145: 0.9 | F145: 0.9 | G145: 0.9 | H145: 0.9
A146: Rural | C146: 0.1 | D146: 0.1 | E146: 0.1 | F146: 0.1 | G146: 0.1 | H146: 0.1
A147: Remote | C147: 0 | D147: 0 | E147: 0 | F147: 0 | G147: 0 | H147: 0
A149: SP AusNet - North/East
A150: Urban | C150: 0.37 | D150: 0.37 | E150: 0.37 | F150: 0.37 | G150: 0.37 | H150: 0.37
A151: Rural | C151: 0.57 | D151: 0.57 | E151: 0.57 | F151: 0.57 | G151: 0.57 | H151: 0.57
A152: Remote | C152: 0.06 | D152: 0.06 | E152: 0.06 | F152: 0.06 | G152: 0.06 | H152: 0.06
A156: Dedicated street lighting poles
A158: Period of inspection | B158: years | C158: 5 | D158: 5 | E158: 5 | F158: 5 | G158: 5 | H158: 5
A159: Pole inspection rate | B159: per day | C159: 75 | D159: 75 | E159: 75 | F159: 75 | G159: 75 | H159: 75
A160: Depreciation of dedicated street lighting pole & bracket | B160: years | C160: 35 | D160: =C160 -> 35 | E160: =D160 -> 35 | F160: =E160 -> 35 | G160: =F160 -> 35 | H160: =G160 -> 35
A161: Proportion of lights on dedicated poles
A162: SP AusNet - Central | C162: 0.381190625 | D162: 0.381190625 | E162: 0.381190625 | F162: 0.381190625 | G162: 0.381190625 | H162: 0.381190625
A163: SP AusNet - North/East | C163: 0.3829674402 | D163: 0.3829674402 | E163: 0.3829674402 | F163: 0.3829674402 | G163: 0.3829674402 | H163: 0.3829674402
A167: Other direct costs
A168: Call centre
A169: Number of calls | C169: 4000 | D169: 4000 | E169: 4000 | F169: 4000 | G169: 4000 | H169: 4000
A170: Average cost per call $ | C170: 16.0309915 | D170: 15.61 | E170: 16.61 | F170: 17.61 | G170: 18.61 | H170: 19.61
C171: =C169*C170 -> 64123.96601 | D171: 62440 | E171: 66440 | F171: 70440 | G171: 74440 | H171: 78440
A173: GIS and other | C173: 124476.143 | D173: 118584.4151 | E173: 118584.4151 | F173: 118584.4151 | G173: 118584.4151 | H173: 118584.4151
A174: Complaints handling | C174: 37342.84291 | D174: 35575.32453 | E174: 35575.32453 | F174: 35575.32453 | G174: 35575.32453 | H174: 35575.32453
A178: ENERGY EFFICIENT LIGHTS
A180: ='DNSP Inputs General'!B62 -> T5 2X14W
A182: Depreciation period | B182: years | C182: 20 | D182: =C182 -> 20 | E182: =D182 -> 20 | F182: =E182 -> 20 | G182: =F182 -> 20 | H182: =G182 -> 20
A183: Lamps - bulk change | B183: years | C183: 4 | D183: 4 | E183: 4 | F183: 4 | G183: 4 | H183: 4
A184: PE cells - bulk change | B184: years | C184: 8 | D184: 8 | E184: 8 | F184: 8 | G184: 8 | H184: 8
A185: Ballast unit life | B185: years | C185: 20 | D185: =C185 -> 20 | E185: =D185 -> 20 | F185: =E185 -> 20 | G185: =F185 -> 20 | H185: =G185 -> 20
A186: Proportion of luminaires that fail between bulk change | C186: 0.114 | D186: 0.4156563612 | E186: 0.4156563612 | F186: 0.4156563612 | G186: 0.4156563612 | H186: 0.4156563612
A187: Unit cost - lamp | C187: 10.69830028 | D187: 6.855448775 | E187: 6.855448775 | F187: 6.855448775 | G187: 6.855448775 | H187: 6.855448775
A188: Unit cost - PE cell | C188: 18.05400495 | D188: 25.041365 | E188: 25.041365 | F188: 25.041365 | G188: 25.041365 | H188: 25.041365
A189: Unit cost - luminaire | C189: 258.1088385 | D189: 244.0921311 | E189: 244.0921311 | F189: 244.0921311 | G189: 244.0921311 | H189: 244.0921311
A190: Unit cost - miscellaneous materials (bulk lamp) | C190: 1.3373337 | D190: 1.347645671 | E190: 1.347645671 | F190: 1.347645671 | G190: 1.347645671 | H190: 1.347645671
A191: Unit cost - miscellaneous materials (repair) | C191: 13.373337 | D191: 13.47645671 | E191: 13.47645671 | F191: 13.47645671 | G191: 13.47645671 | H191: 13.47645671
A192: Number of men in crew | C192: 2 | D192: 2 | E192: 2 | F192: 2 | G192: 2 | H192: 2
A193: Number of bulk lamp changes in 1 day - urban | C193: 85 | D193: 73.92 | E193: 73.92 | F193: 73.92 | G193: 73.92 | H193: 73.92
A194: Number of bulk lamp changes in 1 day - rural | C194: 70 | D194: 61.44 | E194: 61.44 | F194: 61.44 | G194: 61.44 | H194: 61.44
A195: Number of bulk lamp changes in 1 day - remote | C195: 50 | D195: 48.96 | E195: 48.96 | F195: 48.96 | G195: 48.96 | H195: 48.96
A196: Number of repairs in 1 day - urban | C196: 20 | D196: 24.96 | E196: 24.96 | F196: 24.96 | G196: 24.96 | H196: 24.96
A197: Number of repairs in 1 day - rural | C197: 15 | D197: 20.16 | E197: 20.16 | F197: 20.16 | G197: 20.16 | H197: 20.16
A198: Number of repairs in 1 day - remote | C198: 10 | D198: 16.32 | E198: 16.32 | F198: 16.32 | G198: 16.32 | H198: 16.32
A199: % of repairs - lamps | C199: 0.6 | D199: 0.6 | E199: 0.6 | F199: 0.6 | G199: 0.6 | H199: 0.6
A200: % of repairs - PE cells | C200: 0.5 | D200: 0.5 | E200: 0.5 | F200: 0.5 | G200: 0.5 | H200: 0.5
A201: % of repairs - luminaires | C201: 0 | D201: 0 | E201: 0 | F201: 0 | G201: 0 | H201: 0
A202: % of repairs - other | C202: 0.1 | D202: 0.1 | E202: 0.1 | F202: 0.1 | G202: 0.1 | H202: 0.1
A204: Other Maintenance and Repair costs
A205: Traffic control costs | C205: 7051.275982 | D205: 30287.25 | E205: 30287.25 | F205: 30287.25 | G205: 30287.25 | H205: 0
A206: Other costs : Describe……………………………………. | C206: 0 | D206: 0 | E206: 0 | F206: 0 | G206: 0 | H206: 0
C207: =SUM(C205:C206) -> 7051.275982 | D207: 30287.25 | E207: 30287.25 | F207: 30287.25 | G207: =IF(G213>0,SUM(G205:G206),0) -> 30287.25 | H207: =IF(H213>0,SUM(H205:H206),0) -> 0
A208: Number of Lights | C208: =C207/C209 -> 35741.55709 | D208: =SUMPRODUCT(('DNSP Inputs General'!$B$62:$B$73=$A180)*('DNSP Inputs General'!$F$82:$Z$82=D$7)*('DNSP Inputs General'!$F$62:$Z$73)) +SUMPRODUCT(('DNSP Inputs General'!$B$102:$B$113=$A180)*('DNSP Inputs General'!$F$82:$Z$82=D$7)*('DNSP Inputs General'!$F$102:$Z$113)) -> 12897 | E208: =SUMPRODUCT(('DNSP Inputs General'!$B$62:$B$73=$A180)*('DNSP Inputs General'!$F$82:$Z$82=E$7)*('DNSP Inputs General'!$F$62:$Z$73)) +SUMPRODUCT(('DNSP Inputs General'!$B$102:$B$113=$A180)*('DNSP Inputs General'!$F$82:$Z$82=E$7)*('DNSP Inputs General'!$F$102:$Z$113)) -> 9673 | F208: =SUMPRODUCT(('DNSP Inputs General'!$B$62:$B$73=$A180)*('DNSP Inputs General'!$F$82:$Z$82=F$7)*('DNSP Inputs General'!$F$62:$Z$73)) +SUMPRODUCT(('DNSP Inputs General'!$B$102:$B$113=$A180)*('DNSP Inputs General'!$F$82:$Z$82=F$7)*('DNSP Inputs General'!$F$102:$Z$113)) -> 6449 | G208: =SUMPRODUCT(('DNSP Inputs General'!$B$62:$B$73=$A180)*('DNSP Inputs General'!$F$82:$Z$82=G$7)*('DNSP Inputs General'!$F$62:$Z$73)) +SUMPRODUCT(('DNSP Inputs General'!$B$102:$B$113=$A180)*('DNSP Inputs General'!$F$82:$Z$82=G$7)*('DNSP Inputs General'!$F$102:$Z$113)) -> 3223 | H208: =SUMPRODUCT(('DNSP Inputs General'!$B$62:$B$73=$A180)*('DNSP Inputs General'!$F$82:$Z$82=H$7)*('DNSP Inputs General'!$F$62:$Z$73)) +SUMPRODUCT(('DNSP Inputs General'!$B$102:$B$113=$A180)*('DNSP Inputs General'!$F$82:$Z$82=H$7)*('DNSP Inputs General'!$F$102:$Z$113)) -> 2
A209: Unit Cost | C209: 0.1972850809 | D209: =IF(D208>0,D207/D208,0) -> 2.348394976 | E209: =IF(E208>0,E207/E208,0) -> 3.131112375 | F209: =IF(F208>0,F207/F208,0) -> 4.696425802 | G209: =IF(G208>0,G207/G208,0) -> 9.397223084 | H209: =IF(H208>0,H207/H208,0) -> 0
A211: Other O & M costs specific to North/East zone
A212: Other N\E O & M costs : Describe……………………………………. | C212: 3466.071593 | D212: 7762.58 | E212: 7762.58 | F212: 7762.58 | G212: 7762.58 | H212: 7762.58
A213: Number of Lights | C213: =C212/C214 -> 13075.81205 | D213: =SUMPRODUCT(('DNSP Inputs General'!$B$102:$B$113=$A180)*('DNSP Inputs General'!$F$82:$Z$82=D$7)*('DNSP Inputs General'!$F$102:$Z$113)) -> 2175 | E213: =SUMPRODUCT(('DNSP Inputs General'!$B$102:$B$113=$A180)*('DNSP Inputs General'!$F$82:$Z$82=E$7)*('DNSP Inputs General'!$F$102:$Z$113)) -> 1631 | F213: =SUMPRODUCT(('DNSP Inputs General'!$B$102:$B$113=$A180)*('DNSP Inputs General'!$F$82:$Z$82=F$7)*('DNSP Inputs General'!$F$102:$Z$113)) -> 1087 | G213: =SUMPRODUCT(('DNSP Inputs General'!$B$102:$B$113=$A180)*('DNSP Inputs General'!$F$82:$Z$82=G$7)*('DNSP Inputs General'!$F$102:$Z$113)) -> 543 | H213: =SUMPRODUCT(('DNSP Inputs General'!$B$102:$B$113=$A180)*('DNSP Inputs General'!$F$82:$Z$82=H$7)*('DNSP Inputs General'!$F$102:$Z$113)) -> 1
A214: Unit Cost | C214: 0.2650750546 | D214: =IF(D213>0,D212/D213,0) -> 3.569002299 | E214: =IF(E213>0,E212/E213,0) -> 4.759399142 | F214: =IF(F213>0,F212/F213,0) -> 7.141287948 | G214: =IF(G213>0,G212/G213,0) -> 14.29572744 | H214: 0
A216: Location of selected public lighting assets within distributors' areas (%)
A217: SP AusNet - Central
A218: Urban | C218: 0.96 | D218: 0.96 | E218: 0.96 | F218: 0.96 | G218: 0.96 | H218: 0.96
A219: Rural | C219: 0.04 | D219: 0.04 | E219: 0.04 | F219: 0.04 | G219: 0.04 | H219: 0.04
A220: Remote | C220: 0 | D220: 0 | E220: 0 | F220: 0 | G220: 0 | H220: 0
A222: SP AusNet - North/East
A223: Urban | C223: 0.35 | D223: 0.35 | E223: 0.35 | F223: 0.35 | G223: 0.35 | H223: 0.35
A224: Rural | C224: 0.53 | D224: 0.53 | E224: 0.53 | F224: 0.53 | G224: 0.53 | H224: 0.53
A225: Remote | C225: 0.12 | D225: 0.12 | E225: 0.12 | F225: 0.12 | G225: 0.12 | H225: 0.12
A229: ='DNSP Inputs General'!B63 -> T5 2X24W
A231: Depreciation period | B231: years | C231: 20 | D231: =C231 -> 20 | E231: =D231 -> 20 | F231: =E231 -> 20 | G231: =F231 -> 20 | H231: =G231 -> 20
A232: Lamps - bulk change | B232: years | C232: 4 | D232: 4 | E232: 4 | F232: 4 | G232: 4 | H232: 4
A233: PE cells - bulk change | B233: years | C233: 8 | D233: 8 | E233: 8 | F233: 8 | G233: 8 | H233: 8
A234: Ballast unit life | C234: 20 | D234: =C234 -> 20 | E234: =D234 -> 20 | F234: =E234 -> 20 | G234: =F234 -> 20 | H234: =G234 -> 20
A235: Proportion of luminaires that fail between bulk change | C235: 0.114 | D235: 0.4156563612 | E235: 0.4156563612 | F235: 0.4156563612 | G235: 0.4156563612 | H235: 0.4156563612
A236: Unit cost - lamp | C236: 18.45593957 | D236: 8.1 | E236: 8.1 | F236: 8.1 | G236: 8.1 | H236: 8.1
A237: Unit cost - PE cell | C237: 23.40333975 | D237: 25.041365 | E237: 25.041365 | F237: 25.041365 | G237: 25.041365 | H237: 25.041365
A238: Unit cost - luminaire | C238: 286.187762 | D238: 267.33 | E238: 267.33 | F238: 267.33 | G238: 267.33 | H238: 267.33
A239: Unit cost - miscellaneous materials (bulk lamp) | C239: 1.3373337 | D239: 1.347645671 | E239: 1.347645671 | F239: 1.347645671 | G239: 1.347645671 | H239: 1.347645671
A240: Unit cost - miscellaneous materials (repair) | C240: 13.373337 | D240: 13.47645671 | E240: 13.47645671 | F240: 13.47645671 | G240: 13.47645671 | H240: 13.47645671
A241: Number of men in crew | C241: 2 | D241: 2 | E241: 2 | F241: 2 | G241: 2 | H241: 2
A242: Number of bulk lamp changes in 1 day - urban | C242: 85 | D242: =D193 -> 73.92 | E242: 73.92 | F242: 73.92 | G242: 73.92 | H242: 73.92
A243: Number of bulk lamp changes in 1 day - rural | C243: 70 | D243: 61.44 | E243: 61.44 | F243: 61.44 | G243: 61.44 | H243: 61.44
A244: Number of bulk lamp changes in 1 day - remote | C244: 50 | D244: 48.96 | E244: 48.96 | F244: 48.96 | G244: 48.96 | H244: 48.96
A245: Number of repairs in 1 day - urban | C245: 20 | D245: 24.96 | E245: 24.96 | F245: 24.96 | G245: 24.96 | H245: 24.96
A246: Number of repairs in 1 day - rural | C246: 15 | D246: 20.16 | E246: 20.16 | F246: 20.16 | G246: 20.16 | H246: 20.16
A247: Number of repairs in 1 day - remote | C247: 10 | D247: 16.32 | E247: 16.32 | F247: 16.32 | G247: 16.32 | H247: 16.32
A248: % of repairs - lamps | C248: 0.6 | D248: 0.6 | E248: 0.6 | F248: 0.6 | G248: 0.6 | H248: 0.6
A249: % of repairs - PE cells | C249: 0.5 | D249: 0.5 | E249: 0.5 | F249: 0.5 | G249: 0.5 | H249: 0.5
A250: % of repairs - luminaires | C250: 0 | D250: 0 | E250: 0 | F250: 0 | G250: 0 | H250: 0
... 309 more rows

Sheet Cashflow Summary
A1: ='DNSP Inputs O&M'!$A$3 -> AusNet | E1: Check | F1: =SUM(C21,C27,C50,C213,C378) -> 3.445893526e-08
C2: =EOMONTH(D2,-12) -> 2026-06-30 | D2: =Instructions!$B$16 -> 2027-06-30 | E2: =EOMONTH(D2,12) -> 2028-06-30 | F2: =EOMONTH(E2,12) -> 2029-06-30 | G2: =EOMONTH(F2,12) -> 2030-06-30 | H2: =EOMONTH(G2,12) -> 2031-06-30 | J2: =C2 -> 2026-06-30 | K2: 2027-06-30 | L2: 2028-06-30 | M2: 2029-06-30 | N2: 2030-06-30 | O2: 2031-06-30
A4: Public Lighting - Revenue | C4: Revenue - $Nominal | J4: Revenue - $Real Jun 2026
C5: =C$2 -> 2026-06-30 | D5: 2027-06-30 | E5: 2028-06-30 | F5: 2029-06-30 | G5: 2030-06-30 | H5: 2031-06-30 | J5: =J$2 -> 2026-06-30 | K5: 2027-06-30 | L5: 2028-06-30 | M5: 2029-06-30 | N5: 2030-06-30 | O5: 2031-06-30
A7: Total Revenue | C7: =C95+C260 -> 9718597.186 | D7: 10754434.62 | E7: 11261550.45 | F7: 11818149.45 | G7: 12447229.93 | H7: 12866432.56 | J7: =J95+J260 -> 9718597.186 | K7: 10492131.34 | L7: 10718905.84 | M7: 10974326.62 | N7: 11276575.98 | O7: 11372051.58
D8: =D7/C7-1 -> 0.1065830197 | E8: =E7/D7-1 -> 0.04715411294 | F8: =F7/E7-1 -> 0.04942472257 | G8: =G7/F7-1 -> 0.05323003218 | H8: =H7/G7-1 -> 0.03367838721 | K8: =K7/J7-1 -> 0.07959318995 | L8: =L7/K7-1 -> 0.02161376872 | M8: =M7/L7-1 -> 0.02382899763 | N8: =N7/M7-1 -> 0.02754149481 | O8: =O7/N7-1 -> 0.008466719231
A10: Public Lighting - O & M | D10: Forecast O & M - $Nominal | K10: Forecast O & M - $Real Jun 2026
D11: =D$2 -> 2027-06-30 | E11: =E$2 -> 2028-06-30 | F11: =F$2 -> 2029-06-30 | G11: =G$2 -> 2030-06-30 | H11: =H$2 -> 2031-06-30 | K11: =K$2 -> 2027-06-30 | L11: =L$2 -> 2028-06-30 | M11: =M$2 -> 2029-06-30 | N11: =N$2 -> 2030-06-30 | O11: =O$2 -> 2031-06-30
A13: Total O & M | D13: =D153+D318 -> 4614787.819 | E13: =E153+E318 -> 4639589.316 | F13: =F153+F318 -> 4704523.667 | G13: =G153+G318 -> 4812228.493 | H13: =H153+H318 -> 4654851.585 | K13: =K153+K318 -> 4502232.018 | L13: =L153+L318 -> 4416027.904 | M13: =M153+M318 -> 4368617.906 | N13: =N153+N318 -> 4359641.506 | O13: =O153+O318 -> 4114210.532
A16: Public Lighting - Capital Charge | D16: Capital Charge - $Nominal | K16: Capital Charge - $Real Jun 2026
D17: =D$2 -> 2027-06-30 | E17: =E$2 -> 2028-06-30 | F17: =F$2 -> 2029-06-30 | G17: =G$2 -> 2030-06-30 | H17: =H$2 -> 2031-06-30 | K17: =K$2 -> 2027-06-30 | L17: =L$2 -> 2028-06-30 | M17: =M$2 -> 2029-06-30 | N17: =N$2 -> 2030-06-30 | O17: =O$2 -> 2031-06-30
A19: Total Capital Charge | D19: =D211+D376 -> 6139646.802 | E19: =E211+E376 -> 6621961.13 | F19: =F211+F376 -> 7113625.786 | G19: =G211+G376 -> 7635001.435 | H19: =H211+H376 -> 8211580.972 | K19: =K211+K376 -> 5989899.319 | L19: =L211+L376 -> 6302877.934 | M19: =M211+M376 -> 6605708.714 | N19: =N211+N376 -> 6916934.473 | O19: =O211+O376 -> 7257841.05
A21: Check | C21: =SUM(D21:O21) -> 1.11758709e-08 | D21: =ABS(D7-SUM(D13,D19)) -> 3.725290298e-09 | E21: =ABS(E7-SUM(E13,E19)) -> 0 | F21: =ABS(F7-SUM(F13,F19)) -> 1.862645149e-09 | G21: =ABS(G7-SUM(G13,G19)) -> 0 | H21: =ABS(H7-SUM(H13,H19)) -> 3.725290298e-09 | K21: =ABS(K7-SUM(K13,K19)) -> 1.862645149e-09 | L21: =ABS(L7-SUM(L13,L19)) -> 0 | M21: =ABS(M7-SUM(M13,M19)) -> 0 | N21: =ABS(N7-SUM(N13,N19)) -> 0 | O21: =ABS(O7-SUM(O13,O19)) -> 0
A23: Public Lighting - Capital Expenditure | D23: Forecast Capital Expenditure - $Nominal | K23: Forecast Capital Expenditure - $Real Jun 2026
D24: =D$2 -> 2027-06-30 | E24: =E$2 -> 2028-06-30 | F24: =F$2 -> 2029-06-30 | G24: =G$2 -> 2030-06-30 | H24: =H$2 -> 2031-06-30 | K24: =K$2 -> 2027-06-30 | L24: =L$2 -> 2028-06-30 | M24: =M$2 -> 2029-06-30 | N24: =N$2 -> 2030-06-30 | O24: =O$2 -> 2031-06-30
A26: Total Capital Expenditure | D26: =K26*'Charges Summary'!K$4 -> 5994831.474 | E26: =L26*'Charges Summary'!L$4 -> 6192491.473 | F26: =M26*'Charges Summary'!M$4 -> 6400216.23 | G26: =N26*'Charges Summary'!N$4 -> 6618764.771 | H26: =O26*'Charges Summary'!O$4 -> 6842591.902 | K26: ='DNSP Inputs General'!V14 -> 5848616.072 | L26: ='DNSP Inputs General'!W14 -> 5894102.532 | M26: ='DNSP Inputs General'!X14 -> 5943237.021 | N26: ='DNSP Inputs General'!Y14 -> 5996274.212 | O26: ='DNSP Inputs General'!Z14 -> 6047854.191
A27: Check | C27: =SUM(D27:H27) -> 1.862645149e-09 | D27: =ABS(D26-D34) -> 9.313225746e-10 | E27: =ABS(E26-E34) -> 0 | F27: =ABS(F26-F34) -> 0 | G27: =ABS(G26-G34) -> 9.313225746e-10 | H27: =ABS(H26-H34) -> 0
A30: Public Lighting - RAB | D30: RAB - Historical Cost ($)
D31: =D$2 -> 2027-06-30 | E31: =E$2 -> 2028-06-30 | F31: =F$2 -> 2029-06-30 | G31: =G$2 -> 2030-06-30 | H31: =H$2 -> 2031-06-30
A33: Opening RAB | D33: ='Total RAB'!Y172 -> 49086354.83 | E33: ='Total RAB'!Z172 -> 52112065.83 | F33: ='Total RAB'!AA172 -> 55090405.95 | G33: ='Total RAB'!AB172 -> 58034149 | H33: ='Total RAB'!AC172 -> 60947933.07
A34: Capex | D34: ='Total RAB'!Y173 -> 5994831.474 | E34: ='Total RAB'!Z173 -> 6192491.473 | F34: ='Total RAB'!AA173 -> 6400216.23 | G34: ='Total RAB'!AB173 -> 6618764.771 | H34: ='Total RAB'!AC173 -> 6842591.902
A35: Depreciation | D35: ='Total RAB'!Y174 -> 2969120.47 | E35: ='Total RAB'!Z174 -> 3214151.355 | F35: ='Total RAB'!AA174 -> 3456473.186 | G35: ='Total RAB'!AB174 -> 3704980.693 | H35: ='Total RAB'!AC174 -> 3964481.238
A36: Closing RAB | D36: =D33+D34-D35 -> 52112065.83 | E36: =E33+E34-E35 -> 55090405.95 | F36: =F33+F34-F35 -> 58034149 | G36: =G33+G34-G35 -> 60947933.07 | H36: =H33+H34-H35 -> 63826043.74
A38: Average RAB | D38: =SUM(D33,D36)/2 -> 50599210.33 | E38: =SUM(E33,E36)/2 -> 53601235.89 | F38: =SUM(F33,F36)/2 -> 56562277.47 | G38: =SUM(G33,G36)/2 -> 59491041.03 | H38: =SUM(H33,H36)/2 -> 62386988.41
A40: =WACC!B$8 -> Nominal Pre Tax WACC | D40: =WACC!J$8 -> 0.06265960103 | E40: =WACC!K$8 -> 0.06357707463 | F40: =WACC!L$8 -> 0.06465709591 | G40: =WACC!M$8 -> 0.0660607156 | H40: =WACC!N$8 -> 0.06807669104
A42: Capital Charge | D42: Capital Charge - $Nominal
D43: =D$2 -> 2027-06-30 | E43: =E$2 -> 2028-06-30 | F43: =F$2 -> 2029-06-30 | G43: =G$2 -> 2030-06-30 | H43: =H$2 -> 2031-06-30
A45: Depreciation | D45: =D35 -> 2969120.47 | E45: =E35 -> 3214151.355 | F45: =F35 -> 3456473.186 | G45: =G35 -> 3704980.693 | H45: =H35 -> 3964481.238
A46: Return | D46: =D40*D38 -> 3170526.332 | E46: =E40*E38 -> 3407809.775 | F46: =F40*F38 -> 3657152.6 | G46: =G40*G38 -> 3930020.743 | H46: =H40*H38 -> 4247099.734
D48: =SUM(D45:D47) -> 6139646.802 | E48: =SUM(E45:E47) -> 6621961.13 | F48: =SUM(F45:F47) -> 7113625.786 | G48: =SUM(G45:G47) -> 7635001.435 | H48: =SUM(H45:H47) -> 8211580.972
A50: Check | C50: =SUM(D50:H50) -> 5.587935448e-09 | D50: =ABS(D19-D48)*IF('DNSP Inputs General'!V77=0,0,1)*IF('DNSP Inputs General'!V117=0,0,1) -> 9.313225746e-10 | E50: =ABS(E19-E48)*IF('DNSP Inputs General'!R77=0,0,1)*IF('DNSP Inputs General'!R117=0,0,1) -> 2.793967724e-09 | F50: =ABS(F19-F48)*IF('DNSP Inputs General'!S77=0,0,1)*IF('DNSP Inputs General'!S117=0,0,1) -> 0 | G50: =ABS(G19-G48)*IF('DNSP Inputs General'!T77=0,0,1)*IF('DNSP Inputs General'!T117=0,0,1) -> 1.862645149e-09 | H50: =ABS(H19-H48)*IF('DNSP Inputs General'!U77=0,0,1)*IF('DNSP Inputs General'!U117=0,0,1) -> 0
A53: ='DNSP Inputs General'!$B$42 -> Central
A54: Public Lighting - Revenue | C54: Revenue - $Nominal | J54: Revenue - $Real Jun 2026
C55: =C$2 -> 2026-06-30 | D55: 2027-06-30 | E55: 2028-06-30 | F55: 2029-06-30 | G55: 2030-06-30 | H55: 2031-06-30 | J55: =J$2 -> 2026-06-30 | K55: 2027-06-30 | L55: 2028-06-30 | M55: 2029-06-30 | N55: 2030-06-30 | O55: 2031-06-30
A56: ='DNSP Inputs General'!B$44 -> Existing Lights
A57: ='DNSP Inputs General'!B$45 -> Mercury Vapour 80W | C57: =IF('PL Tariffs'!C7=0,"",'DNSP Inputs General'!U45*'PL Tariffs'!C7) -> 240028.7988 | D57: ='DNSP Inputs General'!V45*'PL Tariffs'!D7 -> 442791.7531 | E57: ='DNSP Inputs General'!W45*'PL Tariffs'!E7 -> 460426.128 | F57: ='DNSP Inputs General'!X45*'PL Tariffs'!F7 -> 476968.0965 | G57: ='DNSP Inputs General'!Y45*'PL Tariffs'!G7 -> 494274.3798 | H57: ='DNSP Inputs General'!Z45*'PL Tariffs'!H7 -> 552831.5936 | J57: =C57 -> 240028.7988 | K57: =D57/'Charges Summary'!D$4 -> 431991.9542 | L57: =E57/'Charges Summary'!E$4 -> 438240.2171 | M57: =F57/'Charges Summary'!F$4 -> 442912.2935 | N57: =G57/'Charges Summary'!G$4 -> 447788.1931 | O57: =H57/'Charges Summary'!H$4 -> 488622.5743
A58: ='DNSP Inputs General'!B$46 -> HP Sodium 150W | C58: =IF('PL Tariffs'!C8=0,"",'DNSP Inputs General'!U46*'PL Tariffs'!C8) -> 1399701.792 | D58: ='DNSP Inputs General'!V46*'PL Tariffs'!D8 -> 1565363.31 | E58: ='DNSP Inputs General'!W46*'PL Tariffs'!E8 -> 1491707.797 | F58: ='DNSP Inputs General'!X46*'PL Tariffs'!F8 -> 1417688.167 | G58: ='DNSP Inputs General'!Y46*'PL Tariffs'!G8 -> 1348356.294 | H58: ='DNSP Inputs General'!Z46*'PL Tariffs'!H8 -> 1080810.807 | J58: =C58 -> 1399701.792 | K58: =D58/'Charges Summary'!D$4 -> 1527183.717 | L58: =E58/'Charges Summary'!E$4 -> 1419828.956 | M58: =F58/'Charges Summary'!F$4 -> 1316464.397 | N58: =G58/'Charges Summary'!G$4 -> 1221544.254 | O58: =H58/'Charges Summary'!H$4 -> 955279.266
A59: ='DNSP Inputs General'!B$47 -> HP Sodium 250W | C59: =IF('PL Tariffs'!C9=0,"",'DNSP Inputs General'!U47*'PL Tariffs'!C9) -> 630753.2316 | D59: ='DNSP Inputs General'!V47*'PL Tariffs'!D9 -> 687430.0345 | E59: ='DNSP Inputs General'!W47*'PL Tariffs'!E9 -> 641007.1817 | F59: ='DNSP Inputs General'!X47*'PL Tariffs'!F9 -> 595880.4447 | G59: ='DNSP Inputs General'!Y47*'PL Tariffs'!G9 -> 554241.1136 | H59: ='DNSP Inputs General'!Z47*'PL Tariffs'!H9 -> 411637.541 | J59: 630753.2316 | K59: =D59/'Charges Summary'!D$4 -> 670663.4483 | L59: =E59/'Charges Summary'!E$4 -> 610119.8636 | M59: =F59/'Charges Summary'!F$4 -> 553334.2299 | N59: =G59/'Charges Summary'!G$4 -> 502115.0942 | O59: =H59/'Charges Summary'!H$4 -> 363827.6056
A60: ='DNSP Inputs General'!B$48 -> Mercury Vapour 50W | C60: =IF('PL Tariffs'!C10=0,"",'DNSP Inputs General'!U48*'PL Tariffs'!C10) -> 0 | D60: ='DNSP Inputs General'!V48*'PL Tariffs'!D10 -> 0 | E60: ='DNSP Inputs General'!W48*'PL Tariffs'!E10 -> 0 | F60: ='DNSP Inputs General'!X48*'PL Tariffs'!F10 -> 0 | G60: ='DNSP Inputs General'!Y48*'PL Tariffs'!G10 -> 0 | H60: ='DNSP Inputs General'!Z48*'PL Tariffs'!H10 -> 0 | J60: 0 | K60: =D60/'Charges Summary'!D$4 -> 0 | L60: =E60/'Charges Summary'!E$4 -> 0 | M60: =F60/'Charges Summary'!F$4 -> 0 | N60: =G60/'Charges Summary'!G$4 -> 0 | O60: =H60/'Charges Summary'!H$4 -> 0
A61: ='DNSP Inputs General'!B$49 -> Mercury Vapour 125W | C61: =IF('PL Tariffs'!C11=0,"",'DNSP Inputs General'!U49*'PL Tariffs'!C11) -> 0 | D61: ='DNSP Inputs General'!V49*'PL Tariffs'!D11 -> 0 | E61: ='DNSP Inputs General'!W49*'PL Tariffs'!E11 -> 0 | F61: ='DNSP Inputs General'!X49*'PL Tariffs'!F11 -> 0 | G61: ='DNSP Inputs General'!Y49*'PL Tariffs'!G11 -> 0 | H61: ='DNSP Inputs General'!Z49*'PL Tariffs'!H11 -> 0 | J61: 0 | K61: =D61/'Charges Summary'!D$4 -> 0 | L61: =E61/'Charges Summary'!E$4 -> 0 | M61: =F61/'Charges Summary'!F$4 -> 0 | N61: =G61/'Charges Summary'!G$4 -> 0 | O61: =H61/'Charges Summary'!H$4 -> 0
A62: ='DNSP Inputs General'!B$50 -> Mercury Vapour 250W | C62: =IF('PL Tariffs'!C12=0,"",'DNSP Inputs General'!U50*'PL Tariffs'!C12) -> 0 | D62: ='DNSP Inputs General'!V50*'PL Tariffs'!D12 -> 0 | E62: ='DNSP Inputs General'!W50*'PL Tariffs'!E12 -> 0 | F62: ='DNSP Inputs General'!X50*'PL Tariffs'!F12 -> 0 | G62: ='DNSP Inputs General'!Y50*'PL Tariffs'!G12 -> 0 | H62: ='DNSP Inputs General'!Z50*'PL Tariffs'!H12 -> 0 | J62: 0 | K62: =D62/'Charges Summary'!D$4 -> 0 | L62: =E62/'Charges Summary'!E$4 -> 0 | M62: =F62/'Charges Summary'!F$4 -> 0 | N62: =G62/'Charges Summary'!G$4 -> 0 | O62: =H62/'Charges Summary'!H$4 -> 0
A63: ='DNSP Inputs General'!B$51 -> Mercury Vapour 400W | C63: =IF('PL Tariffs'!C13=0,"",'DNSP Inputs General'!U51*'PL Tariffs'!C13) -> 0 | D63: ='DNSP Inputs General'!V51*'PL Tariffs'!D13 -> 0 | E63: ='DNSP Inputs General'!W51*'PL Tariffs'!E13 -> 0 | F63: ='DNSP Inputs General'!X51*'PL Tariffs'!F13 -> 0 | G63: ='DNSP Inputs General'!Y51*'PL Tariffs'!G13 -> 0 | H63: ='DNSP Inputs General'!Z51*'PL Tariffs'!H13 -> 0 | J63: 0 | K63: =D63/'Charges Summary'!D$4 -> 0 | L63: =E63/'Charges Summary'!E$4 -> 0 | M63: =F63/'Charges Summary'!F$4 -> 0 | N63: =G63/'Charges Summary'!G$4 -> 0 | O63: =H63/'Charges Summary'!H$4 -> 0
A64: ='DNSP Inputs General'!B$52 -> HP Sodium 100W | C64: =IF('PL Tariffs'!C14=0,"",'DNSP Inputs General'!U52*'PL Tariffs'!C14) -> 265840.4212 | D64: ='DNSP Inputs General'!V52*'PL Tariffs'!D14 -> 288294.7186 | E64: ='DNSP Inputs General'!W52*'PL Tariffs'!E14 -> 262241.7956 | F64: ='DNSP Inputs General'!X52*'PL Tariffs'!F14 -> 233045.4542 | G64: ='DNSP Inputs General'!Y52*'PL Tariffs'!G14 -> 201498.5396 | H64: ='DNSP Inputs General'!Z52*'PL Tariffs'!H14 -> 178321.2883 | J64: 265840.4212 | K64: =D64/'Charges Summary'!D$4 -> 281263.1401 | L64: =E64/'Charges Summary'!E$4 -> 249605.5163 | M64: =F64/'Charges Summary'!F$4 -> 216405.8715 | N64: =G64/'Charges Summary'!G$4 -> 182547.7319 | O64: =H64/'Charges Summary'!H$4 -> 157610.0352
A65: ='DNSP Inputs General'!B53 -> HP Sodium 400W | C65: =IF('PL Tariffs'!C15=0,"",'DNSP Inputs General'!U53*'PL Tariffs'!C15) -> 24665.5997 | D65: ='DNSP Inputs General'!V53*'PL Tariffs'!D15 -> 26604.81213 | E65: ='DNSP Inputs General'!W53*'PL Tariffs'!E15 -> 24202.21549 | F65: ='DNSP Inputs General'!X53*'PL Tariffs'!F15 -> 21509.44584 | G65: ='DNSP Inputs General'!Y53*'PL Tariffs'!G15 -> 18599.50854 | H65: ='DNSP Inputs General'!Z53*'PL Tariffs'!H15 -> 16468.77357 | J65: 24665.5997 | K65: =D65/'Charges Summary'!D$4 -> 25955.91427 | L65: =E65/'Charges Summary'!E$4 -> 23036.01712 | M65: =F65/'Charges Summary'!F$4 -> 19973.65874 | N65: =G65/'Charges Summary'!G$4 -> 16850.23675 | O65: =H65/'Charges Summary'!H$4 -> 14555.99613
A66: ='DNSP Inputs General'!B54 -> Metal Halide 70W | C66: =IF('PL Tariffs'!C16=0,"",'DNSP Inputs General'!U54*'PL Tariffs'!C16) -> 0 | D66: ='DNSP Inputs General'!V54*'PL Tariffs'!D16 -> 0 | E66: ='DNSP Inputs General'!W54*'PL Tariffs'!E16 -> 0 | F66: ='DNSP Inputs General'!X54*'PL Tariffs'!F16 -> 0 | G66: ='DNSP Inputs General'!Y54*'PL Tariffs'!G16 -> 0 | H66: ='DNSP Inputs General'!Z54*'PL Tariffs'!H16 -> 0 | J66: =C66 -> 0 | K66: =D66/'Charges Summary'!D$4 -> 0 | L66: =E66/'Charges Summary'!E$4 -> 0 | M66: =F66/'Charges Summary'!F$4 -> 0 | N66: =G66/'Charges Summary'!G$4 -> 0 | O66: =H66/'Charges Summary'!H$4 -> 0
A67: ='DNSP Inputs General'!B55 -> Metal Halide 100W | C67: =IF('PL Tariffs'!C17=0,"",'DNSP Inputs General'!U55*'PL Tariffs'!C17) -> 0 | D67: ='DNSP Inputs General'!V55*'PL Tariffs'!D17 -> 0 | E67: ='DNSP Inputs General'!W55*'PL Tariffs'!E17 -> 0 | F67: ='DNSP Inputs General'!X55*'PL Tariffs'!F17 -> 0 | G67: ='DNSP Inputs General'!Y55*'PL Tariffs'!G17 -> 0 | H67: ='DNSP Inputs General'!Z55*'PL Tariffs'!H17 -> 0 | J67: =C67 -> 0 | K67: =D67/'Charges Summary'!D$4 -> 0 | L67: =E67/'Charges Summary'!E$4 -> 0 | M67: =F67/'Charges Summary'!F$4 -> 0 | N67: =G67/'Charges Summary'!G$4 -> 0 | O67: =H67/'Charges Summary'!H$4 -> 0
A68: ='DNSP Inputs General'!B56 -> Metal Halide 150W | C68: =IF('PL Tariffs'!C18=0,"",'DNSP Inputs General'!U56*'PL Tariffs'!C18) -> 0 | D68: ='DNSP Inputs General'!V56*'PL Tariffs'!D18 -> 0 | E68: ='DNSP Inputs General'!W56*'PL Tariffs'!E18 -> 0 | F68: ='DNSP Inputs General'!X56*'PL Tariffs'!F18 -> 0 | G68: ='DNSP Inputs General'!Y56*'PL Tariffs'!G18 -> 0 | H68: ='DNSP Inputs General'!Z56*'PL Tariffs'!H18 -> 0 | J68: =C68 -> 0 | K68: =D68/'Charges Summary'!D$4 -> 0 | L68: =E68/'Charges Summary'!E$4 -> 0 | M68: =F68/'Charges Summary'!F$4 -> 0 | N68: =G68/'Charges Summary'!G$4 -> 0 | O68: =H68/'Charges Summary'!H$4 -> 0
A69: ='DNSP Inputs General'!B57 -> HP Sodium 50W | C69: =IF('PL Tariffs'!C19=0,"",'DNSP Inputs General'!U57*'PL Tariffs'!C19) -> 0 | D69: ='DNSP Inputs General'!V57*'PL Tariffs'!D19 -> 0 | E69: ='DNSP Inputs General'!W57*'PL Tariffs'!E19 -> 0 | F69: ='DNSP Inputs General'!X57*'PL Tariffs'!F19 -> 0 | G69: ='DNSP Inputs General'!Y57*'PL Tariffs'!G19 -> 0 | H69: ='DNSP Inputs General'!Z57*'PL Tariffs'!H19 -> 0 | J69: =C69 -> 0 | K69: =D69/'Charges Summary'!D$4 -> 0 | L69: =E69/'Charges Summary'!E$4 -> 0 | M69: =F69/'Charges Summary'!F$4 -> 0 | N69: =G69/'Charges Summary'!G$4 -> 0 | O69: =H69/'Charges Summary'!H$4 -> 0
A81: ='DNSP Inputs General'!B$61 -> Energy Efficient Lights
A82: ='DNSP Inputs General'!B$62 -> T5 2X14W | C82: =IF('PL Tariffs'!C23=0,"",'DNSP Inputs General'!U62*'PL Tariffs'!C23) -> 827107.5745 | D82: ='DNSP Inputs General'!V62*'PL Tariffs'!D23 -> 620283.258 | E82: ='DNSP Inputs General'!W62*'PL Tariffs'!E23 -> 494363.7492 | F82: ='DNSP Inputs General'!X62*'PL Tariffs'!F23 -> 354325.1026 | G82: ='DNSP Inputs General'!Y62*'PL Tariffs'!G23 -> 201570.2362 | H82: ='DNSP Inputs General'!Z62*'PL Tariffs'!H23 -> 64.28192746 | J82: =C82 -> 827107.5745 | K82: =D82/'Charges Summary'!D$4 -> 605154.3981 | L82: =E82/'Charges Summary'!E$4 -> 470542.5334 | M82: =F82/'Charges Summary'!F$4 -> 329026.0816 | N82: =G82/'Charges Summary'!G$4 -> 182612.6854 | O82: =H82/'Charges Summary'!H$4 -> 56.8158572
A83: ='DNSP Inputs General'!B$63 -> T5 2X24W | C83: =IF('PL Tariffs'!C24=0,"",'DNSP Inputs General'!U63*'PL Tariffs'!C24) -> 8211.666729 | D83: ='DNSP Inputs General'!V63*'PL Tariffs'!D24 -> 6386.590769 | E83: ='DNSP Inputs General'!W63*'PL Tariffs'!E24 -> 5121.490847 | F83: ='DNSP Inputs General'!X63*'PL Tariffs'!F24 -> 3715.043901 | G83: ='DNSP Inputs General'!Y63*'PL Tariffs'!G24 -> 2182.386686 | H83: ='DNSP Inputs General'!Z63*'PL Tariffs'!H24 -> 0 | J83: =C83 -> 8211.666729 | K83: =D83/'Charges Summary'!D$4 -> 6230.820262 | L83: =E83/'Charges Summary'!E$4 -> 4874.708718 | M83: =F83/'Charges Summary'!F$4 -> 3449.787578 | N83: =G83/'Charges Summary'!G$4 -> 1977.134625 | O83: =H83/'Charges Summary'!H$4 -> 0
A84: ='DNSP Inputs General'!B$64 -> LED 18W | C84: =IF('PL Tariffs'!C25=0,"",'DNSP Inputs General'!U64*'PL Tariffs'!C25) -> 2050376.022 | D84: ='DNSP Inputs General'!V64*'PL Tariffs'!D25 -> 2333706.741 | E84: ='DNSP Inputs General'!W64*'PL Tariffs'!E25 -> 2701184.018 | F84: ='DNSP Inputs General'!X64*'PL Tariffs'!F25 -> 3081458.404 | G84: ='DNSP Inputs General'!Y64*'PL Tariffs'!G25 -> 3485130.833 | H84: ='DNSP Inputs General'!Z64*'PL Tariffs'!H25 -> 4041526.887 | J84: =C84 -> 2050376.022 | K84: =D84/'Charges Summary'!D$4 -> 2276787.064 | L84: =E84/'Charges Summary'!E$4 -> 2571025.835 | M84: =F84/'Charges Summary'!F$4 -> 2861440.459 | N84: =G84/'Charges Summary'!G$4 -> 3157356.525 | O84: =H84/'Charges Summary'!H$4 -> 3572120.868
A85: ='DNSP Inputs General'!B$65 -> LED 14W | C85: =IF('PL Tariffs'!C26=0,"",'DNSP Inputs General'!U65*'PL Tariffs'!C26) -> 258989.7791 | D85: ='DNSP Inputs General'!V65*'PL Tariffs'!D26 -> 310843.0269 | E85: ='DNSP Inputs General'!W65*'PL Tariffs'!E26 -> 340726.7094 | F85: ='DNSP Inputs General'!X65*'PL Tariffs'!F26 -> 370051.7669 | G85: ='DNSP Inputs General'!Y65*'PL Tariffs'!G26 -> 400695.6742 | H85: ='DNSP Inputs General'!Z65*'PL Tariffs'!H26 -> 427313.1409 | J85: =C85 -> 258989.7791 | K85: =D85/'Charges Summary'!D$4 -> 303261.4897 | L85: =E85/'Charges Summary'!E$4 -> 324308.5872 | M85: =F85/'Charges Summary'!F$4 -> 343629.8528 | N85: =G85/'Charges Summary'!G$4 -> 363010.5044 | O85: =H85/'Charges Summary'!H$4 -> 377682.5518
A86: ='DNSP Inputs General'!B$66 -> LED 70W-125W (L1) | C86: =IF('PL Tariffs'!C27=0,"",'DNSP Inputs General'!U66*'PL Tariffs'!C27) -> 533162.1648 | D86: ='DNSP Inputs General'!V66*'PL Tariffs'!D27 -> 643122.1953 | E86: ='DNSP Inputs General'!W66*'PL Tariffs'!E27 -> 750846.7836 | F86: ='DNSP Inputs General'!X66*'PL Tariffs'!F27 -> 863220.672 | G86: ='DNSP Inputs General'!Y66*'PL Tariffs'!G27 -> 983890.2665 | H86: ='DNSP Inputs General'!Z66*'PL Tariffs'!H27 -> 1099891.808 | J86: =C86 -> 533162.1648 | K86: =D86/'Charges Summary'!D$4 -> 627436.2881 | L86: =E86/'Charges Summary'!E$4 -> 714666.778 | M86: =F86/'Charges Summary'!F$4 -> 801586.2076 | N86: =G86/'Charges Summary'!G$4 -> 891356.0214 | O86: =H86/'Charges Summary'!H$4 -> 972144.0906
A87: ='DNSP Inputs General'!B$67 -> LED 155W-250W (L2) | C87: =IF('PL Tariffs'!C28=0,"",'DNSP Inputs General'!U67*'PL Tariffs'!C28) -> 374142.7925 | D87: ='DNSP Inputs General'!V67*'PL Tariffs'!D28 -> 516766.5328 | E87: ='DNSP Inputs General'!W67*'PL Tariffs'!E28 -> 673477.0027 | F87: ='DNSP Inputs General'!X67*'PL Tariffs'!F28 -> 839800.5726 | G87: ='DNSP Inputs General'!Y67*'PL Tariffs'!G28 -> 1018000.432 | H87: ='DNSP Inputs General'!Z67*'PL Tariffs'!H28 -> 1203509.029 | J87: =C87 -> 374142.7925 | K87: =D87/'Charges Summary'!D$4 -> 504162.4711 | L87: =E87/'Charges Summary'!E$4 -> 641025.1067 | M87: =F87/'Charges Summary'!F$4 -> 779838.317 | N87: =G87/'Charges Summary'!G$4 -> 922258.1478 | O87: =H87/'Charges Summary'!H$4 -> 1063726.616
A88: ='DNSP Inputs General'!B$68 -> LED 275W-400W (L4) | C88: =IF('PL Tariffs'!C29=0,"",'DNSP Inputs General'!U68*'PL Tariffs'!C29) -> 9019.989498 | D88: ='DNSP Inputs General'!V68*'PL Tariffs'!D29 -> 14910.33235 | E88: ='DNSP Inputs General'!W68*'PL Tariffs'!E29 -> 19450.66763 | F88: ='DNSP Inputs General'!X68*'PL Tariffs'!F29 -> 23742.33749 | G88: ='DNSP Inputs General'!Y68*'PL Tariffs'!G29 -> 27735.69113 | H88: ='DNSP Inputs General'!Z68*'PL Tariffs'!H29 -> 33609.58315 | J88: =C88 -> 9019.989498 | K88: =D88/'Charges Summary'!D$4 -> 14546.6657 | L88: =E88/'Charges Summary'!E$4 -> 18513.42547 | M88: =F88/'Charges Summary'!F$4 -> 22047.12061 | N88: =G88/'Charges Summary'!G$4 -> 25127.16726 | O88: =H88/'Charges Summary'!H$4 -> 29705.97417
A89: ='DNSP Inputs General'!B$69 -> Compact Fluorescent 32W | C89: =IF('PL Tariffs'!C30=0,"",'DNSP Inputs General'!U69*'PL Tariffs'!C30) -> 116752.2367 | D89: ='DNSP Inputs General'!V69*'PL Tariffs'!D30 -> 87554.21696 | E89: ='DNSP Inputs General'!W69*'PL Tariffs'!E30 -> 69776.08906 | F89: ='DNSP Inputs General'!X69*'PL Tariffs'!F30 -> 53576.10678 | G89: ='DNSP Inputs General'!Y69*'PL Tariffs'!G30 -> 40653.35488 | H89: ='DNSP Inputs General'!Z69*'PL Tariffs'!H30 -> 34745.10839 | J89: 116752.2367 | K89: =D89/'Charges Summary'!D$4 -> 85418.74825 | L89: =E89/'Charges Summary'!E$4 -> 66413.88608 | M89: =F89/'Charges Summary'!F$4 -> 49750.74119 | N89: =G89/'Charges Summary'!G$4 -> 36829.93307 | O89: =H89/'Charges Summary'!H$4 -> 30709.61302
A90: ='DNSP Inputs General'!B$70 -> Compact Fluorescent 42W | C90: =IF('PL Tariffs'!C31=0,"",'DNSP Inputs General'!U70*'PL Tariffs'!C31) -> 64382.40245 | D90: ='DNSP Inputs General'!V70*'PL Tariffs'!D31 -> 40200.49982 | E90: ='DNSP Inputs General'!W70*'PL Tariffs'!E31 -> 0.005407202739 | F90: ='DNSP Inputs General'!X70*'PL Tariffs'!F31 -> 0.005812530127 | G90: ='DNSP Inputs General'!Y70*'PL Tariffs'!G31 -> 0.006615790067 | H90: ='DNSP Inputs General'!Z70*'PL Tariffs'!H31 -> 0.00565430193 | J90: 64382.40245 | K90: =D90/'Charges Summary'!D$4 -> 39219.99982 | L90: =E90/'Charges Summary'!E$4 -> 0.00514665341 | M90: =F90/'Charges Summary'!F$4 -> 0.005397512052 | N90: =G90/'Charges Summary'!G$4 -> 0.005993579277 | O90: =H90/'Charges Summary'!H$4 -> 0.004997579004
A91: ='DNSP Inputs General'!B$71 -> Smart lighting L1 | C91: =IF('PL Tariffs'!C32=0,"",'DNSP Inputs General'!U71*'PL Tariffs'!C32) -> 0 | D91: ='DNSP Inputs General'!V71*'PL Tariffs'!D32 -> 0 | E91: ='DNSP Inputs General'!W71*'PL Tariffs'!E32 -> 0 | F91: ='DNSP Inputs General'!X71*'PL Tariffs'!F32 -> 0 | G91: ='DNSP Inputs General'!Y71*'PL Tariffs'!G32 -> 0 | H91: ='DNSP Inputs General'!Z71*'PL Tariffs'!H32 -> 0 | J91: 0 | K91: =D91/'Charges Summary'!D$4 -> 0 | L91: =E91/'Charges Summary'!E$4 -> 0 | M91: =F91/'Charges Summary'!F$4 -> 0 | N91: =G91/'Charges Summary'!G$4 -> 0 | O91: =H91/'Charges Summary'!H$4 -> 0
A92: ='DNSP Inputs General'!B$72 -> Smart lighting L2 | C92: =IF('PL Tariffs'!C33=0,"",'DNSP Inputs General'!U72*'PL Tariffs'!C33) -> 0 | D92: ='DNSP Inputs General'!V72*'PL Tariffs'!D33 -> 0 | E92: ='DNSP Inputs General'!W72*'PL Tariffs'!E33 -> 0 | F92: ='DNSP Inputs General'!X72*'PL Tariffs'!F33 -> 0 | G92: ='DNSP Inputs General'!Y72*'PL Tariffs'!G33 -> 0 | H92: ='DNSP Inputs General'!Z72*'PL Tariffs'!H33 -> 0 | J92: 0 | K92: =D92/'Charges Summary'!D$4 -> 0 | L92: =E92/'Charges Summary'!E$4 -> 0 | M92: =F92/'Charges Summary'!F$4 -> 0 | N92: =G92/'Charges Summary'!G$4 -> 0 | O92: =H92/'Charges Summary'!H$4 -> 0
A93: ='DNSP Inputs General'!B$73 -> Smart lighting L4 | C93: =IF('PL Tariffs'!C34=0,"",'DNSP Inputs General'!U73*'PL Tariffs'!C34) -> 0 | D93: ='DNSP Inputs General'!V73*'PL Tariffs'!D34 -> 0 | E93: ='DNSP Inputs General'!W73*'PL Tariffs'!E34 -> 0 | F93: ='DNSP Inputs General'!X73*'PL Tariffs'!F34 -> 0 | G93: ='DNSP Inputs General'!Y73*'PL Tariffs'!G34 -> 0 | H93: ='DNSP Inputs General'!Z73*'PL Tariffs'!H34 -> 0 | J93: 0 | K93: =D93/'Charges Summary'!D$4 -> 0 | L93: =E93/'Charges Summary'!E$4 -> 0 | M93: =F93/'Charges Summary'!F$4 -> 0 | N93: =G93/'Charges Summary'!G$4 -> 0 | O93: =H93/'Charges Summary'!H$4 -> 0
A95: Total Revenue | C95: =IF(SUM(C57:C93)=0,0,SUM(C57:C93)) -> 6803134.471 | D95: 7584258.022 | E95: 7934531.634 | F95: 8334981.621 | G95: 8776828.716 | H95: 9080729.848 | J95: =IF(SUM(J57:J93)=0,0,SUM(J57:J93)) -> 6803134.471 | K95: 7399276.119 | L95: 7552201.436 | M95: 7739859.023 | N95: 7951373.635 | O95: 8026042.011
A98: Public Lighting - O & M | D98: Forecast O & M - $Nominal | K98: Forecast O & M - $Real Jun 2026
D99: =D$2 -> 2027-06-30 | E99: =E$2 -> 2028-06-30 | F99: =F$2 -> 2029-06-30 | G99: =G$2 -> 2030-06-30 | H99: =H$2 -> 2031-06-30 | K99: =K$2 -> 2027-06-30 | L99: =L$2 -> 2028-06-30 | M99: =M$2 -> 2029-06-30 | N99: =N$2 -> 2030-06-30 | O99: =O$2 -> 2031-06-30
A101: Unit cost
A102: ='DNSP Inputs General'!B$45 -> Mercury Vapour 80W | D102: =SUM('Charges Summary'!D25,'Charges Summary'!D8) -> 46.23228543 | E102: =SUM('Charges Summary'!E25,'Charges Summary'!E8) -> 47.53195206 | F102: =SUM('Charges Summary'!F25,'Charges Summary'!F8) -> 48.86212886 | G102: =SUM('Charges Summary'!G25,'Charges Summary'!G8) -> 50.28644044 | H102: =SUM('Charges Summary'!H25,'Charges Summary'!H8) -> 51.68823998 | K102: =D102/'Charges Summary'!D$4 -> 45.10466872 | L102: =E102/'Charges Summary'!E$4 -> 45.24159625 | M102: =F102/'Charges Summary'!F$4 -> 45.37334408 | N102: =G102/'Charges Summary'!G$4 -> 45.55703314 | O102: =H102/'Charges Summary'!H$4 -> 45.68487252
A103: ='DNSP Inputs General'!B$46 -> HP Sodium 150W | D103: =SUM('Charges Summary'!D49,'Charges Summary'!D8) -> 71.47808127 | E103: =SUM('Charges Summary'!E49,'Charges Summary'!E8) -> 73.75222185 | F103: =SUM('Charges Summary'!F49,'Charges Summary'!F8) -> 76.16841587 | G103: =SUM('Charges Summary'!G49,'Charges Summary'!G8) -> 78.80367287 | H103: =SUM('Charges Summary'!H49,'Charges Summary'!H8) -> 81.52789468 | K103: =D103/'Charges Summary'!D$4 -> 69.73471344 | L103: =E103/'Charges Summary'!E$4 -> 70.1984265 | M103: =F103/'Charges Summary'!F$4 -> 70.72994611 | N103: =G103/'Charges Summary'!G$4 -> 71.39223825 | O103: =H103/'Charges Summary'!H$4 -> 72.05877928
A104: ='DNSP Inputs General'!B$47 -> HP Sodium 250W | D104: =SUM('Charges Summary'!D65,'Charges Summary'!D8) -> 72.85889514 | E104: =SUM('Charges Summary'!E65,'Charges Summary'!E8) -> 75.18468778 | F104: =SUM('Charges Summary'!F65,'Charges Summary'!F8) -> 77.65887751 | G104: =SUM('Charges Summary'!G65,'Charges Summary'!G8) -> 80.36006624 | H104: =SUM('Charges Summary'!H65,'Charges Summary'!H8) -> 83.17046991 | K104: =D104/'Charges Summary'!D$4 -> 71.08184892 | L104: =E104/'Charges Summary'!E$4 -> 71.56186821 | M104: =F104/'Charges Summary'!F$4 -> 72.11398791 | N104: =G104/'Charges Summary'!G$4 -> 72.80225383 | O104: =H104/'Charges Summary'!H$4 -> 73.51057643
A106: ='DNSP Inputs General'!B$62 -> T5 2X14W | D106: =SUM('Charges Summary'!D83,'Charges Summary'!D8) -> 36.09838897 | E106: =SUM('Charges Summary'!E83,'Charges Summary'!E8) -> 38.22910812 | F106: =SUM('Charges Summary'!F83,'Charges Summary'!F8) -> 41.50541493 | G106: =SUM('Charges Summary'!G83,'Charges Summary'!G8) -> 49.32031958 | H106: =SUM('Charges Summary'!H83,'Charges Summary'!H8) -> 37.48424109 | K106: =D106/'Charges Summary'!D$4 -> 35.21794046 | L106: =E106/'Charges Summary'!E$4 -> 36.38701546 | M106: =F106/'Charges Summary'!F$4 -> 38.54190386 | N106: =G106/'Charges Summary'!G$4 -> 44.68177533 | O106: =H106/'Charges Summary'!H$4 -> 33.13060721
A107: ='DNSP Inputs General'!B$63 -> T5 2X24W | D107: =SUM('Charges Summary'!D99,'Charges Summary'!D8) -> 41.44689109 | E107: =SUM('Charges Summary'!E99,'Charges Summary'!E8) -> 44.2911413 | F107: =SUM('Charges Summary'!F99,'Charges Summary'!F8) -> 48.89714707 | G107: =SUM('Charges Summary'!G99,'Charges Summary'!G8) -> 60.50230944 | H107: =SUM('Charges Summary'!H99,'Charges Summary'!H8) -> 41.68483495 | K107: =D107/'Charges Summary'!D$4 -> 40.43599131 | L107: =E107/'Charges Summary'!E$4 -> 42.15694591 | M107: =F107/'Charges Summary'!F$4 -> 45.40586197 | N107: =G107/'Charges Summary'!G$4 -> 54.81210625 | O107: =H107/'Charges Summary'!H$4 -> 36.8433201
A108: ='DNSP Inputs General'!B$64 -> LED 18W | D108: =SUM('Charges Summary'!D115,'Charges Summary'!D8) -> 13.34626937 | E108: =SUM('Charges Summary'!E115,'Charges Summary'!E8) -> 13.76339355 | F108: =SUM('Charges Summary'!F115,'Charges Summary'!F8) -> 14.1727733 | G108: =SUM('Charges Summary'!G115,'Charges Summary'!G8) -> 14.63519664 | H108: =SUM('Charges Summary'!H115,'Charges Summary'!H8) -> 15.06401771 | K108: =D108/'Charges Summary'!D$4 -> 13.02075061 | L108: =E108/'Charges Summary'!E$4 -> 13.10019612 | M108: =F108/'Charges Summary'!F$4 -> 13.16082894 | N108: =G108/'Charges Summary'!G$4 -> 13.25876583 | O108: =H108/'Charges Summary'!H$4 -> 13.31439664
A109: ='DNSP Inputs General'!B$65 -> LED 14W | D109: =SUM('Charges Summary'!D131,'Charges Summary'!D$8) -> 15.17397279 | E109: =SUM('Charges Summary'!E131,'Charges Summary'!E$8) -> 15.6450738 | F109: =SUM('Charges Summary'!F131,'Charges Summary'!F$8) -> 16.11200081 | G109: =SUM('Charges Summary'!G131,'Charges Summary'!G$8) -> 16.635889 | H109: =SUM('Charges Summary'!H131,'Charges Summary'!H$8) -> 17.12593418 | K109: =D109/'Charges Summary'!D$4 -> 14.80387589 | L109: =E109/'Charges Summary'!E$4 -> 14.89120648 | M109: =F109/'Charges Summary'!F$4 -> 14.96159446 | N109: =G109/'Charges Summary'!G$4 -> 15.07129437 | O109: =H109/'Charges Summary'!H$4 -> 15.13683035
A110: ='DNSP Inputs General'!B$66 -> LED 70W-125W (L1) | D110: =SUM('Charges Summary'!D147,'Charges Summary'!D$8) -> 22.5682038 | E110: =SUM('Charges Summary'!E147,'Charges Summary'!E$8) -> 23.29689323 | F110: =SUM('Charges Summary'!F147,'Charges Summary'!F$8) -> 24.04734792 | G110: =SUM('Charges Summary'!G147,'Charges Summary'!G$8) -> 24.88361595 | H110: =SUM('Charges Summary'!H147,'Charges Summary'!H$8) -> 25.67824584 | K110: =D110/'Charges Summary'!D$4 -> 22.0177598 | L110: =E110/'Charges Summary'!E$4 -> 22.17431836 | M110: =F110/'Charges Summary'!F$4 -> 22.33035311 | N110: =G110/'Charges Summary'!G$4 -> 22.54332792 | O110: =H110/'Charges Summary'!H$4 -> 22.69582768
A111: ='DNSP Inputs General'!B$67 -> LED 155W-250W (L2) | D111: =SUM('Charges Summary'!D163,'Charges Summary'!D$8) -> 22.5682038 | E111: =SUM('Charges Summary'!E163,'Charges Summary'!E$8) -> 23.29689323 | F111: =SUM('Charges Summary'!F163,'Charges Summary'!F$8) -> 24.04734792 | G111: =SUM('Charges Summary'!G163,'Charges Summary'!G$8) -> 24.88361595 | H111: =SUM('Charges Summary'!H163,'Charges Summary'!H$8) -> 25.67824584 | K111: =D111/'Charges Summary'!D$4 -> 22.0177598 | L111: =E111/'Charges Summary'!E$4 -> 22.17431836 | M111: =F111/'Charges Summary'!F$4 -> 22.33035311 | N111: =G111/'Charges Summary'!G$4 -> 22.54332792 | O111: =H111/'Charges Summary'!H$4 -> 22.69582768
A112: ='DNSP Inputs General'!B$68 -> LED 275W-400W (L4) | D112: =SUM('Charges Summary'!D179,'Charges Summary'!D$8) -> 22.5682038 | E112: =SUM('Charges Summary'!E179,'Charges Summary'!E$8) -> 23.29689323 | F112: =SUM('Charges Summary'!F179,'Charges Summary'!F$8) -> 24.04734792 | G112: =SUM('Charges Summary'!G179,'Charges Summary'!G$8) -> 24.88361595 | H112: =SUM('Charges Summary'!H179,'Charges Summary'!H$8) -> 25.67824584 | K112: =D112/'Charges Summary'!D$4 -> 22.0177598 | L112: =E112/'Charges Summary'!E$4 -> 22.17431836 | M112: =F112/'Charges Summary'!F$4 -> 22.33035311 | N112: =G112/'Charges Summary'!G$4 -> 22.54332792 | O112: =H112/'Charges Summary'!H$4 -> 22.69582768
A114: ='DNSP Inputs General'!B$44 -> Existing Lights
A115: ='DNSP Inputs General'!B$45 -> Mercury Vapour 80W | D115: =D102*'DNSP Inputs General'!V45 -> 154804.1845 | E115: =E102*'DNSP Inputs General'!W45 -> 159155.9883 | F115: =F102*'DNSP Inputs General'!X45 -> 163609.9523 | G115: =G102*'DNSP Inputs General'!Y45 -> 168379.1172 | H115: =H102*'DNSP Inputs General'!Z45 -> 173072.9027 | K115: =D115/'Charges Summary'!D$4 -> 151028.4727 | L115: =E115/'Charges Summary'!E$4 -> 151486.9609 | M115: =F115/'Charges Summary'!F$4 -> 151928.1053 | N115: =G115/'Charges Summary'!G$4 -> 152543.1698 | O115: =H115/'Charges Summary'!H$4 -> 152971.2272
A116: ='DNSP Inputs General'!B$46 -> HP Sodium 150W | D116: =D103*'DNSP Inputs General'!V46 -> 715102.4641 | E116: =E103*'DNSP Inputs General'!W46 -> 676366.2615 | F116: =F103*'DNSP Inputs General'!X46 -> 640314.2841 | G116: =G103*'DNSP Inputs General'!Y46 -> 607262.0836 | H116: =H103*'DNSP Inputs General'!Z46 -> 455239.1903 | K116: =D116/'Charges Summary'!D$4 -> 697660.9406 | L116: =E116/'Charges Summary'!E$4 -> 643775.1448 | M116: =F116/'Charges Summary'!F$4 -> 594595.467 | N116: =G116/'Charges Summary'!G$4 -> 550149.4762 | O116: =H116/'Charges Summary'!H$4 -> 402365.1102
A117: ='DNSP Inputs General'!B$47 -> HP Sodium 250W | D117: =D104*'DNSP Inputs General'!V47 -> 313661.0853 | E117: =E104*'DNSP Inputs General'!W47 -> 290305.3094 | F117: =F104*'DNSP Inputs General'!X47 -> 268838.855 | G117: =G104*'DNSP Inputs General'!Y47 -> 249360.3084 | H117: =H104*'DNSP Inputs General'!Z47 -> 173181.9516 | K117: =D117/'Charges Summary'!D$4 -> 306010.815 | L117: =E117/'Charges Summary'!E$4 -> 276316.7727 | M117: =F117/'Charges Summary'!F$4 -> 249643.6024 | N117: =G117/'Charges Summary'!G$4 -> 225908.1321 | O117: =H117/'Charges Summary'!H$4 -> 153067.6105
A118: ='DNSP Inputs General'!B$48 -> Mercury Vapour 50W | D118: =IF('DNSP Inputs General'!$C48='DNSP Inputs General'!$B$45,D$102,IF('DNSP Inputs General'!$C48='DNSP Inputs General'!$B$46,D$103,D$104))*'DNSP Inputs General'!$D48*'DNSP Inputs General'!V48 -> 0 | E118: =IF('DNSP Inputs General'!$C48='DNSP Inputs General'!$B$45,E$102,IF('DNSP Inputs General'!$C48='DNSP Inputs General'!$B$46,E$103,E$104))*'DNSP Inputs General'!$D48*'DNSP Inputs General'!W48 -> 0 | F118: =IF('DNSP Inputs General'!$C48='DNSP Inputs General'!$B$45,F$102,IF('DNSP Inputs General'!$C48='DNSP Inputs General'!$B$46,F$103,F$104))*'DNSP Inputs General'!$D48*'DNSP Inputs General'!X48 -> 0 | G118: =IF('DNSP Inputs General'!$C48='DNSP Inputs General'!$B$45,G$102,IF('DNSP Inputs General'!$C48='DNSP Inputs General'!$B$46,G$103,G$104))*'DNSP Inputs General'!$D48*'DNSP Inputs General'!Y48 -> 0 | H118: =IF('DNSP Inputs General'!$C48='DNSP Inputs General'!$B$45,H$102,IF('DNSP Inputs General'!$C48='DNSP Inputs General'!$B$46,H$103,H$104))*'DNSP Inputs General'!$D48*'DNSP Inputs General'!Z48 -> 0 | K118: =D118/'Charges Summary'!D$4 -> 0 | L118: =E118/'Charges Summary'!E$4 -> 0 | M118: =F118/'Charges Summary'!F$4 -> 0 | N118: =G118/'Charges Summary'!G$4 -> 0 | O118: =H118/'Charges Summary'!H$4 -> 0
A119: ='DNSP Inputs General'!B$49 -> Mercury Vapour 125W | D119: =IF('DNSP Inputs General'!$C49='DNSP Inputs General'!$B$45,D$102,IF('DNSP Inputs General'!$C49='DNSP Inputs General'!$B$46,D$103,D$104))*'DNSP Inputs General'!$D49*'DNSP Inputs General'!V49 -> 0 | E119: =IF('DNSP Inputs General'!$C49='DNSP Inputs General'!$B$45,E$102,IF('DNSP Inputs General'!$C49='DNSP Inputs General'!$B$46,E$103,E$104))*'DNSP Inputs General'!$D49*'DNSP Inputs General'!W49 -> 0 | F119: =IF('DNSP Inputs General'!$C49='DNSP Inputs General'!$B$45,F$102,IF('DNSP Inputs General'!$C49='DNSP Inputs General'!$B$46,F$103,F$104))*'DNSP Inputs General'!$D49*'DNSP Inputs General'!X49 -> 0 | G119: =IF('DNSP Inputs General'!$C49='DNSP Inputs General'!$B$45,G$102,IF('DNSP Inputs General'!$C49='DNSP Inputs General'!$B$46,G$103,G$104))*'DNSP Inputs General'!$D49*'DNSP Inputs General'!Y49 -> 0 | H119: =IF('DNSP Inputs General'!$C49='DNSP Inputs General'!$B$45,H$102,IF('DNSP Inputs General'!$C49='DNSP Inputs General'!$B$46,H$103,H$104))*'DNSP Inputs General'!$D49*'DNSP Inputs General'!Z49 -> 0 | K119: =D119/'Charges Summary'!D$4 -> 0 | L119: =E119/'Charges Summary'!E$4 -> 0 | M119: =F119/'Charges Summary'!F$4 -> 0 | N119: =G119/'Charges Summary'!G$4 -> 0 | O119: =H119/'Charges Summary'!H$4 -> 0
A120: ='DNSP Inputs General'!B$50 -> Mercury Vapour 250W | D120: =IF('DNSP Inputs General'!$C50='DNSP Inputs General'!$B$45,D$102,IF('DNSP Inputs General'!$C50='DNSP Inputs General'!$B$46,D$103,D$104))*'DNSP Inputs General'!$D50*'DNSP Inputs General'!V50 -> 0 | E120: =IF('DNSP Inputs General'!$C50='DNSP Inputs General'!$B$45,E$102,IF('DNSP Inputs General'!$C50='DNSP Inputs General'!$B$46,E$103,E$104))*'DNSP Inputs General'!$D50*'DNSP Inputs General'!W50 -> 0 | F120: =IF('DNSP Inputs General'!$C50='DNSP Inputs General'!$B$45,F$102,IF('DNSP Inputs General'!$C50='DNSP Inputs General'!$B$46,F$103,F$104))*'DNSP Inputs General'!$D50*'DNSP Inputs General'!X50 -> 0 | G120: =IF('DNSP Inputs General'!$C50='DNSP Inputs General'!$B$45,G$102,IF('DNSP Inputs General'!$C50='DNSP Inputs General'!$B$46,G$103,G$104))*'DNSP Inputs General'!$D50*'DNSP Inputs General'!Y50 -> 0 | H120: =IF('DNSP Inputs General'!$C50='DNSP Inputs General'!$B$45,H$102,IF('DNSP Inputs General'!$C50='DNSP Inputs General'!$B$46,H$103,H$104))*'DNSP Inputs General'!$D50*'DNSP Inputs General'!Z50 -> 0 | K120: =D120/'Charges Summary'!D$4 -> 0 | L120: =E120/'Charges Summary'!E$4 -> 0 | M120: =F120/'Charges Summary'!F$4 -> 0 | N120: =G120/'Charges Summary'!G$4 -> 0 | O120: =H120/'Charges Summary'!H$4 -> 0
A121: ='DNSP Inputs General'!B$51 -> Mercury Vapour 400W | D121: =IF('DNSP Inputs General'!$C51='DNSP Inputs General'!$B$45,D$102,IF('DNSP Inputs General'!$C51='DNSP Inputs General'!$B$46,D$103,D$104))*'DNSP Inputs General'!$D51*'DNSP Inputs General'!V51 -> 0 | E121: =IF('DNSP Inputs General'!$C51='DNSP Inputs General'!$B$45,E$102,IF('DNSP Inputs General'!$C51='DNSP Inputs General'!$B$46,E$103,E$104))*'DNSP Inputs General'!$D51*'DNSP Inputs General'!W51 -> 0 | F121: =IF('DNSP Inputs General'!$C51='DNSP Inputs General'!$B$45,F$102,IF('DNSP Inputs General'!$C51='DNSP Inputs General'!$B$46,F$103,F$104))*'DNSP Inputs General'!$D51*'DNSP Inputs General'!X51 -> 0 | G121: =IF('DNSP Inputs General'!$C51='DNSP Inputs General'!$B$45,G$102,IF('DNSP Inputs General'!$C51='DNSP Inputs General'!$B$46,G$103,G$104))*'DNSP Inputs General'!$D51*'DNSP Inputs General'!Y51 -> 0 | H121: =IF('DNSP Inputs General'!$C51='DNSP Inputs General'!$B$45,H$102,IF('DNSP Inputs General'!$C51='DNSP Inputs General'!$B$46,H$103,H$104))*'DNSP Inputs General'!$D51*'DNSP Inputs General'!Z51 -> 0 | K121: =D121/'Charges Summary'!D$4 -> 0 | L121: =E121/'Charges Summary'!E$4 -> 0 | M121: =F121/'Charges Summary'!F$4 -> 0 | N121: =G121/'Charges Summary'!G$4 -> 0 | O121: =H121/'Charges Summary'!H$4 -> 0
A122: ='DNSP Inputs General'!B$52 -> HP Sodium 100W | D122: =IF('DNSP Inputs General'!$C52='DNSP Inputs General'!$B$45,D$102,IF('DNSP Inputs General'!$C52='DNSP Inputs General'!$B$46,D$103,D$104))*'DNSP Inputs General'!$D52*'DNSP Inputs General'!V52 -> 131701.2239 | E122: =IF('DNSP Inputs General'!$C52='DNSP Inputs General'!$B$45,E$102,IF('DNSP Inputs General'!$C52='DNSP Inputs General'!$B$46,E$103,E$104))*'DNSP Inputs General'!$D52*'DNSP Inputs General'!W52 -> 118904.9915 | F122: =IF('DNSP Inputs General'!$C52='DNSP Inputs General'!$B$45,F$102,IF('DNSP Inputs General'!$C52='DNSP Inputs General'!$B$46,F$103,F$104))*'DNSP Inputs General'!$D52*'DNSP Inputs General'!X52 -> 105257.5147 | G122: =IF('DNSP Inputs General'!$C52='DNSP Inputs General'!$B$45,G$102,IF('DNSP Inputs General'!$C52='DNSP Inputs General'!$B$46,G$103,G$104))*'DNSP Inputs General'!$D52*'DNSP Inputs General'!Y52 -> 90749.32463 | H122: =IF('DNSP Inputs General'!$C52='DNSP Inputs General'!$B$45,H$102,IF('DNSP Inputs General'!$C52='DNSP Inputs General'!$B$46,H$103,H$104))*'DNSP Inputs General'!$D52*'DNSP Inputs General'!Z52 -> 75109.20354 | K122: =D122/'Charges Summary'!D$4 -> 128488.9989 | L122: =E122/'Charges Summary'!E$4 -> 113175.4827 | M122: =F122/'Charges Summary'!F$4 -> 97742.06617 | N122: =G122/'Charges Summary'!G$4 -> 82214.40917 | O122: =H122/'Charges Summary'!H$4 -> 66385.59158
A123: ='DNSP Inputs General'!B53 -> HP Sodium 400W | D123: =IF('DNSP Inputs General'!$C53='DNSP Inputs General'!$B$45,D$102,IF('DNSP Inputs General'!$C53='DNSP Inputs General'!$B$46,D$103,D$104))*'DNSP Inputs General'!$D53*'DNSP Inputs General'!V53 -> 12139.26338 | E123: =IF('DNSP Inputs General'!$C53='DNSP Inputs General'!$B$45,E$102,IF('DNSP Inputs General'!$C53='DNSP Inputs General'!$B$46,E$103,E$104))*'DNSP Inputs General'!$D53*'DNSP Inputs General'!W53 -> 10960.92502 | F123: =IF('DNSP Inputs General'!$C53='DNSP Inputs General'!$B$45,F$102,IF('DNSP Inputs General'!$C53='DNSP Inputs General'!$B$46,F$103,F$104))*'DNSP Inputs General'!$D53*'DNSP Inputs General'!X53 -> 9704.253334 | G123: =IF('DNSP Inputs General'!$C53='DNSP Inputs General'!$B$45,G$102,IF('DNSP Inputs General'!$C53='DNSP Inputs General'!$B$46,G$103,G$104))*'DNSP Inputs General'!$D53*'DNSP Inputs General'!Y53 -> 8368.161565 | H123: =IF('DNSP Inputs General'!$C53='DNSP Inputs General'!$B$45,H$102,IF('DNSP Inputs General'!$C53='DNSP Inputs General'!$B$46,H$103,H$104))*'DNSP Inputs General'!$D53*'DNSP Inputs General'!Z53 -> 6928.654613 | K123: =D123/'Charges Summary'!D$4 -> 11843.18379 | L123: =E123/'Charges Summary'!E$4 -> 10432.76623 | M123: =F123/'Charges Summary'!F$4 -> 9011.363929 | N123: =G123/'Charges Summary'!G$4 -> 7581.141365 | O123: =H123/'Charges Summary'!H$4 -> 6123.921087
A124: ='DNSP Inputs General'!B54 -> Metal Halide 70W | D124: =IF('DNSP Inputs General'!$C54='DNSP Inputs General'!$B$45,D$102,IF('DNSP Inputs General'!$C54='DNSP Inputs General'!$B$46,D$103,D$104))*'DNSP Inputs General'!$D54*'DNSP Inputs General'!V54 -> 0 | E124: =IF('DNSP Inputs General'!$C54='DNSP Inputs General'!$B$45,E$102,IF('DNSP Inputs General'!$C54='DNSP Inputs General'!$B$46,E$103,E$104))*'DNSP Inputs General'!$D54*'DNSP Inputs General'!W54 -> 0 | F124: =IF('DNSP Inputs General'!$C54='DNSP Inputs General'!$B$45,F$102,IF('DNSP Inputs General'!$C54='DNSP Inputs General'!$B$46,F$103,F$104))*'DNSP Inputs General'!$D54*'DNSP Inputs General'!X54 -> 0 | G124: =IF('DNSP Inputs General'!$C54='DNSP Inputs General'!$B$45,G$102,IF('DNSP Inputs General'!$C54='DNSP Inputs General'!$B$46,G$103,G$104))*'DNSP Inputs General'!$D54*'DNSP Inputs General'!Y54 -> 0 | H124: =IF('DNSP Inputs General'!$C54='DNSP Inputs General'!$B$45,H$102,IF('DNSP Inputs General'!$C54='DNSP Inputs General'!$B$46,H$103,H$104))*'DNSP Inputs General'!$D54*'DNSP Inputs General'!Z54 -> 0 | K124: =D124/'Charges Summary'!D$4 -> 0 | L124: =E124/'Charges Summary'!E$4 -> 0 | M124: =F124/'Charges Summary'!F$4 -> 0 | N124: =G124/'Charges Summary'!G$4 -> 0 | O124: =H124/'Charges Summary'!H$4 -> 0
A125: ='DNSP Inputs General'!B55 -> Metal Halide 100W | D125: =IF('DNSP Inputs General'!$C55='DNSP Inputs General'!$B$45,D$102,IF('DNSP Inputs General'!$C55='DNSP Inputs General'!$B$46,D$103,D$104))*'DNSP Inputs General'!$D55*'DNSP Inputs General'!V55 -> 0 | E125: =IF('DNSP Inputs General'!$C55='DNSP Inputs General'!$B$45,E$102,IF('DNSP Inputs General'!$C55='DNSP Inputs General'!$B$46,E$103,E$104))*'DNSP Inputs General'!$D55*'DNSP Inputs General'!W55 -> 0 | F125: =IF('DNSP Inputs General'!$C55='DNSP Inputs General'!$B$45,F$102,IF('DNSP Inputs General'!$C55='DNSP Inputs General'!$B$46,F$103,F$104))*'DNSP Inputs General'!$D55*'DNSP Inputs General'!X55 -> 0 | G125: =IF('DNSP Inputs General'!$C55='DNSP Inputs General'!$B$45,G$102,IF('DNSP Inputs General'!$C55='DNSP Inputs General'!$B$46,G$103,G$104))*'DNSP Inputs General'!$D55*'DNSP Inputs General'!Y55 -> 0 | H125: =IF('DNSP Inputs General'!$C55='DNSP Inputs General'!$B$45,H$102,IF('DNSP Inputs General'!$C55='DNSP Inputs General'!$B$46,H$103,H$104))*'DNSP Inputs General'!$D55*'DNSP Inputs General'!Z55 -> 0 | K125: =D125/'Charges Summary'!D$4 -> 0 | L125: =E125/'Charges Summary'!E$4 -> 0 | M125: =F125/'Charges Summary'!F$4 -> 0 | N125: =G125/'Charges Summary'!G$4 -> 0 | O125: =H125/'Charges Summary'!H$4 -> 0
A126: ='DNSP Inputs General'!B56 -> Metal Halide 150W | D126: =IF('DNSP Inputs General'!$C56='DNSP Inputs General'!$B$45,D$102,IF('DNSP Inputs General'!$C56='DNSP Inputs General'!$B$46,D$103,D$104))*'DNSP Inputs General'!$D56*'DNSP Inputs General'!V56 -> 0 | E126: =IF('DNSP Inputs General'!$C56='DNSP Inputs General'!$B$45,E$102,IF('DNSP Inputs General'!$C56='DNSP Inputs General'!$B$46,E$103,E$104))*'DNSP Inputs General'!$D56*'DNSP Inputs General'!W56 -> 0 | F126: =IF('DNSP Inputs General'!$C56='DNSP Inputs General'!$B$45,F$102,IF('DNSP Inputs General'!$C56='DNSP Inputs General'!$B$46,F$103,F$104))*'DNSP Inputs General'!$D56*'DNSP Inputs General'!X56 -> 0 | G126: =IF('DNSP Inputs General'!$C56='DNSP Inputs General'!$B$45,G$102,IF('DNSP Inputs General'!$C56='DNSP Inputs General'!$B$46,G$103,G$104))*'DNSP Inputs General'!$D56*'DNSP Inputs General'!Y56 -> 0 | H126: =IF('DNSP Inputs General'!$C56='DNSP Inputs General'!$B$45,H$102,IF('DNSP Inputs General'!$C56='DNSP Inputs General'!$B$46,H$103,H$104))*'DNSP Inputs General'!$D56*'DNSP Inputs General'!Z56 -> 0 | K126: =D126/'Charges Summary'!D$4 -> 0 | L126: =E126/'Charges Summary'!E$4 -> 0 | M126: =F126/'Charges Summary'!F$4 -> 0 | N126: =G126/'Charges Summary'!G$4 -> 0 | O126: =H126/'Charges Summary'!H$4 -> 0
A127: ='DNSP Inputs General'!B57 -> HP Sodium 50W | D127: =IF('DNSP Inputs General'!$C57='DNSP Inputs General'!$B$45,D$102,IF('DNSP Inputs General'!$C57='DNSP Inputs General'!$B$46,D$103,D$104))*'DNSP Inputs General'!$D57*'DNSP Inputs General'!V57 -> 0 | E127: =IF('DNSP Inputs General'!$C57='DNSP Inputs General'!$B$45,E$102,IF('DNSP Inputs General'!$C57='DNSP Inputs General'!$B$46,E$103,E$104))*'DNSP Inputs General'!$D57*'DNSP Inputs General'!W57 -> 0 | F127: =IF('DNSP Inputs General'!$C57='DNSP Inputs General'!$B$45,F$102,IF('DNSP Inputs General'!$C57='DNSP Inputs General'!$B$46,F$103,F$104))*'DNSP Inputs General'!$D57*'DNSP Inputs General'!X57 -> 0 | G127: =IF('DNSP Inputs General'!$C57='DNSP Inputs General'!$B$45,G$102,IF('DNSP Inputs General'!$C57='DNSP Inputs General'!$B$46,G$103,G$104))*'DNSP Inputs General'!$D57*'DNSP Inputs General'!Y57 -> 0 | H127: =IF('DNSP Inputs General'!$C57='DNSP Inputs General'!$B$45,H$102,IF('DNSP Inputs General'!$C57='DNSP Inputs General'!$B$46,H$103,H$104))*'DNSP Inputs General'!$D57*'DNSP Inputs General'!Z57 -> 0 | K127: =D127/'Charges Summary'!D$4 -> 0 | L127: =E127/'Charges Summary'!E$4 -> 0 | M127: =F127/'Charges Summary'!F$4 -> 0 | N127: =G127/'Charges Summary'!G$4 -> 0 | O127: =H127/'Charges Summary'!H$4 -> 0
A139: ='DNSP Inputs General'!B$61 -> Energy Efficient Lights
A140: ='DNSP Inputs General'!B$62 -> T5 2X14W | D140: =SUM('Charges Summary'!D83,'Charges Summary'!D8)*'DNSP Inputs General'!$D62*'DNSP Inputs General'!V62 -> 387046.9265 | E140: =SUM('Charges Summary'!E83,'Charges Summary'!E8)*'DNSP Inputs General'!$D62*'DNSP Inputs General'!W62 -> 307438.4875 | F140: =SUM('Charges Summary'!F83,'Charges Summary'!F8)*'DNSP Inputs General'!$D62*'DNSP Inputs General'!X62 -> 222552.0349 | G140: =SUM('Charges Summary'!G83,'Charges Summary'!G8)*'DNSP Inputs General'!$D62*'DNSP Inputs General'!Y62 -> 132178.4565 | H140: =SUM('Charges Summary'!H83,'Charges Summary'!H8)*'DNSP Inputs General'!$D62*'DNSP Inputs General'!Z62 -> 37.48424109 | K140: =D140/'Charges Summary'!D$4 -> 377606.7576 | L140: =E140/'Charges Summary'!E$4 -> 292624.3783 | M140: =F140/'Charges Summary'!F$4 -> 206661.6885 | N140: =G140/'Charges Summary'!G$4 -> 119747.1579 | O140: =H140/'Charges Summary'!H$4 -> 33.13060721
A141: ='DNSP Inputs General'!B63 -> T5 2X24W | D141: =SUM('Charges Summary'!D99,'Charges Summary'!D8)*'DNSP Inputs General'!$D63*'DNSP Inputs General'!V63 -> 4144.689109 | E141: =SUM('Charges Summary'!E99,'Charges Summary'!E8)*'DNSP Inputs General'!$D63*'DNSP Inputs General'!W63 -> 3321.835598 | F141: =SUM('Charges Summary'!F99,'Charges Summary'!F8)*'DNSP Inputs General'!$D63*'DNSP Inputs General'!X63 -> 2444.857354 | G141: =SUM('Charges Summary'!G99,'Charges Summary'!G8)*'DNSP Inputs General'!$D63*'DNSP Inputs General'!Y63 -> 1512.557736 | H141: =SUM('Charges Summary'!H99,'Charges Summary'!H8)*'DNSP Inputs General'!$D63*'DNSP Inputs General'!Z63 -> 0 | K141: =D141/'Charges Summary'!D$4 -> 4043.599131 | L141: =E141/'Charges Summary'!E$4 -> 3161.770944 | M141: =F141/'Charges Summary'!F$4 -> 2270.293098 | N141: =G141/'Charges Summary'!G$4 -> 1370.302656 | O141: =H141/'Charges Summary'!H$4 -> 0
A142: ='DNSP Inputs General'!B64 -> LED 18W | D142: =SUM('Charges Summary'!D115,'Charges Summary'!D8)*'DNSP Inputs General'!$D64*'DNSP Inputs General'!V64 -> 838547.7802 | E142: =SUM('Charges Summary'!E115,'Charges Summary'!E8)*'DNSP Inputs General'!$D64*'DNSP Inputs General'!W64 -> 945649.95 | F142: =SUM('Charges Summary'!F115,'Charges Summary'!F8)*'DNSP Inputs General'!$D64*'DNSP Inputs General'!X64 -> 1057699.599 | G142: =SUM('Charges Summary'!G115,'Charges Summary'!G8)*'DNSP Inputs General'!$D64*'DNSP Inputs General'!Y64 -> 1178179.052 | H142: =SUM('Charges Summary'!H115,'Charges Summary'!H8)*'DNSP Inputs General'!$D64*'DNSP Inputs General'!Z64 -> 1359558.234 | K142: =D142/'Charges Summary'!D$4 -> 818095.3953 | L142: =E142/'Charges Summary'!E$4 -> 900083.2362 | M142: =F142/'Charges Summary'!F$4 -> 982179.225 | N142: =G142/'Charges Summary'!G$4 -> 1067372.072 | O142: =H142/'Charges Summary'!H$4 -> 1201651.374
A143: ='DNSP Inputs General'!B65 -> LED 14W | D143: =SUM('Charges Summary'!D131,'Charges Summary'!D$8)*'DNSP Inputs General'!$D65*'DNSP Inputs General'!V65 -> 105540.7955 | E143: =SUM('Charges Summary'!E131,'Charges Summary'!E$8)*'DNSP Inputs General'!$D65*'DNSP Inputs General'!W65 -> 111864.3732 | F143: =SUM('Charges Summary'!F131,'Charges Summary'!F$8)*'DNSP Inputs General'!$D65*'DNSP Inputs General'!X65 -> 118428.6468 | G143: =SUM('Charges Summary'!G131,'Charges Summary'!G$8)*'DNSP Inputs General'!$D65*'DNSP Inputs General'!Y65 -> 125703.2251 | H143: =SUM('Charges Summary'!H131,'Charges Summary'!H$8)*'DNSP Inputs General'!$D65*'DNSP Inputs General'!Z65 -> 133029.4488 | K143: =D143/'Charges Summary'!D$4 -> 102966.6298 | L143: =E143/'Charges Summary'!E$4 -> 106474.1208 | M143: =F143/'Charges Summary'!F$4 -> 109972.7717 | N143: =G143/'Charges Summary'!G$4 -> 113880.9179 | O143: =H143/'Charges Summary'!H$4 -> 117578.6487
A144: ='DNSP Inputs General'!B66 -> LED 70W-125W (L1) | D144: =SUM('Charges Summary'!D147,'Charges Summary'!D$8)*'DNSP Inputs General'!$D66*'DNSP Inputs General'!V66 -> 230920.1502 | E144: =SUM('Charges Summary'!E147,'Charges Summary'!E$8)*'DNSP Inputs General'!$D66*'DNSP Inputs General'!W66 -> 259297.081 | F144: =SUM('Charges Summary'!F147,'Charges Summary'!F$8)*'DNSP Inputs General'!$D66*'DNSP Inputs General'!X66 -> 289616.8054 | G144: =SUM('Charges Summary'!G147,'Charges Summary'!G$8)*'DNSP Inputs General'!$D66*'DNSP Inputs General'!Y66 -> 322817.8761 | H144: =SUM('Charges Summary'!H147,'Charges Summary'!H$8)*'DNSP Inputs General'!$D66*'DNSP Inputs General'!Z66 -> 357773.5775 | K144: =D144/'Charges Summary'!D$4 -> 225287.9514 | L144: =E144/'Charges Summary'!E$4 -> 246802.6946 | M144: =F144/'Charges Summary'!F$4 -> 268937.9949 | N144: =G144/'Charges Summary'!G$4 -> 292457.063 | O144: =H144/'Charges Summary'!H$4 -> 316219.7105
A145: ='DNSP Inputs General'!B67 -> LED 155W-250W (L2) | D145: =SUM('Charges Summary'!D163,'Charges Summary'!D$8)*'DNSP Inputs General'!$D67*'DNSP Inputs General'!V67 -> 185550.7495 | E145: =SUM('Charges Summary'!E163,'Charges Summary'!E$8)*'DNSP Inputs General'!$D67*'DNSP Inputs General'!W67 -> 232578.2367 | F145: =SUM('Charges Summary'!F163,'Charges Summary'!F$8)*'DNSP Inputs General'!$D67*'DNSP Inputs General'!X67 -> 281759.192 | G145: =SUM('Charges Summary'!G163,'Charges Summary'!G$8)*'DNSP Inputs General'!$D67*'DNSP Inputs General'!Y67 -> 334009.542 | H145: =SUM('Charges Summary'!H163,'Charges Summary'!H$8)*'DNSP Inputs General'!$D67*'DNSP Inputs General'!Z67 -> 391478.2597 | K145: =D145/'Charges Summary'!D$4 -> 181025.1215 | L145: =E145/'Charges Summary'!E$4 -> 221371.3139 | M145: =F145/'Charges Summary'!F$4 -> 261641.4197 | N145: =G145/'Charges Summary'!G$4 -> 302596.1599 | O145: =H145/'Charges Summary'!H$4 -> 346009.7383
A146: ='DNSP Inputs General'!B68 -> LED 275W-400W (L4) | D146: =SUM('Charges Summary'!D179,'Charges Summary'!D$8)*'DNSP Inputs General'!$D68*'DNSP Inputs General'!V68 -> 3881.258241 | E146: =SUM('Charges Summary'!E179,'Charges Summary'!E$8)*'DNSP Inputs General'!$D68*'DNSP Inputs General'!W68 -> 4801.288221 | F146: =SUM('Charges Summary'!F179,'Charges Summary'!F$8)*'DNSP Inputs General'!$D68*'DNSP Inputs General'!X68 -> 5634.168539 | G146: =SUM('Charges Summary'!G179,'Charges Summary'!G$8)*'DNSP Inputs General'!$D68*'DNSP Inputs General'!Y68 -> 6385.012754 | H146: =SUM('Charges Summary'!H179,'Charges Summary'!H$8)*'DNSP Inputs General'!$D68*'DNSP Inputs General'!Z68 -> 7637.798587 | K146: =D146/'Charges Summary'!D$4 -> 3786.593406 | L146: =E146/'Charges Summary'!E$4 -> 4569.935249 | M146: =F146/'Charges Summary'!F$4 -> 5231.885586 | N146: =G146/'Charges Summary'!G$4 -> 5784.506422 | O146: =H146/'Charges Summary'!H$4 -> 6750.701029
A147: ='DNSP Inputs General'!B69 -> Compact Fluorescent 32W | D147: =IF('DNSP Inputs General'!$C69='DNSP Inputs General'!$B$62,D$106,D$107)*'DNSP Inputs General'!$D69*'DNSP Inputs General'!V69 -> 54632.44435 | E147: =IF('DNSP Inputs General'!$C69='DNSP Inputs General'!$B$62,E$106,E$107)*'DNSP Inputs General'!$D69*'DNSP Inputs General'!W69 -> 43392.85662 | F147: =IF('DNSP Inputs General'!$C69='DNSP Inputs General'!$B$62,F$106,F$107)*'DNSP Inputs General'!$D69*'DNSP Inputs General'!X69 -> 33651.21888 | G147: =IF('DNSP Inputs General'!$C69='DNSP Inputs General'!$B$62,G$106,G$107)*'DNSP Inputs General'!$D69*'DNSP Inputs General'!Y69 -> 26658.19022 | H147: =IF('DNSP Inputs General'!$C69='DNSP Inputs General'!$B$62,H$106,H$107)*'DNSP Inputs General'!$D69*'DNSP Inputs General'!Z69 -> 20260.65601 | K147: =D147/'Charges Summary'!D$4 -> 53299.94571 | L147: =E147/'Charges Summary'!E$4 -> 41301.94562 | M147: =F147/'Charges Summary'!F$4 -> 31248.50203 | N147: =G147/'Charges Summary'!G$4 -> 24151.00462 | O147: =H147/'Charges Summary'!H$4 -> 17907.46768
A148: ='DNSP Inputs General'!B70 -> Compact Fluorescent 42W | D148: =IF('DNSP Inputs General'!$C70='DNSP Inputs General'!$B$62,D$106,D$107)*'DNSP Inputs General'!$D70*'DNSP Inputs General'!V70 -> 25084.47503 | E148: =IF('DNSP Inputs General'!$C70='DNSP Inputs General'!$B$62,E$106,E$107)*'DNSP Inputs General'!$D70*'DNSP Inputs General'!W70 -> 0.003362670168 | F148: =IF('DNSP Inputs General'!$C70='DNSP Inputs General'!$B$62,F$106,F$107)*'DNSP Inputs General'!$D70*'DNSP Inputs General'!X70 -> 0.003650857357 | G148: =IF('DNSP Inputs General'!$C70='DNSP Inputs General'!$B$62,G$106,G$107)*'DNSP Inputs General'!$D70*'DNSP Inputs General'!Y70 -> 0.004338264101 | H148: =IF('DNSP Inputs General'!$C70='DNSP Inputs General'!$B$62,H$106,H$107)*'DNSP Inputs General'!$D70*'DNSP Inputs General'!Z70 -> 0.003297150928 | K148: =D148/'Charges Summary'!D$4 -> 24472.65857 | L148: =E148/'Charges Summary'!E$4 -> 0.003200637876 | M148: =F148/'Charges Summary'!F$4 -> 0.003390183991 | N148: =G148/'Charges Summary'!G$4 -> 0.003930253159 | O148: =H148/'Charges Summary'!H$4 -> 0.002914200984
A149: ='DNSP Inputs General'!B71 -> Smart lighting L1 | D149: =SUM('Charges Summary'!D195,'Charges Summary'!D$8)*'DNSP Inputs General'!$D71*'DNSP Inputs General'!V71 -> 0 | E149: =SUM('Charges Summary'!E195,'Charges Summary'!E$8)*'DNSP Inputs General'!$D71*'DNSP Inputs General'!W71 -> 0 | F149: =SUM('Charges Summary'!F195,'Charges Summary'!F$8)*'DNSP Inputs General'!$D71*'DNSP Inputs General'!X71 -> 0 | G149: =SUM('Charges Summary'!G195,'Charges Summary'!G$8)*'DNSP Inputs General'!$D71*'DNSP Inputs General'!Y71 -> 0 | H149: =SUM('Charges Summary'!H195,'Charges Summary'!H$8)*'DNSP Inputs General'!$D71*'DNSP Inputs General'!Z71 -> 0 | K149: =D149/'Charges Summary'!D$4 -> 0 | L149: =E149/'Charges Summary'!E$4 -> 0 | M149: =F149/'Charges Summary'!F$4 -> 0 | N149: =G149/'Charges Summary'!G$4 -> 0 | O149: =H149/'Charges Summary'!H$4 -> 0
A150: ='DNSP Inputs General'!B72 -> Smart lighting L2 | D150: =SUM('Charges Summary'!D211,'Charges Summary'!D$8)*'DNSP Inputs General'!$D72*'DNSP Inputs General'!V72 -> 0 | E150: =SUM('Charges Summary'!E211,'Charges Summary'!E$8)*'DNSP Inputs General'!$D72*'DNSP Inputs General'!W72 -> 0 | F150: =SUM('Charges Summary'!F211,'Charges Summary'!F$8)*'DNSP Inputs General'!$D72*'DNSP Inputs General'!X72 -> 0 | G150: =SUM('Charges Summary'!G211,'Charges Summary'!G$8)*'DNSP Inputs General'!$D72*'DNSP Inputs General'!Y72 -> 0 | H150: =SUM('Charges Summary'!H211,'Charges Summary'!H$8)*'DNSP Inputs General'!$D72*'DNSP Inputs General'!Z72 -> 0 | K150: =D150/'Charges Summary'!D$4 -> 0 | L150: =E150/'Charges Summary'!E$4 -> 0 | M150: =F150/'Charges Summary'!F$4 -> 0 | N150: =G150/'Charges Summary'!G$4 -> 0 | O150: =H150/'Charges Summary'!H$4 -> 0
A151: ='DNSP Inputs General'!B73 -> Smart lighting L4 | D151: =SUM('Charges Summary'!D227,'Charges Summary'!D$8)*'DNSP Inputs General'!$D73*'DNSP Inputs General'!V73 -> 0 | E151: =SUM('Charges Summary'!E227,'Charges Summary'!E$8)*'DNSP Inputs General'!$D73*'DNSP Inputs General'!W73 -> 0 | F151: =SUM('Charges Summary'!F227,'Charges Summary'!F$8)*'DNSP Inputs General'!$D73*'DNSP Inputs General'!X73 -> 0 | G151: =SUM('Charges Summary'!G227,'Charges Summary'!G$8)*'DNSP Inputs General'!$D73*'DNSP Inputs General'!Y73 -> 0 | H151: =SUM('Charges Summary'!H227,'Charges Summary'!H$8)*'DNSP Inputs General'!$D73*'DNSP Inputs General'!Z73 -> 0 | K151: =D151/'Charges Summary'!D$4 -> 0 | L151: =E151/'Charges Summary'!E$4 -> 0 | M151: =F151/'Charges Summary'!F$4 -> 0 | N151: =G151/'Charges Summary'!G$4 -> 0 | O151: =H151/'Charges Summary'!H$4 -> 0
A153: Total O & M | D153: =SUM(D115:D151) -> 3162757.49 | E153: =SUM(E115:E151) -> 3164037.588 | F153: =SUM(F115:F151) -> 3199511.386 | G153: =SUM(G115:G151) -> 3251562.912 | H153: =SUM(H115:H151) -> 3153307.365 | K153: =SUM(K115:K151) -> 3085617.063 | L153: =SUM(L115:L151) -> 3011576.526 | M153: =SUM(M115:M151) -> 2971064.389 | N153: =SUM(N115:N151) -> 2945755.517 | O153: =SUM(O115:O151) -> 2787064.234
A156: Public Lighting - Capital Charge | D156: Capital Charge - $Nominal | K156: Capital Charge - $Real Jun 2026
D157: =D$2 -> 2027-06-30 | E157: =E$2 -> 2028-06-30 | F157: =F$2 -> 2029-06-30 | G157: =G$2 -> 2030-06-30 | H157: =H$2 -> 2031-06-30 | K157: =K$2 -> 2027-06-30 | L157: =L$2 -> 2028-06-30 | M157: =M$2 -> 2029-06-30 | N157: =N$2 -> 2030-06-30 | O157: =O$2 -> 2031-06-30
A159: Unit cost
A160: ='DNSP Inputs General'!B$45 -> Mercury Vapour 80W | D160: =SUM('Charges Summary'!D27,'Charges Summary'!D11) -> 86.00751658 | E160: =SUM('Charges Summary'!E27,'Charges Summary'!E11) -> 89.97435784 | F160: =SUM('Charges Summary'!F27,'Charges Summary'!F11) -> 93.5844416 | G160: =SUM('Charges Summary'!G27,'Charges Summary'!G11) -> 97.32865327 | H160: =SUM('Charges Summary'!H27,'Charges Summary'!H11) -> 113.4149716 | K160: =D160/'Charges Summary'!D$4 -> 83.90977228 | L160: =E160/'Charges Summary'!E$4 -> 85.63888908 | M160: =F160/'Charges Summary'!F$4 -> 86.90245734 | N160: =G160/'Charges Summary'!G$4 -> 88.17495619 | O160: =H160/'Charges Summary'!H$4 -> 100.2423089
A161: ='DNSP Inputs General'!B$46 -> HP Sodium 150W | D161: =SUM('Charges Summary'!D51,'Charges Summary'!D11) -> 84.98784004 | E161: =SUM('Charges Summary'!E51,'Charges Summary'!E11) -> 88.90634146 | F161: =SUM('Charges Summary'!F51,'Charges Summary'!F11) -> 92.47230414 | G161: =SUM('Charges Summary'!G51,'Charges Summary'!G11) -> 96.17090753 | H161: =SUM('Charges Summary'!H51,'Charges Summary'!H11) -> 112.0323952 | K161: =D161/'Charges Summary'!D$4 -> 82.91496589 | L161: =E161/'Charges Summary'!E$4 -> 84.62233572 | M161: =F161/'Charges Summary'!F$4 -> 85.86972715 | N161: =G161/'Charges Summary'!G$4 -> 87.12609569 | O161: =H161/'Charges Summary'!H$4 -> 99.02031288
A162: ='DNSP Inputs General'!B$47 -> HP Sodium 250W | D162: =SUM('Charges Summary'!D67,'Charges Summary'!D11) -> 86.8210752 | E162: =SUM('Charges Summary'!E67,'Charges Summary'!E11) -> 90.82648484 | F162: =SUM('Charges Summary'!F67,'Charges Summary'!F11) -> 94.47177104 | G162: =SUM('Charges Summary'!G67,'Charges Summary'!G11) -> 98.2523717 | H162: =SUM('Charges Summary'!H67,'Charges Summary'!H11) -> 114.5180733 | K162: =D162/'Charges Summary'!D$4 -> 84.703488 | L162: =E162/'Charges Summary'!E$4 -> 86.44995583 | M162: =F162/'Charges Summary'!F$4 -> 87.72643093 | N162: =G162/'Charges Summary'!G$4 -> 89.0117995 | O162: =H162/'Charges Summary'!H$4 -> 101.2172901
A164: ='DNSP Inputs General'!B$62 -> T5 2X14W | D164: =SUM('Charges Summary'!D85,'Charges Summary'!D11) -> 21.75306207 | E164: =SUM('Charges Summary'!E85,'Charges Summary'!E11) -> 23.24362866 | F164: =SUM('Charges Summary'!F85,'Charges Summary'!F11) -> 24.57535765 | G164: =SUM('Charges Summary'!G85,'Charges Summary'!G11) -> 25.89245512 | H164: =SUM('Charges Summary'!H85,'Charges Summary'!H11) -> 26.79768636 | K164: =D164/'Charges Summary'!D$4 -> 21.22249958 | L164: =E164/'Charges Summary'!E$4 -> 22.12362038 | M164: =F164/'Charges Summary'!F$4 -> 22.82066264 | N164: =G164/'Charges Summary'!G$4 -> 23.45728641 | O164: =H164/'Charges Summary'!H$4 -> 23.68524999
A165: ='DNSP Inputs General'!B$63 -> T5 2X24W | D165: =SUM('Charges Summary'!D101,'Charges Summary'!D11) -> 22.4190166 | E165: =SUM('Charges Summary'!E101,'Charges Summary'!E11) -> 23.99540333 | F165: =SUM('Charges Summary'!F101,'Charges Summary'!F11) -> 25.40373095 | G165: =SUM('Charges Summary'!G101,'Charges Summary'!G11) -> 26.79315799 | H165: =SUM('Charges Summary'!H101,'Charges Summary'!H11) -> 16.80773808 | K165: =D165/'Charges Summary'!D$4 -> 21.87221131 | L165: =E165/'Charges Summary'!E$4 -> 22.83917033 | M165: =F165/'Charges Summary'!F$4 -> 23.5898896 | N165: =G165/'Charges Summary'!G$4 -> 24.27327876 | O165: =H165/'Charges Summary'!H$4 -> 14.85559137
A166: ='DNSP Inputs General'!B$64 -> LED 18W | D166: =SUM('Charges Summary'!D117,'Charges Summary'!D11) -> 23.7968482 | E166: =SUM('Charges Summary'!E117,'Charges Summary'!E11) -> 25.55079315 | F166: =SUM('Charges Summary'!F117,'Charges Summary'!F11) -> 27.1176001 | G166: =SUM('Charges Summary'!G117,'Charges Summary'!G11) -> 28.65667395 | H166: =SUM('Charges Summary'!H117,'Charges Summary'!H11) -> 29.71643457 | K166: =D166/'Charges Summary'!D$4 -> 23.21643727 | L166: =E166/'Charges Summary'!E$4 -> 24.31961276 | M166: =F166/'Charges Summary'!F$4 -> 25.18138748 | N166: =G166/'Charges Summary'!G$4 -> 25.96153224 | O166: =H166/'Charges Summary'!H$4 -> 26.26499811
A167: ='DNSP Inputs General'!B$65 -> LED 14W | D167: =SUM('Charges Summary'!D133,'Charges Summary'!D$11) -> 29.51702663 | E167: =SUM('Charges Summary'!E133,'Charges Summary'!E$11) -> 32.00811876 | F167: =SUM('Charges Summary'!F133,'Charges Summary'!F$11) -> 34.23286531 | G167: =SUM('Charges Summary'!G133,'Charges Summary'!G$11) -> 36.3932099 | H167: =SUM('Charges Summary'!H133,'Charges Summary'!H$11) -> 37.88546961 | K167: =D167/'Charges Summary'!D$4 -> 28.79709915 | L167: =E167/'Charges Summary'!E$4 -> 30.46578823 | M167: =F167/'Charges Summary'!F$4 -> 31.78861856 | N167: =G167/'Charges Summary'!G$4 -> 32.97045198 | O167: =H167/'Charges Summary'!H$4 -> 33.48523475
A168: ='DNSP Inputs General'!B$66 -> LED 70W-125W (L1) | D168: =SUM('Charges Summary'!D149,'Charges Summary'!D$11) -> 40.28517976 | E168: =SUM('Charges Summary'!E149,'Charges Summary'!E$11) -> 44.1639408 | F168: =SUM('Charges Summary'!F149,'Charges Summary'!F$11) -> 47.62724914 | G168: =SUM('Charges Summary'!G149,'Charges Summary'!G$11) -> 50.95712691 | H168: =SUM('Charges Summary'!H149,'Charges Summary'!H$11) -> 53.26355988 | K168: =D168/'Charges Summary'!D$4 -> 39.3026144 | L168: =E168/'Charges Summary'!E$4 -> 42.03587465 | M168: =F168/'Charges Summary'!F$4 -> 44.2266355 | N168: =G168/'Charges Summary'!G$4 -> 46.16464198 | O168: =H168/'Charges Summary'!H$4 -> 47.07722578
A169: ='DNSP Inputs General'!B$67 -> LED 155W-250W (L2) | D169: =SUM('Charges Summary'!D165,'Charges Summary'!D$11) -> 40.28517976 | E169: =SUM('Charges Summary'!E165,'Charges Summary'!E$11) -> 44.1639408 | F169: =SUM('Charges Summary'!F165,'Charges Summary'!F$11) -> 47.62724914 | G169: =SUM('Charges Summary'!G165,'Charges Summary'!G$11) -> 50.95712691 | H169: =SUM('Charges Summary'!H165,'Charges Summary'!H$11) -> 53.26355988 | K169: =D169/'Charges Summary'!D$4 -> 39.3026144 | L169: =E169/'Charges Summary'!E$4 -> 42.03587465 | M169: =F169/'Charges Summary'!F$4 -> 44.2266355 | N169: =G169/'Charges Summary'!G$4 -> 46.16464198 | O169: =H169/'Charges Summary'!H$4 -> 47.07722578
A170: ='DNSP Inputs General'!B$68 -> LED 275W-400W (L4) | D170: =SUM('Charges Summary'!D181,'Charges Summary'!D$11) -> 64.13033522 | E170: =SUM('Charges Summary'!E181,'Charges Summary'!E$11) -> 71.08197057 | F170: =SUM('Charges Summary'!F181,'Charges Summary'!F$11) -> 77.28796821 | G170: =SUM('Charges Summary'!G181,'Charges Summary'!G$11) -> 83.20767732 | H170: =SUM('Charges Summary'!H181,'Charges Summary'!H$11) -> 87.31702745 | K170: =D170/'Charges Summary'!D$4 -> 62.56618071 | L170: =E170/'Charges Summary'!E$4 -> 67.65684289 | M170: =F170/'Charges Summary'!F$4 -> 71.76956176 | N170: =G170/'Charges Summary'!G$4 -> 75.38204892 | O170: =H170/'Charges Summary'!H$4 -> 77.1755291
A172: ='DNSP Inputs General'!B$44 -> Existing Lights
A173: ='DNSP Inputs General'!B$45 -> Mercury Vapour 80W | D173: =D160*'DNSP Inputs General'!V45 -> 287987.5685 | E173: =E160*'DNSP Inputs General'!W45 -> 301270.1398 | F173: =F160*'DNSP Inputs General'!X45 -> 313358.1443 | G173: =G160*'DNSP Inputs General'!Y45 -> 325895.2626 | H173: =H160*'DNSP Inputs General'!Z45 -> 379758.6909 | K173: =D173/'Charges Summary'!D$4 -> 280963.4815 | L173: =E173/'Charges Summary'!E$4 -> 286753.2562 | M173: =F173/'Charges Summary'!F$4 -> 290984.1882 | N173: =G173/'Charges Summary'!G$4 -> 295245.0233 | O173: =H173/'Charges Summary'!H$4 -> 335651.3472
A174: ='DNSP Inputs General'!B$46 -> HP Sodium 150W | D174: =D161*'DNSP Inputs General'!V46 -> 850260.8456 | E174: =E161*'DNSP Inputs General'!W46 -> 815341.5354 | F174: =F161*'DNSP Inputs General'!X46 -> 777373.8832 | G174: =G161*'DNSP Inputs General'!Y46 -> 741094.21 | H174: =H161*'DNSP Inputs General'!Z46 -> 625571.6168 | K174: =D174/'Charges Summary'!D$4 -> 829522.7762 | L174: =E174/'Charges Summary'!E$4 -> 776053.8112 | M174: =F174/'Charges Summary'!F$4 -> 721868.93 | N174: =G174/'Charges Summary'!G$4 -> 671394.7774 | O174: =H174/'Charges Summary'!H$4 -> 552914.1558
A175: ='DNSP Inputs General'!B$47 -> HP Sodium 250W | D175: =D162*'DNSP Inputs General'!V47 -> 373768.9492 | E175: =E162*'DNSP Inputs General'!W47 -> 350701.8724 | F175: =F162*'DNSP Inputs General'!X47 -> 327041.5897 | G175: =G162*'DNSP Inputs General'!Y47 -> 304880.8052 | H175: =H162*'DNSP Inputs General'!Z47 -> 238455.5894 | K175: =D175/'Charges Summary'!D$4 -> 364652.6334 | L175: =E175/'Charges Summary'!E$4 -> 333803.0909 | M175: =F175/'Charges Summary'!F$4 -> 303690.6275 | N175: =G175/'Charges Summary'!G$4 -> 276206.9621 | O175: =H175/'Charges Summary'!H$4 -> 210759.9951
A176: ='DNSP Inputs General'!B$48 -> Mercury Vapour 50W | D176: =IF('DNSP Inputs General'!$C48='DNSP Inputs General'!$B$45,D$160,IF('DNSP Inputs General'!$C48='DNSP Inputs General'!$B$46,D$161,D$162))*'DNSP Inputs General'!$D48*'DNSP Inputs General'!V48 -> 0 | E176: =IF('DNSP Inputs General'!$C48='DNSP Inputs General'!$B$45,E$160,IF('DNSP Inputs General'!$C48='DNSP Inputs General'!$B$46,E$161,E$162))*'DNSP Inputs General'!$D48*'DNSP Inputs General'!W48 -> 0 | F176: =IF('DNSP Inputs General'!$C48='DNSP Inputs General'!$B$45,F$160,IF('DNSP Inputs General'!$C48='DNSP Inputs General'!$B$46,F$161,F$162))*'DNSP Inputs General'!$D48*'DNSP Inputs General'!X48 -> 0 | G176: =IF('DNSP Inputs General'!$C48='DNSP Inputs General'!$B$45,G$160,IF('DNSP Inputs General'!$C48='DNSP Inputs General'!$B$46,G$161,G$162))*'DNSP Inputs General'!$D48*'DNSP Inputs General'!Y48 -> 0 | H176: =IF('DNSP Inputs General'!$C48='DNSP Inputs General'!$B$45,H$160,IF('DNSP Inputs General'!$C48='DNSP Inputs General'!$B$46,H$161,H$162))*'DNSP Inputs General'!$D48*'DNSP Inputs General'!Z48 -> 0 | K176: =D176/'Charges Summary'!D$4 -> 0 | L176: =E176/'Charges Summary'!E$4 -> 0 | M176: =F176/'Charges Summary'!F$4 -> 0 | N176: =G176/'Charges Summary'!G$4 -> 0 | O176: =H176/'Charges Summary'!H$4 -> 0
A177: ='DNSP Inputs General'!B$49 -> Mercury Vapour 125W | D177: =IF('DNSP Inputs General'!$C49='DNSP Inputs General'!$B$45,D$160,IF('DNSP Inputs General'!$C49='DNSP Inputs General'!$B$46,D$161,D$162))*'DNSP Inputs General'!$D49*'DNSP Inputs General'!V49 -> 0 | E177: =IF('DNSP Inputs General'!$C49='DNSP Inputs General'!$B$45,E$160,IF('DNSP Inputs General'!$C49='DNSP Inputs General'!$B$46,E$161,E$162))*'DNSP Inputs General'!$D49*'DNSP Inputs General'!W49 -> 0 | F177: =IF('DNSP Inputs General'!$C49='DNSP Inputs General'!$B$45,F$160,IF('DNSP Inputs General'!$C49='DNSP Inputs General'!$B$46,F$161,F$162))*'DNSP Inputs General'!$D49*'DNSP Inputs General'!X49 -> 0 | G177: =IF('DNSP Inputs General'!$C49='DNSP Inputs General'!$B$45,G$160,IF('DNSP Inputs General'!$C49='DNSP Inputs General'!$B$46,G$161,G$162))*'DNSP Inputs General'!$D49*'DNSP Inputs General'!Y49 -> 0 | H177: =IF('DNSP Inputs General'!$C49='DNSP Inputs General'!$B$45,H$160,IF('DNSP Inputs General'!$C49='DNSP Inputs General'!$B$46,H$161,H$162))*'DNSP Inputs General'!$D49*'DNSP Inputs General'!Z49 -> 0 | K177: =D177/'Charges Summary'!D$4 -> 0 | L177: =E177/'Charges Summary'!E$4 -> 0 | M177: =F177/'Charges Summary'!F$4 -> 0 | N177: =G177/'Charges Summary'!G$4 -> 0 | O177: =H177/'Charges Summary'!H$4 -> 0
A178: ='DNSP Inputs General'!B$50 -> Mercury Vapour 250W | D178: =IF('DNSP Inputs General'!$C50='DNSP Inputs General'!$B$45,D$160,IF('DNSP Inputs General'!$C50='DNSP Inputs General'!$B$46,D$161,D$162))*'DNSP Inputs General'!$D50*'DNSP Inputs General'!V50 -> 0 | E178: =IF('DNSP Inputs General'!$C50='DNSP Inputs General'!$B$45,E$160,IF('DNSP Inputs General'!$C50='DNSP Inputs General'!$B$46,E$161,E$162))*'DNSP Inputs General'!$D50*'DNSP Inputs General'!W50 -> 0 | F178: =IF('DNSP Inputs General'!$C50='DNSP Inputs General'!$B$45,F$160,IF('DNSP Inputs General'!$C50='DNSP Inputs General'!$B$46,F$161,F$162))*'DNSP Inputs General'!$D50*'DNSP Inputs General'!X50 -> 0 | G178: =IF('DNSP Inputs General'!$C50='DNSP Inputs General'!$B$45,G$160,IF('DNSP Inputs General'!$C50='DNSP Inputs General'!$B$46,G$161,G$162))*'DNSP Inputs General'!$D50*'DNSP Inputs General'!Y50 -> 0 | H178: =IF('DNSP Inputs General'!$C50='DNSP Inputs General'!$B$45,H$160,IF('DNSP Inputs General'!$C50='DNSP Inputs General'!$B$46,H$161,H$162))*'DNSP Inputs General'!$D50*'DNSP Inputs General'!Z50 -> 0 | K178: =D178/'Charges Summary'!D$4 -> 0 | L178: =E178/'Charges Summary'!E$4 -> 0 | M178: =F178/'Charges Summary'!F$4 -> 0 | N178: =G178/'Charges Summary'!G$4 -> 0 | O178: =H178/'Charges Summary'!H$4 -> 0
A179: ='DNSP Inputs General'!B$51 -> Mercury Vapour 400W | D179: =IF('DNSP Inputs General'!$C51='DNSP Inputs General'!$B$45,D$160,IF('DNSP Inputs General'!$C51='DNSP Inputs General'!$B$46,D$161,D$162))*'DNSP Inputs General'!$D51*'DNSP Inputs General'!V51 -> 0 | E179: =IF('DNSP Inputs General'!$C51='DNSP Inputs General'!$B$45,E$160,IF('DNSP Inputs General'!$C51='DNSP Inputs General'!$B$46,E$161,E$162))*'DNSP Inputs General'!$D51*'DNSP Inputs General'!W51 -> 0 | F179: =IF('DNSP Inputs General'!$C51='DNSP Inputs General'!$B$45,F$160,IF('DNSP Inputs General'!$C51='DNSP Inputs General'!$B$46,F$161,F$162))*'DNSP Inputs General'!$D51*'DNSP Inputs General'!X51 -> 0 | G179: =IF('DNSP Inputs General'!$C51='DNSP Inputs General'!$B$45,G$160,IF('DNSP Inputs General'!$C51='DNSP Inputs General'!$B$46,G$161,G$162))*'DNSP Inputs General'!$D51*'DNSP Inputs General'!Y51 -> 0 | H179: =IF('DNSP Inputs General'!$C51='DNSP Inputs General'!$B$45,H$160,IF('DNSP Inputs General'!$C51='DNSP Inputs General'!$B$46,H$161,H$162))*'DNSP Inputs General'!$D51*'DNSP Inputs General'!Z51 -> 0 | K179: =D179/'Charges Summary'!D$4 -> 0 | L179: =E179/'Charges Summary'!E$4 -> 0 | M179: =F179/'Charges Summary'!F$4 -> 0 | N179: =G179/'Charges Summary'!G$4 -> 0 | O179: =H179/'Charges Summary'!H$4 -> 0
A180: ='DNSP Inputs General'!B$52 -> HP Sodium 100W | D180: =IF('DNSP Inputs General'!$C52='DNSP Inputs General'!$B$45,D$160,IF('DNSP Inputs General'!$C52='DNSP Inputs General'!$B$46,D$161,D$162))*'DNSP Inputs General'!$D52*'DNSP Inputs General'!V52 -> 156593.4948 | E180: =IF('DNSP Inputs General'!$C52='DNSP Inputs General'!$B$45,E$160,IF('DNSP Inputs General'!$C52='DNSP Inputs General'!$B$46,E$161,E$162))*'DNSP Inputs General'!$D52*'DNSP Inputs General'!W52 -> 143336.8041 | F180: =IF('DNSP Inputs General'!$C52='DNSP Inputs General'!$B$45,F$160,IF('DNSP Inputs General'!$C52='DNSP Inputs General'!$B$46,F$161,F$162))*'DNSP Inputs General'!$D52*'DNSP Inputs General'!X52 -> 127787.9395 | G180: =IF('DNSP Inputs General'!$C52='DNSP Inputs General'!$B$45,G$160,IF('DNSP Inputs General'!$C52='DNSP Inputs General'!$B$46,G$161,G$162))*'DNSP Inputs General'!$D52*'DNSP Inputs General'!Y52 -> 110749.215 | H180: =IF('DNSP Inputs General'!$C52='DNSP Inputs General'!$B$45,H$160,IF('DNSP Inputs General'!$C52='DNSP Inputs General'!$B$46,H$161,H$162))*'DNSP Inputs General'!$D52*'DNSP Inputs General'!Z52 -> 103212.0848 | K180: =D180/'Charges Summary'!D$4 -> 152774.1412 | L180: =E180/'Charges Summary'!E$4 -> 136430.0336 | M180: =F180/'Charges Summary'!F$4 -> 118663.8053 | N180: =G180/'Charges Summary'!G$4 -> 100333.3227 | O180: =H180/'Charges Summary'!H$4 -> 91224.44365
A181: ='DNSP Inputs General'!B53 -> HP Sodium 400W | D181: =IF('DNSP Inputs General'!$C53='DNSP Inputs General'!$B$45,D$160,IF('DNSP Inputs General'!$C53='DNSP Inputs General'!$B$46,D$161,D$162))*'DNSP Inputs General'!$D53*'DNSP Inputs General'!V53 -> 14465.54874 | E181: =IF('DNSP Inputs General'!$C53='DNSP Inputs General'!$B$45,E$160,IF('DNSP Inputs General'!$C53='DNSP Inputs General'!$B$46,E$161,E$162))*'DNSP Inputs General'!$D53*'DNSP Inputs General'!W53 -> 13241.29047 | F181: =IF('DNSP Inputs General'!$C53='DNSP Inputs General'!$B$45,F$160,IF('DNSP Inputs General'!$C53='DNSP Inputs General'!$B$46,F$161,F$162))*'DNSP Inputs General'!$D53*'DNSP Inputs General'!X53 -> 11805.19251 | G181: =IF('DNSP Inputs General'!$C53='DNSP Inputs General'!$B$45,G$160,IF('DNSP Inputs General'!$C53='DNSP Inputs General'!$B$46,G$161,G$162))*'DNSP Inputs General'!$D53*'DNSP Inputs General'!Y53 -> 10231.34697 | H181: =IF('DNSP Inputs General'!$C53='DNSP Inputs General'!$B$45,H$160,IF('DNSP Inputs General'!$C53='DNSP Inputs General'!$B$46,H$161,H$162))*'DNSP Inputs General'!$D53*'DNSP Inputs General'!Z53 -> 9540.118956 | K181: =D181/'Charges Summary'!D$4 -> 14112.73048 | L181: =E181/'Charges Summary'!E$4 -> 12603.25089 | M181: =F181/'Charges Summary'!F$4 -> 10962.29481 | N181: =G181/'Charges Summary'!G$4 -> 9269.095388 | O181: =H181/'Charges Summary'!H$4 -> 8432.075044
A182: ='DNSP Inputs General'!B54 -> Metal Halide 70W | D182: =IF('DNSP Inputs General'!$C54='DNSP Inputs General'!$B$45,D$160,IF('DNSP Inputs General'!$C54='DNSP Inputs General'!$B$46,D$161,D$162))*'DNSP Inputs General'!$D54*'DNSP Inputs General'!V54 -> 0 | E182: =IF('DNSP Inputs General'!$C54='DNSP Inputs General'!$B$45,E$160,IF('DNSP Inputs General'!$C54='DNSP Inputs General'!$B$46,E$161,E$162))*'DNSP Inputs General'!$D54*'DNSP Inputs General'!W54 -> 0 | F182: =IF('DNSP Inputs General'!$C54='DNSP Inputs General'!$B$45,F$160,IF('DNSP Inputs General'!$C54='DNSP Inputs General'!$B$46,F$161,F$162))*'DNSP Inputs General'!$D54*'DNSP Inputs General'!X54 -> 0 | G182: =IF('DNSP Inputs General'!$C54='DNSP Inputs General'!$B$45,G$160,IF('DNSP Inputs General'!$C54='DNSP Inputs General'!$B$46,G$161,G$162))*'DNSP Inputs General'!$D54*'DNSP Inputs General'!Y54 -> 0 | H182: =IF('DNSP Inputs General'!$C54='DNSP Inputs General'!$B$45,H$160,IF('DNSP Inputs General'!$C54='DNSP Inputs General'!$B$46,H$161,H$162))*'DNSP Inputs General'!$D54*'DNSP Inputs General'!Z54 -> 0 | K182: =D182/'Charges Summary'!D$4 -> 0 | L182: =E182/'Charges Summary'!E$4 -> 0 | M182: =F182/'Charges Summary'!F$4 -> 0 | N182: =G182/'Charges Summary'!G$4 -> 0 | O182: =H182/'Charges Summary'!H$4 -> 0
A183: ='DNSP Inputs General'!B55 -> Metal Halide 100W | D183: =IF('DNSP Inputs General'!$C55='DNSP Inputs General'!$B$45,D$160,IF('DNSP Inputs General'!$C55='DNSP Inputs General'!$B$46,D$161,D$162))*'DNSP Inputs General'!$D55*'DNSP Inputs General'!V55 -> 0 | E183: =IF('DNSP Inputs General'!$C55='DNSP Inputs General'!$B$45,E$160,IF('DNSP Inputs General'!$C55='DNSP Inputs General'!$B$46,E$161,E$162))*'DNSP Inputs General'!$D55*'DNSP Inputs General'!W55 -> 0 | F183: =IF('DNSP Inputs General'!$C55='DNSP Inputs General'!$B$45,F$160,IF('DNSP Inputs General'!$C55='DNSP Inputs General'!$B$46,F$161,F$162))*'DNSP Inputs General'!$D55*'DNSP Inputs General'!X55 -> 0 | G183: =IF('DNSP Inputs General'!$C55='DNSP Inputs General'!$B$45,G$160,IF('DNSP Inputs General'!$C55='DNSP Inputs General'!$B$46,G$161,G$162))*'DNSP Inputs General'!$D55*'DNSP Inputs General'!Y55 -> 0 | H183: =IF('DNSP Inputs General'!$C55='DNSP Inputs General'!$B$45,H$160,IF('DNSP Inputs General'!$C55='DNSP Inputs General'!$B$46,H$161,H$162))*'DNSP Inputs General'!$D55*'DNSP Inputs General'!Z55 -> 0 | K183: =D183/'Charges Summary'!D$4 -> 0 | L183: =E183/'Charges Summary'!E$4 -> 0 | M183: =F183/'Charges Summary'!F$4 -> 0 | N183: =G183/'Charges Summary'!G$4 -> 0 | O183: =H183/'Charges Summary'!H$4 -> 0
A184: ='DNSP Inputs General'!B56 -> Metal Halide 150W | D184: =IF('DNSP Inputs General'!$C56='DNSP Inputs General'!$B$45,D$160,IF('DNSP Inputs General'!$C56='DNSP Inputs General'!$B$46,D$161,D$162))*'DNSP Inputs General'!$D56*'DNSP Inputs General'!V56 -> 0 | E184: =IF('DNSP Inputs General'!$C56='DNSP Inputs General'!$B$45,E$160,IF('DNSP Inputs General'!$C56='DNSP Inputs General'!$B$46,E$161,E$162))*'DNSP Inputs General'!$D56*'DNSP Inputs General'!W56 -> 0 | F184: =IF('DNSP Inputs General'!$C56='DNSP Inputs General'!$B$45,F$160,IF('DNSP Inputs General'!$C56='DNSP Inputs General'!$B$46,F$161,F$162))*'DNSP Inputs General'!$D56*'DNSP Inputs General'!X56 -> 0 | G184: =IF('DNSP Inputs General'!$C56='DNSP Inputs General'!$B$45,G$160,IF('DNSP Inputs General'!$C56='DNSP Inputs General'!$B$46,G$161,G$162))*'DNSP Inputs General'!$D56*'DNSP Inputs General'!Y56 -> 0 | H184: =IF('DNSP Inputs General'!$C56='DNSP Inputs General'!$B$45,H$160,IF('DNSP Inputs General'!$C56='DNSP Inputs General'!$B$46,H$161,H$162))*'DNSP Inputs General'!$D56*'DNSP Inputs General'!Z56 -> 0 | K184: =D184/'Charges Summary'!D$4 -> 0 | L184: =E184/'Charges Summary'!E$4 -> 0 | M184: =F184/'Charges Summary'!F$4 -> 0 | N184: =G184/'Charges Summary'!G$4 -> 0 | O184: =H184/'Charges Summary'!H$4 -> 0
A185: ='DNSP Inputs General'!B57 -> HP Sodium 50W | D185: =IF('DNSP Inputs General'!$C57='DNSP Inputs General'!$B$45,D$160,IF('DNSP Inputs General'!$C57='DNSP Inputs General'!$B$46,D$161,D$162))*'DNSP Inputs General'!$D57*'DNSP Inputs General'!V57 -> 0 | E185: =IF('DNSP Inputs General'!$C57='DNSP Inputs General'!$B$45,E$160,IF('DNSP Inputs General'!$C57='DNSP Inputs General'!$B$46,E$161,E$162))*'DNSP Inputs General'!$D57*'DNSP Inputs General'!W57 -> 0 | F185: =IF('DNSP Inputs General'!$C57='DNSP Inputs General'!$B$45,F$160,IF('DNSP Inputs General'!$C57='DNSP Inputs General'!$B$46,F$161,F$162))*'DNSP Inputs General'!$D57*'DNSP Inputs General'!X57 -> 0 | G185: =IF('DNSP Inputs General'!$C57='DNSP Inputs General'!$B$45,G$160,IF('DNSP Inputs General'!$C57='DNSP Inputs General'!$B$46,G$161,G$162))*'DNSP Inputs General'!$D57*'DNSP Inputs General'!Y57 -> 0 | H185: =IF('DNSP Inputs General'!$C57='DNSP Inputs General'!$B$45,H$160,IF('DNSP Inputs General'!$C57='DNSP Inputs General'!$B$46,H$161,H$162))*'DNSP Inputs General'!$D57*'DNSP Inputs General'!Z57 -> 0 | K185: =D185/'Charges Summary'!D$4 -> 0 | L185: =E185/'Charges Summary'!E$4 -> 0 | M185: =F185/'Charges Summary'!F$4 -> 0 | N185: =G185/'Charges Summary'!G$4 -> 0 | O185: =H185/'Charges Summary'!H$4 -> 0
A197: ='DNSP Inputs General'!B$61 -> Energy Efficient Lights
A198: ='DNSP Inputs General'!B$62 -> T5 2X14W | D198: =SUM('Charges Summary'!D85,'Charges Summary'!D11)*'DNSP Inputs General'!$D62*'DNSP Inputs General'!V62 -> 233236.3315 | E198: =SUM('Charges Summary'!E85,'Charges Summary'!E11)*'DNSP Inputs General'!$D62*'DNSP Inputs General'!W62 -> 186925.2617 | F198: =SUM('Charges Summary'!F85,'Charges Summary'!F11)*'DNSP Inputs General'!$D62*'DNSP Inputs General'!X62 -> 131773.0677 | G198: =SUM('Charges Summary'!G85,'Charges Summary'!G11)*'DNSP Inputs General'!$D62*'DNSP Inputs General'!Y62 -> 69391.77971 | H198: =SUM('Charges Summary'!H85,'Charges Summary'!H11)*'DNSP Inputs General'!$D62*'DNSP Inputs General'!Z62 -> 26.79768636 | K198: =D198/'Charges Summary'!D$4 -> 227547.6405 | L198: =E198/'Charges Summary'!E$4 -> 177918.1551 | M198: =F198/'Charges Summary'!F$4 -> 122364.3931 | N198: =G198/'Charges Summary'!G$4 -> 62865.52757 | O198: =H198/'Charges Summary'!H$4 -> 23.68524999
A199: ='DNSP Inputs General'!B63 -> T5 2X24W | D199: =SUM('Charges Summary'!D101,'Charges Summary'!D11)*'DNSP Inputs General'!$D63*'DNSP Inputs General'!V63 -> 2241.90166 | E199: =SUM('Charges Summary'!E101,'Charges Summary'!E11)*'DNSP Inputs General'!$D63*'DNSP Inputs General'!W63 -> 1799.65525 | F199: =SUM('Charges Summary'!F101,'Charges Summary'!F11)*'DNSP Inputs General'!$D63*'DNSP Inputs General'!X63 -> 1270.186548 | G199: =SUM('Charges Summary'!G101,'Charges Summary'!G11)*'DNSP Inputs General'!$D63*'DNSP Inputs General'!Y63 -> 669.8289497 | H199: =SUM('Charges Summary'!H101,'Charges Summary'!H11)*'DNSP Inputs General'!$D63*'DNSP Inputs General'!Z63 -> 0 | K199: =D199/'Charges Summary'!D$4 -> 2187.221131 | L199: =E199/'Charges Summary'!E$4 -> 1712.937775 | M199: =F199/'Charges Summary'!F$4 -> 1179.49448 | N199: =G199/'Charges Summary'!G$4 -> 606.8319689 | O199: =H199/'Charges Summary'!H$4 -> 0
A200: ='DNSP Inputs General'!B64 -> LED 18W | D200: =SUM('Charges Summary'!D117,'Charges Summary'!D11)*'DNSP Inputs General'!$D64*'DNSP Inputs General'!V64 -> 1495158.96 | E200: =SUM('Charges Summary'!E117,'Charges Summary'!E11)*'DNSP Inputs General'!$D64*'DNSP Inputs General'!W64 -> 1755534.068 | F200: =SUM('Charges Summary'!F117,'Charges Summary'!F11)*'DNSP Inputs General'!$D64*'DNSP Inputs General'!X64 -> 2023758.805 | G200: =SUM('Charges Summary'!G117,'Charges Summary'!G11)*'DNSP Inputs General'!$D64*'DNSP Inputs General'!Y64 -> 2306951.781 | H200: =SUM('Charges Summary'!H117,'Charges Summary'!H11)*'DNSP Inputs General'!$D64*'DNSP Inputs General'!Z64 -> 2681968.654 | K200: =D200/'Charges Summary'!D$4 -> 1458691.669 | L200: =E200/'Charges Summary'!E$4 -> 1670942.599 | M200: =F200/'Charges Summary'!F$4 -> 1879261.234 | N200: =G200/'Charges Summary'!G$4 -> 2089984.453 | O200: =H200/'Charges Summary'!H$4 -> 2370469.494
A201: ='DNSP Inputs General'!B65 -> LED 14W | D201: =SUM('Charges Summary'!D133,'Charges Summary'!D$11)*'DNSP Inputs General'!$D65*'DNSP Inputs General'!V65 -> 205302.2314 | E201: =SUM('Charges Summary'!E133,'Charges Summary'!E$11)*'DNSP Inputs General'!$D65*'DNSP Inputs General'!W65 -> 228862.3363 | F201: =SUM('Charges Summary'!F133,'Charges Summary'!F$11)*'DNSP Inputs General'!$D65*'DNSP Inputs General'!X65 -> 251623.1201 | G201: =SUM('Charges Summary'!G133,'Charges Summary'!G$11)*'DNSP Inputs General'!$D65*'DNSP Inputs General'!Y65 -> 274992.449 | H201: =SUM('Charges Summary'!H133,'Charges Summary'!H$11)*'DNSP Inputs General'!$D65*'DNSP Inputs General'!Z65 -> 294283.6921 | K201: =D201/'Charges Summary'!D$4 -> 200294.8599 | L201: =E201/'Charges Summary'!E$4 -> 217834.4664 | M201: =F201/'Charges Summary'!F$4 -> 233657.0811 | N201: =G201/'Charges Summary'!G$4 -> 249129.5865 | O201: =H201/'Charges Summary'!H$4 -> 260103.903
A202: ='DNSP Inputs General'!B66 -> LED 70W-125W (L1) | D202: =SUM('Charges Summary'!D149,'Charges Summary'!D$11)*'DNSP Inputs General'!$D66*'DNSP Inputs General'!V66 -> 412202.0451 | E202: =SUM('Charges Summary'!E149,'Charges Summary'!E$11)*'DNSP Inputs General'!$D66*'DNSP Inputs General'!W66 -> 491549.7025 | F202: =SUM('Charges Summary'!F149,'Charges Summary'!F$11)*'DNSP Inputs General'!$D66*'DNSP Inputs General'!X66 -> 573603.8666 | G202: =SUM('Charges Summary'!G149,'Charges Summary'!G$11)*'DNSP Inputs General'!$D66*'DNSP Inputs General'!Y66 -> 661072.3905 | H202: =SUM('Charges Summary'!H149,'Charges Summary'!H$11)*'DNSP Inputs General'!$D66*'DNSP Inputs General'!Z66 -> 742118.2307 | K202: =D202/'Charges Summary'!D$4 -> 402148.3367 | L202: =E202/'Charges Summary'!E$4 -> 467864.0833 | M202: =F202/'Charges Summary'!F$4 -> 532648.2126 | N202: =G202/'Charges Summary'!G$4 -> 598898.9584 | O202: =H202/'Charges Summary'!H$4 -> 655924.3801
A203: ='DNSP Inputs General'!B67 -> LED 155W-250W (L2) | D203: =SUM('Charges Summary'!D165,'Charges Summary'!D$11)*'DNSP Inputs General'!$D67*'DNSP Inputs General'!V67 -> 331215.7833 | E203: =SUM('Charges Summary'!E165,'Charges Summary'!E$11)*'DNSP Inputs General'!$D67*'DNSP Inputs General'!W67 -> 440898.766 | F203: =SUM('Charges Summary'!F165,'Charges Summary'!F$11)*'DNSP Inputs General'!$D67*'DNSP Inputs General'!X67 -> 558041.3807 | G203: =SUM('Charges Summary'!G165,'Charges Summary'!G$11)*'DNSP Inputs General'!$D67*'DNSP Inputs General'!Y67 -> 683990.89 | H203: =SUM('Charges Summary'!H165,'Charges Summary'!H$11)*'DNSP Inputs General'!$D67*'DNSP Inputs General'!Z67 -> 812030.7694 | K203: =D203/'Charges Summary'!D$4 -> 323137.3496 | L203: =E203/'Charges Summary'!E$4 -> 419653.7927 | M203: =F203/'Charges Summary'!F$4 -> 518196.8974 | N203: =G203/'Charges Summary'!G$4 -> 619661.9879 | O203: =H203/'Charges Summary'!H$4 -> 717716.8772
A204: ='DNSP Inputs General'!B68 -> LED 275W-400W (L4) | D204: =SUM('Charges Summary'!D181,'Charges Summary'!D$11)*'DNSP Inputs General'!$D68*'DNSP Inputs General'!V68 -> 11029.0741 | E204: =SUM('Charges Summary'!E181,'Charges Summary'!E$11)*'DNSP Inputs General'!$D68*'DNSP Inputs General'!W68 -> 14649.37941 | F204: =SUM('Charges Summary'!F181,'Charges Summary'!F$11)*'DNSP Inputs General'!$D68*'DNSP Inputs General'!X68 -> 18108.16895 | G204: =SUM('Charges Summary'!G181,'Charges Summary'!G$11)*'DNSP Inputs General'!$D68*'DNSP Inputs General'!Y68 -> 21350.67837 | H204: =SUM('Charges Summary'!H181,'Charges Summary'!H$11)*'DNSP Inputs General'!$D68*'DNSP Inputs General'!Z68 -> 25971.78456 | K204: =D204/'Charges Summary'!D$4 -> 10760.0723 | L204: =E204/'Charges Summary'!E$4 -> 13943.49022 | M204: =F204/'Charges Summary'!F$4 -> 16815.23502 | N204: =G204/'Charges Summary'!G$4 -> 19342.66084 | O204: =H204/'Charges Summary'!H$4 -> 22955.27314
A205: ='DNSP Inputs General'!B69 -> Compact Fluorescent 32W | D205: =IF('DNSP Inputs General'!$C69='DNSP Inputs General'!$B$62,D$164,D$165)*'DNSP Inputs General'!$D69*'DNSP Inputs General'!V69 -> 32921.77261 | E205: =IF('DNSP Inputs General'!$C69='DNSP Inputs General'!$B$62,E$164,E$165)*'DNSP Inputs General'!$D69*'DNSP Inputs General'!W69 -> 26383.23245 | F205: =IF('DNSP Inputs General'!$C69='DNSP Inputs General'!$B$62,F$164,F$165)*'DNSP Inputs General'!$D69*'DNSP Inputs General'!X69 -> 19924.88789 | G205: =IF('DNSP Inputs General'!$C69='DNSP Inputs General'!$B$62,G$164,G$165)*'DNSP Inputs General'!$D69*'DNSP Inputs General'!Y69 -> 13995.16466 | H205: =IF('DNSP Inputs General'!$C69='DNSP Inputs General'!$B$62,H$164,H$165)*'DNSP Inputs General'!$D69*'DNSP Inputs General'!Z69 -> 14484.45238 | K205: =D205/'Charges Summary'!D$4 -> 32118.80254 | L205: =E205/'Charges Summary'!E$4 -> 25111.94046 | M205: =F205/'Charges Summary'!F$4 -> 18502.23916 | N205: =G205/'Charges Summary'!G$4 -> 12678.92845 | O205: =H205/'Charges Summary'!H$4 -> 12802.14534
A206: ='DNSP Inputs General'!B70 -> Compact Fluorescent 42W | D206: =IF('DNSP Inputs General'!$C70='DNSP Inputs General'!$B$62,D$164,D$165)*'DNSP Inputs General'!$D70*'DNSP Inputs General'!V70 -> 15116.02479 | E206: =IF('DNSP Inputs General'!$C70='DNSP Inputs General'!$B$62,E$164,E$165)*'DNSP Inputs General'!$D70*'DNSP Inputs General'!W70 -> 0.002044532571 | F206: =IF('DNSP Inputs General'!$C70='DNSP Inputs General'!$B$62,F$164,F$165)*'DNSP Inputs General'!$D70*'DNSP Inputs General'!X70 -> 0.00216167277 | G206: =IF('DNSP Inputs General'!$C70='DNSP Inputs General'!$B$62,G$164,G$165)*'DNSP Inputs General'!$D70*'DNSP Inputs General'!Y70 -> 0.002277525966 | H206: =IF('DNSP Inputs General'!$C70='DNSP Inputs General'!$B$62,H$164,H$165)*'DNSP Inputs General'!$D70*'DNSP Inputs General'!Z70 -> 0.002357151002 | K206: =D206/'Charges Summary'!D$4 -> 14747.34125 | L206: =E206/'Charges Summary'!E$4 -> 0.001946015535 | M206: =F206/'Charges Summary'!F$4 -> 0.002007328061 | N206: =G206/'Charges Summary'!G$4 -> 0.002063326118 | O206: =H206/'Charges Summary'!H$4 -> 0.00208337802
A207: ='DNSP Inputs General'!B71 -> Smart lighting L1 | D207: =SUM('Charges Summary'!D197,'Charges Summary'!D$11)*'DNSP Inputs General'!$D71*'DNSP Inputs General'!V71 -> 0 | E207: =SUM('Charges Summary'!E197,'Charges Summary'!E$11)*'DNSP Inputs General'!$D71*'DNSP Inputs General'!W71 -> 0 | F207: =SUM('Charges Summary'!F197,'Charges Summary'!F$11)*'DNSP Inputs General'!$D71*'DNSP Inputs General'!X71 -> 0 | G207: =SUM('Charges Summary'!G197,'Charges Summary'!G$11)*'DNSP Inputs General'!$D71*'DNSP Inputs General'!Y71 -> 0 | H207: =SUM('Charges Summary'!H197,'Charges Summary'!H$11)*'DNSP Inputs General'!$D71*'DNSP Inputs General'!Z71 -> 0 | K207: =D207/'Charges Summary'!D$4 -> 0 | L207: =E207/'Charges Summary'!E$4 -> 0 | M207: =F207/'Charges Summary'!F$4 -> 0 | N207: =G207/'Charges Summary'!G$4 -> 0 | O207: =H207/'Charges Summary'!H$4 -> 0
A208: ='DNSP Inputs General'!B72 -> Smart lighting L2 | D208: =SUM('Charges Summary'!D213,'Charges Summary'!D$11)*'DNSP Inputs General'!$D72*'DNSP Inputs General'!V72 -> 0 | E208: =SUM('Charges Summary'!E213,'Charges Summary'!E$11)*'DNSP Inputs General'!$D72*'DNSP Inputs General'!W72 -> 0 | F208: =SUM('Charges Summary'!F213,'Charges Summary'!F$11)*'DNSP Inputs General'!$D72*'DNSP Inputs General'!X72 -> 0 | G208: =SUM('Charges Summary'!G213,'Charges Summary'!G$11)*'DNSP Inputs General'!$D72*'DNSP Inputs General'!Y72 -> 0 | H208: =SUM('Charges Summary'!H213,'Charges Summary'!H$11)*'DNSP Inputs General'!$D72*'DNSP Inputs General'!Z72 -> 0 | K208: =D208/'Charges Summary'!D$4 -> 0 | L208: =E208/'Charges Summary'!E$4 -> 0 | M208: =F208/'Charges Summary'!F$4 -> 0 | N208: =G208/'Charges Summary'!G$4 -> 0 | O208: =H208/'Charges Summary'!H$4 -> 0
A209: ='DNSP Inputs General'!B73 -> Smart lighting L4 | D209: =SUM('Charges Summary'!D229,'Charges Summary'!D$11)*'DNSP Inputs General'!$D73*'DNSP Inputs General'!V73 -> 0 | E209: =SUM('Charges Summary'!E229,'Charges Summary'!E$11)*'DNSP Inputs General'!$D73*'DNSP Inputs General'!W73 -> 0 | F209: =SUM('Charges Summary'!F229,'Charges Summary'!F$11)*'DNSP Inputs General'!$D73*'DNSP Inputs General'!X73 -> 0 | G209: =SUM('Charges Summary'!G229,'Charges Summary'!G$11)*'DNSP Inputs General'!$D73*'DNSP Inputs General'!Y73 -> 0 | H209: =SUM('Charges Summary'!H229,'Charges Summary'!H$11)*'DNSP Inputs General'!$D73*'DNSP Inputs General'!Z73 -> 0 | K209: =D209/'Charges Summary'!D$4 -> 0 | L209: =E209/'Charges Summary'!E$4 -> 0 | M209: =F209/'Charges Summary'!F$4 -> 0 | N209: =G209/'Charges Summary'!G$4 -> 0 | O209: =H209/'Charges Summary'!H$4 -> 0
A211: Total Capital Charge | D211: =SUM(D173:D209) -> 4421500.532 | E211: =SUM(E173:E209) -> 4770494.046 | F211: =SUM(F173:F209) -> 5135470.235 | G211: =SUM(G173:G209) -> 5525265.804 | H211: =SUM(H173:H209) -> 5927422.484 | K211: =SUM(K173:K209) -> 4313659.055 | L211: =SUM(L173:L209) -> 4540624.91 | M211: =SUM(M173:M209) -> 4768794.635 | N211: =SUM(N173:N209) -> 5005618.118 | O211: =SUM(O173:O209) -> 5238977.777
A213: Check | C213: =SUM(D213:O213) -> 8.381903172e-09 | D213: =ABS(D95-SUM(D153,D211)) -> 1.862645149e-09 | E213: =ABS(E95-SUM(E153,E211)) -> 0 | F213: =ABS(F95-SUM(F153,F211)) -> 9.313225746e-10 | G213: =ABS(G95-SUM(G153,G211)) -> 0 | H213: =ABS(H95-SUM(H153,H211)) -> 1.862645149e-09 | K213: =ABS(K95-SUM(K153,K211)) -> 1.862645149e-09 | L213: =ABS(L95-SUM(L153,L211)) -> 0 | M213: =ABS(M95-SUM(M153,M211)) -> 0 | N213: =ABS(N95-SUM(N153,N211)) -> 9.313225746e-10 | O213: =ABS(O95-SUM(O153,O211)) -> 9.313225746e-10
A218: ='DNSP Inputs General'!$B$82 -> North & East
A219: Public Lighting - Revenue | C219: Revenue - $Nominal | J219: Revenue - $Real Jun 2026
C220: =C$2 -> 2026-06-30 | D220: 2027-06-30 | E220: 2028-06-30 | F220: 2029-06-30 | G220: 2030-06-30 | H220: 2031-06-30 | J220: =J$2 -> 2026-06-30 | K220: 2027-06-30 | L220: 2028-06-30 | M220: 2029-06-30 | N220: 2030-06-30 | O220: 2031-06-30
A221: ='DNSP Inputs General'!B$84 -> Existing Lights
A222: ='DNSP Inputs General'!B$85 -> Mercury Vapour 80W | C222: =IF('PL Tariffs'!C44=0,"",'DNSP Inputs General'!U85*'PL Tariffs'!C44) -> 48935.6039 | D222: ='DNSP Inputs General'!V85*'PL Tariffs'!D44 -> 87785.70075 | E222: ='DNSP Inputs General'!W85*'PL Tariffs'!E44 -> 91266.52715 | F222: ='DNSP Inputs General'!X85*'PL Tariffs'!F44 -> 94532.5465 | G222: ='DNSP Inputs General'!Y85*'PL Tariffs'!G44 -> 97949.75144 | H222: ='DNSP Inputs General'!Z85*'PL Tariffs'!H44 -> 109317.5802 | J222: =C222 -> 48935.6039 | K222: =D222/'Charges Summary'!K$4 -> 85644.5861 | L222: =E222/'Charges Summary'!L$4 -> 86868.79443 | M222: =F222/'Charges Summary'!M$4 -> 87782.86699 | N222: =G222/'Charges Summary'!N$4 -> 88737.64047 | O222: =H222/'Charges Summary'!O$4 -> 96620.812
A223: ='DNSP Inputs General'!B$86 -> HP Sodium 150W | C223: =IF('PL Tariffs'!C45=0,"",'DNSP Inputs General'!U86*'PL Tariffs'!C45) -> 404568.8404 | D223: ='DNSP Inputs General'!V86*'PL Tariffs'!D45 -> 442128.4738 | E223: ='DNSP Inputs General'!W86*'PL Tariffs'!E45 -> 417966.3716 | F223: ='DNSP Inputs General'!X86*'PL Tariffs'!F45 -> 390354.7093 | G223: ='DNSP Inputs General'!Y86*'PL Tariffs'!G45 -> 360478.1847 | H223: ='DNSP Inputs General'!Z86*'PL Tariffs'!H45 -> 347039.4575 | J223: 404568.8404 | K223: =D223/'Charges Summary'!K$4 -> 431344.8524 | L223: =E223/'Charges Summary'!L$4 -> 397826.4096 | M223: =F223/'Charges Summary'!M$4 -> 362483.1531 | N223: =G223/'Charges Summary'!N$4 -> 326575.4439 | O223: =H223/'Charges Summary'!O$4 -> 306732.3125
A224: ='DNSP Inputs General'!B$87 -> HP Sodium 250W | C224: =IF('PL Tariffs'!C46=0,"",'DNSP Inputs General'!U87*'PL Tariffs'!C46) -> 390846.8708 | D224: ='DNSP Inputs General'!V87*'PL Tariffs'!D46 -> 426856.9657 | E224: ='DNSP Inputs General'!W87*'PL Tariffs'!E46 -> 403904.2573 | F224: ='DNSP Inputs General'!X87*'PL Tariffs'!F46 -> 377269.8564 | G224: ='DNSP Inputs General'!Y87*'PL Tariffs'!G46 -> 348436.5556 | H224: ='DNSP Inputs General'!Z87*'PL Tariffs'!H46 -> 335952.2634 | J224: 390846.8708 | K224: =D224/'Charges Summary'!K$4 -> 416445.8202 | L224: =E224/'Charges Summary'!L$4 -> 384441.8868 | M224: =F224/'Charges Summary'!M$4 -> 350332.5664 | N224: =G224/'Charges Summary'!N$4 -> 315666.3222 | O224: =H224/'Charges Summary'!O$4 -> 296932.8484
A225: ='DNSP Inputs General'!B$88 -> Mercury Vapour 50W | C225: =IF('PL Tariffs'!C47=0,"",'DNSP Inputs General'!U88*'PL Tariffs'!C47) -> 0 | D225: ='DNSP Inputs General'!V88*'PL Tariffs'!D47 -> 0.02013059143 | E225: ='DNSP Inputs General'!W88*'PL Tariffs'!E47 -> 0.02092879767 | F225: ='DNSP Inputs General'!X88*'PL Tariffs'!F47 -> 0.0216777454 | G225: ='DNSP Inputs General'!Y88*'PL Tariffs'!G47 -> 0.02246136228 | H225: ='DNSP Inputs General'!Z88*'PL Tariffs'!H47 -> 0.02506817768 | J225: 0 | K225: =D225/'Charges Summary'!K$4 -> 0.0196396014 | L225: =E225/'Charges Summary'!L$4 -> 0.01992033092 | M225: =F225/'Charges Summary'!M$4 -> 0.02012994161 | N225: =G225/'Charges Summary'!N$4 -> 0.02034888564 | O225: =H225/'Charges Summary'!O$4 -> 0.02215661633
A226: ='DNSP Inputs General'!B$89 -> Mercury Vapour 125W | C226: =IF('PL Tariffs'!C48=0,"",'DNSP Inputs General'!U89*'PL Tariffs'!C48) -> 0 | D226: ='DNSP Inputs General'!V89*'PL Tariffs'!D48 -> 0.02013059143 | E226: ='DNSP Inputs General'!W89*'PL Tariffs'!E48 -> 0.02092879767 | F226: ='DNSP Inputs General'!X89*'PL Tariffs'!F48 -> 0.0216777454 | G226: ='DNSP Inputs General'!Y89*'PL Tariffs'!G48 -> 0.02246136228 | H226: ='DNSP Inputs General'!Z89*'PL Tariffs'!H48 -> 0.02506817768 | J226: 0 | K226: =D226/'Charges Summary'!K$4 -> 0.0196396014 | L226: =E226/'Charges Summary'!L$4 -> 0.01992033092 | M226: =F226/'Charges Summary'!M$4 -> 0.02012994161 | N226: =G226/'Charges Summary'!N$4 -> 0.02034888564 | O226: =H226/'Charges Summary'!O$4 -> 0.02215661633
A227: ='DNSP Inputs General'!B$90 -> Mercury Vapour 250W | C227: =IF('PL Tariffs'!C49=0,"",'DNSP Inputs General'!U90*'PL Tariffs'!C49) -> 0 | D227: ='DNSP Inputs General'!V90*'PL Tariffs'!D49 -> 0.01830266932 | E227: ='DNSP Inputs General'!W90*'PL Tariffs'!E49 -> 0.01905035953 | F227: ='DNSP Inputs General'!X90*'PL Tariffs'!F49 -> 0.0197712598 | G227: ='DNSP Inputs General'!Y90*'PL Tariffs'!G49 -> 0.02054274477 | H227: ='DNSP Inputs General'!Z90*'PL Tariffs'!H49 -> 0.02263623932 | J227: 0 | K227: =D227/'Charges Summary'!K$4 -> 0.01785626275 | L227: =E227/'Charges Summary'!L$4 -> 0.01813240645 | M227: =F227/'Charges Summary'!M$4 -> 0.0183595802 | N227: =G227/'Charges Summary'!N$4 -> 0.01861071287 | O227: =H227/'Charges Summary'!O$4 -> 0.02000713718
A228: ='DNSP Inputs General'!B$91 -> Mercury Vapour 400W | C228: =IF('PL Tariffs'!C50=0,"",'DNSP Inputs General'!U91*'PL Tariffs'!C50) -> 0 | D228: ='DNSP Inputs General'!V91*'PL Tariffs'!D50 -> 0.01883063093 | E228: ='DNSP Inputs General'!W91*'PL Tariffs'!E50 -> 0.01959988913 | F228: ='DNSP Inputs General'!X91*'PL Tariffs'!F50 -> 0.0203415846 | G228: ='DNSP Inputs General'!Y91*'PL Tariffs'!G50 -> 0.02113532395 | H228: ='DNSP Inputs General'!Z91*'PL Tariffs'!H50 -> 0.02328920776 | J228: 0 | K228: =D228/'Charges Summary'!K$4 -> 0.01837134725 | L228: =E228/'Charges Summary'!L$4 -> 0.01865545664 | M228: =F228/'Charges Summary'!M$4 -> 0.01888918347 | N228: =G228/'Charges Summary'!N$4 -> 0.01914756036 | O228: =H228/'Charges Summary'!O$4 -> 0.02058426614
A229: ='DNSP Inputs General'!B$92 -> HP Sodium 100W | C229: =IF('PL Tariffs'!C51=0,"",'DNSP Inputs General'!U92*'PL Tariffs'!C51) -> 27871.19929 | D229: ='DNSP Inputs General'!V92*'PL Tariffs'!D51 -> 30458.72439 | E229: ='DNSP Inputs General'!W92*'PL Tariffs'!E51 -> 29034.1216 | F229: ='DNSP Inputs General'!X92*'PL Tariffs'!F51 -> 27618.22117 | G229: ='DNSP Inputs General'!Y92*'PL Tariffs'!G51 -> 26301.42197 | H229: ='DNSP Inputs General'!Z92*'PL Tariffs'!H51 -> 17068.05695 | J229: 27871.19929 | K229: =D229/'Charges Summary'!K$4 -> 29715.82867 | L229: =E229/'Charges Summary'!L$4 -> 27635.09492 | M229: =F229/'Charges Summary'!M$4 -> 25646.26391 | N229: =G229/'Charges Summary'!N$4 -> 23827.79019 | O229: =H229/'Charges Summary'!O$4 -> 15085.67532
A230: ='DNSP Inputs General'!B93 -> HP Sodium 400W | C230: =IF('PL Tariffs'!C52=0,"",'DNSP Inputs General'!U93*'PL Tariffs'!C52) -> 44487.46852 | D230: ='DNSP Inputs General'!V93*'PL Tariffs'!D52 -> 46755.64176 | E230: ='DNSP Inputs General'!W93*'PL Tariffs'!E52 -> 42798.04184 | F230: ='DNSP Inputs General'!X93*'PL Tariffs'!F52 -> 38987.08768 | G230: ='DNSP Inputs General'!Y93*'PL Tariffs'!G52 -> 35550.86092 | H230: ='DNSP Inputs General'!Z93*'PL Tariffs'!H52 -> 20629.51672 | J230: 44487.46852 | K230: =D230/'Charges Summary'!K$4 -> 45615.26025 | L230: =E230/'Charges Summary'!L$4 -> 40735.79235 | M230: =F230/'Charges Summary'!M$4 -> 36203.38666 | N230: =G230/'Charges Summary'!N$4 -> 32207.32537 | O230: =H230/'Charges Summary'!O$4 -> 18233.48681
A231: ='DNSP Inputs General'!B94 -> Metal Halide 70W | C231: =IF('PL Tariffs'!C53=0,"",'DNSP Inputs General'!U94*'PL Tariffs'!C53) -> 0 | D231: ='DNSP Inputs General'!V94*'PL Tariffs'!D53 -> 0.05174707316 | E231: ='DNSP Inputs General'!W94*'PL Tariffs'!E53 -> 0.05379891733 | F231: ='DNSP Inputs General'!X94*'PL Tariffs'!F53 -> 0.0557241391 | G231: ='DNSP Inputs General'!Y94*'PL Tariffs'!G53 -> 0.0577384803 | H231: ='DNSP Inputs General'!Z94*'PL Tariffs'!H53 -> 0.06443947902 | J231: =C231 -> 0 | K231: =D231/'Charges Summary'!K$4 -> 0.05048494943 | L231: =E231/'Charges Summary'!L$4 -> 0.05120658401 | M231: =F231/'Charges Summary'!M$4 -> 0.05174540274 | N231: =G231/'Charges Summary'!N$4 -> 0.05230821346 | O231: =H231/'Charges Summary'!O$4 -> 0.05695510983
A232: ='DNSP Inputs General'!B95 -> Metal Halide 100W | C232: =IF('PL Tariffs'!C54=0,"",'DNSP Inputs General'!U95*'PL Tariffs'!C54) -> 0 | D232: ='DNSP Inputs General'!V95*'PL Tariffs'!D54 -> 0.03720592268 | E232: ='DNSP Inputs General'!W95*'PL Tariffs'!E54 -> 0.03868990117 | F232: ='DNSP Inputs General'!X95*'PL Tariffs'!F54 -> 0.04014885766 | G232: ='DNSP Inputs General'!Y95*'PL Tariffs'!G54 -> 0.04171048884 | H232: ='DNSP Inputs General'!Z95*'PL Tariffs'!H54 -> 0.04589201165 | J232: =C232 -> 0 | K232: =D232/'Charges Summary'!K$4 -> 0.03629846115 | L232: =E232/'Charges Summary'!L$4 -> 0.03682560493 | M232: =F232/'Charges Summary'!M$4 -> 0.03728220557 | N232: =G232/'Charges Summary'!N$4 -> 0.03778764426 | O232: =H232/'Charges Summary'!O$4 -> 0.04056185126
A233: ='DNSP Inputs General'!B96 -> Metal Halide 150W | C233: =IF('PL Tariffs'!C55=0,"",'DNSP Inputs General'!U96*'PL Tariffs'!C55) -> 0 | D233: ='DNSP Inputs General'!V96*'PL Tariffs'!D55 -> 0.04226928398 | E233: ='DNSP Inputs General'!W96*'PL Tariffs'!E55 -> 0.04395521739 | F233: ='DNSP Inputs General'!X96*'PL Tariffs'!F55 -> 0.04561272355 | G233: ='DNSP Inputs General'!Y96*'PL Tariffs'!G55 -> 0.04738687743 | H233: ='DNSP Inputs General'!Z96*'PL Tariffs'!H55 -> 0.05213746449 | J233: =C233 -> 0 | K233: =D233/'Charges Summary'!K$4 -> 0.04123832583 | L233: =E233/'Charges Summary'!L$4 -> 0.0418372087 | M233: =F233/'Charges Summary'!M$4 -> 0.04235594822 | N233: =G233/'Charges Summary'!N$4 -> 0.04293017216 | O233: =H233/'Charges Summary'!O$4 -> 0.04608192153
A234: ='DNSP Inputs General'!B97 -> HP Sodium 50W | C234: =IF('PL Tariffs'!C56=0,"",'DNSP Inputs General'!U97*'PL Tariffs'!C56) -> 0 | D234: ='DNSP Inputs General'!V97*'PL Tariffs'!D56 -> 0.007987837829 | E234: ='DNSP Inputs General'!W97*'PL Tariffs'!E56 -> 0.008306437091 | F234: ='DNSP Inputs General'!X97*'PL Tariffs'!F56 -> 0.008619664314 | G234: ='DNSP Inputs General'!Y97*'PL Tariffs'!G56 -> 0.008954935037 | H234: ='DNSP Inputs General'!Z97*'PL Tariffs'!H56 -> 0.009852677215 | J234: =C234 -> 0 | K234: =D234/'Charges Summary'!K$4 -> 0.007793012516 | L234: =E234/'Charges Summary'!L$4 -> 0.007906186405 | M234: =F234/'Charges Summary'!M$4 -> 0.008004215204 | N234: =G234/'Charges Summary'!N$4 -> 0.008112729171 | O234: =H234/'Charges Summary'!O$4 -> 0.008708331001
A246: ='DNSP Inputs General'!B$101 -> Energy Efficient Lights
A247: ='DNSP Inputs General'!B$102 -> T5 2X14W | C247: =IF('PL Tariffs'!C60=0,"",'DNSP Inputs General'!U102*'PL Tariffs'!C60) -> 185233.8775 | D247: ='DNSP Inputs General'!V102*'PL Tariffs'!D60 -> 144267.5747 | E247: ='DNSP Inputs General'!W102*'PL Tariffs'!E60 -> 116547.303 | F247: ='DNSP Inputs General'!X102*'PL Tariffs'!F60 -> 85783.12709 | G247: ='DNSP Inputs General'!Y102*'PL Tariffs'!G60 -> 52296.79294 | H247: ='DNSP Inputs General'!Z102*'PL Tariffs'!H60 -> 69.77031922 | J247: =C247 -> 185233.8775 | K247: =D247/'Charges Summary'!K$4 -> 140748.8533 | L247: =E247/'Charges Summary'!L$4 -> 110931.4008 | M247: =F247/'Charges Summary'!M$4 -> 79658.16129 | N247: =G247/'Charges Summary'!N$4 -> 47378.31328 | O247: =H247/'Charges Summary'!O$4 -> 61.66679579
A248: ='DNSP Inputs General'!B103 -> T5 2X24W | C248: =IF('PL Tariffs'!C61=0,"",'DNSP Inputs General'!U103*'PL Tariffs'!C61) -> 64646.18233 | D248: ='DNSP Inputs General'!V103*'PL Tariffs'!D61 -> 50389.16154 | E248: ='DNSP Inputs General'!W103*'PL Tariffs'!E61 -> 40545.03386 | F248: ='DNSP Inputs General'!X103*'PL Tariffs'!F61 -> 29628.6397 | G248: ='DNSP Inputs General'!Y103*'PL Tariffs'!G61 -> 17745.4365 | H248: ='DNSP Inputs General'!Z103*'PL Tariffs'!H61 -> 0 | J248: =C248 -> 64646.18233 | K248: =D248/'Charges Summary'!K$4 -> 49160.1576 | L248: =E248/'Charges Summary'!L$4 -> 38591.34692 | M248: =F248/'Charges Summary'!M$4 -> 27513.13737 | N248: =G248/'Charges Summary'!N$4 -> 16076.48964 | O248: =H248/'Charges Summary'!O$4 -> 0
A249: ='DNSP Inputs General'!B104 -> LED 18W | C249: =IF('PL Tariffs'!C62=0,"",'DNSP Inputs General'!U104*'PL Tariffs'!C62) -> 1037718.533 | D249: ='DNSP Inputs General'!V104*'PL Tariffs'!D62 -> 1139131.8 | E249: ='DNSP Inputs General'!W104*'PL Tariffs'!E62 -> 1291370.342 | F249: ='DNSP Inputs General'!X104*'PL Tariffs'!F62 -> 1447619.694 | G249: ='DNSP Inputs General'!Y104*'PL Tariffs'!G62 -> 1615020.69 | H249: ='DNSP Inputs General'!Z104*'PL Tariffs'!H62 -> 1819169.312 | J249: =C249 -> 1037718.533 | K249: =D249/'Charges Summary'!K$4 -> 1111348.098 | L249: =E249/'Charges Summary'!L$4 -> 1229144.882 | M249: =F249/'Charges Summary'!M$4 -> 1344258.795 | N249: =G249/'Charges Summary'!N$4 -> 1463129.036 | O249: =H249/'Charges Summary'!O$4 -> 1607880.597
A250: ='DNSP Inputs General'!B105 -> LED 14W | C250: =IF('PL Tariffs'!C63=0,"",'DNSP Inputs General'!U105*'PL Tariffs'!C63) -> 233063.3993 | D250: ='DNSP Inputs General'!V105*'PL Tariffs'!D63 -> 276910.9875 | E250: ='DNSP Inputs General'!W105*'PL Tariffs'!E63 -> 303140.5429 | F250: ='DNSP Inputs General'!X105*'PL Tariffs'!F63 -> 328865.9873 | G250: ='DNSP Inputs General'!Y105*'PL Tariffs'!G63 -> 355758.3706 | H250: ='DNSP Inputs General'!Z105*'PL Tariffs'!H63 -> 379260.5571 | J250: =C250 -> 233063.3993 | K250: =D250/'Charges Summary'!K$4 -> 270157.061 | L250: =E250/'Charges Summary'!L$4 -> 288533.5328 | M250: =F250/'Charges Summary'!M$4 -> 305384.7621 | N250: =G250/'Charges Summary'!N$4 -> 322299.5252 | O250: =H250/'Charges Summary'!O$4 -> 335211.0695
A251: ='DNSP Inputs General'!B106 -> LED 70W-125W (L1) | C251: =IF('PL Tariffs'!C64=0,"",'DNSP Inputs General'!U106*'PL Tariffs'!C64) -> 203321.9346 | D251: ='DNSP Inputs General'!V106*'PL Tariffs'!D64 -> 233611.8853 | E251: ='DNSP Inputs General'!W106*'PL Tariffs'!E64 -> 264466.4497 | F251: ='DNSP Inputs General'!X106*'PL Tariffs'!F64 -> 296156.502 | G251: ='DNSP Inputs General'!Y106*'PL Tariffs'!G64 -> 329966.333 | H251: ='DNSP Inputs General'!Z106*'PL Tariffs'!H64 -> 361608.4552 | J251: =C251 -> 203321.9346 | K251: =D251/'Charges Summary'!K$4 -> 227914.0344 | L251: =E251/'Charges Summary'!L$4 -> 251722.9741 | M251: =F251/'Charges Summary'!M$4 -> 275010.7533 | N251: =G251/'Charges Summary'!N$4 -> 298933.2121 | O251: =H251/'Charges Summary'!O$4 -> 319609.1836
A252: ='DNSP Inputs General'!B107 -> LED 155W-250W (L2) | C252: =IF('PL Tariffs'!C65=0,"",'DNSP Inputs General'!U107*'PL Tariffs'!C65) -> 109802.218 | D252: ='DNSP Inputs General'!V107*'PL Tariffs'!D65 -> 127055.2414 | E252: ='DNSP Inputs General'!W107*'PL Tariffs'!E65 -> 147070.1113 | F252: ='DNSP Inputs General'!X107*'PL Tariffs'!F65 -> 168022.8107 | G252: ='DNSP Inputs General'!Y107*'PL Tariffs'!G65 -> 190626.1932 | H252: ='DNSP Inputs General'!Z107*'PL Tariffs'!H65 -> 212374.0976 | J252: =C252 -> 109802.218 | K252: =D252/'Charges Summary'!K$4 -> 123956.3331 | L252: =E252/'Charges Summary'!L$4 -> 139983.4492 | M252: =F252/'Charges Summary'!M$4 -> 156025.883 | N252: =G252/'Charges Summary'!N$4 -> 172697.9226 | O252: =H252/'Charges Summary'!O$4 -> 187707.7568
A253: ='DNSP Inputs General'!B108 -> LED 275W-400W (L4) | C253: =IF('PL Tariffs'!C66=0,"",'DNSP Inputs General'!U108*'PL Tariffs'!C66) -> 11740.73537 | D253: ='DNSP Inputs General'!V108*'PL Tariffs'!D66 -> 15637.45858 | E253: ='DNSP Inputs General'!W108*'PL Tariffs'!E66 -> 18189.78944 | F253: ='DNSP Inputs General'!X108*'PL Tariffs'!F66 -> 20830.53948 | G253: ='DNSP Inputs General'!Y108*'PL Tariffs'!G66 -> 23651.62117 | H253: ='DNSP Inputs General'!Z108*'PL Tariffs'!H66 -> 26288.58786 | J253: =C253 -> 11740.73537 | K253: =D253/'Charges Summary'!K$4 -> 15256.05715 | L253: =E253/'Charges Summary'!L$4 -> 17313.30346 | M253: =F253/'Charges Summary'!M$4 -> 19343.22669 | N253: =G253/'Charges Summary'!N$4 -> 21427.20145 | O253: =H253/'Charges Summary'!O$4 -> 23235.2811
A254: ='DNSP Inputs General'!B109 -> Compact Fluorescent 32W | C254: =IF('PL Tariffs'!C67=0,"",'DNSP Inputs General'!U109*'PL Tariffs'!C67) -> 34456.34125 | D254: ='DNSP Inputs General'!V109*'PL Tariffs'!D67 -> 33548.06063 | E254: ='DNSP Inputs General'!W109*'PL Tariffs'!E67 -> 36141.50361 | F254: ='DNSP Inputs General'!X109*'PL Tariffs'!F67 -> 39914.46195 | G254: ='DNSP Inputs General'!Y109*'PL Tariffs'!G67 -> 48711.68773 | H254: ='DNSP Inputs General'!Z109*'PL Tariffs'!H67 -> 35288.13122 | J254: 34456.34125 | K254: =D254/'Charges Summary'!K$4 -> 32729.81525 | L254: =E254/'Charges Summary'!L$4 -> 34400.00344 | M254: =F254/'Charges Summary'!M$4 -> 37064.54586 | N254: =G254/'Charges Summary'!N$4 -> 44130.38491 | O254: =H254/'Charges Summary'!O$4 -> 31189.56608
A255: ='DNSP Inputs General'!B110 -> Compact Fluorescent 42W | C255: =IF('PL Tariffs'!C68=0,"",'DNSP Inputs General'!U110*'PL Tariffs'!C68) -> 118769.5102 | D255: ='DNSP Inputs General'!V110*'PL Tariffs'!D68 -> 115638.7064 | E255: ='DNSP Inputs General'!W110*'PL Tariffs'!E68 -> 124578.1916 | F255: ='DNSP Inputs General'!X110*'PL Tariffs'!F68 -> 137583.4149 | G255: ='DNSP Inputs General'!Y110*'PL Tariffs'!G68 -> 167907.0697 | H255: ='DNSP Inputs General'!Z110*'PL Tariffs'!H68 -> 121636.654 | J255: 118769.5102 | K255: =D255/'Charges Summary'!K$4 -> 112818.2501 | L255: =E255/'Charges Summary'!L$4 -> 118575.3162 | M255: =F255/'Charges Summary'!M$4 -> 127759.8781 | N255: =G255/'Charges Summary'!N$4 -> 152115.5181 | O255: =H255/'Charges Summary'!O$4 -> 107509.0782
A256: ='DNSP Inputs General'!B111 -> Smart lighting L1 | C256: =IF('PL Tariffs'!C69=0,"",'DNSP Inputs General'!U111*'PL Tariffs'!C69) -> 0 | D256: ='DNSP Inputs General'!V111*'PL Tariffs'!D69 -> 0 | E256: ='DNSP Inputs General'!W111*'PL Tariffs'!E69 -> 0 | F256: ='DNSP Inputs General'!X111*'PL Tariffs'!F69 -> 0 | G256: ='DNSP Inputs General'!Y111*'PL Tariffs'!G69 -> 0 | H256: ='DNSP Inputs General'!Z111*'PL Tariffs'!H69 -> 0 | J256: =C256 -> 0 | K256: =D256/'Charges Summary'!K$4 -> 0 | L256: =E256/'Charges Summary'!L$4 -> 0 | M256: =F256/'Charges Summary'!M$4 -> 0 | N256: =G256/'Charges Summary'!N$4 -> 0 | O256: =H256/'Charges Summary'!O$4 -> 0
A257: ='DNSP Inputs General'!B112 -> Smart lighting L2 | C257: =IF('PL Tariffs'!C70=0,"",'DNSP Inputs General'!U112*'PL Tariffs'!C70) -> 0 | D257: ='DNSP Inputs General'!V112*'PL Tariffs'!D70 -> 0 | E257: ='DNSP Inputs General'!W112*'PL Tariffs'!E70 -> 0 | F257: ='DNSP Inputs General'!X112*'PL Tariffs'!F70 -> 0 | G257: ='DNSP Inputs General'!Y112*'PL Tariffs'!G70 -> 0 | H257: ='DNSP Inputs General'!Z112*'PL Tariffs'!H70 -> 0 | J257: =C257 -> 0 | K257: =D257/'Charges Summary'!K$4 -> 0 | L257: =E257/'Charges Summary'!L$4 -> 0 | M257: =F257/'Charges Summary'!M$4 -> 0 | N257: =G257/'Charges Summary'!N$4 -> 0 | O257: =H257/'Charges Summary'!O$4 -> 0
A258: ='DNSP Inputs General'!B113 -> Smart lighting L4 | C258: =IF('PL Tariffs'!C71=0,"",'DNSP Inputs General'!U113*'PL Tariffs'!C71) -> 0 | D258: ='DNSP Inputs General'!V113*'PL Tariffs'!D71 -> 0 | E258: ='DNSP Inputs General'!W113*'PL Tariffs'!E71 -> 0 | F258: ='DNSP Inputs General'!X113*'PL Tariffs'!F71 -> 0 | G258: ='DNSP Inputs General'!Y113*'PL Tariffs'!G71 -> 0 | H258: ='DNSP Inputs General'!Z113*'PL Tariffs'!H71 -> 0 | J258: =C258 -> 0 | K258: =D258/'Charges Summary'!K$4 -> 0 | L258: =E258/'Charges Summary'!L$4 -> 0 | M258: =F258/'Charges Summary'!M$4 -> 0 | N258: =G258/'Charges Summary'!N$4 -> 0 | O258: =H258/'Charges Summary'!O$4 -> 0
A260: Total Revenue | C260: =IF(SUM(C222:C258)=0,0,SUM(C222:C258)) -> 2915462.715 | D260: 3170176.6 | E260: 3327018.812 | F260: 3483167.832 | G260: 3670401.212 | H260: 3785702.709 | J260: =IF(SUM(J222:J258)=0,0,SUM(J222:J258)) -> 2915462.715 | K260: 3092855.219 | L260: 3166704.402 | M260: 3234467.597 | N260: 3325202.345 | O260: 3346009.571
A263: Public Lighting - O & M | D263: Forecast O & M - $Nominal | K263: Forecast O & M - $Real Jun 2026
D264: =D$2 -> 2027-06-30 | E264: =E$2 -> 2028-06-30 | F264: =F$2 -> 2029-06-30 | G264: =G$2 -> 2030-06-30 | H264: =H$2 -> 2031-06-30 | K264: =K$2 -> 2027-06-30 | L264: =L$2 -> 2028-06-30 | M264: =M$2 -> 2029-06-30 | N264: =N$2 -> 2030-06-30 | O264: =O$2 -> 2031-06-30
A266: Unit cost
A267: ='DNSP Inputs General'!B$85 -> Mercury Vapour 80W | D267: =SUM('Charges Summary'!K25,'Charges Summary'!K8) -> 49.96367444 | E267: =SUM('Charges Summary'!L25,'Charges Summary'!L8) -> 51.37097265 | F267: =SUM('Charges Summary'!M25,'Charges Summary'!M8) -> 52.8153182 | G267: =SUM('Charges Summary'!N25,'Charges Summary'!N8) -> 54.36094579 | H267: =SUM('Charges Summary'!O25,'Charges Summary'!O8) -> 55.88401616 | K267: =D267/'Charges Summary'!K$4 -> 48.74504824 | L267: =E267/'Charges Summary'!L$4 -> 48.89563131 | M267: =F267/'Charges Summary'!M$4 -> 49.04427337 | N267: =G267/'Charges Summary'!N$4 -> 49.24833389 | O267: =H267/'Charges Summary'!O$4 -> 49.39332729
A268: ='DNSP Inputs General'!B$86 -> HP Sodium 150W | D268: =SUM('Charges Summary'!K49,'Charges Summary'!K8) -> 90.6271256 | E268: =SUM('Charges Summary'!L49,'Charges Summary'!L8) -> 93.69582424 | F268: =SUM('Charges Summary'!M49,'Charges Summary'!M8) -> 97.01204223 | G268: =SUM('Charges Summary'!N49,'Charges Summary'!N8) -> 100.6815391 | H268: =SUM('Charges Summary'!O49,'Charges Summary'!O8) -> 104.5581542 | K268: =D268/'Charges Summary'!K$4 -> 88.4167079 | L268: =E268/'Charges Summary'!L$4 -> 89.18103437 | M268: =F268/'Charges Summary'!M$4 -> 90.08532526 | N268: =G268/'Charges Summary'!N$4 -> 91.21250529 | O268: =H268/'Charges Summary'!O$4 -> 92.41417289
A269: ='DNSP Inputs General'!B$87 -> HP Sodium 250W | D269: =SUM('Charges Summary'!K65,'Charges Summary'!K8) -> 89.11981112 | E269: =SUM('Charges Summary'!L65,'Charges Summary'!L8) -> 92.2845845 | F269: =SUM('Charges Summary'!M65,'Charges Summary'!M8) -> 95.56500332 | G269: =SUM('Charges Summary'!N65,'Charges Summary'!N8) -> 99.19765809 | H269: =SUM('Charges Summary'!O65,'Charges Summary'!O8) -> 103.0574829 | K269: =D269/'Charges Summary'!K$4 -> 86.94615719 | L269: =E269/'Charges Summary'!L$4 -> 87.83779607 | M269: =F269/'Charges Summary'!M$4 -> 88.74160579 | N269: =G269/'Charges Summary'!N$4 -> 89.86818231 | O269: =H269/'Charges Summary'!O$4 -> 91.08779812
A271: ='DNSP Inputs General'!B$102 -> T5 2X14W | D271: =SUM('Charges Summary'!K83,'Charges Summary'!K8) -> 44.53053866 | E271: =SUM('Charges Summary'!L83,'Charges Summary'!L8) -> 48.14848063 | F271: =SUM('Charges Summary'!M83,'Charges Summary'!M8) -> 54.27046968 | G271: =SUM('Charges Summary'!N83,'Charges Summary'!N8) -> 70.34203518 | H271: =SUM('Charges Summary'!O83,'Charges Summary'!O8) -> 42.89204168 | K271: =D271/'Charges Summary'!K$4 -> 43.44442796 | L271: =E271/'Charges Summary'!L$4 -> 45.82841702 | M271: =F271/'Charges Summary'!M$4 -> 50.39552617 | N271: =G271/'Charges Summary'!N$4 -> 63.72641212 | O271: =H271/'Charges Summary'!O$4 -> 37.91031494
A272: ='DNSP Inputs General'!B$103 -> T5 2X24W | D272: =SUM('Charges Summary'!K99,'Charges Summary'!K8) -> 48.40549672 | E272: =SUM('Charges Summary'!L99,'Charges Summary'!L8) -> 52.00861399 | F272: =SUM('Charges Summary'!M99,'Charges Summary'!M8) -> 57.98573305 | G272: =SUM('Charges Summary'!N99,'Charges Summary'!N8) -> 73.38718314 | H272: =SUM('Charges Summary'!O99,'Charges Summary'!O8) -> 47.72678243 | K272: =D272/'Charges Summary'!K$4 -> 47.22487485 | L272: =E272/'Charges Summary'!L$4 -> 49.50254752 | M272: =F272/'Charges Summary'!M$4 -> 53.84551756 | N272: =G272/'Charges Summary'!N$4 -> 66.48516589 | O272: =H272/'Charges Summary'!O$4 -> 42.18352129
A273: ='DNSP Inputs General'!B$104 -> LED 18W | D273: =SUM('Charges Summary'!K115,'Charges Summary'!K8) -> 15.48919984 | E273: =SUM('Charges Summary'!L115,'Charges Summary'!L8) -> 15.96563107 | F273: =SUM('Charges Summary'!M115,'Charges Summary'!M8) -> 16.43733776 | G273: =SUM('Charges Summary'!N115,'Charges Summary'!N8) -> 16.96536195 | H273: =SUM('Charges Summary'!O115,'Charges Summary'!O8) -> 17.46019372 | K273: =D273/'Charges Summary'!K$4 -> 15.11141448 | L273: =E273/'Charges Summary'!L$4 -> 15.19631749 | M273: =F273/'Charges Summary'!M$4 -> 15.26370217 | N273: =G273/'Charges Summary'!N$4 -> 15.3697806 | O273: =H273/'Charges Summary'!O$4 -> 15.43226708
A274: ='DNSP Inputs General'!B$65 -> LED 14W | D274: =SUM('Charges Summary'!K131,'Charges Summary'!K$8) -> 17.2465594 | E274: =SUM('Charges Summary'!L131,'Charges Summary'!L$8) -> 17.77450153 | F274: =SUM('Charges Summary'!M131,'Charges Summary'!M$8) -> 18.30103829 | G274: =SUM('Charges Summary'!N131,'Charges Summary'!N$8) -> 18.88753054 | H274: =SUM('Charges Summary'!O131,'Charges Summary'!O$8) -> 19.44066647 | K274: =D274/'Charges Summary'!K$4 -> 16.82591161 | L274: =E274/'Charges Summary'!L$4 -> 16.91802645 | M274: =F274/'Charges Summary'!M$4 -> 16.99433337 | N274: =G274/'Charges Summary'!N$4 -> 17.11117047 | O274: =H274/'Charges Summary'!O$4 -> 17.18271641
A275: ='DNSP Inputs General'!B$66 -> LED 70W-125W (L1) | D275: =SUM('Charges Summary'!K147,'Charges Summary'!K$8) -> 28.48120946 | E275: =SUM('Charges Summary'!L147,'Charges Summary'!L$8) -> 29.38769295 | F275: =SUM('Charges Summary'!M147,'Charges Summary'!M$8) -> 30.32842118 | G275: =SUM('Charges Summary'!N147,'Charges Summary'!N$8) -> 31.36868728 | H275: =SUM('Charges Summary'!O147,'Charges Summary'!O$8) -> 32.36598541 | K275: =D275/'Charges Summary'!K$4 -> 27.78654581 | L275: =E275/'Charges Summary'!L$4 -> 27.97162922 | M275: =F275/'Charges Summary'!M$4 -> 28.16295405 | N275: =G275/'Charges Summary'!N$4 -> 28.41848247 | O275: =H275/'Charges Summary'!O$4 -> 28.60681498
A276: ='DNSP Inputs General'!B$67 -> LED 155W-250W (L2) | D276: =SUM('Charges Summary'!K163,'Charges Summary'!K$8) -> 28.48120946 | E276: =SUM('Charges Summary'!L163,'Charges Summary'!L$8) -> 29.38769295 | F276: =SUM('Charges Summary'!M163,'Charges Summary'!M$8) -> 30.32842118 | G276: =SUM('Charges Summary'!N163,'Charges Summary'!N$8) -> 31.36868728 | H276: =SUM('Charges Summary'!O163,'Charges Summary'!O$8) -> 32.36598541 | K276: =D276/'Charges Summary'!K$4 -> 27.78654581 | L276: =E276/'Charges Summary'!L$4 -> 27.97162922 | M276: =F276/'Charges Summary'!M$4 -> 28.16295405 | N276: =G276/'Charges Summary'!N$4 -> 28.41848247 | O276: =H276/'Charges Summary'!O$4 -> 28.60681498
A277: ='DNSP Inputs General'!B$68 -> LED 275W-400W (L4) | D277: =SUM('Charges Summary'!K179,'Charges Summary'!K$8) -> 28.48120946 | E277: =SUM('Charges Summary'!L179,'Charges Summary'!L$8) -> 29.38769295 | F277: =SUM('Charges Summary'!M179,'Charges Summary'!M$8) -> 30.32842118 | G277: =SUM('Charges Summary'!N179,'Charges Summary'!N$8) -> 31.36868728 | H277: =SUM('Charges Summary'!O179,'Charges Summary'!O$8) -> 32.36598541 | K277: =D277/'Charges Summary'!K$4 -> 27.78654581 | L277: =E277/'Charges Summary'!L$4 -> 27.97162922 | M277: =F277/'Charges Summary'!M$4 -> 28.16295405 | N277: =G277/'Charges Summary'!N$4 -> 28.41848247 | O277: =H277/'Charges Summary'!O$4 -> 28.60681498
A279: ='DNSP Inputs General'!B$84 -> Existing Lights
A280: ='DNSP Inputs General'!B$85 -> Mercury Vapour 80W | D280: =D267*'DNSP Inputs General'!V85 -> 32246.55549 | E280: =E267*'DNSP Inputs General'!W85 -> 33154.82575 | F280: =F267*'DNSP Inputs General'!X85 -> 34087.00637 | G280: =G267*'DNSP Inputs General'!Y85 -> 35084.55442 | H280: =H267*'DNSP Inputs General'!Z85 -> 36067.54403 | K280: =D280/'Charges Summary'!K$4 -> 31460.05413 | L280: =E280/'Charges Summary'!L$4 -> 31557.24045 | M280: =F280/'Charges Summary'!M$4 -> 31653.17403 | N280: =G280/'Charges Summary'!N$4 -> 31784.8747 | O280: =H280/'Charges Summary'!O$4 -> 31878.45343
A281: ='DNSP Inputs General'!B$86 -> HP Sodium 150W | D281: =D268*'DNSP Inputs General'!V86 -> 228102.8109 | E281: =E268*'DNSP Inputs General'!W86 -> 214387.7578 | F281: =F268*'DNSP Inputs General'!X86 -> 199778.1112 | G281: =G268*'DNSP Inputs General'!Y86 -> 184297.5574 | H281: =H268*'DNSP Inputs General'!Z86 -> 167469.4886 | K281: =D281/'Charges Summary'!K$4 -> 222539.3277 | L281: =E281/'Charges Summary'!L$4 -> 204057.3543 | M281: =F281/'Charges Summary'!M$4 -> 185513.8364 | N281: =G281/'Charges Summary'!N$4 -> 166964.4909 | O281: =H281/'Charges Summary'!O$4 -> 148018.6255
A282: ='DNSP Inputs General'!B$87 -> HP Sodium 250W | D282: =D269*'DNSP Inputs General'!V87 -> 216160.1019 | E282: =E269*'DNSP Inputs General'!W87 -> 203487.5088 | F282: =F269*'DNSP Inputs General'!X87 -> 189648.7491 | G282: =G269*'DNSP Inputs General'!Y87 -> 174984.6689 | H282: =H269*'DNSP Inputs General'!Z87 -> 159069.2248 | K282: =D282/'Charges Summary'!K$4 -> 210887.9043 | L282: =E282/'Charges Summary'!L$4 -> 193682.3403 | M282: =F282/'Charges Summary'!M$4 -> 176107.7167 | N282: =G282/'Charges Summary'!N$4 -> 158527.4736 | O282: =H282/'Charges Summary'!O$4 -> 140594.0164
A283: ='DNSP Inputs General'!B$88 -> Mercury Vapour 50W | D283: =IF('DNSP Inputs General'!$C88='DNSP Inputs General'!$B$85,D$267,IF('DNSP Inputs General'!$C88='DNSP Inputs General'!$B$86,D$268,D$269))*'DNSP Inputs General'!$D88*'DNSP Inputs General'!V88 -> 0.007394623818 | E283: =IF('DNSP Inputs General'!$C88='DNSP Inputs General'!$B$85,E$267,IF('DNSP Inputs General'!$C88='DNSP Inputs General'!$B$86,E$268,E$269))*'DNSP Inputs General'!$D88*'DNSP Inputs General'!W88 -> 0.007602903952 | F283: =IF('DNSP Inputs General'!$C88='DNSP Inputs General'!$B$85,F$267,IF('DNSP Inputs General'!$C88='DNSP Inputs General'!$B$86,F$268,F$269))*'DNSP Inputs General'!$D88*'DNSP Inputs General'!X88 -> 0.007816667094 | G283: =IF('DNSP Inputs General'!$C88='DNSP Inputs General'!$B$85,G$267,IF('DNSP Inputs General'!$C88='DNSP Inputs General'!$B$86,G$268,G$269))*'DNSP Inputs General'!$D88*'DNSP Inputs General'!Y88 -> 0.008045419977 | H283: =IF('DNSP Inputs General'!$C88='DNSP Inputs General'!$B$85,H$267,IF('DNSP Inputs General'!$C88='DNSP Inputs General'!$B$86,H$268,H$269))*'DNSP Inputs General'!$D88*'DNSP Inputs General'!Z88 -> 0.008270834392 | K283: =D283/'Charges Summary'!K$4 -> 0.007214267139 | L283: =E283/'Charges Summary'!L$4 -> 0.007236553434 | M283: =F283/'Charges Summary'!M$4 -> 0.007258552459 | N283: =G283/'Charges Summary'!N$4 -> 0.007288753416 | O283: =H283/'Charges Summary'!O$4 -> 0.007310212439
A284: ='DNSP Inputs General'!B$89 -> Mercury Vapour 125W | D284: =IF('DNSP Inputs General'!$C89='DNSP Inputs General'!$B$85,D$267,IF('DNSP Inputs General'!$C89='DNSP Inputs General'!$B$86,D$268,D$269))*'DNSP Inputs General'!$D89*'DNSP Inputs General'!V89 -> 0.007394623818 | E284: =IF('DNSP Inputs General'!$C89='DNSP Inputs General'!$B$85,E$267,IF('DNSP Inputs General'!$C89='DNSP Inputs General'!$B$86,E$268,E$269))*'DNSP Inputs General'!$D89*'DNSP Inputs General'!W89 -> 0.007602903952 | F284: =IF('DNSP Inputs General'!$C89='DNSP Inputs General'!$B$85,F$267,IF('DNSP Inputs General'!$C89='DNSP Inputs General'!$B$86,F$268,F$269))*'DNSP Inputs General'!$D89*'DNSP Inputs General'!X89 -> 0.007816667094 | G284: =IF('DNSP Inputs General'!$C89='DNSP Inputs General'!$B$85,G$267,IF('DNSP Inputs General'!$C89='DNSP Inputs General'!$B$86,G$268,G$269))*'DNSP Inputs General'!$D89*'DNSP Inputs General'!Y89 -> 0.008045419977 | H284: =IF('DNSP Inputs General'!$C89='DNSP Inputs General'!$B$85,H$267,IF('DNSP Inputs General'!$C89='DNSP Inputs General'!$B$86,H$268,H$269))*'DNSP Inputs General'!$D89*'DNSP Inputs General'!Z89 -> 0.008270834392 | K284: =D284/'Charges Summary'!K$4 -> 0.007214267139 | L284: =E284/'Charges Summary'!L$4 -> 0.007236553434 | M284: =F284/'Charges Summary'!M$4 -> 0.007258552459 | N284: =G284/'Charges Summary'!N$4 -> 0.007288753416 | O284: =H284/'Charges Summary'!O$4 -> 0.007310212439
A285: ='DNSP Inputs General'!B$90 -> Mercury Vapour 250W | D285: =IF('DNSP Inputs General'!$C90='DNSP Inputs General'!$B$85,D$267,IF('DNSP Inputs General'!$C90='DNSP Inputs General'!$B$86,D$268,D$269))*'DNSP Inputs General'!$D90*'DNSP Inputs General'!V90 -> 0.009268460357 | E285: =IF('DNSP Inputs General'!$C90='DNSP Inputs General'!$B$85,E$267,IF('DNSP Inputs General'!$C90='DNSP Inputs General'!$B$86,E$268,E$269))*'DNSP Inputs General'!$D90*'DNSP Inputs General'!W90 -> 0.009597596788 | F285: =IF('DNSP Inputs General'!$C90='DNSP Inputs General'!$B$85,F$267,IF('DNSP Inputs General'!$C90='DNSP Inputs General'!$B$86,F$268,F$269))*'DNSP Inputs General'!$D90*'DNSP Inputs General'!X90 -> 0.009938760346 | G285: =IF('DNSP Inputs General'!$C90='DNSP Inputs General'!$B$85,G$267,IF('DNSP Inputs General'!$C90='DNSP Inputs General'!$B$86,G$268,G$269))*'DNSP Inputs General'!$D90*'DNSP Inputs General'!Y90 -> 0.01031655644 | H285: =IF('DNSP Inputs General'!$C90='DNSP Inputs General'!$B$85,H$267,IF('DNSP Inputs General'!$C90='DNSP Inputs General'!$B$86,H$268,H$269))*'DNSP Inputs General'!$D90*'DNSP Inputs General'!Z90 -> 0.01071797822 | K285: =D285/'Charges Summary'!K$4 -> 0.009042400348 | L285: =E285/'Charges Summary'!L$4 -> 0.009135130791 | M285: =F285/'Charges Summary'!M$4 -> 0.009229127002 | N285: =G285/'Charges Summary'!N$4 -> 0.00934629096 | O285: =H285/'Charges Summary'!O$4 -> 0.009473131005
A286: ='DNSP Inputs General'!B$91 -> Mercury Vapour 400W | D286: =IF('DNSP Inputs General'!$C91='DNSP Inputs General'!$B$85,D$267,IF('DNSP Inputs General'!$C91='DNSP Inputs General'!$B$86,D$268,D$269))*'DNSP Inputs General'!$D91*'DNSP Inputs General'!V91 -> 0.00953581979 | E286: =IF('DNSP Inputs General'!$C91='DNSP Inputs General'!$B$85,E$267,IF('DNSP Inputs General'!$C91='DNSP Inputs General'!$B$86,E$268,E$269))*'DNSP Inputs General'!$D91*'DNSP Inputs General'!W91 -> 0.009874450541 | F286: =IF('DNSP Inputs General'!$C91='DNSP Inputs General'!$B$85,F$267,IF('DNSP Inputs General'!$C91='DNSP Inputs General'!$B$86,F$268,F$269))*'DNSP Inputs General'!$D91*'DNSP Inputs General'!X91 -> 0.01022545536 | G286: =IF('DNSP Inputs General'!$C91='DNSP Inputs General'!$B$85,G$267,IF('DNSP Inputs General'!$C91='DNSP Inputs General'!$B$86,G$268,G$269))*'DNSP Inputs General'!$D91*'DNSP Inputs General'!Y91 -> 0.01061414942 | H286: =IF('DNSP Inputs General'!$C91='DNSP Inputs General'!$B$85,H$267,IF('DNSP Inputs General'!$C91='DNSP Inputs General'!$B$86,H$268,H$269))*'DNSP Inputs General'!$D91*'DNSP Inputs General'!Z91 -> 0.01102715067 | K286: =D286/'Charges Summary'!K$4 -> 0.009303238819 | L286: =E286/'Charges Summary'!L$4 -> 0.00939864418 | M286: =F286/'Charges Summary'!M$4 -> 0.00949535182 | N286: =G286/'Charges Summary'!N$4 -> 0.009615895507 | O286: =H286/'Charges Summary'!O$4 -> 0.009746394399
A287: ='DNSP Inputs General'!B$92 -> HP Sodium 100W | D287: =IF('DNSP Inputs General'!$C92='DNSP Inputs General'!$B$85,D$267,IF('DNSP Inputs General'!$C92='DNSP Inputs General'!$B$86,D$268,D$269))*'DNSP Inputs General'!$D92*'DNSP Inputs General'!V92 -> 15714.25742 | E287: =IF('DNSP Inputs General'!$C92='DNSP Inputs General'!$B$85,E$267,IF('DNSP Inputs General'!$C92='DNSP Inputs General'!$B$86,E$268,E$269))*'DNSP Inputs General'!$D92*'DNSP Inputs General'!W92 -> 14892.49053 | F287: =IF('DNSP Inputs General'!$C92='DNSP Inputs General'!$B$85,F$267,IF('DNSP Inputs General'!$C92='DNSP Inputs General'!$B$86,F$268,F$269))*'DNSP Inputs General'!$D92*'DNSP Inputs General'!X92 -> 14134.62148 | G287: =IF('DNSP Inputs General'!$C92='DNSP Inputs General'!$B$85,G$267,IF('DNSP Inputs General'!$C92='DNSP Inputs General'!$B$86,G$268,G$269))*'DNSP Inputs General'!$D92*'DNSP Inputs General'!Y92 -> 13446.8271 | H287: =IF('DNSP Inputs General'!$C92='DNSP Inputs General'!$B$85,H$267,IF('DNSP Inputs General'!$C92='DNSP Inputs General'!$B$86,H$268,H$269))*'DNSP Inputs General'!$D92*'DNSP Inputs General'!Z92 -> 8236.46622 | K287: =D287/'Charges Summary'!K$4 -> 15330.98285 | L287: =E287/'Charges Summary'!L$4 -> 14174.88688 | M287: =F287/'Charges Summary'!M$4 -> 13125.40118 | N287: =G287/'Charges Summary'!N$4 -> 12182.16168 | O287: =H287/'Charges Summary'!O$4 -> 7279.835983
A288: ='DNSP Inputs General'!B93 -> HP Sodium 400W | D288: =IF('DNSP Inputs General'!$C93='DNSP Inputs General'!$B$85,D$267,IF('DNSP Inputs General'!$C93='DNSP Inputs General'!$B$86,D$268,D$269))*'DNSP Inputs General'!$D93*'DNSP Inputs General'!V93 -> 23677.0279 | E288: =IF('DNSP Inputs General'!$C93='DNSP Inputs General'!$B$85,E$267,IF('DNSP Inputs General'!$C93='DNSP Inputs General'!$B$86,E$268,E$269))*'DNSP Inputs General'!$D93*'DNSP Inputs General'!W93 -> 21561.71112 | F288: =IF('DNSP Inputs General'!$C93='DNSP Inputs General'!$B$85,F$267,IF('DNSP Inputs General'!$C93='DNSP Inputs General'!$B$86,F$268,F$269))*'DNSP Inputs General'!$D93*'DNSP Inputs General'!X93 -> 19598.31215 | G288: =IF('DNSP Inputs General'!$C93='DNSP Inputs General'!$B$85,G$267,IF('DNSP Inputs General'!$C93='DNSP Inputs General'!$B$86,G$268,G$269))*'DNSP Inputs General'!$D93*'DNSP Inputs General'!Y93 -> 17853.62507 | H288: =IF('DNSP Inputs General'!$C93='DNSP Inputs General'!$B$85,H$267,IF('DNSP Inputs General'!$C93='DNSP Inputs General'!$B$86,H$268,H$269))*'DNSP Inputs General'!$D93*'DNSP Inputs General'!Z93 -> 9767.81999 | K288: =D288/'Charges Summary'!K$4 -> 23099.53941 | L288: =E288/'Charges Summary'!L$4 -> 20522.74705 | M288: =F288/'Charges Summary'!M$4 -> 18198.98112 | N288: =G288/'Charges Summary'!N$4 -> 16174.50315 | O288: =H288/'Charges Summary'!O$4 -> 8633.329579
A289: ='DNSP Inputs General'!B94 -> Metal Halide 70W | D289: =IF('DNSP Inputs General'!$C94='DNSP Inputs General'!$B$85,D$267,IF('DNSP Inputs General'!$C94='DNSP Inputs General'!$B$86,D$268,D$269))*'DNSP Inputs General'!$D94*'DNSP Inputs General'!V94 -> 0.01900839034 | E289: =IF('DNSP Inputs General'!$C94='DNSP Inputs General'!$B$85,E$267,IF('DNSP Inputs General'!$C94='DNSP Inputs General'!$B$86,E$268,E$269))*'DNSP Inputs General'!$D94*'DNSP Inputs General'!W94 -> 0.01954378878 | F289: =IF('DNSP Inputs General'!$C94='DNSP Inputs General'!$B$85,F$267,IF('DNSP Inputs General'!$C94='DNSP Inputs General'!$B$86,F$268,F$269))*'DNSP Inputs General'!$D94*'DNSP Inputs General'!X94 -> 0.02009328168 | G289: =IF('DNSP Inputs General'!$C94='DNSP Inputs General'!$B$85,G$267,IF('DNSP Inputs General'!$C94='DNSP Inputs General'!$B$86,G$268,G$269))*'DNSP Inputs General'!$D94*'DNSP Inputs General'!Y94 -> 0.02068130673 | H289: =IF('DNSP Inputs General'!$C94='DNSP Inputs General'!$B$85,H$267,IF('DNSP Inputs General'!$C94='DNSP Inputs General'!$B$86,H$268,H$269))*'DNSP Inputs General'!$D94*'DNSP Inputs General'!Z94 -> 0.02126075003 | K289: =D289/'Charges Summary'!K$4 -> 0.01854477106 | L289: =E289/'Charges Summary'!L$4 -> 0.01860205952 | M289: =F289/'Charges Summary'!M$4 -> 0.01865860953 | N289: =G289/'Charges Summary'!N$4 -> 0.01873624317 | O289: =H289/'Charges Summary'!O$4 -> 0.01879140507
... 59 more rows

Sheet PL Tariffs
A1: ='DNSP Inputs O&M'!$A$3 -> AusNet | E1: Global Check | F1: =IF(SUM('Total RAB'!F1,'Depn & WACC Post 2004 N & E'!F1,'Depn & WACC Post 2004 Central'!F1,'Cashflow Summary'!F1,'PL Tariff Components'!W1)<1,"Ok","Error") -> Ok
D3: ='DNSP Inputs General'!$B$42 -> Central | V3: Average
A4: Public Lighting Tariffs | C4: Nominal Prices | J4: Nominal Price Movement | P4: Real Price Movement (Implied X Factor) | V4: Nubmer | W4: % of | Y4: Revised Submission Model | AE4: Difference
C5: Actual | V5: of Lights | W5: Total Lights
A6: ='DNSP Inputs General'!B$44 -> Existing Lights | C6: =EOMONTH(D6,-12) -> 2026-06-30 | D6: =Instructions!$B$16 -> 2027-06-30 | E6: =EOMONTH(D6,12) -> 2028-06-30 | F6: =EOMONTH(E6,12) -> 2029-06-30 | G6: =EOMONTH(F6,12) -> 2030-06-30 | H6: =EOMONTH(G6,12) -> 2031-06-30 | J6: =D6 -> 2027-06-30 | K6: =E6 -> 2028-06-30 | L6: =F6 -> 2029-06-30 | M6: =G6 -> 2030-06-30 | N6: =H6 -> 2031-06-30 | P6: =J6 -> 2027-06-30 | Q6: =K6 -> 2028-06-30 | R6: =L6 -> 2029-06-30 | S6: =M6 -> 2030-06-30 | T6: =N6 -> 2031-06-30 | V6: =Instructions!$B$20 -> 2027-31 | W6: =Instructions!$B$20 -> 2027-31 | Y6: =P6 -> 2027-06-30 | Z6: =Q6 -> 2028-06-30 | AA6: =R6 -> 2029-06-30 | AB6: =S6 -> 2030-06-30 | AC6: =T6 -> 2031-06-30 | AE6: =Y6 -> 2027-06-30 | AF6: =Z6 -> 2028-06-30 | AG6: =AA6 -> 2029-06-30 | AH6: =AB6 -> 2030-06-30 | AI6: =AC6 -> 2031-06-30
A7: ='DNSP Inputs General'!B45 -> Mercury Vapour 80W | C7: ='DNSP Inputs General'!E45 -> 71.68462513 | D7: ='Charges Summary'!D$31 -> 132.239802 | E7: ='Charges Summary'!E$31 -> 137.5063099 | F7: ='Charges Summary'!F$31 -> 142.4465705 | G7: ='Charges Summary'!G$31 -> 147.6150937 | H7: ='Charges Summary'!H$31 -> 165.1032116 | J7: =IF(C7=0,"",D7/C7-1) -> 0.844744278 | K7: =IF(D7=0,"",E7/D7-1) -> 0.03982543678 | L7: =IF(E7=0,"",F7/E7-1) -> 0.03592751908 | M7: =IF(F7=0,"",G7/F7-1) -> 0.03628394301 | N7: =IF(G7=0,"",H7/G7-1) -> 0.1184710683 | P7: =IF(C7=0,"",(D7/'Charges Summary'!D$4)/C7-1) -> 0.7997505151 | Q7: =IF(D7=0,"",(E7/'Charges Summary'!E$4)/(D7/'Charges Summary'!D$4)-1) -> 0.01446384076 | R7: =IF(E7=0,"",(F7/'Charges Summary'!F$4)/(E7/'Charges Summary'!E$4)-1) -> 0.01066099422 | S7: =IF(F7=0,"",(G7/'Charges Summary'!G$4)/(F7/'Charges Summary'!F$4)-1) -> 0.01100872489 | T7: =IF(G7=0,"",(H7/'Charges Summary'!H$4)/(G7/'Charges Summary'!G$4)-1) -> 0.09119128619 | V7: =SUM('DNSP Inputs General'!V45:Z45)/5 -> 3348.4 | W7: =V7/V$35 -> 0.02583229728 | AE7: =D7-Y7 -> 132.239802 | AF7: =E7-Z7 -> 137.5063099 | AG7: =F7-AA7 -> 142.4465705 | AH7: =G7-AB7 -> 147.6150937 | AI7: =H7-AC7 -> 165.1032116
A8: ='DNSP Inputs General'!B46 -> HP Sodium 150W | C8: ='DNSP Inputs General'!E46 -> 128.2482859 | D8: ='Charges Summary'!D$55 -> 156.4659213 | E8: ='Charges Summary'!E$55 -> 162.6585633 | F8: ='Charges Summary'!F$55 -> 168.64072 | G8: ='Charges Summary'!G$55 -> 174.9745804 | H8: ='Charges Summary'!H$55 -> 193.5602899 | J8: 0.2200234901 | K8: 0.03957821582 | L8: 0.03677738556 | M8: 0.03755830972 | N8: 0.1062194833 | P8: =IF(C8=0,"",(D8/'Charges Summary'!D$4)/C8-1) -> 0.1902668196 | Q8: =IF(D8=0,"",(E8/'Charges Summary'!E$4)/(D8/'Charges Summary'!D$4)-1) -> 0.01422264958 | R8: =IF(E8=0,"",(F8/'Charges Summary'!F$4)/(E8/'Charges Summary'!E$4)-1) -> 0.01149013225 | S8: =IF(F8=0,"",(G8/'Charges Summary'!G$4)/(F8/'Charges Summary'!F$4)-1) -> 0.01225200948 | T8: =IF(G8=0,"",(H8/'Charges Summary'!H$4)/(G8/'Charges Summary'!G$4)-1) -> 0.07923852027 | V8: =SUM('DNSP Inputs General'!V46:Z46)/5 -> 8174.341782 | W8: =V8/V$35 -> 0.0630635608 | AE8: =D8-Y8 -> 156.4659213 | AF8: =E8-Z8 -> 162.6585633 | AG8: =F8-AA8 -> 168.64072 | AH8: =G8-AB8 -> 174.9745804 | AI8: =H8-AC8 -> 193.5602899
A9: ='DNSP Inputs General'!B47 -> HP Sodium 250W | C9: ='DNSP Inputs General'!E47 -> 131.5919745 | D9: ='Charges Summary'!D$71 -> 159.6799703 | E9: ='Charges Summary'!E$71 -> 166.0111726 | F9: ='Charges Summary'!F$71 -> 172.1306485 | G9: ='Charges Summary'!G$71 -> 178.6124379 | H9: ='Charges Summary'!H$71 -> 197.6885432 | J9: 0.213447636 | K9: 0.03964932025 | L9: 0.03686183179 | M9: 0.03765621901 | N9: 0.106801662 | P9: =IF(C9=0,"",(D9/'Charges Summary'!D$4)/C9-1) -> 0.1838513522 | Q9: =IF(D9=0,"",(E9/'Charges Summary'!E$4)/(D9/'Charges Summary'!D$4)-1) -> 0.01429201976 | R9: =IF(E9=0,"",(F9/'Charges Summary'!F$4)/(E9/'Charges Summary'!E$4)-1) -> 0.01157251882 | S9: =IF(F9=0,"",(G9/'Charges Summary'!G$4)/(F9/'Charges Summary'!F$4)-1) -> 0.01234753074 | T9: =IF(G9=0,"",(H9/'Charges Summary'!H$4)/(G9/'Charges Summary'!G$4)-1) -> 0.07980649949 | V9: =SUM('DNSP Inputs General'!V47:Z47)/5 -> 3362.671991 | W9: =V9/V$35 -> 0.02594240309 | AE9: 159.6799703 | AF9: 166.0111726 | AG9: 172.1306485 | AH9: 178.6124379 | AI9: 197.6885432
A10: ='DNSP Inputs General'!B48 -> Mercury Vapour 50W | C10: ='DNSP Inputs General'!E48 -> 109.6774764 | D10: =IF('DNSP Inputs General'!$C48='DNSP Inputs General'!$B$45,D$7,IF('DNSP Inputs General'!$C48='DNSP Inputs General'!$B$46,D$8,D$9))*'DNSP Inputs General'!$D48 -> 202.3268971 | E10: =IF('DNSP Inputs General'!$C48='DNSP Inputs General'!$B$45,E$7,IF('DNSP Inputs General'!$C48='DNSP Inputs General'!$B$46,E$8,E$9))*'DNSP Inputs General'!$D48 -> 210.3846541 | F10: =IF('DNSP Inputs General'!$C48='DNSP Inputs General'!$B$45,F$7,IF('DNSP Inputs General'!$C48='DNSP Inputs General'!$B$46,F$8,F$9))*'DNSP Inputs General'!$D48 -> 217.9432528 | G10: =IF('DNSP Inputs General'!$C48='DNSP Inputs General'!$B$45,G$7,IF('DNSP Inputs General'!$C48='DNSP Inputs General'!$B$46,G$8,G$9))*'DNSP Inputs General'!$D48 -> 225.8510934 | H10: =IF('DNSP Inputs General'!$C48='DNSP Inputs General'!$B$45,H$7,IF('DNSP Inputs General'!$C48='DNSP Inputs General'!$B$46,H$8,H$9))*'DNSP Inputs General'!$D48 -> 252.6079137 | J10: 0.844744278 | K10: 0.03982543678 | L10: 0.03592751908 | M10: 0.03628394301 | N10: 0.1184710683 | P10: =IF(C10=0,"",(D10/'Charges Summary'!D$4)/C10-1) -> 0.7997505151 | Q10: =IF(D10=0,"",(E10/'Charges Summary'!E$4)/(D10/'Charges Summary'!D$4)-1) -> 0.01446384076 | R10: =IF(E10=0,"",(F10/'Charges Summary'!F$4)/(E10/'Charges Summary'!E$4)-1) -> 0.01066099422 | S10: =IF(F10=0,"",(G10/'Charges Summary'!G$4)/(F10/'Charges Summary'!F$4)-1) -> 0.01100872489 | T10: =IF(G10=0,"",(H10/'Charges Summary'!H$4)/(G10/'Charges Summary'!G$4)-1) -> 0.09119128619 | V10: =SUM('DNSP Inputs General'!V48:Z48)/5 -> 0 | W10: 0 | AE10: 202.3268971 | AF10: 210.3846541 | AG10: 217.9432528 | AH10: 225.8510934 | AI10: 252.6079137
A11: ='DNSP Inputs General'!B49 -> Mercury Vapour 125W | C11: ='DNSP Inputs General'!E49 -> 105.3763989 | D11: =IF('DNSP Inputs General'!$C49='DNSP Inputs General'!$B$45,D$7,IF('DNSP Inputs General'!$C49='DNSP Inputs General'!$B$46,D$8,D$9))*'DNSP Inputs General'!$D49 -> 194.392509 | E11: =IF('DNSP Inputs General'!$C49='DNSP Inputs General'!$B$45,E$7,IF('DNSP Inputs General'!$C49='DNSP Inputs General'!$B$46,E$8,E$9))*'DNSP Inputs General'!$D49 -> 202.1342755 | F11: =IF('DNSP Inputs General'!$C49='DNSP Inputs General'!$B$45,F$7,IF('DNSP Inputs General'!$C49='DNSP Inputs General'!$B$46,F$8,F$9))*'DNSP Inputs General'!$D49 -> 209.3964586 | G11: =IF('DNSP Inputs General'!$C49='DNSP Inputs General'!$B$45,G$7,IF('DNSP Inputs General'!$C49='DNSP Inputs General'!$B$46,G$8,G$9))*'DNSP Inputs General'!$D49 -> 216.9941878 | H11: =IF('DNSP Inputs General'!$C49='DNSP Inputs General'!$B$45,H$7,IF('DNSP Inputs General'!$C49='DNSP Inputs General'!$B$46,H$8,H$9))*'DNSP Inputs General'!$D49 -> 242.701721 | J11: 0.844744278 | K11: 0.03982543678 | L11: 0.03592751908 | M11: 0.03628394301 | N11: 0.1184710683 | P11: =IF(C11=0,"",(D11/'Charges Summary'!D$4)/C11-1) -> 0.7997505151 | Q11: =IF(D11=0,"",(E11/'Charges Summary'!E$4)/(D11/'Charges Summary'!D$4)-1) -> 0.01446384076 | R11: =IF(E11=0,"",(F11/'Charges Summary'!F$4)/(E11/'Charges Summary'!E$4)-1) -> 0.01066099422 | S11: =IF(F11=0,"",(G11/'Charges Summary'!G$4)/(F11/'Charges Summary'!F$4)-1) -> 0.01100872489 | T11: =IF(G11=0,"",(H11/'Charges Summary'!H$4)/(G11/'Charges Summary'!G$4)-1) -> 0.09119128619 | V11: =SUM('DNSP Inputs General'!V49:Z49)/5 -> 0 | W11: 0 | AE11: 194.392509 | AF11: 202.1342755 | AG11: 209.3964586 | AH11: 216.9941878 | AI11: 242.701721
A12: ='DNSP Inputs General'!B50 -> Mercury Vapour 250W | C12: ='DNSP Inputs General'!E50 -> 138.1715732 | D12: =IF('DNSP Inputs General'!$C50='DNSP Inputs General'!$B$45,D$7,IF('DNSP Inputs General'!$C50='DNSP Inputs General'!$B$46,D$8,D$9))*'DNSP Inputs General'!$D50 -> 167.6639689 | E12: =IF('DNSP Inputs General'!$C50='DNSP Inputs General'!$B$45,E$7,IF('DNSP Inputs General'!$C50='DNSP Inputs General'!$B$46,E$8,E$9))*'DNSP Inputs General'!$D50 -> 174.3117313 | F12: =IF('DNSP Inputs General'!$C50='DNSP Inputs General'!$B$45,F$7,IF('DNSP Inputs General'!$C50='DNSP Inputs General'!$B$46,F$8,F$9))*'DNSP Inputs General'!$D50 -> 180.737181 | G12: =IF('DNSP Inputs General'!$C50='DNSP Inputs General'!$B$45,G$7,IF('DNSP Inputs General'!$C50='DNSP Inputs General'!$B$46,G$8,G$9))*'DNSP Inputs General'!$D50 -> 187.5430598 | H12: =IF('DNSP Inputs General'!$C50='DNSP Inputs General'!$B$45,H$7,IF('DNSP Inputs General'!$C50='DNSP Inputs General'!$B$46,H$8,H$9))*'DNSP Inputs General'!$D50 -> 207.5729703 | J12: 0.213447636 | K12: 0.03964932025 | L12: 0.03686183179 | M12: 0.03765621901 | N12: 0.106801662 | P12: =IF(C12=0,"",(D12/'Charges Summary'!D$4)/C12-1) -> 0.1838513522 | Q12: =IF(D12=0,"",(E12/'Charges Summary'!E$4)/(D12/'Charges Summary'!D$4)-1) -> 0.01429201976 | R12: =IF(E12=0,"",(F12/'Charges Summary'!F$4)/(E12/'Charges Summary'!E$4)-1) -> 0.01157251882 | S12: =IF(F12=0,"",(G12/'Charges Summary'!G$4)/(F12/'Charges Summary'!F$4)-1) -> 0.01234753074 | T12: =IF(G12=0,"",(H12/'Charges Summary'!H$4)/(G12/'Charges Summary'!G$4)-1) -> 0.07980649949 | V12: =SUM('DNSP Inputs General'!V50:Z50)/5 -> 0 | W12: 0 | AE12: 167.6639689 | AF12: 174.3117313 | AG12: 180.737181 | AH12: 187.5430598 | AI12: 207.5729703
A13: ='DNSP Inputs General'!B51 -> Mercury Vapour 400W | C13: ='DNSP Inputs General'!E51 -> 143.4352522 | D13: =IF('DNSP Inputs General'!$C51='DNSP Inputs General'!$B$45,D$7,IF('DNSP Inputs General'!$C51='DNSP Inputs General'!$B$46,D$8,D$9))*'DNSP Inputs General'!$D51 -> 174.0511677 | E13: =IF('DNSP Inputs General'!$C51='DNSP Inputs General'!$B$45,E$7,IF('DNSP Inputs General'!$C51='DNSP Inputs General'!$B$46,E$8,E$9))*'DNSP Inputs General'!$D51 -> 180.9521782 | F13: =IF('DNSP Inputs General'!$C51='DNSP Inputs General'!$B$45,F$7,IF('DNSP Inputs General'!$C51='DNSP Inputs General'!$B$46,F$8,F$9))*'DNSP Inputs General'!$D51 -> 187.6224069 | G13: =IF('DNSP Inputs General'!$C51='DNSP Inputs General'!$B$45,G$7,IF('DNSP Inputs General'!$C51='DNSP Inputs General'!$B$46,G$8,G$9))*'DNSP Inputs General'!$D51 -> 194.6875574 | H13: =IF('DNSP Inputs General'!$C51='DNSP Inputs General'!$B$45,H$7,IF('DNSP Inputs General'!$C51='DNSP Inputs General'!$B$46,H$8,H$9))*'DNSP Inputs General'!$D51 -> 215.4805121 | J13: 0.213447636 | K13: 0.03964932025 | L13: 0.03686183179 | M13: 0.03765621901 | N13: 0.106801662 | P13: =IF(C13=0,"",(D13/'Charges Summary'!D$4)/C13-1) -> 0.1838513522 | Q13: =IF(D13=0,"",(E13/'Charges Summary'!E$4)/(D13/'Charges Summary'!D$4)-1) -> 0.01429201976 | R13: =IF(E13=0,"",(F13/'Charges Summary'!F$4)/(E13/'Charges Summary'!E$4)-1) -> 0.01157251882 | S13: =IF(F13=0,"",(G13/'Charges Summary'!G$4)/(F13/'Charges Summary'!F$4)-1) -> 0.01234753074 | T13: =IF(G13=0,"",(H13/'Charges Summary'!H$4)/(G13/'Charges Summary'!G$4)-1) -> 0.07980649949 | V13: =SUM('DNSP Inputs General'!V51:Z51)/5 -> 0 | W13: 0 | AE13: 174.0511677 | AF13: 180.9521782 | AG13: 187.6224069 | AH13: 194.6875574 | AI13: 215.4805121
A14: ='DNSP Inputs General'!B52 -> HP Sodium 100W | C14: ='DNSP Inputs General'!E52 -> 137.2256659 | D14: =IF('DNSP Inputs General'!$C52='DNSP Inputs General'!$B$45,D$7,IF('DNSP Inputs General'!$C52='DNSP Inputs General'!$B$46,D$8,D$9))*'DNSP Inputs General'!$D52 -> 167.4185358 | E14: =IF('DNSP Inputs General'!$C52='DNSP Inputs General'!$B$45,E$7,IF('DNSP Inputs General'!$C52='DNSP Inputs General'!$B$46,E$8,E$9))*'DNSP Inputs General'!$D52 -> 174.0446627 | F14: =IF('DNSP Inputs General'!$C52='DNSP Inputs General'!$B$45,F$7,IF('DNSP Inputs General'!$C52='DNSP Inputs General'!$B$46,F$8,F$9))*'DNSP Inputs General'!$D52 -> 180.4455704 | G14: =IF('DNSP Inputs General'!$C52='DNSP Inputs General'!$B$45,G$7,IF('DNSP Inputs General'!$C52='DNSP Inputs General'!$B$46,G$8,G$9))*'DNSP Inputs General'!$D52 -> 187.222801 | H14: =IF('DNSP Inputs General'!$C52='DNSP Inputs General'!$B$45,H$7,IF('DNSP Inputs General'!$C52='DNSP Inputs General'!$B$46,H$8,H$9))*'DNSP Inputs General'!$D52 -> 207.1095102 | J14: 0.2200234901 | K14: 0.03957821582 | L14: 0.03677738556 | M14: 0.03755830972 | N14: 0.1062194833 | P14: =IF(C14=0,"",(D14/'Charges Summary'!D$4)/C14-1) -> 0.1902668196 | Q14: =IF(D14=0,"",(E14/'Charges Summary'!E$4)/(D14/'Charges Summary'!D$4)-1) -> 0.01422264958 | R14: =IF(E14=0,"",(F14/'Charges Summary'!F$4)/(E14/'Charges Summary'!E$4)-1) -> 0.01149013225 | S14: =IF(F14=0,"",(G14/'Charges Summary'!G$4)/(F14/'Charges Summary'!F$4)-1) -> 0.01225200948 | T14: =IF(G14=0,"",(H14/'Charges Summary'!H$4)/(G14/'Charges Summary'!G$4)-1) -> 0.07923852027 | V14: =SUM('DNSP Inputs General'!V52:Z52)/5 -> 1291.5 | W14: 0.009963687712 | AE14: 167.4185358 | AF14: 174.0446627 | AG14: 180.4455704 | AH14: 187.222801 | AI14: 207.1095102
A15: ='DNSP Inputs General'!B53 -> HP Sodium 400W | C15: ='DNSP Inputs General'!E53 -> 186.8606038 | D15: =IF('DNSP Inputs General'!$C53='DNSP Inputs General'!$B$45,D$7,IF('DNSP Inputs General'!$C53='DNSP Inputs General'!$B$46,D$8,D$9))*'DNSP Inputs General'!$D53 -> 226.7455579 | E15: =IF('DNSP Inputs General'!$C53='DNSP Inputs General'!$B$45,E$7,IF('DNSP Inputs General'!$C53='DNSP Inputs General'!$B$46,E$8,E$9))*'DNSP Inputs General'!$D53 -> 235.7358651 | F15: =IF('DNSP Inputs General'!$C53='DNSP Inputs General'!$B$45,F$7,IF('DNSP Inputs General'!$C53='DNSP Inputs General'!$B$46,F$8,F$9))*'DNSP Inputs General'!$D53 -> 244.4255209 | G15: =IF('DNSP Inputs General'!$C53='DNSP Inputs General'!$B$45,G$7,IF('DNSP Inputs General'!$C53='DNSP Inputs General'!$B$46,G$8,G$9))*'DNSP Inputs General'!$D53 -> 253.6296619 | H15: =IF('DNSP Inputs General'!$C53='DNSP Inputs General'!$B$45,H$7,IF('DNSP Inputs General'!$C53='DNSP Inputs General'!$B$46,H$8,H$9))*'DNSP Inputs General'!$D53 -> 280.7177313 | J15: 0.213447636 | K15: 0.03964932025 | L15: 0.03686183179 | M15: 0.03765621901 | N15: 0.106801662 | P15: =IF(C15=0,"",(D15/'Charges Summary'!D$4)/C15-1) -> 0.1838513522 | Q15: =IF(D15=0,"",(E15/'Charges Summary'!E$4)/(D15/'Charges Summary'!D$4)-1) -> 0.01429201976 | R15: =IF(E15=0,"",(F15/'Charges Summary'!F$4)/(E15/'Charges Summary'!E$4)-1) -> 0.01157251882 | S15: =IF(F15=0,"",(G15/'Charges Summary'!G$4)/(F15/'Charges Summary'!F$4)-1) -> 0.01234753074 | T15: =IF(G15=0,"",(H15/'Charges Summary'!H$4)/(G15/'Charges Summary'!G$4)-1) -> 0.07980649949 | V15: =SUM('DNSP Inputs General'!V53:Z53)/5 -> 88 | W15: 0.0006789040021 | AE15: 226.7455579 | AF15: 235.7358651 | AG15: 244.4255209 | AH15: 253.6296619 | AI15: 280.7177313
A16: ='DNSP Inputs General'!B54 -> Metal Halide 70W | C16: ='DNSP Inputs General'!E54 -> 312.9109641 | D16: =IF('DNSP Inputs General'!$C54='DNSP Inputs General'!$B$45,D$7,IF('DNSP Inputs General'!$C54='DNSP Inputs General'!$B$46,D$8,D$9))*'DNSP Inputs General'!$D54 -> 577.2407106 | E16: =IF('DNSP Inputs General'!$C54='DNSP Inputs General'!$B$45,E$7,IF('DNSP Inputs General'!$C54='DNSP Inputs General'!$B$46,E$8,E$9))*'DNSP Inputs General'!$D54 -> 600.229574 | F16: =IF('DNSP Inputs General'!$C54='DNSP Inputs General'!$B$45,F$7,IF('DNSP Inputs General'!$C54='DNSP Inputs General'!$B$46,F$8,F$9))*'DNSP Inputs General'!$D54 -> 621.7943335 | G16: =IF('DNSP Inputs General'!$C54='DNSP Inputs General'!$B$45,G$7,IF('DNSP Inputs General'!$C54='DNSP Inputs General'!$B$46,G$8,G$9))*'DNSP Inputs General'!$D54 -> 644.3554837 | H16: =IF('DNSP Inputs General'!$C54='DNSP Inputs General'!$B$45,H$7,IF('DNSP Inputs General'!$C54='DNSP Inputs General'!$B$46,H$8,H$9))*'DNSP Inputs General'!$D54 -> 720.6929662 | J16: =IF(C16=0,"",D16/C16-1) -> 0.844744278 | K16: 0.03982543678 | L16: 0.03592751908 | M16: 0.03628394301 | N16: 0.1184710683 | P16: =IF(C16=0,"",(D16/'Charges Summary'!D$4)/C16-1) -> 0.7997505151 | Q16: =IF(D16=0,"",(E16/'Charges Summary'!E$4)/(D16/'Charges Summary'!D$4)-1) -> 0.01446384076 | R16: =IF(E16=0,"",(F16/'Charges Summary'!F$4)/(E16/'Charges Summary'!E$4)-1) -> 0.01066099422 | S16: =IF(F16=0,"",(G16/'Charges Summary'!G$4)/(F16/'Charges Summary'!F$4)-1) -> 0.01100872489 | T16: =IF(G16=0,"",(H16/'Charges Summary'!H$4)/(G16/'Charges Summary'!G$4)-1) -> 0.09119128619 | V16: =SUM('DNSP Inputs General'!V54:Z54)/5 -> 0 | W16: 0 | AE16: 577.2407106 | AF16: 600.229574 | AG16: 621.7943335 | AH16: 644.3554837 | AI16: 720.6929662
A17: ='DNSP Inputs General'!B55 -> Metal Halide 100W | C17: ='DNSP Inputs General'!E55 -> 306.2170326 | D17: =IF('DNSP Inputs General'!$C55='DNSP Inputs General'!$B$45,D$7,IF('DNSP Inputs General'!$C55='DNSP Inputs General'!$B$46,D$8,D$9))*'DNSP Inputs General'!$D55 -> 373.5919729 | E17: =IF('DNSP Inputs General'!$C55='DNSP Inputs General'!$B$45,E$7,IF('DNSP Inputs General'!$C55='DNSP Inputs General'!$B$46,E$8,E$9))*'DNSP Inputs General'!$D55 -> 388.3780766 | F17: =IF('DNSP Inputs General'!$C55='DNSP Inputs General'!$B$45,F$7,IF('DNSP Inputs General'!$C55='DNSP Inputs General'!$B$46,F$8,F$9))*'DNSP Inputs General'!$D55 -> 402.6616069 | G17: =IF('DNSP Inputs General'!$C55='DNSP Inputs General'!$B$45,G$7,IF('DNSP Inputs General'!$C55='DNSP Inputs General'!$B$46,G$8,G$9))*'DNSP Inputs General'!$D55 -> 417.7848962 | H17: =IF('DNSP Inputs General'!$C55='DNSP Inputs General'!$B$45,H$7,IF('DNSP Inputs General'!$C55='DNSP Inputs General'!$B$46,H$8,H$9))*'DNSP Inputs General'!$D55 -> 462.161792 | J17: 0.2200234901 | K17: 0.03957821582 | L17: 0.03677738556 | M17: 0.03755830972 | N17: 0.1062194833 | P17: =IF(C17=0,"",(D17/'Charges Summary'!D$4)/C17-1) -> 0.1902668196 | Q17: =IF(D17=0,"",(E17/'Charges Summary'!E$4)/(D17/'Charges Summary'!D$4)-1) -> 0.01422264958 | R17: =IF(E17=0,"",(F17/'Charges Summary'!F$4)/(E17/'Charges Summary'!E$4)-1) -> 0.01149013225 | S17: =IF(F17=0,"",(G17/'Charges Summary'!G$4)/(F17/'Charges Summary'!F$4)-1) -> 0.01225200948 | T17: =IF(G17=0,"",(H17/'Charges Summary'!H$4)/(G17/'Charges Summary'!G$4)-1) -> 0.07923852027 | V17: =SUM('DNSP Inputs General'!V55:Z55)/5 -> 0 | W17: 0 | AE17: 373.5919729 | AF17: 388.3780766 | AG17: 402.6616069 | AH17: 417.7848962 | AI17: 462.161792
A18: ='DNSP Inputs General'!B56 -> Metal Halide 150W | C18: ='DNSP Inputs General'!E56 -> 347.8846091 | D18: =IF('DNSP Inputs General'!$C56='DNSP Inputs General'!$B$45,D$7,IF('DNSP Inputs General'!$C56='DNSP Inputs General'!$B$46,D$8,D$9))*'DNSP Inputs General'!$D56 -> 424.427395 | E18: =IF('DNSP Inputs General'!$C56='DNSP Inputs General'!$B$45,E$7,IF('DNSP Inputs General'!$C56='DNSP Inputs General'!$B$46,E$8,E$9))*'DNSP Inputs General'!$D56 -> 441.225474 | F18: =IF('DNSP Inputs General'!$C56='DNSP Inputs General'!$B$45,F$7,IF('DNSP Inputs General'!$C56='DNSP Inputs General'!$B$46,F$8,F$9))*'DNSP Inputs General'!$D56 -> 457.4525934 | G18: =IF('DNSP Inputs General'!$C56='DNSP Inputs General'!$B$45,G$7,IF('DNSP Inputs General'!$C56='DNSP Inputs General'!$B$46,G$8,G$9))*'DNSP Inputs General'!$D56 -> 474.6337395 | H18: =IF('DNSP Inputs General'!$C56='DNSP Inputs General'!$B$45,H$7,IF('DNSP Inputs General'!$C56='DNSP Inputs General'!$B$46,H$8,H$9))*'DNSP Inputs General'!$D56 -> 525.0490901 | J18: 0.2200234901 | K18: 0.03957821582 | L18: 0.03677738556 | M18: 0.03755830972 | N18: 0.1062194833 | P18: =IF(C18=0,"",(D18/'Charges Summary'!D$4)/C18-1) -> 0.1902668196 | Q18: =IF(D18=0,"",(E18/'Charges Summary'!E$4)/(D18/'Charges Summary'!D$4)-1) -> 0.01422264958 | R18: =IF(E18=0,"",(F18/'Charges Summary'!F$4)/(E18/'Charges Summary'!E$4)-1) -> 0.01149013225 | S18: =IF(F18=0,"",(G18/'Charges Summary'!G$4)/(F18/'Charges Summary'!F$4)-1) -> 0.01225200948 | T18: =IF(G18=0,"",(H18/'Charges Summary'!H$4)/(G18/'Charges Summary'!G$4)-1) -> 0.07923852027 | V18: =SUM('DNSP Inputs General'!V56:Z56)/5 -> 0 | W18: =V18/V$35 -> 0 | AE18: 424.427395 | AF18: 441.225474 | AG18: 457.4525934 | AH18: 474.6337395 | AI18: 525.0490901
A19: ='DNSP Inputs General'!B57 -> HP Sodium 50W | C19: ='DNSP Inputs General'!E57 -> 56.85824489 | D19: =IF('DNSP Inputs General'!$C57='DNSP Inputs General'!$B$45,D$7,IF('DNSP Inputs General'!$C57='DNSP Inputs General'!$B$46,D$8,D$9))*'DNSP Inputs General'!$D57 -> 69.36839438 | E19: =IF('DNSP Inputs General'!$C57='DNSP Inputs General'!$B$45,E$7,IF('DNSP Inputs General'!$C57='DNSP Inputs General'!$B$46,E$8,E$9))*'DNSP Inputs General'!$D57 -> 72.11387166 | F19: =IF('DNSP Inputs General'!$C57='DNSP Inputs General'!$B$45,F$7,IF('DNSP Inputs General'!$C57='DNSP Inputs General'!$B$46,F$8,F$9))*'DNSP Inputs General'!$D57 -> 74.76603132 | G19: =IF('DNSP Inputs General'!$C57='DNSP Inputs General'!$B$45,G$7,IF('DNSP Inputs General'!$C57='DNSP Inputs General'!$B$46,G$8,G$9))*'DNSP Inputs General'!$D57 -> 77.57411708 | H19: =IF('DNSP Inputs General'!$C57='DNSP Inputs General'!$B$45,H$7,IF('DNSP Inputs General'!$C57='DNSP Inputs General'!$B$46,H$8,H$9))*'DNSP Inputs General'!$D57 -> 85.81399972 | J19: 0.2200234901 | K19: 0.03957821582 | L19: 0.03677738556 | M19: 0.03755830972 | N19: 0.1062194833 | P19: =IF(C19=0,"",(D19/'Charges Summary'!D$4)/C19-1) -> 0.1902668196 | Q19: =IF(D19=0,"",(E19/'Charges Summary'!E$4)/(D19/'Charges Summary'!D$4)-1) -> 0.01422264958 | R19: =IF(E19=0,"",(F19/'Charges Summary'!F$4)/(E19/'Charges Summary'!E$4)-1) -> 0.01149013225 | S19: =IF(F19=0,"",(G19/'Charges Summary'!G$4)/(F19/'Charges Summary'!F$4)-1) -> 0.01225200948 | T19: =IF(G19=0,"",(H19/'Charges Summary'!H$4)/(G19/'Charges Summary'!G$4)-1) -> 0.07923852027 | V19: =SUM('DNSP Inputs General'!V57:Z57)/5 -> 0 | W19: 0 | AE19: 69.36839438 | AF19: 72.11387166 | AG19: 74.76603132 | AH19: 77.57411708 | AI19: 85.81399972
A22: ='DNSP Inputs General'!B$61 -> Energy Efficient Lights
A23: ='DNSP Inputs General'!B62 -> T5 2X14W | C23: ='DNSP Inputs General'!E62 -> 61.71523463 | D23: ='Charges Summary'!D$89 -> 57.85145104 | E23: ='Charges Summary'!E$89 -> 61.47273678 | F23: ='Charges Summary'!F$89 -> 66.08077259 | G23: ='Charges Summary'!G$89 -> 75.2127747 | H23: ='Charges Summary'!H$89 -> 64.28192746 | J23: =IF(C23=0,"",D23/C23-1) -> -0.06260664193 | K23: 0.06259628203 | L23: 0.07496064184 | M23: 0.1381945421 | N23: -0.1453323227 | P23: =IF(C23=0,"",(D23/'Charges Summary'!D$4)/C23-1) -> -0.08546989456 | Q23: =IF(D23=0,"",(E23/'Charges Summary'!E$4)/(D23/'Charges Summary'!D$4)-1) -> 0.03667929954 | R23: =IF(E23=0,"",(F23/'Charges Summary'!F$4)/(E23/'Charges Summary'!E$4)-1) -> 0.0487420896 | S23: =IF(F23=0,"",(G23/'Charges Summary'!G$4)/(F23/'Charges Summary'!F$4)-1) -> 0.1104336996 | T23: =IF(G23=0,"",(H23/'Charges Summary'!H$4)/(G23/'Charges Summary'!G$4)-1) -> -0.1661778758 | V23: =SUM('DNSP Inputs General'!V62:Z62)/5 -> 5361.4 | W23: =V23/V$35 -> 0.04136222633 | AE23: =D23-Y23 -> 57.85145104 | AF23: =E23-Z23 -> 61.47273678 | AG23: =F23-AA23 -> 66.08077259 | AH23: =G23-AB23 -> 75.2127747 | AI23: =H23-AC23 -> 64.28192746
A24: ='DNSP Inputs General'!B63 -> T5 2X24W | C24: ='DNSP Inputs General'!E63 -> 65.69333383 | D24: ='Charges Summary'!D$105 -> 63.86590769 | E24: ='Charges Summary'!E$105 -> 68.28654463 | F24: ='Charges Summary'!F$105 -> 74.30087803 | G24: ='Charges Summary'!G$105 -> 87.29546743 | H24: ='Charges Summary'!H$105 -> 58.49257303 | J24: -0.02781752786 | K24: 0.0692174761 | L24: 0.08807494113 | M24: 0.1748914649 | N24: -0.3299471925 | P24: =IF(C24=0,"",(D24/'Charges Summary'!D$4)/C24-1) -> -0.05152929548 | Q24: =IF(D24=0,"",(E24/'Charges Summary'!E$4)/(D24/'Charges Summary'!D$4)-1) -> 0.04313900107 | R24: =IF(E24=0,"",(F24/'Charges Summary'!F$4)/(E24/'Charges Summary'!E$4)-1) -> 0.06153652793 | S24: =IF(F24=0,"",(G24/'Charges Summary'!G$4)/(F24/'Charges Summary'!F$4)-1) -> 0.1462355755 | T24: =IF(G24=0,"",(H24/'Charges Summary'!H$4)/(G24/'Charges Summary'!G$4)-1) -> -0.3462899439 | V24: =SUM('DNSP Inputs General'!V63:Z63)/5 -> 50 | W24: 0.0003857409103 | AE24: 63.86590769 | AF24: 68.28654463 | AG24: 74.30087803 | AH24: 87.29546743 | AI24: 58.49257303
A25: ='DNSP Inputs General'!B64 -> LED 18W | C25: ='DNSP Inputs General'!E64 -> 36.27870205 | D25: ='Charges Summary'!D$121 -> 37.14311758 | E25: ='Charges Summary'!E$121 -> 39.3141867 | F25: ='Charges Summary'!F$121 -> 41.2903734 | G25: ='Charges Summary'!G$121 -> 43.29187059 | H25: ='Charges Summary'!H$121 -> 44.78045228 | J25: =IF(C25=0,"",D25/C25-1) -> 0.02382707975 | K25: =IF(D25=0,"",E25/D25-1) -> 0.05845145134 | L25: =IF(E25=0,"",F25/E25-1) -> 0.05026650339 | M25: =IF(F25=0,"",G25/F25-1) -> 0.04847370021 | N25: =IF(G25=0,"",H25/G25-1) -> 0.03438478584 | P25: =IF(C25=0,"",(D25/'Charges Summary'!D$4)/C25-1) -> -0.001144312435 | Q25: =IF(D25=0,"",(E25/'Charges Summary'!E$4)/(D25/'Charges Summary'!D$4)-1) -> 0.03263556228 | R25: =IF(E25=0,"",(F25/'Charges Summary'!F$4)/(E25/'Charges Summary'!E$4)-1) -> 0.02465024721 | S25: =IF(F25=0,"",(G25/'Charges Summary'!G$4)/(F25/'Charges Summary'!F$4)-1) -> 0.02290117093 | T25: =IF(G25=0,"",(H25/'Charges Summary'!H$4)/(G25/'Charges Summary'!G$4)-1) -> 0.009155888627 | V25: =SUM('DNSP Inputs General'!V64:Z64)/5 -> 75384.37552 | W25: 0.5815767526 | AE25: 37.14311758 | AF25: 39.3141867 | AG25: 41.2903734 | AH25: 43.29187059 | AI25: 44.78045228
A26: ='DNSP Inputs General'!B65 -> LED 14W | C26: ='DNSP Inputs General'!E65 -> 38.2784794 | D26: ='Charges Summary'!D$137 -> 44.69099942 | E26: ='Charges Summary'!E$137 -> 47.65319257 | F26: ='Charges Summary'!F$137 -> 50.34486613 | G26: ='Charges Summary'!G$137 -> 53.0290989 | H26: ='Charges Summary'!H$137 -> 55.01140379 | J26: =IF(C26=0,"",D26/C26-1) -> 0.1675228514 | K26: 0.06628164928 | L26: 0.05648464279 | M26: 0.05331691154 | N26: 0.03738145523 | P26: =IF(C26=0,"",(D26/'Charges Summary'!D$4)/C26-1) -> 0.1390466843 | Q26: =IF(D26=0,"",(E26/'Charges Summary'!E$4)/(D26/'Charges Summary'!D$4)-1) -> 0.04027477978 | R26: =IF(E26=0,"",(F26/'Charges Summary'!F$4)/(E26/'Charges Summary'!E$4)-1) -> 0.03071672468 | S26: =IF(F26=0,"",(G26/'Charges Summary'!G$4)/(F26/'Charges Summary'!F$4)-1) -> 0.02762625516 | T26: =IF(G26=0,"",(H26/'Charges Summary'!H$4)/(G26/'Charges Summary'!G$4)-1) -> 0.01207946852 | V26: =SUM('DNSP Inputs General'!V65:Z65)/5 -> 7355.944248 | W26: 0.0567497726 | AE26: 44.69099942 | AF26: 47.65319257 | AG26: 50.34486613 | AH26: 53.0290989 | AI26: 55.01140379
A27: ='DNSP Inputs General'!B66 -> LED 70W-125W (L1) | C27: ='DNSP Inputs General'!E66 -> 57.02846585 | D27: ='Charges Summary'!D$153 -> 62.85338356 | E27: ='Charges Summary'!E$153 -> 67.46083403 | F27: ='Charges Summary'!F$153 -> 71.67459707 | G27: ='Charges Summary'!G$153 -> 75.84074286 | H27: ='Charges Summary'!H$153 -> 78.94180572 | J27: 0.1021405297 | K27: 0.07330473266 | L27: 0.06246236193 | M27: 0.05812583491 | N27: 0.04088914142 | P27: =IF(C27=0,"",(D27/'Charges Summary'!D$4)/C27-1) -> 0.07525905337 | Q27: =IF(D27=0,"",(E27/'Charges Summary'!E$4)/(D27/'Charges Summary'!D$4)-1) -> 0.04712656845 | R27: =IF(E27=0,"",(F27/'Charges Summary'!F$4)/(E27/'Charges Summary'!E$4)-1) -> 0.03654864578 | S27: =IF(F27=0,"",(G27/'Charges Summary'!G$4)/(F27/'Charges Summary'!F$4)-1) -> 0.03231788772 | T27: =IF(G27=0,"",(H27/'Charges Summary'!H$4)/(G27/'Charges Summary'!G$4)-1) -> 0.01550160139 | V27: =SUM('DNSP Inputs General'!V66:Z66)/5 -> 12062.37533 | W27: 0.09305903283 | AE27: 62.85338356 | AF27: 67.46083403 | AG27: 71.67459707 | AH27: 75.84074286 | AI27: 78.94180572
A28: ='DNSP Inputs General'!B67 -> LED 155W-250W (L2) | C28: ='DNSP Inputs General'!E67 -> 58.16650898 | D28: ='Charges Summary'!D$169 -> 62.85338356 | E28: ='Charges Summary'!E$169 -> 67.46083403 | F28: ='Charges Summary'!F$169 -> 71.67459707 | G28: ='Charges Summary'!G$169 -> 75.84074286 | H28: ='Charges Summary'!H$169 -> 78.94180572 | J28: 0.08057685863 | K28: 0.07330473266 | L28: 0.06246236193 | M28: 0.05812583491 | N28: 0.04088914142 | P28: =IF(C28=0,"",(D28/'Charges Summary'!D$4)/C28-1) -> 0.05422132549 | Q28: =IF(D28=0,"",(E28/'Charges Summary'!E$4)/(D28/'Charges Summary'!D$4)-1) -> 0.04712656845 | R28: =IF(E28=0,"",(F28/'Charges Summary'!F$4)/(E28/'Charges Summary'!E$4)-1) -> 0.03654864578 | S28: =IF(F28=0,"",(G28/'Charges Summary'!G$4)/(F28/'Charges Summary'!F$4)-1) -> 0.03231788772 | T28: =IF(G28=0,"",(H28/'Charges Summary'!H$4)/(G28/'Charges Summary'!G$4)-1) -> 0.01550160139 | V28: =SUM('DNSP Inputs General'!V67:Z67)/5 -> 11718.05001 | W28: 0.09040262558 | AE28: 62.85338356 | AF28: 67.46083403 | AG28: 71.67459707 | AH28: 75.84074286 | AI28: 78.94180572
A29: ='DNSP Inputs General'!B68 -> LED 275W-400W (L4) | C29: ='DNSP Inputs General'!E68 -> 68.3579129 | D29: ='Charges Summary'!D$185 -> 86.69853902 | E29: ='Charges Summary'!E$185 -> 94.3788638 | F29: ='Charges Summary'!F$185 -> 101.3353161 | G29: ='Charges Summary'!G$185 -> 108.0912933 | H29: ='Charges Summary'!H$185 -> 112.9952733 | J29: 0.2683028979 | K29: 0.08858655359 | L29: 0.07370773559 | M29: 0.0666695225 | N29: 0.04536887172 | P29: =IF(C29=0,"",(D29/'Charges Summary'!D$4)/C29-1) -> 0.2373686809 | Q29: =IF(D29=0,"",(E29/'Charges Summary'!E$4)/(D29/'Charges Summary'!D$4)-1) -> 0.06203566204 | R29: =IF(E29=0,"",(F29/'Charges Summary'!F$4)/(E29/'Charges Summary'!E$4)-1) -> 0.04751974204 | S29: =IF(F29=0,"",(G29/'Charges Summary'!G$4)/(F29/'Charges Summary'!F$4)-1) -> 0.04065319269 | T29: =IF(G29=0,"",(H29/'Charges Summary'!H$4)/(G29/'Charges Summary'!G$4)-1) -> 0.01987206997 | V29: =SUM('DNSP Inputs General'!V68:Z68)/5 -> 233.2805269 | W29: 0.001799716856 | AE29: 86.69853902 | AF29: 94.3788638 | AG29: 101.3353161 | AH29: 108.0912933 | AI29: 112.9952733
A30: ='DNSP Inputs General'!B69 -> Compact Fluorescent 32W | C30: ='DNSP Inputs General'!E69 -> 54.2853309 | D30: =IF('DNSP Inputs General'!$C69='DNSP Inputs General'!$B$62,D$23,D$24)*'DNSP Inputs General'!$D69 -> 50.88670863 | E30: =IF('DNSP Inputs General'!$C69='DNSP Inputs General'!$B$62,E$23,E$24)*'DNSP Inputs General'!$D69 -> 54.07202739 | F30: =IF('DNSP Inputs General'!$C69='DNSP Inputs General'!$B$62,F$23,F$24)*'DNSP Inputs General'!$D69 -> 58.12530127 | G30: =IF('DNSP Inputs General'!$C69='DNSP Inputs General'!$B$62,G$23,G$24)*'DNSP Inputs General'!$D69 -> 66.15790067 | H30: =IF('DNSP Inputs General'!$C69='DNSP Inputs General'!$B$62,H$23,H$24)*'DNSP Inputs General'!$D69 -> 56.5430193 | J30: -0.06260664193 | K30: 0.06259628203 | L30: 0.07496064184 | M30: 0.1381945421 | N30: -0.1453323227 | P30: =IF(C30=0,"",(D30/'Charges Summary'!D$4)/C30-1) -> -0.08546989456 | Q30: =IF(D30=0,"",(E30/'Charges Summary'!E$4)/(D30/'Charges Summary'!D$4)-1) -> 0.03667929954 | R30: =IF(E30=0,"",(F30/'Charges Summary'!F$4)/(E30/'Charges Summary'!E$4)-1) -> 0.0487420896 | S30: =IF(F30=0,"",(G30/'Charges Summary'!G$4)/(F30/'Charges Summary'!F$4)-1) -> 0.1104336996 | T30: =IF(G30=0,"",(H30/'Charges Summary'!H$4)/(G30/'Charges Summary'!G$4)-1) -> -0.1661778758 | V30: =SUM('DNSP Inputs General'!V69:Z69)/5 -> 1032.342857 | W30: 0.007964337468 | AE30: 50.88670863 | AF30: 54.07202739 | AG30: 58.12530127 | AH30: 66.15790067 | AI30: 56.5430193
A31: ='DNSP Inputs General'!B70 -> Compact Fluorescent 42W | C31: ='DNSP Inputs General'!E70 -> 54.2853309 | D31: =IF('DNSP Inputs General'!$C70='DNSP Inputs General'!$B$62,D$23,D$24)*'DNSP Inputs General'!$D70 -> 50.88670863 | E31: =IF('DNSP Inputs General'!$C70='DNSP Inputs General'!$B$62,E$23,E$24)*'DNSP Inputs General'!$D70 -> 54.07202739 | F31: =IF('DNSP Inputs General'!$C70='DNSP Inputs General'!$B$62,F$23,F$24)*'DNSP Inputs General'!$D70 -> 58.12530127 | G31: =IF('DNSP Inputs General'!$C70='DNSP Inputs General'!$B$62,G$23,G$24)*'DNSP Inputs General'!$D70 -> 66.15790067 | H31: =IF('DNSP Inputs General'!$C70='DNSP Inputs General'!$B$62,H$23,H$24)*'DNSP Inputs General'!$D70 -> 56.5430193 | J31: -0.06260664193 | K31: 0.06259628203 | L31: 0.07496064184 | M31: 0.1381945421 | N31: -0.1453323227 | P31: =IF(C31=0,"",(D31/'Charges Summary'!D$4)/C31-1) -> -0.08546989456 | Q31: =IF(D31=0,"",(E31/'Charges Summary'!E$4)/(D31/'Charges Summary'!D$4)-1) -> 0.03667929954 | R31: =IF(E31=0,"",(F31/'Charges Summary'!F$4)/(E31/'Charges Summary'!E$4)-1) -> 0.0487420896 | S31: =IF(F31=0,"",(G31/'Charges Summary'!G$4)/(F31/'Charges Summary'!F$4)-1) -> 0.1104336996 | T31: =IF(G31=0,"",(H31/'Charges Summary'!H$4)/(G31/'Charges Summary'!G$4)-1) -> -0.1661778758 | V31: =SUM('DNSP Inputs General'!V70:Z70)/5 -> 158.00008 | W31: 0.001218941894 | AE31: =D31-Y31 -> 50.88670863 | AF31: 54.07202739 | AG31: 58.12530127 | AH31: 66.15790067 | AI31: 56.5430193
A32: ='DNSP Inputs General'!B71 -> Smart lighting L1 | C32: ='DNSP Inputs General'!E71 -> 72.94980159 | D32: ='Charges Summary'!D$201 -> 51.07123634 | E32: ='Charges Summary'!E$201 -> 52.70775023 | F32: ='Charges Summary'!F$201 -> 56.13948516 | G32: ='Charges Summary'!G$201 -> 57.94176235 | H32: ='Charges Summary'!H$201 -> 59.56152625 | P32: =IF(C32=0,"",(D32/'Charges Summary'!D$4)/C32-1) -> -0.3169879102 | Q32: =IF(D32=0,"",(E32/'Charges Summary'!E$4)/(D32/'Charges Summary'!D$4)-1) -> 0.006871950395 | R32: =IF(E32=0,"",(F32/'Charges Summary'!F$4)/(E32/'Charges Summary'!E$4)-1) -> 0.03913047296 | S32: =IF(F32=0,"",(G32/'Charges Summary'!G$4)/(F32/'Charges Summary'!F$4)-1) -> 0.006930300022 | T32: =IF(G32=0,"",(H32/'Charges Summary'!H$4)/(G32/'Charges Summary'!G$4)-1) -> 0.002882959434 | V32: =SUM('DNSP Inputs General'!V71:Z71)/5 -> 0 | W32: =V32/V$35 -> 0 | AE32: =D32-Y32 -> 51.07123634 | AF32: 52.70775023 | AG32: 56.13948516 | AH32: 57.94176235 | AI32: 59.56152625
A33: ='DNSP Inputs General'!B72 -> Smart lighting L2 | C33: ='DNSP Inputs General'!E72 -> 74.08784473 | D33: ='Charges Summary'!D$217 -> 52.75118799 | E33: ='Charges Summary'!E$217 -> 54.44216923 | F33: ='Charges Summary'!F$217 -> 56.13948516 | G33: ='Charges Summary'!G$217 -> 57.94176235 | H33: ='Charges Summary'!H$217 -> 59.56152625 | P33: =IF(C33=0,"",(D33/'Charges Summary'!D$4)/C33-1) -> -0.3053573925 | Q33: =IF(D33=0,"",(E33/'Charges Summary'!E$4)/(D33/'Charges Summary'!D$4)-1) -> 0.00688370208 | R33: =IF(E33=0,"",(F33/'Charges Summary'!F$4)/(E33/'Charges Summary'!E$4)-1) -> 0.006025847146 | S33: =IF(F33=0,"",(G33/'Charges Summary'!G$4)/(F33/'Charges Summary'!F$4)-1) -> 0.006930300022 | T33: =IF(G33=0,"",(H33/'Charges Summary'!H$4)/(G33/'Charges Summary'!G$4)-1) -> 0.002882959434 | V33: =SUM('DNSP Inputs General'!V72:Z72)/5 -> 0 | W33: =V33/V$35 -> 0 | AE33: 52.75118799 | AF33: 54.44216923 | AG33: 56.13948516 | AH33: 57.94176235 | AI33: 59.56152625
A34: ='DNSP Inputs General'!B73 -> Smart lighting L4 | C34: ='DNSP Inputs General'!E73 -> 84.27924864 | D34: ='Charges Summary'!D$233 -> 52.75118799 | E34: ='Charges Summary'!E$233 -> 54.44216923 | F34: ='Charges Summary'!F$233 -> 56.13948516 | G34: ='Charges Summary'!G$233 -> 57.94176235 | H34: ='Charges Summary'!H$233 -> 59.56152625 | P34: =IF(C34=0,"",(D34/'Charges Summary'!D$4)/C34-1) -> -0.3893565204 | Q34: =IF(D34=0,"",(E34/'Charges Summary'!E$4)/(D34/'Charges Summary'!D$4)-1) -> 0.00688370208 | R34: =IF(E34=0,"",(F34/'Charges Summary'!F$4)/(E34/'Charges Summary'!E$4)-1) -> 0.006025847146 | S34: =IF(F34=0,"",(G34/'Charges Summary'!G$4)/(F34/'Charges Summary'!F$4)-1) -> 0.006930300022 | T34: =IF(G34=0,"",(H34/'Charges Summary'!H$4)/(G34/'Charges Summary'!G$4)-1) -> 0.002882959434 | V34: =SUM('DNSP Inputs General'!V73:Z73)/5 -> 0 | W34: =V34/V$35 -> 0 | AE34: 52.75118799 | AF34: 54.44216923 | AG34: 56.13948516 | AH34: 57.94176235 | AI34: 59.56152625
V35: =SUM(V7:V34) -> 129620.6824 | W35: 1
A37: Total Revenue - Nominal ($,000) | D37: ='Cashflow Summary'!D7/10^3 -> 10754.43462 | E37: ='Cashflow Summary'!E7/10^3 -> 11261.55045 | F37: ='Cashflow Summary'!F7/10^3 -> 11818.14945 | G37: ='Cashflow Summary'!G7/10^3 -> 12447.22993 | H37: ='Cashflow Summary'!H7/10^3 -> 12866.43256 | Y37: 9912.928164 | Z37: 10207.06722 | AA37: 10531.95133 | AB37: 11014.92835 | AC37: 11550.29383 | AE37: =D37-Y37 -> 841.5064568 | AF37: =E37-Z37 -> 1054.483227 | AG37: =F37-AA37 -> 1286.198122 | AH37: =G37-AB37 -> 1432.301576 | AI37: =H37-AC37 -> 1316.13873
AI39: =SUM(AE37:AI37)/SUM(Y37:AC37) -> 0.1114420071
D40: ='DNSP Inputs General'!$B$82 -> North & East | V40: Average
A41: Public Lighting Tariffs | C41: Nominal Prices | J41: Nominal Price Movement | P41: Real Price Movement (Implied X Factor) | V41: Nubmer | W41: % of | Y41: =Y4 -> Revised Submission Model | AE41: Difference
C42: Actual | V42: of Lights | W42: Total Lights
A43: ='DNSP Inputs General'!B$84 -> Existing Lights | C43: =EOMONTH(D43,-12) -> 2026-06-30 | D43: =Instructions!$B$16 -> 2027-06-30 | E43: =EOMONTH(D43,12) -> 2028-06-30 | F43: =EOMONTH(E43,12) -> 2029-06-30 | G43: =EOMONTH(F43,12) -> 2030-06-30 | H43: =EOMONTH(G43,12) -> 2031-06-30 | J43: =D43 -> 2027-06-30 | K43: =E43 -> 2028-06-30 | L43: =F43 -> 2029-06-30 | M43: =G43 -> 2030-06-30 | N43: =H43 -> 2031-06-30 | P43: =J43 -> 2027-06-30 | Q43: =K43 -> 2028-06-30 | R43: =L43 -> 2029-06-30 | S43: =M43 -> 2030-06-30 | T43: =N43 -> 2031-06-30 | V43: =Instructions!$B$20 -> 2027-31 | W43: =Instructions!$B$20 -> 2027-31 | Y43: =P43 -> 2027-06-30 | Z43: =Q43 -> 2028-06-30 | AA43: =R43 -> 2029-06-30 | AB43: =S43 -> 2030-06-30 | AC43: =T43 -> 2031-06-30 | AE43: =Y43 -> 2027-06-30 | AF43: =Z43 -> 2028-06-30 | AG43: =AA43 -> 2029-06-30 | AH43: =AB43 -> 2030-06-30 | AI43: =AC43 -> 2031-06-30
A44: ='DNSP Inputs General'!B85 -> Mercury Vapour 80W | C44: ='DNSP Inputs General'!E85 -> 75.82213185 | D44: ='Charges Summary'!K$31 -> 136.0175097 | E44: ='Charges Summary'!L$31 -> 141.4107951 | F44: ='Charges Summary'!M$31 -> 146.4712527 | G44: ='Charges Summary'!N$31 -> 151.7659613 | H44: ='Charges Summary'!O$31 -> 169.3795789 | J44: =IF(C44=0,"",D44/C44-1) -> 0.793902471 | K44: =IF(D44=0,"",E44/D44-1) -> 0.03965140519 | L44: =IF(E44=0,"",F44/E44-1) -> 0.03578551147 | M44: =IF(F44=0,"",G44/F44-1) -> 0.03614844904 | N44: =IF(G44=0,"",H44/G44-1) -> 0.1160577605 | P44: =IF(C44=0,"",(D44/'Charges Summary'!K$4)/C44-1) -> 0.7501487522 | Q44: =IF(D44=0,"",(E44/'Charges Summary'!L$4)/(D44/'Charges Summary'!K$4)-1) -> 0.01429405384 | R44: =IF(E44=0,"",(F44/'Charges Summary'!M$4)/(E44/'Charges Summary'!L$4)-1) -> 0.01052245021 | S44: =IF(F44=0,"",(G44/'Charges Summary'!N$4)/(F44/'Charges Summary'!M$4)-1) -> 0.01087653565 | T44: =IF(G44=0,"",(H44/'Charges Summary'!O$4)/(G44/'Charges Summary'!N$4)-1) -> 0.08883683955 | V44: =SUM('DNSP Inputs General'!V85:Z85)/5 -> 645.4 | W44: =V44/V$35 -> 0.00497914367 | AE44: =D44-Y44 -> 136.0175097 | AF44: =E44-Z44 -> 141.4107951 | AG44: =F44-AA44 -> 146.4712527 | AH44: =G44-AB44 -> 151.7659613 | AI44: =H44-AC44 -> 169.3795789
A45: ='DNSP Inputs General'!B86 -> HP Sodium 150W | C45: ='DNSP Inputs General'!E86 -> 147.3436549 | D45: ='Charges Summary'!K$55 -> 175.6612843 | E45: ='Charges Summary'!L$55 -> 182.6676303 | F45: ='Charges Summary'!M$55 -> 189.5558393 | G45: ='Charges Summary'!N$55 -> 196.9288089 | H45: ='Charges Summary'!O$55 -> 216.6711406 | J45: 0.1921876409 | K45: 0.03988554466 | L45: 0.03770897426 | M45: 0.03889603019 | N45: 0.10025111 | P45: =IF(C45=0,"",(D45/'Charges Summary'!K$4)/C45-1) -> 0.1631098936 | Q45: =IF(D45=0,"",(E45/'Charges Summary'!L$4)/(D45/'Charges Summary'!K$4)-1) -> 0.01452248259 | R45: =IF(E45=0,"",(F45/'Charges Summary'!M$4)/(E45/'Charges Summary'!L$4)-1) -> 0.01239899927 | S45: =IF(F45=0,"",(G45/'Charges Summary'!N$4)/(F45/'Charges Summary'!M$4)-1) -> 0.01355710262 | T45: =IF(G45=0,"",(H45/'Charges Summary'!O$4)/(G45/'Charges Summary'!N$4)-1) -> 0.07341571708 | V45: =SUM('DNSP Inputs General'!V86:Z86)/5 -> 2059.3125 | W45: =V45/V$35 -> 0.01588722157 | AE45: 175.6612843 | AF45: 182.6676303 | AG45: 189.5558393 | AH45: 196.9288089 | AI45: 216.6711406
A46: ='DNSP Inputs General'!B87 -> HP Sodium 250W | C46: ='DNSP Inputs General'!E87 -> 147.7123472 | D46: ='Charges Summary'!K$71 -> 175.987205 | E46: ='Charges Summary'!L$71 -> 183.1765339 | F46: ='Charges Summary'!M$71 -> 190.1082673 | G46: ='Charges Summary'!N$71 -> 197.526392 | H46: ='Charges Summary'!O$71 -> 217.6561473 | J46: 0.1914183767 | K46: 0.04085142981 | L46: 0.03784181947 | M46: 0.03902052704 | N46: 0.1019091933 | P46: =IF(C46=0,"",(D46/'Charges Summary'!K$4)/C46-1) -> 0.1623593919 | Q46: =IF(D46=0,"",(E46/'Charges Summary'!L$4)/(D46/'Charges Summary'!K$4)-1) -> 0.01546480957 | R46: =IF(E46=0,"",(F46/'Charges Summary'!M$4)/(E46/'Charges Summary'!L$4)-1) -> 0.01252860436 | S46: =IF(F46=0,"",(G46/'Charges Summary'!N$4)/(F46/'Charges Summary'!M$4)-1) -> 0.01367856297 | T46: =IF(G46=0,"",(H46/'Charges Summary'!O$4)/(G46/'Charges Summary'!N$4)-1) -> 0.07503335933 | V46: =SUM('DNSP Inputs General'!V87:Z87)/5 -> 1984.5 | W46: 0.01531005673 | AE46: 175.987205 | AF46: 183.1765339 | AG46: 190.1082673 | AH46: 197.526392 | AI46: 217.6561473
A47: ='DNSP Inputs General'!B88 -> Mercury Vapour 50W | C47: ='DNSP Inputs General'!E88 -> 112.2167551 | D47: =IF('DNSP Inputs General'!$C88='DNSP Inputs General'!$B$85,D$44,IF('DNSP Inputs General'!$C88='DNSP Inputs General'!$B$86,D$45,D$46))*'DNSP Inputs General'!$D88 -> 201.3059143 | E47: =IF('DNSP Inputs General'!$C88='DNSP Inputs General'!$B$85,E$44,IF('DNSP Inputs General'!$C88='DNSP Inputs General'!$B$86,E$45,E$46))*'DNSP Inputs General'!$D88 -> 209.2879767 | F47: =IF('DNSP Inputs General'!$C88='DNSP Inputs General'!$B$85,F$44,IF('DNSP Inputs General'!$C88='DNSP Inputs General'!$B$86,F$45,F$46))*'DNSP Inputs General'!$D88 -> 216.777454 | G47: =IF('DNSP Inputs General'!$C88='DNSP Inputs General'!$B$85,G$44,IF('DNSP Inputs General'!$C88='DNSP Inputs General'!$B$86,G$45,G$46))*'DNSP Inputs General'!$D88 -> 224.6136228 | H47: =IF('DNSP Inputs General'!$C88='DNSP Inputs General'!$B$85,H$44,IF('DNSP Inputs General'!$C88='DNSP Inputs General'!$B$86,H$45,H$46))*'DNSP Inputs General'!$D88 -> 250.6817768 | J47: 0.793902471 | K47: 0.03965140519 | L47: 0.03578551147 | M47: 0.03614844904 | N47: 0.1160577605 | P47: =IF(C47=0,"",(D47/'Charges Summary'!K$4)/C47-1) -> 0.7501487522 | Q47: =IF(D47=0,"",(E47/'Charges Summary'!L$4)/(D47/'Charges Summary'!K$4)-1) -> 0.01429405384 | R47: =IF(E47=0,"",(F47/'Charges Summary'!M$4)/(E47/'Charges Summary'!L$4)-1) -> 0.01052245021 | S47: =IF(F47=0,"",(G47/'Charges Summary'!N$4)/(F47/'Charges Summary'!M$4)-1) -> 0.01087653565 | T47: =IF(G47=0,"",(H47/'Charges Summary'!O$4)/(G47/'Charges Summary'!N$4)-1) -> 0.08883683955 | V47: =SUM('DNSP Inputs General'!V88:Z88)/5 -> 0.0001 | W47: 7.714818205e-10 | AE47: 201.3059143 | AF47: 209.2879767 | AG47: 216.777454 | AH47: 224.6136228 | AI47: 250.6817768
A48: ='DNSP Inputs General'!B89 -> Mercury Vapour 125W | C48: ='DNSP Inputs General'!E89 -> 112.2167551 | D48: =IF('DNSP Inputs General'!$C89='DNSP Inputs General'!$B$85,D$44,IF('DNSP Inputs General'!$C89='DNSP Inputs General'!$B$86,D$45,D$46))*'DNSP Inputs General'!$D89 -> 201.3059143 | E48: =IF('DNSP Inputs General'!$C89='DNSP Inputs General'!$B$85,E$44,IF('DNSP Inputs General'!$C89='DNSP Inputs General'!$B$86,E$45,E$46))*'DNSP Inputs General'!$D89 -> 209.2879767 | F48: =IF('DNSP Inputs General'!$C89='DNSP Inputs General'!$B$85,F$44,IF('DNSP Inputs General'!$C89='DNSP Inputs General'!$B$86,F$45,F$46))*'DNSP Inputs General'!$D89 -> 216.777454 | G48: =IF('DNSP Inputs General'!$C89='DNSP Inputs General'!$B$85,G$44,IF('DNSP Inputs General'!$C89='DNSP Inputs General'!$B$86,G$45,G$46))*'DNSP Inputs General'!$D89 -> 224.6136228 | H48: =IF('DNSP Inputs General'!$C89='DNSP Inputs General'!$B$85,H$44,IF('DNSP Inputs General'!$C89='DNSP Inputs General'!$B$86,H$45,H$46))*'DNSP Inputs General'!$D89 -> 250.6817768 | J48: 0.793902471 | K48: 0.03965140519 | L48: 0.03578551147 | M48: 0.03614844904 | N48: 0.1160577605 | P48: =IF(C48=0,"",(D48/'Charges Summary'!K$4)/C48-1) -> 0.7501487522 | Q48: =IF(D48=0,"",(E48/'Charges Summary'!L$4)/(D48/'Charges Summary'!K$4)-1) -> 0.01429405384 | R48: =IF(E48=0,"",(F48/'Charges Summary'!M$4)/(E48/'Charges Summary'!L$4)-1) -> 0.01052245021 | S48: =IF(F48=0,"",(G48/'Charges Summary'!N$4)/(F48/'Charges Summary'!M$4)-1) -> 0.01087653565 | T48: =IF(G48=0,"",(H48/'Charges Summary'!O$4)/(G48/'Charges Summary'!N$4)-1) -> 0.08883683955 | V48: =SUM('DNSP Inputs General'!V89:Z89)/5 -> 0.0001 | W48: 7.714818205e-10 | AE48: 201.3059143 | AF48: 209.2879767 | AG48: 216.777454 | AH48: 224.6136228 | AI48: 250.6817768
A49: ='DNSP Inputs General'!B90 -> Mercury Vapour 250W | C49: ='DNSP Inputs General'!E90 -> 153.6208411 | D49: =IF('DNSP Inputs General'!$C90='DNSP Inputs General'!$B$85,D$44,IF('DNSP Inputs General'!$C90='DNSP Inputs General'!$B$86,D$45,D$46))*'DNSP Inputs General'!$D90 -> 183.0266932 | E49: =IF('DNSP Inputs General'!$C90='DNSP Inputs General'!$B$85,E$44,IF('DNSP Inputs General'!$C90='DNSP Inputs General'!$B$86,E$45,E$46))*'DNSP Inputs General'!$D90 -> 190.5035953 | F49: =IF('DNSP Inputs General'!$C90='DNSP Inputs General'!$B$85,F$44,IF('DNSP Inputs General'!$C90='DNSP Inputs General'!$B$86,F$45,F$46))*'DNSP Inputs General'!$D90 -> 197.712598 | G49: =IF('DNSP Inputs General'!$C90='DNSP Inputs General'!$B$85,G$44,IF('DNSP Inputs General'!$C90='DNSP Inputs General'!$B$86,G$45,G$46))*'DNSP Inputs General'!$D90 -> 205.4274477 | H49: =IF('DNSP Inputs General'!$C90='DNSP Inputs General'!$B$85,H$44,IF('DNSP Inputs General'!$C90='DNSP Inputs General'!$B$86,H$45,H$46))*'DNSP Inputs General'!$D90 -> 226.3623932 | J49: 0.1914183767 | K49: 0.04085142981 | L49: 0.03784181947 | M49: 0.03902052704 | N49: 0.1019091933 | P49: =IF(C49=0,"",(D49/'Charges Summary'!K$4)/C49-1) -> 0.1623593919 | Q49: =IF(D49=0,"",(E49/'Charges Summary'!L$4)/(D49/'Charges Summary'!K$4)-1) -> 0.01546480957 | R49: =IF(E49=0,"",(F49/'Charges Summary'!M$4)/(E49/'Charges Summary'!L$4)-1) -> 0.01252860436 | S49: =IF(F49=0,"",(G49/'Charges Summary'!N$4)/(F49/'Charges Summary'!M$4)-1) -> 0.01367856297 | T49: =IF(G49=0,"",(H49/'Charges Summary'!O$4)/(G49/'Charges Summary'!N$4)-1) -> 0.07503335933 | V49: =SUM('DNSP Inputs General'!V90:Z90)/5 -> 0.0001 | W49: 7.714818205e-10 | AE49: 183.0266932 | AF49: 190.5035953 | AG49: 197.712598 | AH49: 205.4274477 | AI49: 226.3623932
A50: ='DNSP Inputs General'!B91 -> Mercury Vapour 400W | C50: ='DNSP Inputs General'!E91 -> 158.0522116 | D50: =IF('DNSP Inputs General'!$C91='DNSP Inputs General'!$B$85,D$44,IF('DNSP Inputs General'!$C91='DNSP Inputs General'!$B$86,D$45,D$46))*'DNSP Inputs General'!$D91 -> 188.3063093 | E50: =IF('DNSP Inputs General'!$C91='DNSP Inputs General'!$B$85,E$44,IF('DNSP Inputs General'!$C91='DNSP Inputs General'!$B$86,E$45,E$46))*'DNSP Inputs General'!$D91 -> 195.9988913 | F50: =IF('DNSP Inputs General'!$C91='DNSP Inputs General'!$B$85,F$44,IF('DNSP Inputs General'!$C91='DNSP Inputs General'!$B$86,F$45,F$46))*'DNSP Inputs General'!$D91 -> 203.415846 | G50: =IF('DNSP Inputs General'!$C91='DNSP Inputs General'!$B$85,G$44,IF('DNSP Inputs General'!$C91='DNSP Inputs General'!$B$86,G$45,G$46))*'DNSP Inputs General'!$D91 -> 211.3532395 | H50: =IF('DNSP Inputs General'!$C91='DNSP Inputs General'!$B$85,H$44,IF('DNSP Inputs General'!$C91='DNSP Inputs General'!$B$86,H$45,H$46))*'DNSP Inputs General'!$D91 -> 232.8920776 | J50: 0.1914183767 | K50: 0.04085142981 | L50: 0.03784181947 | M50: 0.03902052704 | N50: 0.1019091933 | P50: =IF(C50=0,"",(D50/'Charges Summary'!K$4)/C50-1) -> 0.1623593919 | Q50: =IF(D50=0,"",(E50/'Charges Summary'!L$4)/(D50/'Charges Summary'!K$4)-1) -> 0.01546480957 | R50: =IF(E50=0,"",(F50/'Charges Summary'!M$4)/(E50/'Charges Summary'!L$4)-1) -> 0.01252860436 | S50: =IF(F50=0,"",(G50/'Charges Summary'!N$4)/(F50/'Charges Summary'!M$4)-1) -> 0.01367856297 | T50: =IF(G50=0,"",(H50/'Charges Summary'!O$4)/(G50/'Charges Summary'!N$4)-1) -> 0.07503335933 | V50: =SUM('DNSP Inputs General'!V91:Z91)/5 -> 0.0001 | W50: 7.714818205e-10 | AE50: 188.3063093 | AF50: 195.9988913 | AG50: 203.415846 | AH50: 211.3532395 | AI50: 232.8920776
A51: ='DNSP Inputs General'!B92 -> HP Sodium 100W | C51: ='DNSP Inputs General'!E92 -> 157.6577107 | D51: =IF('DNSP Inputs General'!$C92='DNSP Inputs General'!$B$85,D$44,IF('DNSP Inputs General'!$C92='DNSP Inputs General'!$B$86,D$45,D$46))*'DNSP Inputs General'!$D92 -> 187.9575742 | E51: =IF('DNSP Inputs General'!$C92='DNSP Inputs General'!$B$85,E$44,IF('DNSP Inputs General'!$C92='DNSP Inputs General'!$B$86,E$45,E$46))*'DNSP Inputs General'!$D92 -> 195.4543644 | F51: =IF('DNSP Inputs General'!$C92='DNSP Inputs General'!$B$85,F$44,IF('DNSP Inputs General'!$C92='DNSP Inputs General'!$B$86,F$45,F$46))*'DNSP Inputs General'!$D92 -> 202.824748 | G51: =IF('DNSP Inputs General'!$C92='DNSP Inputs General'!$B$85,G$44,IF('DNSP Inputs General'!$C92='DNSP Inputs General'!$B$86,G$45,G$46))*'DNSP Inputs General'!$D92 -> 210.7138255 | H51: =IF('DNSP Inputs General'!$C92='DNSP Inputs General'!$B$85,H$44,IF('DNSP Inputs General'!$C92='DNSP Inputs General'!$B$86,H$45,H$46))*'DNSP Inputs General'!$D92 -> 231.8381204 | J51: 0.1921876409 | K51: 0.03988554466 | L51: 0.03770897426 | M51: 0.03889603019 | N51: 0.10025111 | P51: =IF(C51=0,"",(D51/'Charges Summary'!K$4)/C51-1) -> 0.1631098936 | Q51: =IF(D51=0,"",(E51/'Charges Summary'!L$4)/(D51/'Charges Summary'!K$4)-1) -> 0.01452248259 | R51: =IF(E51=0,"",(F51/'Charges Summary'!M$4)/(E51/'Charges Summary'!L$4)-1) -> 0.01239899927 | S51: =IF(F51=0,"",(G51/'Charges Summary'!N$4)/(F51/'Charges Summary'!M$4)-1) -> 0.01355710262 | T51: =IF(G51=0,"",(H51/'Charges Summary'!O$4)/(G51/'Charges Summary'!N$4)-1) -> 0.07341571708 | V51: =SUM('DNSP Inputs General'!V92:Z92)/5 -> 129.0413868 | W51: 0.0009955308398 | AE51: 187.9575742 | AF51: 195.4543644 | AG51: 202.824748 | AH51: 210.7138255 | AI51: 231.8381204
A52: ='DNSP Inputs General'!B93 -> HP Sodium 400W | C52: ='DNSP Inputs General'!E93 -> 209.7515331 | D52: =IF('DNSP Inputs General'!$C93='DNSP Inputs General'!$B$85,D$44,IF('DNSP Inputs General'!$C93='DNSP Inputs General'!$B$86,D$45,D$46))*'DNSP Inputs General'!$D93 -> 249.9018311 | E52: =IF('DNSP Inputs General'!$C93='DNSP Inputs General'!$B$85,E$44,IF('DNSP Inputs General'!$C93='DNSP Inputs General'!$B$86,E$45,E$46))*'DNSP Inputs General'!$D93 -> 260.1106782 | F52: =IF('DNSP Inputs General'!$C93='DNSP Inputs General'!$B$85,F$44,IF('DNSP Inputs General'!$C93='DNSP Inputs General'!$B$86,F$45,F$46))*'DNSP Inputs General'!$D93 -> 269.9537395 | G52: =IF('DNSP Inputs General'!$C93='DNSP Inputs General'!$B$85,G$44,IF('DNSP Inputs General'!$C93='DNSP Inputs General'!$B$86,G$45,G$46))*'DNSP Inputs General'!$D93 -> 280.4874767 | H52: =IF('DNSP Inputs General'!$C93='DNSP Inputs General'!$B$85,H$44,IF('DNSP Inputs General'!$C93='DNSP Inputs General'!$B$86,H$45,H$46))*'DNSP Inputs General'!$D93 -> 309.0717292 | J52: 0.1914183767 | K52: 0.04085142981 | L52: 0.03784181947 | M52: 0.03902052704 | N52: 0.1019091933 | P52: =IF(C52=0,"",(D52/'Charges Summary'!K$4)/C52-1) -> 0.1623593919 | Q52: =IF(D52=0,"",(E52/'Charges Summary'!L$4)/(D52/'Charges Summary'!K$4)-1) -> 0.01546480957 | R52: =IF(E52=0,"",(F52/'Charges Summary'!M$4)/(E52/'Charges Summary'!L$4)-1) -> 0.01252860436 | S52: =IF(F52=0,"",(G52/'Charges Summary'!N$4)/(F52/'Charges Summary'!M$4)-1) -> 0.01367856297 | T52: =IF(G52=0,"",(H52/'Charges Summary'!O$4)/(G52/'Charges Summary'!N$4)-1) -> 0.07503335933 | V52: =SUM('DNSP Inputs General'!V93:Z93)/5 -> 137.9097209 | W52: 0.001063948425 | AE52: 249.9018311 | AF52: 260.1106782 | AG52: 269.9537395 | AH52: 280.4874767 | AI52: 309.0717292
A53: ='DNSP Inputs General'!B94 -> Metal Halide 70W | C53: ='DNSP Inputs General'!E94 -> 288.4609057 | D53: =IF('DNSP Inputs General'!$C94='DNSP Inputs General'!$B$85,D$44,IF('DNSP Inputs General'!$C94='DNSP Inputs General'!$B$86,D$45,D$46))*'DNSP Inputs General'!$D94 -> 517.4707316 | E53: =IF('DNSP Inputs General'!$C94='DNSP Inputs General'!$B$85,E$44,IF('DNSP Inputs General'!$C94='DNSP Inputs General'!$B$86,E$45,E$46))*'DNSP Inputs General'!$D94 -> 537.9891733 | F53: =IF('DNSP Inputs General'!$C94='DNSP Inputs General'!$B$85,F$44,IF('DNSP Inputs General'!$C94='DNSP Inputs General'!$B$86,F$45,F$46))*'DNSP Inputs General'!$D94 -> 557.241391 | G53: =IF('DNSP Inputs General'!$C94='DNSP Inputs General'!$B$85,G$44,IF('DNSP Inputs General'!$C94='DNSP Inputs General'!$B$86,G$45,G$46))*'DNSP Inputs General'!$D94 -> 577.384803 | H53: =IF('DNSP Inputs General'!$C94='DNSP Inputs General'!$B$85,H$44,IF('DNSP Inputs General'!$C94='DNSP Inputs General'!$B$86,H$45,H$46))*'DNSP Inputs General'!$D94 -> 644.3947902 | J53: =IF(C53=0,"",D53/C53-1) -> 0.793902471 | K53: 0.03965140519 | L53: 0.03578551147 | M53: 0.03614844904 | N53: 0.1160577605 | P53: =IF(C53=0,"",(D53/'Charges Summary'!K$4)/C53-1) -> 0.7501487522 | Q53: =IF(D53=0,"",(E53/'Charges Summary'!L$4)/(D53/'Charges Summary'!K$4)-1) -> 0.01429405384 | R53: =IF(E53=0,"",(F53/'Charges Summary'!M$4)/(E53/'Charges Summary'!L$4)-1) -> 0.01052245021 | S53: =IF(F53=0,"",(G53/'Charges Summary'!N$4)/(F53/'Charges Summary'!M$4)-1) -> 0.01087653565 | T53: =IF(G53=0,"",(H53/'Charges Summary'!O$4)/(G53/'Charges Summary'!N$4)-1) -> 0.08883683955 | V53: =SUM('DNSP Inputs General'!V94:Z94)/5 -> 0.0001 | W53: 7.714818205e-10 | AE53: 517.4707316 | AF53: 537.9891733 | AG53: 557.241391 | AH53: 577.384803 | AI53: 644.3947902
A54: ='DNSP Inputs General'!B95 -> Metal Halide 100W | C54: ='DNSP Inputs General'!E95 -> 312.081097 | D54: =IF('DNSP Inputs General'!$C95='DNSP Inputs General'!$B$85,D$44,IF('DNSP Inputs General'!$C95='DNSP Inputs General'!$B$86,D$45,D$46))*'DNSP Inputs General'!$D95 -> 372.0592268 | E54: =IF('DNSP Inputs General'!$C95='DNSP Inputs General'!$B$85,E$44,IF('DNSP Inputs General'!$C95='DNSP Inputs General'!$B$86,E$45,E$46))*'DNSP Inputs General'!$D95 -> 386.8990117 | F54: =IF('DNSP Inputs General'!$C95='DNSP Inputs General'!$B$85,F$44,IF('DNSP Inputs General'!$C95='DNSP Inputs General'!$B$86,F$45,F$46))*'DNSP Inputs General'!$D95 -> 401.4885766 | G54: =IF('DNSP Inputs General'!$C95='DNSP Inputs General'!$B$85,G$44,IF('DNSP Inputs General'!$C95='DNSP Inputs General'!$B$86,G$45,G$46))*'DNSP Inputs General'!$D95 -> 417.1048884 | H54: =IF('DNSP Inputs General'!$C95='DNSP Inputs General'!$B$85,H$44,IF('DNSP Inputs General'!$C95='DNSP Inputs General'!$B$86,H$45,H$46))*'DNSP Inputs General'!$D95 -> 458.9201165 | J54: 0.1921876409 | K54: 0.03988554466 | L54: 0.03770897426 | M54: 0.03889603019 | N54: 0.10025111 | P54: =IF(C54=0,"",(D54/'Charges Summary'!K$4)/C54-1) -> 0.1631098936 | Q54: =IF(D54=0,"",(E54/'Charges Summary'!L$4)/(D54/'Charges Summary'!K$4)-1) -> 0.01452248259 | R54: =IF(E54=0,"",(F54/'Charges Summary'!M$4)/(E54/'Charges Summary'!L$4)-1) -> 0.01239899927 | S54: =IF(F54=0,"",(G54/'Charges Summary'!N$4)/(F54/'Charges Summary'!M$4)-1) -> 0.01355710262 | T54: =IF(G54=0,"",(H54/'Charges Summary'!O$4)/(G54/'Charges Summary'!N$4)-1) -> 0.07341571708 | V54: =SUM('DNSP Inputs General'!V95:Z95)/5 -> 0.0001 | W54: 7.714818205e-10 | AE54: 372.0592268 | AF54: 386.8990117 | AG54: 401.4885766 | AH54: 417.1048884 | AI54: 458.9201165
A55: ='DNSP Inputs General'!B96 -> Metal Halide 150W | C55: ='DNSP Inputs General'!E96 -> 354.5522746 | D55: =IF('DNSP Inputs General'!$C96='DNSP Inputs General'!$B$85,D$44,IF('DNSP Inputs General'!$C96='DNSP Inputs General'!$B$86,D$45,D$46))*'DNSP Inputs General'!$D96 -> 422.6928398 | E55: =IF('DNSP Inputs General'!$C96='DNSP Inputs General'!$B$85,E$44,IF('DNSP Inputs General'!$C96='DNSP Inputs General'!$B$86,E$45,E$46))*'DNSP Inputs General'!$D96 -> 439.5521739 | F55: =IF('DNSP Inputs General'!$C96='DNSP Inputs General'!$B$85,F$44,IF('DNSP Inputs General'!$C96='DNSP Inputs General'!$B$86,F$45,F$46))*'DNSP Inputs General'!$D96 -> 456.1272355 | G55: =IF('DNSP Inputs General'!$C96='DNSP Inputs General'!$B$85,G$44,IF('DNSP Inputs General'!$C96='DNSP Inputs General'!$B$86,G$45,G$46))*'DNSP Inputs General'!$D96 -> 473.8687743 | H55: =IF('DNSP Inputs General'!$C96='DNSP Inputs General'!$B$85,H$44,IF('DNSP Inputs General'!$C96='DNSP Inputs General'!$B$86,H$45,H$46))*'DNSP Inputs General'!$D96 -> 521.3746449 | J55: 0.1921876409 | K55: 0.03988554466 | L55: 0.03770897426 | M55: 0.03889603019 | N55: 0.10025111 | P55: =IF(C55=0,"",(D55/'Charges Summary'!K$4)/C55-1) -> 0.1631098936 | Q55: =IF(D55=0,"",(E55/'Charges Summary'!L$4)/(D55/'Charges Summary'!K$4)-1) -> 0.01452248259 | R55: =IF(E55=0,"",(F55/'Charges Summary'!M$4)/(E55/'Charges Summary'!L$4)-1) -> 0.01239899927 | S55: =IF(F55=0,"",(G55/'Charges Summary'!N$4)/(F55/'Charges Summary'!M$4)-1) -> 0.01355710262 | T55: =IF(G55=0,"",(H55/'Charges Summary'!O$4)/(G55/'Charges Summary'!N$4)-1) -> 0.07341571708 | V55: =SUM('DNSP Inputs General'!V96:Z96)/5 -> 0.0001 | W55: 7.714818205e-10 | AE55: 422.6928398 | AF55: 439.5521739 | AG55: 456.1272355 | AH55: 473.8687743 | AI55: 521.3746449
A56: ='DNSP Inputs General'!B97 -> HP Sodium 50W | C56: ='DNSP Inputs General'!E97 -> 67.00151515 | D56: =IF('DNSP Inputs General'!$C97='DNSP Inputs General'!$B$85,D$44,IF('DNSP Inputs General'!$C97='DNSP Inputs General'!$B$86,D$45,D$46))*'DNSP Inputs General'!$D97 -> 79.87837829 | E56: =IF('DNSP Inputs General'!$C97='DNSP Inputs General'!$B$85,E$44,IF('DNSP Inputs General'!$C97='DNSP Inputs General'!$B$86,E$45,E$46))*'DNSP Inputs General'!$D97 -> 83.06437091 | F56: =IF('DNSP Inputs General'!$C97='DNSP Inputs General'!$B$85,F$44,IF('DNSP Inputs General'!$C97='DNSP Inputs General'!$B$86,F$45,F$46))*'DNSP Inputs General'!$D97 -> 86.19664314 | G56: =IF('DNSP Inputs General'!$C97='DNSP Inputs General'!$B$85,G$44,IF('DNSP Inputs General'!$C97='DNSP Inputs General'!$B$86,G$45,G$46))*'DNSP Inputs General'!$D97 -> 89.54935037 | H56: =IF('DNSP Inputs General'!$C97='DNSP Inputs General'!$B$85,H$44,IF('DNSP Inputs General'!$C97='DNSP Inputs General'!$B$86,H$45,H$46))*'DNSP Inputs General'!$D97 -> 98.52677215 | J56: 0.1921876409 | K56: 0.03988554466 | L56: 0.03770897426 | M56: 0.03889603019 | N56: 0.10025111 | P56: =IF(C56=0,"",(D56/'Charges Summary'!K$4)/C56-1) -> 0.1631098936 | Q56: =IF(D56=0,"",(E56/'Charges Summary'!L$4)/(D56/'Charges Summary'!K$4)-1) -> 0.01452248259 | R56: =IF(E56=0,"",(F56/'Charges Summary'!M$4)/(E56/'Charges Summary'!L$4)-1) -> 0.01239899927 | S56: =IF(F56=0,"",(G56/'Charges Summary'!N$4)/(F56/'Charges Summary'!M$4)-1) -> 0.01355710262 | T56: =IF(G56=0,"",(H56/'Charges Summary'!O$4)/(G56/'Charges Summary'!N$4)-1) -> 0.07341571708 | V56: =SUM('DNSP Inputs General'!V97:Z97)/5 -> 0.0001 | W56: 7.714818205e-10 | AE56: 79.87837829 | AF56: 83.06437091 | AG56: 86.19664314 | AH56: 89.54935037 | AI56: 98.52677215
A59: ='DNSP Inputs General'!B$101 -> Energy Efficient Lights
A60: ='DNSP Inputs General'!B102 -> T5 2X14W | C60: ='DNSP Inputs General'!E102 -> 68.12573648 | D60: ='Charges Summary'!K$89 -> 66.32991939 | E60: ='Charges Summary'!L$89 -> 71.45757389 | F60: ='Charges Summary'!M$89 -> 78.91732023 | G60: ='Charges Summary'!N$89 -> 96.31085255 | H60: ='Charges Summary'!O$89 -> 69.77031922 | J60: =IF(C60=0,"",D60/C60-1) -> -0.0263603328 | K60: 0.07730530272 | L60: 0.1043940613 | M60: 0.2204019633 | N60: -0.2755715751 | P60: =IF(C60=0,"",(D60/'Charges Summary'!K$4)/C60-1) -> -0.05010764176 | Q60: =IF(D60=0,"",(E60/'Charges Summary'!L$4)/(D60/'Charges Summary'!K$4)-1) -> 0.05102956363 | R60: =IF(E60=0,"",(F60/'Charges Summary'!M$4)/(E60/'Charges Summary'!L$4)-1) -> 0.07745762076 | S60: =IF(F60=0,"",(G60/'Charges Summary'!N$4)/(F60/'Charges Summary'!M$4)-1) -> 0.1906360617 | T60: =IF(G60=0,"",(H60/'Charges Summary'!O$4)/(G60/'Charges Summary'!N$4)-1) -> -0.2932405611 | V60: =SUM('DNSP Inputs General'!V102:Z102)/5 -> 1087.4 | W60: =V60/V$35 -> 0.008389093316 | AE60: =D60-Y60 -> 66.32991939 | AF60: =E60-Z60 -> 71.45757389 | AG60: =F60-AA60 -> 78.91732023 | AH60: =G60-AB60 -> 96.31085255 | AI60: =H60-AC60 -> 69.77031922
A61: ='DNSP Inputs General'!B103 -> T5 2X24W | C61: ='DNSP Inputs General'!E103 -> 72.71786539 | D61: ='Charges Summary'!K$105 -> 70.87083198 | E61: ='Charges Summary'!L$105 -> 76.06948191 | F61: ='Charges Summary'!M$105 -> 83.46095691 | G61: ='Charges Summary'!N$105 -> 100.2567034 | H61: ='Charges Summary'!O$105 -> 64.61511168 | J61: -0.02539999485 | K61: 0.07335387189 | L61: 0.09716741607 | M61: 0.2012407609 | N61: -0.3555033279 | P61: =IF(C61=0,"",(D61/'Charges Summary'!K$4)/C61-1) -> -0.04917072669 | Q61: =IF(D61=0,"",(E61/'Charges Summary'!L$4)/(D61/'Charges Summary'!K$4)-1) -> 0.04717450916 | R61: =IF(E61=0,"",(F61/'Charges Summary'!M$4)/(E61/'Charges Summary'!L$4)-1) -> 0.07040723519 | S61: =IF(F61=0,"",(G61/'Charges Summary'!N$4)/(F61/'Charges Summary'!M$4)-1) -> 0.1719422058 | T61: =IF(G61=0,"",(H61/'Charges Summary'!O$4)/(G61/'Charges Summary'!N$4)-1) -> -0.371222759 | V61: =SUM('DNSP Inputs General'!V103:Z103)/5 -> 355.2 | W61: 0.002740303427 | AE61: 70.87083198 | AF61: 76.06948191 | AG61: 83.46095691 | AH61: 100.2567034 | AI61: 64.61511168
A62: ='DNSP Inputs General'!B104 -> LED 18W | C62: ='DNSP Inputs General'!E104 -> 38.57955664 | D62: ='Charges Summary'!K$121 -> 39.33236671 | E62: ='Charges Summary'!L$121 -> 41.58188882 | F62: ='Charges Summary'!M$121 -> 43.62643077 | G62: ='Charges Summary'!N$121 -> 45.69839815 | H62: ='Charges Summary'!O$121 -> 47.25721947 | J62: =IF(C62=0,"",D62/C62-1) -> 0.01951318611 | K62: =IF(D62=0,"",E62/D62-1) -> 0.05719264551 | L62: =IF(E62=0,"",F62/E62-1) -> 0.04916904947 | M62: =IF(F62=0,"",G62/F62-1) -> 0.0474933968 | N62: =IF(G62=0,"",H62/G62-1) -> 0.03411107118 | P62: =IF(C62=0,"",(D62/'Charges Summary'!K$4)/C62-1) -> -0.005352989162 | Q62: =IF(D62=0,"",(E62/'Charges Summary'!L$4)/(D62/'Charges Summary'!K$4)-1) -> 0.03140745904 | R62: =IF(E62=0,"",(F62/'Charges Summary'!M$4)/(E62/'Charges Summary'!L$4)-1) -> 0.02357956046 | S62: =IF(F62=0,"",(G62/'Charges Summary'!N$4)/(F62/'Charges Summary'!M$4)-1) -> 0.02194477736 | T62: =IF(G62=0,"",(H62/'Charges Summary'!O$4)/(G62/'Charges Summary'!N$4)-1) -> 0.008888849928 | V62: =SUM('DNSP Inputs General'!V104:Z104)/5 -> 33407.17079 | W62: 0.2577302494 | AE62: 39.33236671 | AF62: 41.58188882 | AG62: 43.62643077 | AH62: 45.69839815 | AI62: 47.25721947
A63: ='DNSP Inputs General'!B105 -> LED 14W | C63: ='DNSP Inputs General'!E105 -> 40.50090798 | D63: ='Charges Summary'!K$137 -> 46.80990469 | E63: ='Charges Summary'!L$137 -> 49.84808489 | F63: ='Charges Summary'!M$137 -> 52.6053965 | G63: ='Charges Summary'!N$137 -> 55.3571027 | H63: ='Charges Summary'!O$137 -> 57.40672725 | J63: =IF(C63=0,"",D63/C63-1) -> 0.1557742042 | K63: 0.06490464415 | L63: 0.05531429371 | M63: 0.05230843939 | N63: 0.0370255026 | P63: =IF(C63=0,"",(D63/'Charges Summary'!K$4)/C63-1) -> 0.1275845895 | Q63: =IF(D63=0,"",(E63/'Charges Summary'!L$4)/(D63/'Charges Summary'!K$4)-1) -> 0.03893136014 | R63: =IF(E63=0,"",(F63/'Charges Summary'!M$4)/(E63/'Charges Summary'!L$4)-1) -> 0.02957492069 | S63: =IF(F63=0,"",(G63/'Charges Summary'!N$4)/(F63/'Charges Summary'!M$4)-1) -> 0.02664237989 | T63: =IF(G63=0,"",(H63/'Charges Summary'!O$4)/(G63/'Charges Summary'!N$4)-1) -> 0.01173219766 | V63: =SUM('DNSP Inputs General'!V105:Z105)/5 -> 6256.332159 | W63: 0.04826646524 | AE63: 46.80990469 | AF63: 49.84808489 | AG63: 52.6053965 | AH63: 55.3571027 | AI63: 57.40672725
A64: ='DNSP Inputs General'!B106 -> LED 70W-125W (L1) | C64: ='DNSP Inputs General'!E106 -> 63.48432879 | D64: ='Charges Summary'!K$153 -> 68.81270788 | E64: ='Charges Summary'!L$153 -> 73.61709835 | F64: ='Charges Summary'!M$153 -> 78.02716323 | G64: ='Charges Summary'!N$153 -> 82.40217645 | H64: ='Charges Summary'!O$153 -> 85.71013647 | J64: 0.08393219537 | K64: 0.06981836085 | L64: 0.05990544298 | M64: 0.05607038667 | N64: 0.04014408555 | P64: =IF(C64=0,"",(D64/'Charges Summary'!K$4)/C64-1) -> 0.05749482475 | Q64: =IF(D64=0,"",(E64/'Charges Summary'!L$4)/(D64/'Charges Summary'!K$4)-1) -> 0.0437252301 | R64: =IF(E64=0,"",(F64/'Charges Summary'!M$4)/(E64/'Charges Summary'!L$4)-1) -> 0.03405409071 | S64: =IF(F64=0,"",(G64/'Charges Summary'!N$4)/(F64/'Charges Summary'!M$4)-1) -> 0.03031257237 | T64: =IF(G64=0,"",(H64/'Charges Summary'!O$4)/(G64/'Charges Summary'!N$4)-1) -> 0.01477471761 | V64: =SUM('DNSP Inputs General'!V106:Z106)/5 -> 3801.244021 | W64: 0.02932590657 | AE64: 68.81270788 | AF64: 73.61709835 | AG64: 78.02716323 | AH64: 82.40217645 | AI64: 85.71013647
A65: ='DNSP Inputs General'!B107 -> LED 155W-250W (L2) | C65: ='DNSP Inputs General'!E107 -> 64.62237193 | D65: ='Charges Summary'!K$169 -> 68.81270788 | E65: ='Charges Summary'!L$169 -> 73.61709835 | F65: ='Charges Summary'!M$169 -> 78.02716323 | G65: ='Charges Summary'!N$169 -> 82.40217645 | H65: ='Charges Summary'!O$169 -> 85.71013647 | J65: 0.06484342532 | K65: 0.06981836085 | L65: 0.05990544298 | M65: 0.05607038667 | N65: 0.04014408555 | P65: =IF(C65=0,"",(D65/'Charges Summary'!K$4)/C65-1) -> 0.03887163446 | Q65: =IF(D65=0,"",(E65/'Charges Summary'!L$4)/(D65/'Charges Summary'!K$4)-1) -> 0.0437252301 | R65: =IF(E65=0,"",(F65/'Charges Summary'!M$4)/(E65/'Charges Summary'!L$4)-1) -> 0.03405409071 | S65: =IF(F65=0,"",(G65/'Charges Summary'!N$4)/(F65/'Charges Summary'!M$4)-1) -> 0.03031257237 | T65: =IF(G65=0,"",(H65/'Charges Summary'!O$4)/(G65/'Charges Summary'!N$4)-1) -> 0.01477471761 | V65: =SUM('DNSP Inputs General'!V107:Z107)/5 -> 2157.746645 | W65: 0.0166466231 | AE65: 68.81270788 | AF65: 73.61709835 | AG65: 78.02716323 | AH65: 82.40217645 | AI65: 85.71013647
A66: ='DNSP Inputs General'!B108 -> LED 275W-400W (L4) | C66: ='DNSP Inputs General'!E108 -> 74.81377584 | D66: ='Charges Summary'!K$185 -> 92.65786334 | E66: ='Charges Summary'!L$185 -> 100.5351281 | F66: ='Charges Summary'!M$185 -> 107.6878823 | G66: ='Charges Summary'!N$185 -> 114.6527269 | H66: ='Charges Summary'!O$185 -> 119.763604 | J66: 0.2385133928 | K66: 0.08501453066 | L66: 0.07114681533 | M66: 0.06467621433 | N66: 0.04457702245 | P66: =IF(C66=0,"",(D66/'Charges Summary'!K$4)/C66-1) -> 0.2083057491 | Q66: =IF(D66=0,"",(E66/'Charges Summary'!L$4)/(D66/'Charges Summary'!K$4)-1) -> 0.05855076162 | R66: =IF(E66=0,"",(F66/'Charges Summary'!M$4)/(E66/'Charges Summary'!L$4)-1) -> 0.04502128325 | S66: =IF(F66=0,"",(G66/'Charges Summary'!N$4)/(F66/'Charges Summary'!M$4)-1) -> 0.03870850179 | T66: =IF(G66=0,"",(H66/'Charges Summary'!O$4)/(G66/'Charges Summary'!N$4)-1) -> 0.0190995341 | V66: =SUM('DNSP Inputs General'!V108:Z108)/5 -> 193.7845717 | W66: 0.001495012742 | AE66: 92.65786334 | AF66: 100.5351281 | AG66: 107.6878823 | AH66: 114.6527269 | AI66: 119.763604
A67: ='DNSP Inputs General'!B109 -> Compact Fluorescent 32W | C67: ='DNSP Inputs General'!E109 -> 59.92407174 | D67: =IF('DNSP Inputs General'!$C109='DNSP Inputs General'!$B$102,D$60,D$61)*'DNSP Inputs General'!$D109 -> 58.34445327 | E67: =IF('DNSP Inputs General'!$C109='DNSP Inputs General'!$B$102,E$60,E$61)*'DNSP Inputs General'!$D109 -> 62.85478889 | F67: =IF('DNSP Inputs General'!$C109='DNSP Inputs General'!$B$102,F$60,F$61)*'DNSP Inputs General'!$D109 -> 69.41645557 | G67: =IF('DNSP Inputs General'!$C109='DNSP Inputs General'!$B$102,G$60,G$61)*'DNSP Inputs General'!$D109 -> 84.71597866 | H67: =IF('DNSP Inputs General'!$C109='DNSP Inputs General'!$B$102,H$60,H$61)*'DNSP Inputs General'!$D109 -> 61.37066299 | J67: -0.0263603328 | K67: 0.07730530272 | L67: 0.1043940613 | M67: 0.2204019633 | N67: -0.2755715751 | P67: =IF(C67=0,"",(D67/'Charges Summary'!K$4)/C67-1) -> -0.05010764176 | Q67: =IF(D67=0,"",(E67/'Charges Summary'!L$4)/(D67/'Charges Summary'!K$4)-1) -> 0.05102956363 | R67: =IF(E67=0,"",(F67/'Charges Summary'!M$4)/(E67/'Charges Summary'!L$4)-1) -> 0.07745762076 | S67: =IF(F67=0,"",(G67/'Charges Summary'!N$4)/(F67/'Charges Summary'!M$4)-1) -> 0.1906360617 | T67: =IF(G67=0,"",(H67/'Charges Summary'!O$4)/(G67/'Charges Summary'!N$4)-1) -> -0.2932405611 | V67: =SUM('DNSP Inputs General'!V109:Z109)/5 -> 575 | W67: 0.004436020468 | AE67: 58.34445327 | AF67: 62.85478889 | AG67: 69.41645557 | AH67: 84.71597866 | AI67: 61.37066299
A68: ='DNSP Inputs General'!B110 -> Compact Fluorescent 42W | C68: ='DNSP Inputs General'!E110 -> 59.92407174 | D68: =IF('DNSP Inputs General'!$C110='DNSP Inputs General'!$B$102,D$60,D$61)*'DNSP Inputs General'!$D110 -> 58.34445327 | E68: =IF('DNSP Inputs General'!$C110='DNSP Inputs General'!$B$102,E$60,E$61)*'DNSP Inputs General'!$D110 -> 62.85478889 | F68: =IF('DNSP Inputs General'!$C110='DNSP Inputs General'!$B$102,F$60,F$61)*'DNSP Inputs General'!$D110 -> 69.41645557 | G68: =IF('DNSP Inputs General'!$C110='DNSP Inputs General'!$B$102,G$60,G$61)*'DNSP Inputs General'!$D110 -> 84.71597866 | H68: =IF('DNSP Inputs General'!$C110='DNSP Inputs General'!$B$102,H$60,H$61)*'DNSP Inputs General'!$D110 -> 61.37066299 | J68: -0.0263603328 | K68: 0.07730530272 | L68: 0.1043940613 | M68: 0.2204019633 | N68: -0.2755715751 | P68: =IF(C68=0,"",(D68/'Charges Summary'!K$4)/C68-1) -> -0.05010764176 | Q68: =IF(D68=0,"",(E68/'Charges Summary'!L$4)/(D68/'Charges Summary'!K$4)-1) -> 0.05102956363 | R68: =IF(E68=0,"",(F68/'Charges Summary'!M$4)/(E68/'Charges Summary'!L$4)-1) -> 0.07745762076 | S68: =IF(F68=0,"",(G68/'Charges Summary'!N$4)/(F68/'Charges Summary'!M$4)-1) -> 0.1906360617 | T68: =IF(G68=0,"",(H68/'Charges Summary'!O$4)/(G68/'Charges Summary'!N$4)-1) -> -0.2932405611 | V68: =SUM('DNSP Inputs General'!V110:Z110)/5 -> 1982 | W68: =V68/V$35 -> 0.01529076968 | AE68: 58.34445327 | AF68: 62.85478889 | AG68: 69.41645557 | AH68: 84.71597866 | AI68: 61.37066299
A69: ='DNSP Inputs General'!B111 -> Smart lighting L1 | C69: ='DNSP Inputs General'!E111 -> 81.57221374 | D69: ='Charges Summary'!K$201 -> 58.27278021 | E69: ='Charges Summary'!L$201 -> 60.14188882 | F69: ='Charges Summary'!M$201 -> 64.66053963 | G69: ='Charges Summary'!N$201 -> 66.74239719 | H69: ='Charges Summary'!O$201 -> 68.63928029 | P69: =IF(C69=0,"",(D69/'Charges Summary'!K$4)/C69-1) -> -0.3030532055 | Q69: =IF(D69=0,"",(E69/'Charges Summary'!L$4)/(D69/'Charges Summary'!K$4)-1) -> 0.006902592744 | R69: =IF(E69=0,"",(F69/'Charges Summary'!M$4)/(E69/'Charges Summary'!L$4)-1) -> 0.04891041059 | S69: =IF(F69=0,"",(G69/'Charges Summary'!N$4)/(F69/'Charges Summary'!M$4)-1) -> 0.007021194378 | T69: =IF(G69=0,"",(H69/'Charges Summary'!O$4)/(G69/'Charges Summary'!N$4)-1) -> 0.00333752339 | V69: =SUM('DNSP Inputs General'!V111:Z111)/5 -> 0 | W69: =V69/V$35 -> 0 | AE69: =D69-Y69 -> 58.27278021 | AF69: 60.14188882 | AG69: 64.66053963 | AH69: 66.74239719 | AI69: 68.63928029
A70: ='DNSP Inputs General'!B112 -> Smart lighting L2 | C70: ='DNSP Inputs General'!E112 -> 82.71025688 | D70: ='Charges Summary'!K$217 -> 60.75153239 | E70: ='Charges Summary'!L$217 -> 62.70100706 | F70: ='Charges Summary'!M$217 -> 64.66053963 | G70: ='Charges Summary'!N$217 -> 66.74239719 | H70: ='Charges Summary'!O$217 -> 68.63928029 | P70: =IF(C70=0,"",(D70/'Charges Summary'!K$4)/C70-1) -> -0.2834046231 | Q70: =IF(D70=0,"",(E70/'Charges Summary'!L$4)/(D70/'Charges Summary'!K$4)-1) -> 0.006916398556 | R70: =IF(E70=0,"",(F70/'Charges Summary'!M$4)/(E70/'Charges Summary'!L$4)-1) -> 0.006099523046 | S70: =IF(F70=0,"",(G70/'Charges Summary'!N$4)/(F70/'Charges Summary'!M$4)-1) -> 0.007021194378 | T70: =IF(G70=0,"",(H70/'Charges Summary'!O$4)/(G70/'Charges Summary'!N$4)-1) -> 0.00333752339 | V70: =SUM('DNSP Inputs General'!V112:Z112)/5 -> 0 | W70: =V70/V$35 -> 0 | AE70: 60.75153239 | AF70: 62.70100706 | AG70: 64.66053963 | AH70: 66.74239719 | AI70: 68.63928029
A71: ='DNSP Inputs General'!B113 -> Smart lighting L4 | C71: ='DNSP Inputs General'!E113 -> 92.90166079 | D71: ='Charges Summary'!K$233 -> 60.75153239 | E71: ='Charges Summary'!L$233 -> 62.70100706 | F71: ='Charges Summary'!M$233 -> 64.66053963 | G71: ='Charges Summary'!N$233 -> 66.74239719 | H71: ='Charges Summary'!O$233 -> 68.63928029 | P71: =IF(C71=0,"",(D71/'Charges Summary'!K$4)/C71-1) -> -0.3620158435 | Q71: =IF(D71=0,"",(E71/'Charges Summary'!L$4)/(D71/'Charges Summary'!K$4)-1) -> 0.006916398556 | R71: =IF(E71=0,"",(F71/'Charges Summary'!M$4)/(E71/'Charges Summary'!L$4)-1) -> 0.006099523046 | S71: =IF(F71=0,"",(G71/'Charges Summary'!N$4)/(F71/'Charges Summary'!M$4)-1) -> 0.007021194378 | T71: =IF(G71=0,"",(H71/'Charges Summary'!O$4)/(G71/'Charges Summary'!N$4)-1) -> 0.00333752339 | V71: =SUM('DNSP Inputs General'!V113:Z113)/5 -> 0 | W71: =V71/V$35 -> 0 | AE71: 60.75153239 | AF71: 62.70100706 | AG71: 64.66053963 | AH71: 66.74239719 | AI71: 68.63928029
V72: =SUM(V44:V71) -> 54772.0426 | W72: 0.4225563514

Sheet PL Tariff Components
A1: ='DNSP Inputs O&M'!$A$3 -> AusNet | E1: Global Check | F1: =IF(SUM('Total RAB'!F1,'Depn & WACC Post 2004 N & E'!F1,'Depn & WACC Post 2004 Central'!F1,'Cashflow Summary'!F1,W1)<1,"Ok","Error") -> Ok | V1: Check | W1: =SUM(V7:Z34,V41:Z68) -> 3.197442311e-12
D3: ='DNSP Inputs General'!$B$42 -> Central
A4: Public Lighting Tariffs | C4: Total Tariff | J4: Operations, maintenance and repair Tariff | P4: Replacement Tariff | V4: Check
C5: Actual
A6: ='DNSP Inputs General'!B$44 -> Existing Lights | C6: =EOMONTH(D6,-12) -> 2026-06-30 | D6: =Instructions!$B$16 -> 2027-06-30 | E6: =EOMONTH(D6,12) -> 2028-06-30 | F6: =EOMONTH(E6,12) -> 2029-06-30 | G6: =EOMONTH(F6,12) -> 2030-06-30 | H6: =EOMONTH(G6,12) -> 2031-06-30 | J6: =D6 -> 2027-06-30 | K6: =E6 -> 2028-06-30 | L6: =F6 -> 2029-06-30 | M6: =G6 -> 2030-06-30 | N6: =H6 -> 2031-06-30 | P6: =J6 -> 2027-06-30 | Q6: =K6 -> 2028-06-30 | R6: =L6 -> 2029-06-30 | S6: =M6 -> 2030-06-30 | T6: =N6 -> 2031-06-30 | V6: =P6 -> 2027-06-30 | W6: =Q6 -> 2028-06-30 | X6: =R6 -> 2029-06-30 | Y6: =S6 -> 2030-06-30 | Z6: =T6 -> 2031-06-30
A7: ='DNSP Inputs General'!B45 -> Mercury Vapour 80W | C7: ='DNSP Inputs General'!E45 -> 71.68462513 | D7: ='Charges Summary'!D$31 -> 132.239802 | E7: ='Charges Summary'!E$31 -> 137.5063099 | F7: ='Charges Summary'!F$31 -> 142.4465705 | G7: ='Charges Summary'!G$31 -> 147.6150937 | H7: ='Charges Summary'!H$31 -> 165.1032116 | J7: =SUM('Charges Summary'!D25,'Charges Summary'!D8) -> 46.23228543 | K7: =SUM('Charges Summary'!E25,'Charges Summary'!E8) -> 47.53195206 | L7: =SUM('Charges Summary'!F25,'Charges Summary'!F8) -> 48.86212886 | M7: =SUM('Charges Summary'!G25,'Charges Summary'!G8) -> 50.28644044 | N7: =SUM('Charges Summary'!H25,'Charges Summary'!H8) -> 51.68823998 | P7: =SUM('Charges Summary'!D27,'Charges Summary'!D11) -> 86.00751658 | Q7: =SUM('Charges Summary'!E27,'Charges Summary'!E11) -> 89.97435784 | R7: =SUM('Charges Summary'!F27,'Charges Summary'!F11) -> 93.5844416 | S7: =SUM('Charges Summary'!G27,'Charges Summary'!G11) -> 97.32865327 | T7: =SUM('Charges Summary'!H27,'Charges Summary'!H11) -> 113.4149716 | V7: =ABS(D7-J7-P7) -> 0 | W7: =ABS(E7-K7-Q7) -> 0 | X7: 1.421085472e-14 | Y7: 1.421085472e-14 | Z7: 0
A8: ='DNSP Inputs General'!B46 -> HP Sodium 150W | C8: ='DNSP Inputs General'!E46 -> 128.2482859 | D8: ='Charges Summary'!D$55 -> 156.4659213 | E8: ='Charges Summary'!E$55 -> 162.6585633 | F8: ='Charges Summary'!F$55 -> 168.64072 | G8: ='Charges Summary'!G$55 -> 174.9745804 | H8: ='Charges Summary'!H$55 -> 193.5602899 | J8: =SUM('Charges Summary'!D49,'Charges Summary'!D8) -> 71.47808127 | K8: =SUM('Charges Summary'!E49,'Charges Summary'!E8) -> 73.75222185 | L8: =SUM('Charges Summary'!F49,'Charges Summary'!F8) -> 76.16841587 | M8: =SUM('Charges Summary'!G49,'Charges Summary'!G8) -> 78.80367287 | N8: =SUM('Charges Summary'!H49,'Charges Summary'!H8) -> 81.52789468 | P8: =SUM('Charges Summary'!D51,'Charges Summary'!D11) -> 84.98784004 | Q8: =SUM('Charges Summary'!E51,'Charges Summary'!E11) -> 88.90634146 | R8: =SUM('Charges Summary'!F51,'Charges Summary'!F11) -> 92.47230414 | S8: =SUM('Charges Summary'!G51,'Charges Summary'!G11) -> 96.17090753 | T8: =SUM('Charges Summary'!H51,'Charges Summary'!H11) -> 112.0323952 | V8: =ABS(D8-J8-P8) -> 1.421085472e-14 | W8: 2.842170943e-14 | X8: 2.842170943e-14 | Y8: 1.421085472e-14 | Z8: 1.421085472e-14
A9: ='DNSP Inputs General'!B47 -> HP Sodium 250W | C9: ='DNSP Inputs General'!E47 -> 131.5919745 | D9: ='Charges Summary'!D$71 -> 159.6799703 | E9: ='Charges Summary'!E$71 -> 166.0111726 | F9: ='Charges Summary'!F$71 -> 172.1306485 | G9: ='Charges Summary'!G$71 -> 178.6124379 | H9: ='Charges Summary'!H$71 -> 197.6885432 | J9: =SUM('Charges Summary'!D65,'Charges Summary'!D8) -> 72.85889514 | K9: =SUM('Charges Summary'!E65,'Charges Summary'!E8) -> 75.18468778 | L9: =SUM('Charges Summary'!F65,'Charges Summary'!F8) -> 77.65887751 | M9: =SUM('Charges Summary'!G65,'Charges Summary'!G8) -> 80.36006624 | N9: =SUM('Charges Summary'!H65,'Charges Summary'!H8) -> 83.17046991 | P9: =SUM('Charges Summary'!D67,'Charges Summary'!D11) -> 86.8210752 | Q9: =SUM('Charges Summary'!E67,'Charges Summary'!E11) -> 90.82648484 | R9: =SUM('Charges Summary'!F67,'Charges Summary'!F11) -> 94.47177104 | S9: =SUM('Charges Summary'!G67,'Charges Summary'!G11) -> 98.2523717 | T9: =SUM('Charges Summary'!H67,'Charges Summary'!H11) -> 114.5180733 | V9: =ABS(D9-J9-P9) -> 1.421085472e-14 | W9: =ABS(E9-K9-Q9) -> 1.421085472e-14 | X9: =ABS(F9-L9-R9) -> 1.421085472e-14 | Y9: =ABS(G9-M9-S9) -> 1.421085472e-14 | Z9: =ABS(H9-N9-T9) -> 1.421085472e-14
A10: ='DNSP Inputs General'!B48 -> Mercury Vapour 50W | C10: ='DNSP Inputs General'!E48 -> 109.6774764 | D10: =IF('DNSP Inputs General'!$C48='DNSP Inputs General'!$B$45,D$7,IF('DNSP Inputs General'!$C48='DNSP Inputs General'!$B$46,D$8,D$9))*'DNSP Inputs General'!$D48 -> 202.3268971 | E10: =IF('DNSP Inputs General'!$C48='DNSP Inputs General'!$B$45,E$7,IF('DNSP Inputs General'!$C48='DNSP Inputs General'!$B$46,E$8,E$9))*'DNSP Inputs General'!$D48 -> 210.3846541 | F10: =IF('DNSP Inputs General'!$C48='DNSP Inputs General'!$B$45,F$7,IF('DNSP Inputs General'!$C48='DNSP Inputs General'!$B$46,F$8,F$9))*'DNSP Inputs General'!$D48 -> 217.9432528 | G10: =IF('DNSP Inputs General'!$C48='DNSP Inputs General'!$B$45,G$7,IF('DNSP Inputs General'!$C48='DNSP Inputs General'!$B$46,G$8,G$9))*'DNSP Inputs General'!$D48 -> 225.8510934 | H10: =IF('DNSP Inputs General'!$C48='DNSP Inputs General'!$B$45,H$7,IF('DNSP Inputs General'!$C48='DNSP Inputs General'!$B$46,H$8,H$9))*'DNSP Inputs General'!$D48 -> 252.6079137 | J10: =IF('DNSP Inputs General'!$C48='DNSP Inputs General'!$B$45,J$7,IF('DNSP Inputs General'!$C48='DNSP Inputs General'!$B$46,J$8,J$9))*'DNSP Inputs General'!$D48 -> 70.73539671 | K10: =IF('DNSP Inputs General'!$C48='DNSP Inputs General'!$B$45,K$7,IF('DNSP Inputs General'!$C48='DNSP Inputs General'!$B$46,K$8,K$9))*'DNSP Inputs General'!$D48 -> 72.72388665 | L10: =IF('DNSP Inputs General'!$C48='DNSP Inputs General'!$B$45,L$7,IF('DNSP Inputs General'!$C48='DNSP Inputs General'!$B$46,L$8,L$9))*'DNSP Inputs General'!$D48 -> 74.75905716 | M10: =IF('DNSP Inputs General'!$C48='DNSP Inputs General'!$B$45,M$7,IF('DNSP Inputs General'!$C48='DNSP Inputs General'!$B$46,M$8,M$9))*'DNSP Inputs General'!$D48 -> 76.93825387 | N10: =IF('DNSP Inputs General'!$C48='DNSP Inputs General'!$B$45,N$7,IF('DNSP Inputs General'!$C48='DNSP Inputs General'!$B$46,N$8,N$9))*'DNSP Inputs General'!$D48 -> 79.08300717 | P10: =IF('DNSP Inputs General'!$C48='DNSP Inputs General'!$B$45,P$7,IF('DNSP Inputs General'!$C48='DNSP Inputs General'!$B$46,P$8,P$9))*'DNSP Inputs General'!$D48 -> 131.5915004 | Q10: =IF('DNSP Inputs General'!$C48='DNSP Inputs General'!$B$45,Q$7,IF('DNSP Inputs General'!$C48='DNSP Inputs General'!$B$46,Q$8,Q$9))*'DNSP Inputs General'!$D48 -> 137.6607675 | R10: =IF('DNSP Inputs General'!$C48='DNSP Inputs General'!$B$45,R$7,IF('DNSP Inputs General'!$C48='DNSP Inputs General'!$B$46,R$8,R$9))*'DNSP Inputs General'!$D48 -> 143.1841957 | S10: =IF('DNSP Inputs General'!$C48='DNSP Inputs General'!$B$45,S$7,IF('DNSP Inputs General'!$C48='DNSP Inputs General'!$B$46,S$8,S$9))*'DNSP Inputs General'!$D48 -> 148.9128395 | T10: =IF('DNSP Inputs General'!$C48='DNSP Inputs General'!$B$45,T$7,IF('DNSP Inputs General'!$C48='DNSP Inputs General'!$B$46,T$8,T$9))*'DNSP Inputs General'!$D48 -> 173.5249065 | V10: 0 | W10: 2.842170943e-14 | X10: 2.842170943e-14 | Y10: 0 | Z10: 2.842170943e-14
A11: ='DNSP Inputs General'!B49 -> Mercury Vapour 125W | C11: ='DNSP Inputs General'!E49 -> 105.3763989 | D11: =IF('DNSP Inputs General'!$C49='DNSP Inputs General'!$B$45,D$7,IF('DNSP Inputs General'!$C49='DNSP Inputs General'!$B$46,D$8,D$9))*'DNSP Inputs General'!$D49 -> 194.392509 | E11: =IF('DNSP Inputs General'!$C49='DNSP Inputs General'!$B$45,E$7,IF('DNSP Inputs General'!$C49='DNSP Inputs General'!$B$46,E$8,E$9))*'DNSP Inputs General'!$D49 -> 202.1342755 | F11: =IF('DNSP Inputs General'!$C49='DNSP Inputs General'!$B$45,F$7,IF('DNSP Inputs General'!$C49='DNSP Inputs General'!$B$46,F$8,F$9))*'DNSP Inputs General'!$D49 -> 209.3964586 | G11: =IF('DNSP Inputs General'!$C49='DNSP Inputs General'!$B$45,G$7,IF('DNSP Inputs General'!$C49='DNSP Inputs General'!$B$46,G$8,G$9))*'DNSP Inputs General'!$D49 -> 216.9941878 | H11: =IF('DNSP Inputs General'!$C49='DNSP Inputs General'!$B$45,H$7,IF('DNSP Inputs General'!$C49='DNSP Inputs General'!$B$46,H$8,H$9))*'DNSP Inputs General'!$D49 -> 242.701721 | J11: =IF('DNSP Inputs General'!$C49='DNSP Inputs General'!$B$45,J$7,IF('DNSP Inputs General'!$C49='DNSP Inputs General'!$B$46,J$8,J$9))*'DNSP Inputs General'!$D49 -> 67.96145959 | K11: =IF('DNSP Inputs General'!$C49='DNSP Inputs General'!$B$45,K$7,IF('DNSP Inputs General'!$C49='DNSP Inputs General'!$B$46,K$8,K$9))*'DNSP Inputs General'!$D49 -> 69.87196952 | L11: =IF('DNSP Inputs General'!$C49='DNSP Inputs General'!$B$45,L$7,IF('DNSP Inputs General'!$C49='DNSP Inputs General'!$B$46,L$8,L$9))*'DNSP Inputs General'!$D49 -> 71.82732943 | M11: =IF('DNSP Inputs General'!$C49='DNSP Inputs General'!$B$45,M$7,IF('DNSP Inputs General'!$C49='DNSP Inputs General'!$B$46,M$8,M$9))*'DNSP Inputs General'!$D49 -> 73.92106744 | N11: =IF('DNSP Inputs General'!$C49='DNSP Inputs General'!$B$45,N$7,IF('DNSP Inputs General'!$C49='DNSP Inputs General'!$B$46,N$8,N$9))*'DNSP Inputs General'!$D49 -> 75.98171277 | P11: =IF('DNSP Inputs General'!$C49='DNSP Inputs General'!$B$45,P$7,IF('DNSP Inputs General'!$C49='DNSP Inputs General'!$B$46,P$8,P$9))*'DNSP Inputs General'!$D49 -> 126.4310494 | Q11: =IF('DNSP Inputs General'!$C49='DNSP Inputs General'!$B$45,Q$7,IF('DNSP Inputs General'!$C49='DNSP Inputs General'!$B$46,Q$8,Q$9))*'DNSP Inputs General'!$D49 -> 132.262306 | R11: =IF('DNSP Inputs General'!$C49='DNSP Inputs General'!$B$45,R$7,IF('DNSP Inputs General'!$C49='DNSP Inputs General'!$B$46,R$8,R$9))*'DNSP Inputs General'!$D49 -> 137.5691292 | S11: =IF('DNSP Inputs General'!$C49='DNSP Inputs General'!$B$45,S$7,IF('DNSP Inputs General'!$C49='DNSP Inputs General'!$B$46,S$8,S$9))*'DNSP Inputs General'!$D49 -> 143.0731203 | T11: =IF('DNSP Inputs General'!$C49='DNSP Inputs General'!$B$45,T$7,IF('DNSP Inputs General'!$C49='DNSP Inputs General'!$B$46,T$8,T$9))*'DNSP Inputs General'!$D49 -> 166.7200082 | V11: 1.421085472e-14 | W11: 2.842170943e-14 | X11: 2.842170943e-14 | Y11: 2.842170943e-14 | Z11: 0
